Workbook

Sheet Mainframe
A1: Timestamp | B1: Handle | C1: Q1 | D1: Q2 | E1: Q3 | F1: Q4 | G1: Q5 | H1: Q6 | I1: Q7 | J1: Q8 | K1: Q9 | L1: Q10 | M1: Q11 | N1: Q12 | O1: TB | P1: FOX | Q1: PM | V1: =COUNTA(B:B)-1 -> 73
A2: 2015-11-21T16:39:47 | B2: MollyQMurphy | C2: 3 | D2: 121 | E2: 16 | F2: 1861 | G2: 1 | H2: 22 | I2: 42 | J2: 202 | K2: 75 | L2: 76 | M2: 11 | N2: 40 | O2: 324 | P2: 12. Religion | Q2: Yes, please PM me
A3: 2015-11-21T17:20:59 | B3: MarkBarrett | C3: 1 | D3: 121 | E3: 34 | F3: 1860 | G3: 8 | H3: 7 | I3: 20 | J3: 202 | K3: 80 | L3: 67 | M3: 40 | N3: 12 | O3: 666 | P3: 4. War | Q3: No, thanks
A4: 2015-11-21T17:42:13 | B4: Peggles | C4: 3 | D4: 100 | E4: 2001 | F4: 1415 | G4: 11 | H4: 451 | I4: 42 | J4: 9 | K4: 66 | L4: 76 | M4: 11 | N4: 95400 | O4: 400 | P4: 8. American Politics | Q4: Yes, please PM me
A5: 2015-11-21T17:46:38 | B5: gamawire | C5: 96 | D5: 121 | E5: 101 | F5: 1815 | G5: 6 | H5: 22 | I5: 76 | J5: 1974 | K5: 35 | L5: 61 | M5: 5 | N5: 66 | O5: 654 | P5: 9. Interstate Highways | Q5: Yes, please PM me
A6: 2015-11-21T18:33:22 | B6: ZachTheRiah | C6: 1 | D6: 21 | E6: 101 | F6: 1861 | G6: 2 | H6: 451 | I6: 75 | J6: 18 | K6: 5 | L6: 65 | M6: 50 | N6: 150 | O6: 650 | P6: 11. Idioms | Q6: Yes, please PM me
A7: 2015-11-21T19:04:45 | B7: 9021amyers | C7: 10000 | D7: 38 | E7: 10 | F7: 1415 | G7: 92 | H7: 7 | I7: 42 | J7: 1850 | K7: 76 | L7: 94 | M7: 11 | N7: 95 | O7: 396 | P7: 7. Musicals | Q7: No, thanks
A8: 2015-11-21T19:07:09 | B8: Rackme32 | C8: 20 | D8: 108 | E8: 16 | F8: 1815 | G8: 16 | H8: 22 | I8: 76 | J8: 49 | K8: 84 | L8: 42 | M8: 5 | N8: 10 | O8: 665 | P8: 5. Chemistry | Q8: Yes, please PM me
A9: 2015-11-21T19:21:48 | B9: caknuck | C9: 98 | D9: 22 | E9: 10 | F9: 1815 | G9: 5 | H9: 451 | I9: 4 | J9: 18 | K9: 35 | L9: 5 | M9: 3 | N9: 666 | O9: 480 | P9: 7. Musicals | Q9: No, thanks
A10: 2015-11-21T21:35:56 | B10: Dlinn83 | C10: 5000 | D10: 11 | E10: 12 | F10: 1762 | G10: 2 | H10: 22 | I10: 20 | J10: 11 | K10: 5 | L10: 42 | M10: 2 | N10: 10 | O10: 500 | P10: 4. War | Q10: Yes, please PM me
A11: 2015-11-22T15:17:28 | B11: MitchO | C11: 3 | D11: 38 | E11: 16 | F11: 1940 | G11: 36 | H11: 6 | I11: 64 | J11: 9 | K11: 9 | L11: 76 | M11: 5 | N11: 10 | O11: 733 | P11: 12. Religion | Q11: Yes, please PM me
A12: 2015-11-22T16:31:43 | B12: dinghammer | C12: 65 | D12: 1326 | E12: 300 | F12: 1815 | G12: 5 | H12: 12 | I12: 76 | J12: 34 | K12: 84 | L12: 49 | M12: 5 | N12: 613 | O12: 587 | P12: 4. War | Q12: No, thanks
A13: 2015-11-22T17:35:35 | B13: RichmondJ | C13: 40 | D13: 22 | E13: 7 | F13: 1777 | G13: 11 | H13: 80 | I13: 525600 | J13: 1850 | K13: 94 | L13: 5 | M13: 8 | N13: 150 | O13: 412 | P13: 1. Pop Music | Q13: No, thanks
A14: 2015-11-22T21:31:02 | B14: geolawyerman | C14: 1 | D14: 21 | E14: 2012 | F14: 312 | G14: 2 | H14: 4 | I14: 8 | J14: 18 | K14: 84 | L14: 61 | M14: 8 | N14: 5000 | O14: 500 | P14: 7. Musicals | Q14: No, thanks
A15: 2015-11-22T22:00:27 | B15: Blue Lion | C15: 40 | D15: 23 | E15: 400 | F15: 1066 | G15: 36 | H15: 47 | I15: 42 | J15: 538 | K15: 88 | L15: 61 | M15: 40 | N15: 95 | O15: 542 | P15: 2. Games | Q15: Yes, please PM me
A16: 2015-11-22T22:15:35 | B16: Abraxas | C16: 5000 | D16: 775 | E16: 3000 | F16: 2003 | G16: 47 | H16: 49 | I16: 525600 | J16: 1974 | K16: 35 | L16: 2130 | M16: 10 | N16: 666 | O16: 497 | P16: 10. Sports | Q16: Yes, please PM me
A17: 2015-11-23T11:22:07 | B17: quarterrican | C17: 20 | D17: 19 | E17: 300 | F17: 1863 | G17: 5 | H17: 80 | I17: 19 | J17: 1974 | K17: 95 | L17: 49 | M17: 5 | N17: 95 | O17: 612 | P17: 4. War | Q17: Yes, please PM me
A18: 2015-11-23T11:51:37 | B18: mitchparov | C18: 65 | D18: 775 | E18: 300 | F18: 1964 | G18: 2 | H18: 4 | I18: 25 | J18: 9 | K18: 95 | L18: 42 | M18: 6 | N18: 613 | O18: 500 | P18: 2. Games | Q18: No, thanks
A19: 2015-11-23T13:29:00 | B19: immaf | C19: 5 | D19: 100 | E19: 2001 | F19: 1512 | G19: 2 | H19: 22 | I19: 42 | J19: 9 | K19: 84 | L19: 49 | M19: 9 | N19: 10 | O19: 500 | P19: 1. Pop Music | Q19: Yes, please PM me
A20: 2015-11-23T14:51:40 | B20: clprez | C20: 5 | D20: 61 | E20: 34 | F20: 1940 | G20: 20 | H20: 451 | I20: 42 | J20: 49 | K20: 94 | L20: 67 | M20: 9 | N20: 622 | O20: 369 | P20: 10. Sports | Q20: Yes, please PM me
A21: 2015-11-23T15:39:30 | B21: mikeyb | C21: 40 | D21: 108 | E21: 34 | F21: 2003 | G21: 5 | H21: 1000 | I21: 11 | J21: 1974 | K21: 20 | L21: 49 | M21: 9 | N21: 27 | O21: 667 | P21: 4. War | Q21: No, thanks
A22: 2015-11-23T17:00:34 | B22: ElendilPickle | C22: 20 | D22: 21 | E22: 34 | F22: 1815 | G22: 5 | H22: 7 | I22: 20 | J22: 1974 | K22: 8 | L22: 49 | M22: 8 | N22: 150 | O22: 500 | P22: 5. Chemistry | Q22: Yes, please PM me
A23: 2015-11-23T17:59:36 | B23: MinnesotaMyron | C23: 5000 | D23: 22 | E23: 16 | F23: 1861 | G23: 5 | H23: 1000 | I23: 11 | J23: 49 | K23: 35 | L23: 61 | M23: 1000 | N23: 150 | O23: 500 | P23: 9. Interstate Highways | Q23: Yes, please PM me
A24: 2015-11-23T18:15:08 | B24: BigDaddyMatty | C24: 9 | D24: 121 | E24: 34 | F24: 2003 | G24: 8 | H24: 22 | I24: 64 | J24: 34 | K24: 84 | L24: 67 | M24: 3 | N24: 27 | O24: 500 | P24: 6. Books | Q24: Yes, please PM me
A25: 2015-11-24T02:36:42 | B25: Category 13 | C25: 3 | D25: 38 | E25: 16 | F25: 1940 | G25: 18 | H25: 61 | I25: 76 | J25: 1789 | K25: 94 | L25: 42 | M25: 5 | N25: 12 | O25: 455 | P25: 7. Musicals | Q25: Yes, please PM me
A26: 2015-11-24T11:07:34 | B26: Lampy | C26: 65 | D26: 1326 | E26: 10 | F26: 312 | G26: 92 | H26: 49 | I26: 20 | J26: 47 | K26: 4 | L26: 20 | M26: 19 | N26: 622 | O26: 412 | P26: 5. Chemistry | Q26: Yes, please PM me
A27: 2015-11-24T15:38:10 | B27: Magna | C27: 1 | D27: 2652 | E27: 16 | F27: 1968 | G27: 6 | H27: 80 | I27: 20 | J27: 9 | K27: 8 | L27: 76 | M27: 11 | N27: 27 | O27: 618 | P27: 4. War | Q27: Yes, please PM me
A28: 2015-11-24T16:25:54 | B28: BerneseMountainDogLover | C28: 65 | D28: 42 | E28: 10 | F28: 1415 | G28: 17 | H28: 1000 | I28: 25 | J28: 15 | K28: 80 | L28: 5 | M28: 1000 | N28: 5000 | O28: 123 | P28: 11. Idioms | Q28: No, thanks
A29: 2015-11-24T16:58:42 | B29: CoachP | C29: 9 | D29: 21 | E29: 300 | F29: 2003 | G29: 11 | H29: 22 | I29: 6 | J29: 202 | K29: 84 | L29: 22 | M29: 5 | N29: 10 | O29: 500 | P29: 4. War | Q29: Yes, please PM me
A30: 2015-11-24T17:42:18 | B30: BennyBXB | C30: 1 | D30: 775 | E30: 300 | F30: 1942 | G30: 6 | H30: 66 | I30: 525600 | J30: 538 | K30: 95 | L30: 20 | M30: 2 | N30: 10 | O30: 502 | P30: 9. Interstate Highways | Q30: No, thanks
A31: 2015-11-24T22:58:11 | B31: Holocene Hero | C31: 65 | D31: 775 | E31: 12 | F31: 1815 | G31: 5 | H31: 20000 | I31: 20 | J31: 18 | K31: 95 | L31: 76 | M31: 50 | N31: 613 | O31: 499 | P31: 4. War | Q31: No, thanks
A32: 2015-11-24T23:30:36 | B32: tjconn728 | C32: 311 | D32: 775 | E32: 10 | F32: 1861 | G32: 2 | H32: 7 | I32: 20 | J32: 538 | K32: 99 | L32: 22 | M32: 50 | N32: 10 | O32: 533 | P32: 4. War | Q32: No, thanks
A33: 2015-11-25T01:54:30 | B33: dhkendall | C33: 40 | D33: 100 | E33: 10 | F33: 9 | G33: 6 | H33: 66 | I33: 76 | J33: 202 | K33: 35 | L33: 42 | M33: 40 | N33: 622 | O33: 623 | P33: 6. Books | Q33: No, thanks
A34: 2015-11-25T02:24:34 | B34: Rusty's in the club | C34: 40 | D34: 108 | E34: 101 | F34: 1964 | G34: 5 | H34: 52 | I34: 42 | J34: 18 | K34: 4 | L34: 100 | M34: 5 | N34: 10 | O34: 495 | P34: 12. Religion | Q34: Yes, please PM me
A35: 2015-11-25T02:54:26 | B35: groovitude | C35: 5000 | D35: 21 | E35: 2001 | F35: 1861 | G35: 5 | H35: 4 | I35: 20 | J35: 1974 | K35: 80 | L35: 5 | M35: 2 | N35: 4 | O35: 438 | P35: 3. Film | Q35: Yes, please PM me
A36: 2015-11-25T14:51:43 | B36: cmp146 | C36: 40 | D36: 21 | E36: 10 | F36: 1861 | G36: 16 | H36: 4 | I36: 11 | J36: 18 | K36: 76 | L36: 49 | M36: 6 | N36: 10 | O36: 502 | P36: 12. Religion | Q36: No, thanks
A37: 2015-11-26T02:16:55 | B37: psgola | C37: 5 | D37: 21 | E37: 300 | F37: 2003 | G37: 5 | H37: 22 | I37: 76 | J37: 538 | K37: 5 | L37: 67 | M37: 1000 | N37: 5000 | O37: 365 | P37: 1. Pop Music | Q37: Yes, please PM me
A38: 2015-11-26T10:35:14 | B38: mennoknight | C38: 10000 | D38: 22 | E38: 300 | F38: 1964 | G38: 8 | H38: 66 | I38: 76 | J38: 9 | K38: 5 | L38: 60 | M38: 6 | N38: 40 | O38: 500 | P38: 4. War | Q38: No, thanks
A39: 2015-11-26T21:41:22 | B39: econgator | C39: 3 | D39: 121 | E39: 101 | F39: 1066 | G39: 92 | H39: 451 | I39: 8 | J39: 49 | K39: 75 | L39: 5 | M39: 1000000 | N39: 666 | O39: 295 | P39: 12. Religion | Q39: No, thanks
A40: 2015-11-27T03:39:24 | B40: Caboom | C40: 1 | D40: 21 | E40: 300 | F40: 1815 | G40: 106 | H40: 22 | I40: 16 | J40: 9 | K40: 3 | L40: 22 | M40: 50 | N40: 10 | O40: 501 | P40: 9. Interstate Highways | Q40: Yes, please PM me
A41: 2015-11-27T08:24:50 | B41: dnbguy | C41: 20 | D41: 31 | E41: 10 | F41: 2003 | G41: 6 | H41: 12 | I41: 6 | J41: 202 | K41: 84 | L41: 67 | M41: 8 | N41: 10 | O41: 500 | P41: 4. War | Q41: No, thanks
A42: 2015-11-27T08:40:22 | B42: chmmr | C42: 182 | D42: 21 | E42: 300 | F42: 1861 | G42: 6 | H42: 22 | I42: 42 | J42: 9 | K42: 5 | L42: 49 | M42: 5 | N42: 666 | O42: 500 | P42: 3. Film | Q42: Yes, please PM me
A43: 2015-11-27T10:23:37 | B43: Ryno | C43: 3 | D43: 38 | E43: 2012 | F43: 1815 | G43: 5 | H43: 66 | I43: 42 | J43: 49 | K43: 5 | L43: 42 | M43: 3 | N43: 27 | O43: 500 | P43: 4. War | Q43: Yes, please PM me
A44: 2015-11-27T10:59:58 | B44: patkav | C44: 5 | D44: 38 | E44: 34 | F44: 1777 | G44: 5 | H44: 49 | I44: 25 | J44: 18 | K44: 35 | L44: 61 | M44: 5 | N44: 12 | O44: 23 | P44: 10. Sports | Q44: Yes, please PM me
A45: 2015-11-27T11:42:20 | B45: Bamaman | C45: 3 | D45: 22 | E45: 34 | F45: 1815 | G45: 8 | H45: 22 | I45: 76 | J45: 1850 | K45: 20 | L45: 67 | M45: 5 | N45: 27 | O45: 513 | P45: 5. Chemistry | Q45: Yes, please PM me
A46: 2015-11-27T12:04:33 | B46: nightlove1200 | C46: 20 | D46: 664 | E46: 34 | F46: 1777 | G46: 18 | H46: 22 | I46: 25 | J46: 1974 | K46: 80 | L46: 42 | M46: 5 | N46: 27 | O46: 442 | P46: 2. Games | Q46: No, thanks
A47: 2015-11-27T16:35:15 | B47: ouachiouat | C47: 3 | D47: 21 | E47: 16 | F47: 1861 | G47: 8 | H47: 22 | I47: 76 | J47: 9 | K47: 75 | L47: 22 | M47: 50 | N47: 27 | O47: 500 | P47: 7. Musicals | Q47: Yes, please PM me
A48: 2015-11-27T17:01:31 | B48: RyanWillDestroySofia | C48: 5000 | D48: 22 | E48: 16 | F48: 1861 | G48: 6 | H48: 1000 | I48: 19 | J48: 18 | K48: 4 | L48: 67 | M48: 5 | N48: 95 | O48: 401 | P48: 4. War | Q48: Yes, please PM me
A49: 2015-11-27T17:44:00 | B49: Pickle | C49: 10000 | D49: 186 | E49: 2001 | F49: 2003 | G49: 18 | H49: 12 | I49: 20 | J49: 1791 | K49: 95 | L49: 2130 | M49: 1000 | N49: 10 | O49: 343 | P49: 12. Religion | Q49: Yes, please PM me
A50: 2015-11-27T22:04:38 | B50: BobF | C50: 182 | D50: 49 | E50: 300 | F50: 476 | G50: 6 | H50: 1000 | I50: 42 | J50: 34 | K50: 4 | L50: 67 | M50: 11 | N50: 632 | O50: 500 | P50: 3. Film | Q50: Yes, please PM me
A51: 2015-11-29T08:44:05 | B51: Peachbox | C51: 1 | D51: 21 | E51: 34 | F51: 1861 | G51: 2 | H51: 12 | I51: 76 | J51: 1974 | K51: 80 | L51: 60 | M51: 9 | N51: 95 | O51: 528 | P51: 5. Chemistry | Q51: No, thanks
A52: 2015-11-29T13:45:45 | B52: RandyG | C52: 10000 | D52: 38 | E52: 34 | F52: 1965 | G52: 47 | H52: 17 | I52: 42 | J52: 202 | K52: 8 | L52: 94 | M52: 5 | N52: 613 | O52: 100 | P52: 6. Books | Q52: Yes, please PM me
A53: 2015-11-29T15:03:10 | B53: Armandillo | C53: 65 | D53: 22 | E53: 101 | F53: 1861 | G53: 1 | H53: 451 | I53: 6 | J53: 9 | K53: 5 | L53: 22 | M53: 9 | N53: 10 | O53: 864 | P53: 12. Religion | Q53: No, thanks
A54: 2015-11-29T18:58:16 | B54: dott888 | C54: 40 | D54: 121 | E54: 2001 | F54: 2006 | G54: 2 | H54: 1984 | I54: 18 | J54: 9 | K54: 75 | L54: 67 | M54: 9 | N54: 10 | O54: 665 | P54: 4. War | Q54: No, thanks
A55: 2015-11-29T20:13:48 | B55: jgamer | C55: 65 | D55: 100 | E55: 400 | F55: 312 | G55: 18 | H55: 7 | I55: 33 | J55: 49 | K55: 8 | L55: 94 | M55: 6 | N55: 4 | O55: 501 | P55: 11. Idioms | Q55: Yes, please PM me
A56: 2015-11-29T21:42:03 | B56: ihavejeoprosy | C56: 65 | D56: 121 | E56: 10 | F56: 1940 | G56: 36 | H56: 52 | I56: 25 | J56: 49 | K56: 35 | L56: 20 | M56: 5 | N56: 4 | O56: 500 | P56: 2. Games | Q56: Yes, please PM me
A57: 2015-11-30T01:41:16 | B57: DadofTwins | C57: 40 | D57: 42 | E57: 34 | F57: 312 | G57: 17 | H57: 22 | I57: 20 | J57: 46 | K57: 8 | L57: 40 | M57: 5 | N57: 150 | O57: 500 | P57: 8. American Politics | Q57: No, thanks
A58: 2015-11-30T04:26:48 | B58: cool_hand | C58: 98 | D58: 22 | E58: 10 | F58: 1940 | G58: 2 | H58: 20000 | I58: 64 | J58: 49 | K58: 84 | L58: 63 | M58: 6 | N58: 4 | O58: 212 | P58: 6. Books | Q58: No, thanks
A59: 2015-11-30T14:15:20 | B59: kettledrum | C59: 1 | D59: 108 | E59: 16 | F59: 2003 | G59: 106 | H59: 451 | I59: 20 | J59: 18 | K59: 94 | L59: 94 | M59: 9 | N59: 95 | O59: 333 | P59: 4. War | Q59: Yes, please PM me
A60: 2015-11-30T14:39:11 | B60: Woppy T | C60: 10000 | D60: 22 | E60: 16 | F60: 1861 | G60: 2 | H60: 4 | I60: 76 | J60: 202 | K60: 84 | L60: 60 | M60: 5 | N60: 5000 | O60: 505 | P60: 12. Religion | Q60: Yes, please PM me
A61: 2015-11-30T16:22:28 | B61: goforthetie | C61: 10000 | D61: 56 | E61: 3000 | F61: 1940 | G61: 18 | H61: 7 | I61: 20 | J61: 1850 | K61: 99 | L61: 60 | M61: 6 | N61: 12 | O61: 500 | P61: 4. War | Q61: No, thanks
A62: 2015-11-30T17:57:47 | B62: EricaofTwins | C62: 7 | D62: 64 | E62: 5 | F62: 1452 | G62: 11 | H62: 53 | I62: 76 | J62: 19 | K62: 36 | L62: 22 | M62: 9 | N62: 40 | O62: 537 | P62: 3. Film | Q62: No, thanks
A63: 2015-11-30T18:13:51 | B63: KatieofTwins | C63: 27 | D63: 64 | E63: 451 | F63: 1451 | G63: 47 | H63: 20000 | I63: 76 | J63: 1783 | K63: 36 | L63: 96 | M63: 6 | N63: 5000 | O63: 777 | P63: 8. American Politics | Q63: No, thanks
A64: 2015-11-30T18:24:14 | B64: Dick Butkus | C64: 40 | D64: 22 | E64: 47 | F64: 1453 | G64: 2 | H64: 22 | I64: 525600 | J64: 47 | K64: 80 | L64: 5 | M64: 9 | N64: 4 | O64: 666 | P64: 8. American Politics | Q64: No, thanks
A65: 2015-11-30T18:27:03 | B65: Big Bear | C65: 3 | D65: 38 | E65: 12 | F65: 1076 | G65: 6 | H65: 1000 | I65: 76 | J65: 202 | K65: 60 | L65: 5 | M65: 8 | N65: 5000 | O65: 676 | P65: 5. Chemistry
A66: 2015-11-30T20:00:39 | B66: naurae29 | C66: 40 | D66: 21 | E66: 34 | F66: 2002 | G66: 5 | H66: 80 | I66: 6 | J66: 202 | K66: 1 | L66: 76 | M66: 1000 | N66: 27 | O66: 325 | P66: 2. Games | Q66: Yes, please PM me
A67: 2015-11-30T20:20:16 | B67: JonathanHenke | C67: 40 | D67: 121 | E67: 16 | F67: 1415 | G67: 8 | H67: 3 | I67: 25 | J67: 535 | K67: 35 | L67: 24 | M67: 3 | N67: 666 | O67: 420 | P67: 5. Chemistry | Q67: No, thanks
A68: 2015-11-30T20:45:24 | B68: goatman | C68: 40 | D68: 108 | E68: 2001 | F68: 1415 | G68: 26 | H68: 451 | I68: 42 | J68: 202 | K68: 94 | L68: 100 | M68: 8 | N68: 622 | O68: 542 | P68: 1. Pop Music | Q68: No, thanks
A69: 2015-11-30T20:55:55 | B69: deano | C69: 5 | D69: 56 | E69: 47 | F69: 1415 | G69: 2 | H69: 1984 | I69: 42 | J69: 49 | K69: 5 | L69: 42 | M69: 1000 | N69: 5000 | O69: 442 | P69: 6. Books | Q69: Yes, please PM me
A70: 2015-11-30T21:00:45 | B70: schoe | C70: 20 | D70: 22 | E70: 101 | F70: 1453 | G70: 36 | H70: 1984 | I70: 11 | J70: 15 | K70: 76 | L70: 72 | M70: 3 | N70: 5000 | O70: 500 | P70: 4. War | Q70: Yes, please PM me
A71: 2015-11-30T21:59:32 | B71: Ivoirians | C71: 65 | D71: 56 | E71: 300 | F71: 1415 | G71: 5 | H71: 4 | I71: 525600 | J71: 34 | K71: 5 | L71: 49 | M71: 2 | N71: 95 | O71: 496 | P71: 12. Religion | Q71: Yes, please PM me
A72: 2015-11-30T22:25:29 | B72: yossarian | C72: 40 | D72: 42 | E72: 16 | F72: 1861 | G72: 2 | H72: 49 | I72: 20 | J72: 18 | K72: 95 | L72: 100 | M72: 6 | N72: 40 | O72: 333 | P72: 5. Chemistry | Q72: No, thanks
A73: 2015-11-30T22:34:08 | B73: Steppenwolf | C73: 3 | D73: 56 | E73: 34 | F73: 1815 | G73: 18 | H73: 80 | I73: 12 | J73: 49 | K73: 76 | L73: 100 | M73: 3 | N73: 27 | O73: 500 | P73: 1. Pop Music
A74: 2015-12-01T00:04:15 | B74: barandall800 | C74: 3 | D74: 21 | E74: 101 | F74: 1940 | G74: 2 | H74: 12 | I74: 25 | J74: 9 | K74: 10 | L74: 49 | M74: 5 | N74: 5000 | O74: 500 | P74: 10. Sports | Q74: Yes, please PM me

Sheet Scoresheet
C1: 1 | D1: 1. POP MUSIC | F1: =LEFT(MAX(G3:G200,1)) -> 1 | G1: =Answers!D3 -> 13 | H1: 2. GAMES | J1: =LEFT(MAX(K3:K200,1)) -> 2 | K1: =Answers!H3 -> 13 | L1: 3. FILM | N1: =LEFT(MAX(O3:O200,1)) -> 2 | O1: =Answers!L3 -> 13 | P1: 4. WAR | R1: =LEFT(MAX(S3:S200,1)) -> 3 | S1: =Answers!P3 -> 13 | T1: 5. CHEMISTRY | V1: =LEFT(MAX(W3:W200,1)) -> 4 | W1: =Answers!T3 -> 14 | X1: 6. BOOKS | Z1: =LEFT(MAX(AA3:AA200,1)) -> 4 | AA1: =Answers!X3 -> 15 | AB1: 7. MUSICALS | AD1: =LEFT(MAX(AE3:AE200,1)) -> 5 | AE1: =Answers!AB3 -> 14 | AF1: 8. POLITICS | AH1: =LEFT(MAX(AI3:AI200,1)) -> 5 | AI1: =Answers!AF3 -> 12 | AJ1: 9. INTERSTATES | AL1: =LEFT(MAX(AM3:AM200,1)) -> 6 | AM1: =Answers!AJ3 -> 9 | AN1: 10. SPORTS | AP1: =LEFT(MAX(AQ3:AQ200,1)) -> 7 | AQ1: =Answers!AN3 -> 9 | AR1: 11. IDIOMS | AT1: =LEFT(MAX(AU3:AU200,1)) -> 7 | AU1: =Answers!AR3 -> 18 | AV1: 12. RELIGION | AX1: =LEFT(MAX(AY3:AY200,1)) -> 7 | AY1: =Answers!AV3 -> 14 | AZ1: tiebreaker | BD1: Question 14 | BH1: Question 15 | BL1: Question 16 | BP1: Question 17 | BT1: Question 18 | BX1: Question 19 | CB1: Question 20 | CI1: Automated answer compilation | CL1: Automated standings
B2: Player | C2: Order | D2: Response | E2: Resp | F2: Adj | G2: Total | H2: Response | I2: Resp | J2: Adj | K2: Total | L2: Response | M2: Resp | N2: Adj | O2: Total | P2: Response | Q2: Resp | R2: Adj | S2: Total | T2: Response | U2: Resp | V2: Adj | W2: Total | X2: Response | Y2: Resp | Z2: Adj | AA2: Total | AB2: Response | AC2: Resp | AD2: Adj | AE2: Total | AF2: Response | AG2: Resp | AH2: Adj | AI2: Total | AJ2: Response | AK2: Resp | AL2: Adj | AM2: Total | AN2: Response | AO2: Resp | AP2: Adj | AQ2: Total | AR2: Response | AS2: Resp | AT2: Adj | AU2: Total | AV2: Response | AW2: Resp | AX2: Adj | AY2: Total | AZ2: =AVERAGE(AZ3:AZ500) -> 488.4794521 | BA2: Resp | BC2: FOX | BD2: Response | BE2: Resp | BF2: Adj | BG2: Total | BH2: Response | BI2: Resp | BJ2: Adj | BK2: Total | BL2: Response | BM2: Resp | BN2: Adj | BO2: Total | BP2: Response | BQ2: Resp | BR2: Adj | BS2: Total | BT2: Response | BU2: Resp | BV2: Adj | BW2: Total | BX2: Response | BY2: Resp | BZ2: Adj | CA2: Total | CB2: Response | CC2: Resp | CD2: Adj | CE2: Total | CH2: Rank | CJ2: Resp list | CK2: Filter | CL2: Standings | CM2: Rank | CN2: Change
A3: [*] | B3: =IF(Mainframe!B2="","",INDEX(Mainframe!$B:$B,C3+1,1)) -> MollyQMurphy | C3: 1 | D3: =IF($B3="","",0+UPPER(Mainframe!C2)) -> 3 | E3: =IF(D3="","",IF(NOT(ISNA(VLOOKUP(D3,Answers!A:D,4,FALSE))),VLOOKUP(D3,Answers!A:D,4,FALSE),"Help!")) -> 11 | G3: =IF(E3="","",IF(E3="XX",VLOOKUP("WRONG",Answers!A:D,4,FALSE),E3)+F3) -> 11 | H3: =IF($B3="","",0+UPPER(Mainframe!D2)) -> 121 | I3: =IF(H3="","",IF(NOT(ISNA(VLOOKUP(H3,Answers!E:H,4,FALSE))),VLOOKUP(H3,Answers!E:H,4,FALSE),"Help!")) -> 8 | K3: =IF(I3="","",G3+IF(I3="XX",VLOOKUP("WRONG",Answers!E:H,4,FALSE),I3)+J3) -> 19 | L3: =IF($B3="","",0+UPPER(Mainframe!E2)) -> 16 | M3: =IF(L3="","",IF(NOT(ISNA(VLOOKUP(L3,Answers!I:L,4,FALSE))),VLOOKUP(L3,Answers!I:L,4,FALSE),"Help!")) -> 12 | O3: =IF(M3="","",K3+IF(M3="XX",VLOOKUP("WRONG",Answers!I:L,4,FALSE),M3)+N3) -> 31 | P3: =IF($B3="","",0+UPPER(Mainframe!F2)) -> 1861 | Q3: =IF(P3="","",IF(NOT(ISNA(VLOOKUP(P3,Answers!M:P,4,FALSE))),VLOOKUP(P3,Answers!M:P,4,FALSE),"Help!")) -> 1000 | S3: =IF(Q3="","",O3+IF(Q3="XX",VLOOKUP("WRONG",Answers!M:P,4,FALSE),Q3)+R3) -> 1031 | T3: =IF($B3="","",0+UPPER(Mainframe!G2)) -> 1 | U3: XX | W3: =IF(U3="","",S3+IF(U3="XX",VLOOKUP("WRONG",Answers!Q:T,4,FALSE),U3)+V3) -> 2038 | X3: =IF($B3="","",0+UPPER(Mainframe!H2)) -> 22 | Y3: =IF(X3="","",IF(NOT(ISNA(VLOOKUP(X3,Answers!U:X,4,FALSE))),VLOOKUP(X3,Answers!U:X,4,FALSE),"Help!")) -> 1000 | AA3: =IF(Y3="","",W3+IF(Y3="XX",VLOOKUP("WRONG",Answers!U:X,4,FALSE),Y3)+Z3) -> 3038 | AB3: =IF($B3="","",0+UPPER(Mainframe!I2)) -> 42 | AC3: =IF(AB3="","",IF(NOT(ISNA(VLOOKUP(AB3,Answers!Y:AB,4,FALSE))),VLOOKUP(AB3,Answers!Y:AB,4,FALSE),"Help!")) -> 13 | AE3: =IF(AC3="","",AA3+IF(AC3="XX",VLOOKUP("WRONG",Answers!Y:AB,4,FALSE),AC3)+AD3) -> 3051 | AF3: =IF($B3="","",0+UPPER(Mainframe!J2)) -> 202 | AG3: =IF(AF3="","",IF(NOT(ISNA(VLOOKUP(AF3,Answers!AC:AF,4,FALSE))),VLOOKUP(AF3,Answers!AC:AF,4,FALSE),"Help!")) -> 10 | AI3: =IF(AG3="","",AE3+IF(AG3="XX",VLOOKUP("WRONG",Answers!AC:AF,4,FALSE),AG3)+AH3) -> 3061 | AJ3: =IF($B3="","",0+UPPER(Mainframe!K2)) -> 75 | AK3: =IF(AJ3="","",IF(NOT(ISNA(VLOOKUP(AJ3,Answers!AG:AJ,4,FALSE))),VLOOKUP(AJ3,Answers!AG:AJ,4,FALSE),"Help!")) -> 4 | AM3: =IF(AK3="","",AI3+IF(AK3="XX",VLOOKUP("WRONG",Answers!AG:AJ,4,FALSE),AK3)+AL3) -> 3065 | AN3: =IF($B3="","",0+UPPER(Mainframe!L2)) -> 76 | AO3: =IF(AN3="","",IF(NOT(ISNA(VLOOKUP(AN3,Answers!AK:AN,4,FALSE))),VLOOKUP(AN3,Answers!AK:AN,4,FALSE),"Help!")) -> 6 | AQ3: =IF(AO3="","",AM3+IF(AO3="XX",VLOOKUP("WRONG",Answers!AK:AN,4,FALSE),AO3)+AP3) -> 3071 | AR3: =IF($B3="","",0+UPPER(Mainframe!M2)) -> 11 | AS3: =IF(AR3="","",IF(NOT(ISNA(VLOOKUP(AR3,Answers!AO:AR,4,FALSE))),VLOOKUP(AR3,Answers!AO:AR,4,FALSE),"Help!")) -> 5 | AU3: =IF(AS3="","",AQ3+IF(AS3="XX",VLOOKUP("WRONG",Answers!AO:AR,4,FALSE),AS3)+AT3) -> 3076 | AV3: =IF($B3="","",0+UPPER(Mainframe!N2)) -> 40 | AW3: =IF(AV3="","",IF(NOT(ISNA(VLOOKUP(AV3,Answers!AS:AV,4,FALSE))),VLOOKUP(AV3,Answers!AS:AV,4,FALSE),"Help!")) -> 4 | AX3: =IF(AW3>500,-1000,0) -> 0 | AY3: =IF(AW3="","",AU3+IF(AW3="XX",VLOOKUP("WRONG",Answers!AS:AV,4,FALSE),AW3)+AX3) -> 3080 | AZ3: =IF($B3="","",0+UPPER(Mainframe!O2)) -> 324 | BA3: =IF(AZ3="","",ABS(AZ3-AVERAGE(AZ$3:AZ$101))) -> 164.4794521 | BB3: =IF(BA3="","",COUNTA(F3,J3,N3,R3,V3,Z3,AD3,AH3,AL3,AP3,AT3,AX3)) -> 1 | BC3: =IF($B3="","",LEFT(Mainframe!P2,SEARCH(".",Mainframe!P2)-1)) -> 12 | CH3: =IF(B3=0,"",IF(INDEX($B:$CE,ROW(),1)=0,"",IF(INDEX($B:$CE,ROW(),4*QNO+2)=INDEX($B:$CE,ROW()-1,4*QNO+2),$CH2,ROW()-2))) -> 1 | CI3: =IF(INDEX($B:$CE,ROW(),QNO*4)="XX","[b][u]"&INDEX($B:$CE,ROW(),QNO*4-1)&"[/u][/b]","[color=#BF0040]"&INDEX(OFFSET(Answers!C:C,0,(QNO-1)*4),MATCH(INDEX($A:$CB,ROW(),QNO*4),OFFSET(Answers!A:A,0,(QNO-1)*4),0))&"[/color]//[b]"&INDEX(OFFSET(Answers!B:B,0,(QNO-1)*4),MATCH(INDEX($A:$CB,ROW(),QNO*4),OFFSET(Answers!A:A,0,(QNO-1)*4),0))&"[/b] — [b]"&IF(INDEX($B:$CE,ROW(),QNO*4)=1,"Singleton!",CONCATENATE(INDEX($B:$CE,ROW(),QNO*4)," responses"))&"[/b]") -> [color=#BF0040]"Mama Told Me (Not to Come)", "Joy to the World", "Black and White"[/color]//[b][u]THREE[/u] DOG NIGHT[/b] — [b]11 responses[/b] | CJ3: =IF(INDEX($B:$CE,ROW(),1)=0,"",IF(INDEX($B:$CE,ROW(),QNO*4-1)=INDEX($B:$CE,ROW()+1,QNO*4-1),CONCATENATE(INDEX($B:$CE,ROW(),1),IF(BC3-0=QNO-0," [[b][color=#8000BF]FOX[/color][/b]]",""),"//",INDEX($CJ:$CJ,ROW()+1,1)),INDEX($B:$CE,ROW(),1)&IF(BC3-0=QNO-0," [[b][color=#8000BF]FOX[/color][/b]]",""))) -> MollyQMurphy | CK3: =IF(INDEX($B:$CE,ROW(),1)=0,"",IF(ISNUMBER(SEARCH("//",INDEX($CJ:$CJ,ROW()-1,1))),"No","Yes")) -> Yes | CL3: =IF(B3=0,"",CONCATENATE(INDEX($CH:$CL,ROW(),1),". ",INDEX($B:$CE,ROW(),1)," — ")&IF(QNO=1,CONCATENATE("[b]",TEXT(INDEX($B:$CE,ROW(),QNO*4+2),"#,##0"),"[/b] pts"),CONCATENATE("[color=#BBBBBB]",TEXT(INDEX($B:$CE,ROW(),QNO*4-2),"#,##0")," + ",IF(INDEX($B:$CE,ROW(),QNO*4)="XX","[/color][color=#BF8000][b]"&TEXT(WRONGSCORE,"#,##0")&"[/b][/color][color=#BBBBBB]",IF(INDEX($B:$CE,ROW(),QNO*4)=1000,"[/color][color=#BF8000][b]1,000[/b][/color][color=#BBBBBB]",INDEX($B:$CE,ROW(),QNO*4))),IF(INDEX($C:$CE,ROW(),QNO*4)<0," [/color][b][color=#8000BF]- 1,000[/color][/b][color=#BBBBBB]","")," → [/color][b]",TEXT(INDEX($B:$CE,ROW(),QNO*4+2),"#,##0"),"[/b] pts "&"[[b]"&IF(CN3>0,"[color=#00BF00]↑"&CN3,IF(CN3<0,"[color=#FF0000]↓"&ABS(CN3),"[color=#0000FF]unch"))&"[/b][/color]]"))) -> 1. MollyQMurphy — [b]11[/b] pts | CM3: 49 | CN3: =CM3-CH3 -> 48
A4: [*] | B4: =IF(Mainframe!B3="","",INDEX(Mainframe!$B:$B,C4+1,1)) -> MarkBarrett | C4: 2 | D4: =IF($B4="","",0+UPPER(Mainframe!C3)) -> 1 | E4: =IF(D4="","",IF(NOT(ISNA(VLOOKUP(D4,Answers!A:D,4,FALSE))),VLOOKUP(D4,Answers!A:D,4,FALSE),"Help!")) -> 8 | G4: =IF(E4="","",IF(E4="XX",VLOOKUP("WRONG",Answers!A:D,4,FALSE),E4)+F4) -> 8 | H4: =IF($B4="","",0+UPPER(Mainframe!D3)) -> 121 | I4: =IF(H4="","",IF(NOT(ISNA(VLOOKUP(H4,Answers!E:H,4,FALSE))),VLOOKUP(H4,Answers!E:H,4,FALSE),"Help!")) -> 8 | K4: =IF(I4="","",G4+IF(I4="XX",VLOOKUP("WRONG",Answers!E:H,4,FALSE),I4)+J4) -> 16 | L4: =IF($B4="","",0+UPPER(Mainframe!E3)) -> 34 | M4: =IF(L4="","",IF(NOT(ISNA(VLOOKUP(L4,Answers!I:L,4,FALSE))),VLOOKUP(L4,Answers!I:L,4,FALSE),"Help!")) -> 1000 | O4: =IF(M4="","",K4+IF(M4="XX",VLOOKUP("WRONG",Answers!I:L,4,FALSE),M4)+N4) -> 1016 | P4: =IF($B4="","",0+UPPER(Mainframe!F3)) -> 1860 | Q4: XX | R4: =IF(Q4>500,-1000,0) -> -1000 | S4: =IF(Q4="","",O4+IF(Q4="XX",VLOOKUP("WRONG",Answers!M:P,4,FALSE),Q4)+R4) -> 1023 | T4: =IF($B4="","",0+UPPER(Mainframe!G3)) -> 8 | U4: =IF(T4="","",IF(NOT(ISNA(VLOOKUP(T4,Answers!Q:T,4,FALSE))),VLOOKUP(T4,Answers!Q:T,4,FALSE),"Help!")) -> 6 | W4: =IF(U4="","",S4+IF(U4="XX",VLOOKUP("WRONG",Answers!Q:T,4,FALSE),U4)+V4) -> 1029 | X4: =IF($B4="","",0+UPPER(Mainframe!H3)) -> 7 | Y4: =IF(X4="","",IF(NOT(ISNA(VLOOKUP(X4,Answers!U:X,4,FALSE))),VLOOKUP(X4,Answers!U:X,4,FALSE),"Help!")) -> 6 | AA4: =IF(Y4="","",W4+IF(Y4="XX",VLOOKUP("WRONG",Answers!U:X,4,FALSE),Y4)+Z4) -> 1035 | AB4: =IF($B4="","",0+UPPER(Mainframe!I3)) -> 20 | AC4: =IF(AB4="","",IF(NOT(ISNA(VLOOKUP(AB4,Answers!Y:AB,4,FALSE))),VLOOKUP(AB4,Answers!Y:AB,4,FALSE),"Help!")) -> 13 | AE4: =IF(AC4="","",AA4+IF(AC4="XX",VLOOKUP("WRONG",Answers!Y:AB,4,FALSE),AC4)+AD4) -> 1048 | AF4: =IF($B4="","",0+UPPER(Mainframe!J3)) -> 202 | AG4: =IF(AF4="","",IF(NOT(ISNA(VLOOKUP(AF4,Answers!AC:AF,4,FALSE))),VLOOKUP(AF4,Answers!AC:AF,4,FALSE),"Help!")) -> 10 | AI4: =IF(AG4="","",AE4+IF(AG4="XX",VLOOKUP("WRONG",Answers!AC:AF,4,FALSE),AG4)+AH4) -> 1058 | AJ4: =IF($B4="","",0+UPPER(Mainframe!K3)) -> 80 | AK4: =IF(AJ4="","",IF(NOT(ISNA(VLOOKUP(AJ4,Answers!AG:AJ,4,FALSE))),VLOOKUP(AJ4,Answers!AG:AJ,4,FALSE),"Help!")) -> 6 | AM4: =IF(AK4="","",AI4+IF(AK4="XX",VLOOKUP("WRONG",Answers!AG:AJ,4,FALSE),AK4)+AL4) -> 1064 | AN4: =IF($B4="","",0+UPPER(Mainframe!L3)) -> 67 | AO4: =IF(AN4="","",IF(NOT(ISNA(VLOOKUP(AN4,Answers!AK:AN,4,FALSE))),VLOOKUP(AN4,Answers!AK:AN,4,FALSE),"Help!")) -> 1000 | AQ4: =IF(AO4="","",AM4+IF(AO4="XX",VLOOKUP("WRONG",Answers!AK:AN,4,FALSE),AO4)+AP4) -> 2064 | AR4: =IF($B4="","",0+UPPER(Mainframe!M3)) -> 40 | AS4: =IF(AR4="","",IF(NOT(ISNA(VLOOKUP(AR4,Answers!AO:AR,4,FALSE))),VLOOKUP(AR4,Answers!AO:AR,4,FALSE),"Help!")) -> 3 | AU4: =IF(AS4="","",AQ4+IF(AS4="XX",VLOOKUP("WRONG",Answers!AO:AR,4,FALSE),AS4)+AT4) -> 2067 | AV4: =IF($B4="","",0+UPPER(Mainframe!N3)) -> 12 | AW4: =IF(AV4="","",IF(NOT(ISNA(VLOOKUP(AV4,Answers!AS:AV,4,FALSE))),VLOOKUP(AV4,Answers!AS:AV,4,FALSE),"Help!")) -> 4 | AY4: =IF(AW4="","",AU4+IF(AW4="XX",VLOOKUP("WRONG",Answers!AS:AV,4,FALSE),AW4)+AX4) -> 2071 | AZ4: =IF($B4="","",0+UPPER(Mainframe!O3)) -> 666 | BA4: 177.5205479 | BB4: 1 | BC4: =IF($B4="","",LEFT(Mainframe!P3,SEARCH(".",Mainframe!P3)-1)) -> 4 | CH4: 2 | CI4: =IF(INDEX($B:$CE,ROW(),QNO*4)="XX","[b][u]"&INDEX($B:$CE,ROW(),QNO*4-1)&"[/u][/b]","[color=#BF0040]"&INDEX(OFFSET(Answers!C:C,0,(QNO-1)*4),MATCH(INDEX($A:$CB,ROW(),QNO*4),OFFSET(Answers!A:A,0,(QNO-1)*4),0))&"[/color]//[b]"&INDEX(OFFSET(Answers!B:B,0,(QNO-1)*4),MATCH(INDEX($A:$CB,ROW(),QNO*4),OFFSET(Answers!A:A,0,(QNO-1)*4),0))&"[/b] — [b]"&IF(INDEX($B:$CE,ROW(),QNO*4)=1,"Singleton!",CONCATENATE(INDEX($B:$CE,ROW(),QNO*4)," responses"))&"[/b]") -> [color=#BF0040]"What Makes You Beautiful", "Little Things", "Best Song Ever"[/color]//[b][u]ONE[/u] DIRECTION[/b] — [b]8 responses[/b] | CJ4: MarkBarrett | CK4: Yes | CL4: 2. MarkBarrett — [b]8[/b] pts | CM4: 25 | CN4: 23
A5: [*] | B5: =IF(Mainframe!B4="","",INDEX(Mainframe!$B:$B,C5+1,1)) -> Peggles | C5: 3 | D5: =IF($B5="","",0+UPPER(Mainframe!C4)) -> 3 | E5: =IF(D5="","",IF(NOT(ISNA(VLOOKUP(D5,Answers!A:D,4,FALSE))),VLOOKUP(D5,Answers!A:D,4,FALSE),"Help!")) -> 11 | G5: =IF(E5="","",IF(E5="XX",VLOOKUP("WRONG",Answers!A:D,4,FALSE),E5)+F5) -> 11 | H5: =IF($B5="","",0+UPPER(Mainframe!D4)) -> 100 | I5: =IF(H5="","",IF(NOT(ISNA(VLOOKUP(H5,Answers!E:H,4,FALSE))),VLOOKUP(H5,Answers!E:H,4,FALSE),"Help!")) -> 4 | K5: =IF(I5="","",G5+IF(I5="XX",VLOOKUP("WRONG",Answers!E:H,4,FALSE),I5)+J5) -> 15 | L5: =IF($B5="","",0+UPPER(Mainframe!E4)) -> 2001 | M5: =IF(L5="","",IF(NOT(ISNA(VLOOKUP(L5,Answers!I:L,4,FALSE))),VLOOKUP(L5,Answers!I:L,4,FALSE),"Help!")) -> 6 | O5: =IF(M5="","",K5+IF(M5="XX",VLOOKUP("WRONG",Answers!I:L,4,FALSE),M5)+N5) -> 21 | P5: =IF($B5="","",0+UPPER(Mainframe!F4)) -> 1415 | Q5: =IF(P5="","",IF(NOT(ISNA(VLOOKUP(P5,Answers!M:P,4,FALSE))),VLOOKUP(P5,Answers!M:P,4,FALSE),"Help!")) -> 7 | S5: =IF(Q5="","",O5+IF(Q5="XX",VLOOKUP("WRONG",Answers!M:P,4,FALSE),Q5)+R5) -> 28 | T5: =IF($B5="","",0+UPPER(Mainframe!G4)) -> 11 | U5: =IF(T5="","",IF(NOT(ISNA(VLOOKUP(T5,Answers!Q:T,4,FALSE))),VLOOKUP(T5,Answers!Q:T,4,FALSE),"Help!")) -> 4 | W5: =IF(U5="","",S5+IF(U5="XX",VLOOKUP("WRONG",Answers!Q:T,4,FALSE),U5)+V5) -> 32 | X5: =IF($B5="","",0+UPPER(Mainframe!H4)) -> 451 | Y5: =IF(X5="","",IF(NOT(ISNA(VLOOKUP(X5,Answers!U:X,4,FALSE))),VLOOKUP(X5,Answers!U:X,4,FALSE),"Help!")) -> 8 | AA5: =IF(Y5="","",W5+IF(Y5="XX",VLOOKUP("WRONG",Answers!U:X,4,FALSE),Y5)+Z5) -> 40 | AB5: =IF($B5="","",0+UPPER(Mainframe!I4)) -> 42 | AC5: =IF(AB5="","",IF(NOT(ISNA(VLOOKUP(AB5,Answers!Y:AB,4,FALSE))),VLOOKUP(AB5,Answers!Y:AB,4,FALSE),"Help!")) -> 13 | AE5: =IF(AC5="","",AA5+IF(AC5="XX",VLOOKUP("WRONG",Answers!Y:AB,4,FALSE),AC5)+AD5) -> 53 | AF5: =IF($B5="","",0+UPPER(Mainframe!J4)) -> 9 | AG5: =IF(AF5="","",IF(NOT(ISNA(VLOOKUP(AF5,Answers!AC:AF,4,FALSE))),VLOOKUP(AF5,Answers!AC:AF,4,FALSE),"Help!")) -> 1000 | AH5: =IF(AG5>500,-1000,0) -> -1000 | AI5: =IF(AG5="","",AE5+IF(AG5="XX",VLOOKUP("WRONG",Answers!AC:AF,4,FALSE),AG5)+AH5) -> 53 | AJ5: =IF($B5="","",0+UPPER(Mainframe!K4)) -> 66 | AK5: XX | AM5: =IF(AK5="","",AI5+IF(AK5="XX",VLOOKUP("WRONG",Answers!AG:AJ,4,FALSE),AK5)+AL5) -> 1060 | AN5: =IF($B5="","",0+UPPER(Mainframe!L4)) -> 76 | AO5: =IF(AN5="","",IF(NOT(ISNA(VLOOKUP(AN5,Answers!AK:AN,4,FALSE))),VLOOKUP(AN5,Answers!AK:AN,4,FALSE),"Help!")) -> 6 | AQ5: =IF(AO5="","",AM5+IF(AO5="XX",VLOOKUP("WRONG",Answers!AK:AN,4,FALSE),AO5)+AP5) -> 1066 | AR5: =IF($B5="","",0+UPPER(Mainframe!M4)) -> 11 | AS5: =IF(AR5="","",IF(NOT(ISNA(VLOOKUP(AR5,Answers!AO:AR,4,FALSE))),VLOOKUP(AR5,Answers!AO:AR,4,FALSE),"Help!")) -> 5 | AU5: =IF(AS5="","",AQ5+IF(AS5="XX",VLOOKUP("WRONG",Answers!AO:AR,4,FALSE),AS5)+AT5) -> 1071 | AV5: =IF($B5="","",0+UPPER(Mainframe!N4)) -> 95400 | AW5: XX | AY5: =IF(AW5="","",AU5+IF(AW5="XX",VLOOKUP("WRONG",Answers!AS:AV,4,FALSE),AW5)+AX5) -> 2078 | AZ5: =IF($B5="","",0+UPPER(Mainframe!O4)) -> 400 | BA5: 88.47945205 | BB5: 1 | BC5: =IF($B5="","",LEFT(Mainframe!P4,SEARCH(".",Mainframe!P4)-1)) -> 8 | CH5: 3 | CI5: =IF(INDEX($B:$CE,ROW(),QNO*4)="XX","[b][u]"&INDEX($B:$CE,ROW(),QNO*4-1)&"[/u][/b]","[color=#BF0040]"&INDEX(OFFSET(Answers!C:C,0,(QNO-1)*4),MATCH(INDEX($A:$CB,ROW(),QNO*4),OFFSET(Answers!A:A,0,(QNO-1)*4),0))&"[/color]//[b]"&INDEX(OFFSET(Answers!B:B,0,(QNO-1)*4),MATCH(INDEX($A:$CB,ROW(),QNO*4),OFFSET(Answers!A:A,0,(QNO-1)*4),0))&"[/b] — [b]"&IF(INDEX($B:$CE,ROW(),QNO*4)=1,"Singleton!",CONCATENATE(INDEX($B:$CE,ROW(),QNO*4)," responses"))&"[/b]") -> [color=#BF0040]"Mama Told Me (Not to Come)", "Joy to the World", "Black and White"[/color]//[b][u]THREE[/u] DOG NIGHT[/b] — [b]11 responses[/b] | CJ5: Peggles | CK5: Yes | CL5: 3. Peggles — [b]11[/b] pts | CM5: 29 | CN5: 26
A6: [*] | B6: =IF(Mainframe!B5="","",INDEX(Mainframe!$B:$B,C6+1,1)) -> gamawire | C6: 4 | D6: =IF($B6="","",0+UPPER(Mainframe!C5)) -> 96 | E6: XX | G6: =IF(E6="","",IF(E6="XX",VLOOKUP("WRONG",Answers!A:D,4,FALSE),E6)+F6) -> 1007 | H6: =IF($B6="","",0+UPPER(Mainframe!D5)) -> 121 | I6: =IF(H6="","",IF(NOT(ISNA(VLOOKUP(H6,Answers!E:H,4,FALSE))),VLOOKUP(H6,Answers!E:H,4,FALSE),"Help!")) -> 8 | K6: =IF(I6="","",G6+IF(I6="XX",VLOOKUP("WRONG",Answers!E:H,4,FALSE),I6)+J6) -> 1015 | L6: =IF($B6="","",0+UPPER(Mainframe!E5)) -> 101 | M6: =IF(L6="","",IF(NOT(ISNA(VLOOKUP(L6,Answers!I:L,4,FALSE))),VLOOKUP(L6,Answers!I:L,4,FALSE),"Help!")) -> 7 | O6: =IF(M6="","",K6+IF(M6="XX",VLOOKUP("WRONG",Answers!I:L,4,FALSE),M6)+N6) -> 1022 | P6: =IF($B6="","",0+UPPER(Mainframe!F5)) -> 1815 | Q6: =IF(P6="","",IF(NOT(ISNA(VLOOKUP(P6,Answers!M:P,4,FALSE))),VLOOKUP(P6,Answers!M:P,4,FALSE),"Help!")) -> 10 | S6: =IF(Q6="","",O6+IF(Q6="XX",VLOOKUP("WRONG",Answers!M:P,4,FALSE),Q6)+R6) -> 1032 | T6: =IF($B6="","",0+UPPER(Mainframe!G5)) -> 6 | U6: =IF(T6="","",IF(NOT(ISNA(VLOOKUP(T6,Answers!Q:T,4,FALSE))),VLOOKUP(T6,Answers!Q:T,4,FALSE),"Help!")) -> 9 | W6: =IF(U6="","",S6+IF(U6="XX",VLOOKUP("WRONG",Answers!Q:T,4,FALSE),U6)+V6) -> 1041 | X6: =IF($B6="","",0+UPPER(Mainframe!H5)) -> 22 | Y6: =IF(X6="","",IF(NOT(ISNA(VLOOKUP(X6,Answers!U:X,4,FALSE))),VLOOKUP(X6,Answers!U:X,4,FALSE),"Help!")) -> 1000 | AA6: =IF(Y6="","",W6+IF(Y6="XX",VLOOKUP("WRONG",Answers!U:X,4,FALSE),Y6)+Z6) -> 2041 | AB6: =IF($B6="","",0+UPPER(Mainframe!I5)) -> 76 | AC6: =IF(AB6="","",IF(NOT(ISNA(VLOOKUP(AB6,Answers!Y:AB,4,FALSE))),VLOOKUP(AB6,Answers!Y:AB,4,FALSE),"Help!")) -> 1000 | AE6: =IF(AC6="","",AA6+IF(AC6="XX",VLOOKUP("WRONG",Answers!Y:AB,4,FALSE),AC6)+AD6) -> 3041 | AF6: =IF($B6="","",0+UPPER(Mainframe!J5)) -> 1974 | AG6: =IF(AF6="","",IF(NOT(ISNA(VLOOKUP(AF6,Answers!AC:AF,4,FALSE))),VLOOKUP(AF6,Answers!AC:AF,4,FALSE),"Help!")) -> 8 | AI6: =IF(AG6="","",AE6+IF(AG6="XX",VLOOKUP("WRONG",Answers!AC:AF,4,FALSE),AG6)+AH6) -> 3049 | AJ6: =IF($B6="","",0+UPPER(Mainframe!K5)) -> 35 | AK6: =IF(AJ6="","",IF(NOT(ISNA(VLOOKUP(AJ6,Answers!AG:AJ,4,FALSE))),VLOOKUP(AJ6,Answers!AG:AJ,4,FALSE),"Help!")) -> 8 | AL6: =IF(AK6>500,-1000,0) -> 0 | AM6: =IF(AK6="","",AI6+IF(AK6="XX",VLOOKUP("WRONG",Answers!AG:AJ,4,FALSE),AK6)+AL6) -> 3057 | AN6: =IF($B6="","",0+UPPER(Mainframe!L5)) -> 61 | AO6: =IF(AN6="","",IF(NOT(ISNA(VLOOKUP(AN6,Answers!AK:AN,4,FALSE))),VLOOKUP(AN6,Answers!AK:AN,4,FALSE),"Help!")) -> 5 | AQ6: =IF(AO6="","",AM6+IF(AO6="XX",VLOOKUP("WRONG",Answers!AK:AN,4,FALSE),AO6)+AP6) -> 3062 | AR6: =IF($B6="","",0+UPPER(Mainframe!M5)) -> 5 | AS6: =IF(AR6="","",IF(NOT(ISNA(VLOOKUP(AR6,Answers!AO:AR,4,FALSE))),VLOOKUP(AR6,Answers!AO:AR,4,FALSE),"Help!")) -> 1000 | AU6: =IF(AS6="","",AQ6+IF(AS6="XX",VLOOKUP("WRONG",Answers!AO:AR,4,FALSE),AS6)+AT6) -> 4062 | AV6: =IF($B6="","",0+UPPER(Mainframe!N5)) -> 66 | AW6: XX | AY6: =IF(AW6="","",AU6+IF(AW6="XX",VLOOKUP("WRONG",Answers!AS:AV,4,FALSE),AW6)+AX6) -> 5069 | AZ6: =IF($B6="","",0+UPPER(Mainframe!O5)) -> 654 | BA6: 165.5205479 | BB6: 1 | BC6: =IF($B6="","",LEFT(Mainframe!P5,SEARCH(".",Mainframe!P5)-1)) -> 9 | CH6: 4 | CI6: =IF(INDEX($B:$CE,ROW(),QNO*4)="XX","[b][u]"&INDEX($B:$CE,ROW(),QNO*4-1)&"[/u][/b]","[color=#BF0040]"&INDEX(OFFSET(Answers!C:C,0,(QNO-1)*4),MATCH(INDEX($A:$CB,ROW(),QNO*4),OFFSET(Answers!A:A,0,(QNO-1)*4),0))&"[/color]//[b]"&INDEX(OFFSET(Answers!B:B,0,(QNO-1)*4),MATCH(INDEX($A:$CB,ROW(),QNO*4),OFFSET(Answers!A:A,0,(QNO-1)*4),0))&"[/b] — [b]"&IF(INDEX($B:$CE,ROW(),QNO*4)=1,"Singleton!",CONCATENATE(INDEX($B:$CE,ROW(),QNO*4)," responses"))&"[/b]") -> [b][u]96[/u][/b] | CJ6: gamawire | CK6: Yes | CL6: 4. gamawire — [b]1,007[/b] pts | CM6: 71 | CN6: 67
A7: [*] | B7: =IF(Mainframe!B6="","",INDEX(Mainframe!$B:$B,C7+1,1)) -> ZachTheRiah | C7: 5 | D7: =IF($B7="","",0+UPPER(Mainframe!C6)) -> 1 | E7: =IF(D7="","",IF(NOT(ISNA(VLOOKUP(D7,Answers!A:D,4,FALSE))),VLOOKUP(D7,Answers!A:D,4,FALSE),"Help!")) -> 8 | G7: =IF(E7="","",IF(E7="XX",VLOOKUP("WRONG",Answers!A:D,4,FALSE),E7)+F7) -> 8 | H7: =IF($B7="","",0+UPPER(Mainframe!D6)) -> 21 | I7: =IF(H7="","",IF(NOT(ISNA(VLOOKUP(H7,Answers!E:H,4,FALSE))),VLOOKUP(H7,Answers!E:H,4,FALSE),"Help!")) -> 1000 | K7: =IF(I7="","",G7+IF(I7="XX",VLOOKUP("WRONG",Answers!E:H,4,FALSE),I7)+J7) -> 1008 | L7: =IF($B7="","",0+UPPER(Mainframe!E6)) -> 101 | M7: =IF(L7="","",IF(NOT(ISNA(VLOOKUP(L7,Answers!I:L,4,FALSE))),VLOOKUP(L7,Answers!I:L,4,FALSE),"Help!")) -> 7 | O7: =IF(M7="","",K7+IF(M7="XX",VLOOKUP("WRONG",Answers!I:L,4,FALSE),M7)+N7) -> 1015 | P7: =IF($B7="","",0+UPPER(Mainframe!F6)) -> 1861 | Q7: =IF(P7="","",IF(NOT(ISNA(VLOOKUP(P7,Answers!M:P,4,FALSE))),VLOOKUP(P7,Answers!M:P,4,FALSE),"Help!")) -> 1000 | S7: =IF(Q7="","",O7+IF(Q7="XX",VLOOKUP("WRONG",Answers!M:P,4,FALSE),Q7)+R7) -> 2015 | T7: =IF($B7="","",0+UPPER(Mainframe!G6)) -> 2 | U7: =IF(T7="","",IF(NOT(ISNA(VLOOKUP(T7,Answers!Q:T,4,FALSE))),VLOOKUP(T7,Answers!Q:T,4,FALSE),"Help!")) -> 14 | W7: =IF(U7="","",S7+IF(U7="XX",VLOOKUP("WRONG",Answers!Q:T,4,FALSE),U7)+V7) -> 2029 | X7: =IF($B7="","",0+UPPER(Mainframe!H6)) -> 451 | Y7: =IF(X7="","",IF(NOT(ISNA(VLOOKUP(X7,Answers!U:X,4,FALSE))),VLOOKUP(X7,Answers!U:X,4,FALSE),"Help!")) -> 8 | AA7: =IF(Y7="","",W7+IF(Y7="XX",VLOOKUP("WRONG",Answers!U:X,4,FALSE),Y7)+Z7) -> 2037 | AB7: =IF($B7="","",0+UPPER(Mainframe!I6)) -> 75 | AC7: =IF(AB7="","",IF(NOT(ISNA(VLOOKUP(AB7,Answers!Y:AB,4,FALSE))),VLOOKUP(AB7,Answers!Y:AB,4,FALSE),"Help!")) -> 1 | AE7: =IF(AC7="","",AA7+IF(AC7="XX",VLOOKUP("WRONG",Answers!Y:AB,4,FALSE),AC7)+AD7) -> 2038 | AF7: =IF($B7="","",0+UPPER(Mainframe!J6)) -> 18 | AG7: =IF(AF7="","",IF(NOT(ISNA(VLOOKUP(AF7,Answers!AC:AF,4,FALSE))),VLOOKUP(AF7,Answers!AC:AF,4,FALSE),"Help!")) -> 10 | AI7: =IF(AG7="","",AE7+IF(AG7="XX",VLOOKUP("WRONG",Answers!AC:AF,4,FALSE),AG7)+AH7) -> 2048 | AJ7: =IF($B7="","",0+UPPER(Mainframe!K6)) -> 5 | AK7: =IF(AJ7="","",IF(NOT(ISNA(VLOOKUP(AJ7,Answers!AG:AJ,4,FALSE))),VLOOKUP(AJ7,Answers!AG:AJ,4,FALSE),"Help!")) -> 9 | AM7: =IF(AK7="","",AI7+IF(AK7="XX",VLOOKUP("WRONG",Answers!AG:AJ,4,FALSE),AK7)+AL7) -> 2057 | AN7: =IF($B7="","",0+UPPER(Mainframe!L6)) -> 65 | AO7: XX | AQ7: =IF(AO7="","",AM7+IF(AO7="XX",VLOOKUP("WRONG",Answers!AK:AN,4,FALSE),AO7)+AP7) -> 3064 | AR7: =IF($B7="","",0+UPPER(Mainframe!M6)) -> 50 | AS7: =IF(AR7="","",IF(NOT(ISNA(VLOOKUP(AR7,Answers!AO:AR,4,FALSE))),VLOOKUP(AR7,Answers!AO:AR,4,FALSE),"Help!")) -> 5 | AT7: =IF(AS7>500,-1000,0) -> 0 | AU7: =IF(AS7="","",AQ7+IF(AS7="XX",VLOOKUP("WRONG",Answers!AO:AR,4,FALSE),AS7)+AT7) -> 3069 | AV7: =IF($B7="","",0+UPPER(Mainframe!N6)) -> 150 | AW7: =IF(AV7="","",IF(NOT(ISNA(VLOOKUP(AV7,Answers!AS:AV,4,FALSE))),VLOOKUP(AV7,Answers!AS:AV,4,FALSE),"Help!")) -> 5 | AY7: =IF(AW7="","",AU7+IF(AW7="XX",VLOOKUP("WRONG",Answers!AS:AV,4,FALSE),AW7)+AX7) -> 3074 | AZ7: =IF($B7="","",0+UPPER(Mainframe!O6)) -> 650 | BA7: 161.5205479 | BB7: 1 | BC7: =IF($B7="","",LEFT(Mainframe!P6,SEARCH(".",Mainframe!P6)-1)) -> 11 | CH7: 5 | CI7: =IF(INDEX($B:$CE,ROW(),QNO*4)="XX","[b][u]"&INDEX($B:$CE,ROW(),QNO*4-1)&"[/u][/b]","[color=#BF0040]"&INDEX(OFFSET(Answers!C:C,0,(QNO-1)*4),MATCH(INDEX($A:$CB,ROW(),QNO*4),OFFSET(Answers!A:A,0,(QNO-1)*4),0))&"[/color]//[b]"&INDEX(OFFSET(Answers!B:B,0,(QNO-1)*4),MATCH(INDEX($A:$CB,ROW(),QNO*4),OFFSET(Answers!A:A,0,(QNO-1)*4),0))&"[/b] — [b]"&IF(INDEX($B:$CE,ROW(),QNO*4)=1,"Singleton!",CONCATENATE(INDEX($B:$CE,ROW(),QNO*4)," responses"))&"[/b]") -> [color=#BF0040]"What Makes You Beautiful", "Little Things", "Best Song Ever"[/color]//[b][u]ONE[/u] DIRECTION[/b] — [b]8 responses[/b] | CJ7: ZachTheRiah | CK7: Yes | CL7: 5. ZachTheRiah — [b]8[/b] pts | CM7: 47 | CN7: 42
A8: [*] | B8: =IF(Mainframe!B7="","",INDEX(Mainframe!$B:$B,C8+1,1)) -> 9021amyers | C8: 6 | D8: =IF($B8="","",0+UPPER(Mainframe!C7)) -> 10000 | E8: =IF(D8="","",IF(NOT(ISNA(VLOOKUP(D8,Answers!A:D,4,FALSE))),VLOOKUP(D8,Answers!A:D,4,FALSE),"Help!")) -> 6 | G8: =IF(E8="","",IF(E8="XX",VLOOKUP("WRONG",Answers!A:D,4,FALSE),E8)+F8) -> 6 | H8: =IF($B8="","",0+UPPER(Mainframe!D7)) -> 38 | I8: =IF(H8="","",IF(NOT(ISNA(VLOOKUP(H8,Answers!E:H,4,FALSE))),VLOOKUP(H8,Answers!E:H,4,FALSE),"Help!")) -> 7 | K8: =IF(I8="","",G8+IF(I8="XX",VLOOKUP("WRONG",Answers!E:H,4,FALSE),I8)+J8) -> 13 | L8: =IF($B8="","",0+UPPER(Mainframe!E7)) -> 10 | M8: =IF(L8="","",IF(NOT(ISNA(VLOOKUP(L8,Answers!I:L,4,FALSE))),VLOOKUP(L8,Answers!I:L,4,FALSE),"Help!")) -> 10 | O8: =IF(M8="","",K8+IF(M8="XX",VLOOKUP("WRONG",Answers!I:L,4,FALSE),M8)+N8) -> 23 | P8: =IF($B8="","",0+UPPER(Mainframe!F7)) -> 1415 | Q8: =IF(P8="","",IF(NOT(ISNA(VLOOKUP(P8,Answers!M:P,4,FALSE))),VLOOKUP(P8,Answers!M:P,4,FALSE),"Help!")) -> 7 | S8: =IF(Q8="","",O8+IF(Q8="XX",VLOOKUP("WRONG",Answers!M:P,4,FALSE),Q8)+R8) -> 30 | T8: =IF($B8="","",0+UPPER(Mainframe!G7)) -> 92 | U8: =IF(T8="","",IF(NOT(ISNA(VLOOKUP(T8,Answers!Q:T,4,FALSE))),VLOOKUP(T8,Answers!Q:T,4,FALSE),"Help!")) -> 3 | W8: =IF(U8="","",S8+IF(U8="XX",VLOOKUP("WRONG",Answers!Q:T,4,FALSE),U8)+V8) -> 33 | X8: =IF($B8="","",0+UPPER(Mainframe!H7)) -> 7 | Y8: =IF(X8="","",IF(NOT(ISNA(VLOOKUP(X8,Answers!U:X,4,FALSE))),VLOOKUP(X8,Answers!U:X,4,FALSE),"Help!")) -> 6 | AA8: =IF(Y8="","",W8+IF(Y8="XX",VLOOKUP("WRONG",Answers!U:X,4,FALSE),Y8)+Z8) -> 39 | AB8: =IF($B8="","",0+UPPER(Mainframe!I7)) -> 42 | AC8: =IF(AB8="","",IF(NOT(ISNA(VLOOKUP(AB8,Answers!Y:AB,4,FALSE))),VLOOKUP(AB8,Answers!Y:AB,4,FALSE),"Help!")) -> 13 | AD8: =IF(AC8>500,-1000,0) -> 0 | AE8: =IF(AC8="","",AA8+IF(AC8="XX",VLOOKUP("WRONG",Answers!Y:AB,4,FALSE),AC8)+AD8) -> 52 | AF8: =IF($B8="","",0+UPPER(Mainframe!J7)) -> 1850 | AG8: =IF(AF8="","",IF(NOT(ISNA(VLOOKUP(AF8,Answers!AC:AF,4,FALSE))),VLOOKUP(AF8,Answers!AC:AF,4,FALSE),"Help!")) -> 4 | AI8: =IF(AG8="","",AE8+IF(AG8="XX",VLOOKUP("WRONG",Answers!AC:AF,4,FALSE),AG8)+AH8) -> 56 | AJ8: =IF($B8="","",0+UPPER(Mainframe!K7)) -> 76 | AK8: =IF(AJ8="","",IF(NOT(ISNA(VLOOKUP(AJ8,Answers!AG:AJ,4,FALSE))),VLOOKUP(AJ8,Answers!AG:AJ,4,FALSE),"Help!")) -> 4 | AM8: =IF(AK8="","",AI8+IF(AK8="XX",VLOOKUP("WRONG",Answers!AG:AJ,4,FALSE),AK8)+AL8) -> 60 | AN8: =IF($B8="","",0+UPPER(Mainframe!L7)) -> 94 | AO8: =IF(AN8="","",IF(NOT(ISNA(VLOOKUP(AN8,Answers!AK:AN,4,FALSE))),VLOOKUP(AN8,Answers!AK:AN,4,FALSE),"Help!")) -> 4 | AQ8: =IF(AO8="","",AM8+IF(AO8="XX",VLOOKUP("WRONG",Answers!AK:AN,4,FALSE),AO8)+AP8) -> 64 | AR8: =IF($B8="","",0+UPPER(Mainframe!M7)) -> 11 | AS8: =IF(AR8="","",IF(NOT(ISNA(VLOOKUP(AR8,Answers!AO:AR,4,FALSE))),VLOOKUP(AR8,Answers!AO:AR,4,FALSE),"Help!")) -> 5 | AU8: =IF(AS8="","",AQ8+IF(AS8="XX",VLOOKUP("WRONG",Answers!AO:AR,4,FALSE),AS8)+AT8) -> 69 | AV8: =IF($B8="","",0+UPPER(Mainframe!N7)) -> 95 | AW8: =IF(AV8="","",IF(NOT(ISNA(VLOOKUP(AV8,Answers!AS:AV,4,FALSE))),VLOOKUP(AV8,Answers!AS:AV,4,FALSE),"Help!")) -> 7 | AY8: =IF(AW8="","",AU8+IF(AW8="XX",VLOOKUP("WRONG",Answers!AS:AV,4,FALSE),AW8)+AX8) -> 76 | AZ8: =IF($B8="","",0+UPPER(Mainframe!O7)) -> 396 | BA8: 92.47945205 | BB8: 1 | BC8: =IF($B8="","",LEFT(Mainframe!P7,SEARCH(".",Mainframe!P7)-1)) -> 7 | CH8: 6 | CI8: =IF(INDEX($B:$CE,ROW(),QNO*4)="XX","[b][u]"&INDEX($B:$CE,ROW(),QNO*4-1)&"[/u][/b]","[color=#BF0040]"&INDEX(OFFSET(Answers!C:C,0,(QNO-1)*4),MATCH(INDEX($A:$CB,ROW(),QNO*4),OFFSET(Answers!A:A,0,(QNO-1)*4),0))&"[/color]//[b]"&INDEX(OFFSET(Answers!B:B,0,(QNO-1)*4),MATCH(INDEX($A:$CB,ROW(),QNO*4),OFFSET(Answers!A:A,0,(QNO-1)*4),0))&"[/b] — [b]"&IF(INDEX($B:$CE,ROW(),QNO*4)=1,"Singleton!",CONCATENATE(INDEX($B:$CE,ROW(),QNO*4)," responses"))&"[/b]") -> [color=#BF0040]"What's the Matter Here?", "Trouble Me", "Because the Night" (on [i]MTV Unplugged[/i])[/color]//[b][u]10,000[/u] MANIACS[/b] — [b]6 responses[/b] | CJ8: 9021amyers | CK8: Yes | CL8: 6. 9021amyers — [b]6[/b] pts | CM8: 7 | CN8: 1
A9: [*] | B9: =IF(Mainframe!B8="","",INDEX(Mainframe!$B:$B,C9+1,1)) -> Rackme32 | C9: 7 | D9: =IF($B9="","",0+UPPER(Mainframe!C8)) -> 20 | E9: =IF(D9="","",IF(NOT(ISNA(VLOOKUP(D9,Answers!A:D,4,FALSE))),VLOOKUP(D9,Answers!A:D,4,FALSE),"Help!")) -> 6 | G9: =IF(E9="","",IF(E9="XX",VLOOKUP("WRONG",Answers!A:D,4,FALSE),E9)+F9) -> 6 | H9: =IF($B9="","",0+UPPER(Mainframe!D8)) -> 108 | I9: =IF(H9="","",IF(NOT(ISNA(VLOOKUP(H9,Answers!E:H,4,FALSE))),VLOOKUP(H9,Answers!E:H,4,FALSE),"Help!")) -> 5 | K9: =IF(I9="","",G9+IF(I9="XX",VLOOKUP("WRONG",Answers!E:H,4,FALSE),I9)+J9) -> 11 | L9: =IF($B9="","",0+UPPER(Mainframe!E8)) -> 16 | M9: =IF(L9="","",IF(NOT(ISNA(VLOOKUP(L9,Answers!I:L,4,FALSE))),VLOOKUP(L9,Answers!I:L,4,FALSE),"Help!")) -> 12 | O9: =IF(M9="","",K9+IF(M9="XX",VLOOKUP("WRONG",Answers!I:L,4,FALSE),M9)+N9) -> 23 | P9: =IF($B9="","",0+UPPER(Mainframe!F8)) -> 1815 | Q9: =IF(P9="","",IF(NOT(ISNA(VLOOKUP(P9,Answers!M:P,4,FALSE))),VLOOKUP(P9,Answers!M:P,4,FALSE),"Help!")) -> 10 | S9: =IF(Q9="","",O9+IF(Q9="XX",VLOOKUP("WRONG",Answers!M:P,4,FALSE),Q9)+R9) -> 33 | T9: =IF($B9="","",0+UPPER(Mainframe!G8)) -> 16 | U9: XX | V9: =IF(U9>500,-1000,0) -> -1000 | W9: =IF(U9="","",S9+IF(U9="XX",VLOOKUP("WRONG",Answers!Q:T,4,FALSE),U9)+V9) -> 40 | X9: =IF($B9="","",0+UPPER(Mainframe!H8)) -> 22 | Y9: =IF(X9="","",IF(NOT(ISNA(VLOOKUP(X9,Answers!U:X,4,FALSE))),VLOOKUP(X9,Answers!U:X,4,FALSE),"Help!")) -> 1000 | AA9: =IF(Y9="","",W9+IF(Y9="XX",VLOOKUP("WRONG",Answers!U:X,4,FALSE),Y9)+Z9) -> 1040 | AB9: =IF($B9="","",0+UPPER(Mainframe!I8)) -> 76 | AC9: =IF(AB9="","",IF(NOT(ISNA(VLOOKUP(AB9,Answers!Y:AB,4,FALSE))),VLOOKUP(AB9,Answers!Y:AB,4,FALSE),"Help!")) -> 1000 | AE9: =IF(AC9="","",AA9+IF(AC9="XX",VLOOKUP("WRONG",Answers!Y:AB,4,FALSE),AC9)+AD9) -> 2040 | AF9: =IF($B9="","",0+UPPER(Mainframe!J8)) -> 49 | AG9: =IF(AF9="","",IF(NOT(ISNA(VLOOKUP(AF9,Answers!AC:AF,4,FALSE))),VLOOKUP(AF9,Answers!AC:AF,4,FALSE),"Help!")) -> 10 | AI9: =IF(AG9="","",AE9+IF(AG9="XX",VLOOKUP("WRONG",Answers!AC:AF,4,FALSE),AG9)+AH9) -> 2050 | AJ9: =IF($B9="","",0+UPPER(Mainframe!K8)) -> 84 | AK9: =IF(AJ9="","",IF(NOT(ISNA(VLOOKUP(AJ9,Answers!AG:AJ,4,FALSE))),VLOOKUP(AJ9,Answers!AG:AJ,4,FALSE),"Help!")) -> 1000 | AM9: =IF(AK9="","",AI9+IF(AK9="XX",VLOOKUP("WRONG",Answers!AG:AJ,4,FALSE),AK9)+AL9) -> 3050 | AN9: =IF($B9="","",0+UPPER(Mainframe!L8)) -> 42 | AO9: =IF(AN9="","",IF(NOT(ISNA(VLOOKUP(AN9,Answers!AK:AN,4,FALSE))),VLOOKUP(AN9,Answers!AK:AN,4,FALSE),"Help!")) -> 8 | AQ9: =IF(AO9="","",AM9+IF(AO9="XX",VLOOKUP("WRONG",Answers!AK:AN,4,FALSE),AO9)+AP9) -> 3058 | AR9: =IF($B9="","",0+UPPER(Mainframe!M8)) -> 5 | AS9: =IF(AR9="","",IF(NOT(ISNA(VLOOKUP(AR9,Answers!AO:AR,4,FALSE))),VLOOKUP(AR9,Answers!AO:AR,4,FALSE),"Help!")) -> 1000 | AU9: =IF(AS9="","",AQ9+IF(AS9="XX",VLOOKUP("WRONG",Answers!AO:AR,4,FALSE),AS9)+AT9) -> 4058 | AV9: =IF($B9="","",0+UPPER(Mainframe!N8)) -> 10 | AW9: =IF(AV9="","",IF(NOT(ISNA(VLOOKUP(AV9,Answers!AS:AV,4,FALSE))),VLOOKUP(AV9,Answers!AS:AV,4,FALSE),"Help!")) -> 1000 | AY9: =IF(AW9="","",AU9+IF(AW9="XX",VLOOKUP("WRONG",Answers!AS:AV,4,FALSE),AW9)+AX9) -> 5058 | AZ9: =IF($B9="","",0+UPPER(Mainframe!O8)) -> 665 | BA9: 176.5205479 | BB9: 1 | BC9: =IF($B9="","",LEFT(Mainframe!P8,SEARCH(".",Mainframe!P8)-1)) -> 5 | CH9: 6 | CI9: =IF(INDEX($B:$CE,ROW(),QNO*4)="XX","[b][u]"&INDEX($B:$CE,ROW(),QNO*4-1)&"[/u][/b]","[color=#BF0040]"&INDEX(OFFSET(Answers!C:C,0,(QNO-1)*4),MATCH(INDEX($A:$CB,ROW(),QNO*4),OFFSET(Answers!A:A,0,(QNO-1)*4),0))&"[/color]//[b]"&INDEX(OFFSET(Answers!B:B,0,(QNO-1)*4),MATCH(INDEX($A:$CB,ROW(),QNO*4),OFFSET(Answers!A:A,0,(QNO-1)*4),0))&"[/b] — [b]"&IF(INDEX($B:$CE,ROW(),QNO*4)=1,"Singleton!",CONCATENATE(INDEX($B:$CE,ROW(),QNO*4)," responses"))&"[/b]") -> [color=#BF0040]"Push", "Bent", "Unwell"[/color]//[b]MATCHBOX [u]20[/u][/b] — [b]6 responses[/b] | CJ9: Rackme32 | CK9: Yes | CL9: 6. Rackme32 — [b]6[/b] pts | CM9: 66 | CN9: 60
A10: [*] | B10: =IF(Mainframe!B9="","",INDEX(Mainframe!$B:$B,C10+1,1)) -> caknuck | C10: 8 | D10: =IF($B10="","",0+UPPER(Mainframe!C9)) -> 98 | E10: =IF(D10="","",IF(NOT(ISNA(VLOOKUP(D10,Answers!A:D,4,FALSE))),VLOOKUP(D10,Answers!A:D,4,FALSE),"Help!")) -> 2 | G10: =IF(E10="","",IF(E10="XX",VLOOKUP("WRONG",Answers!A:D,4,FALSE),E10)+F10) -> 2 | H10: =IF($B10="","",0+UPPER(Mainframe!D9)) -> 22 | I10: =IF(H10="","",IF(NOT(ISNA(VLOOKUP(H10,Answers!E:H,4,FALSE))),VLOOKUP(H10,Answers!E:H,4,FALSE),"Help!")) -> 11 | K10: =IF(I10="","",G10+IF(I10="XX",VLOOKUP("WRONG",Answers!E:H,4,FALSE),I10)+J10) -> 13 | L10: =IF($B10="","",0+UPPER(Mainframe!E9)) -> 10 | M10: =IF(L10="","",IF(NOT(ISNA(VLOOKUP(L10,Answers!I:L,4,FALSE))),VLOOKUP(L10,Answers!I:L,4,FALSE),"Help!")) -> 10 | O10: =IF(M10="","",K10+IF(M10="XX",VLOOKUP("WRONG",Answers!I:L,4,FALSE),M10)+N10) -> 23 | P10: =IF($B10="","",0+UPPER(Mainframe!F9)) -> 1815 | Q10: =IF(P10="","",IF(NOT(ISNA(VLOOKUP(P10,Answers!M:P,4,FALSE))),VLOOKUP(P10,Answers!M:P,4,FALSE),"Help!")) -> 10 | S10: =IF(Q10="","",O10+IF(Q10="XX",VLOOKUP("WRONG",Answers!M:P,4,FALSE),Q10)+R10) -> 33 | T10: =IF($B10="","",0+UPPER(Mainframe!G9)) -> 5 | U10: =IF(T10="","",IF(NOT(ISNA(VLOOKUP(T10,Answers!Q:T,4,FALSE))),VLOOKUP(T10,Answers!Q:T,4,FALSE),"Help!")) -> 1000 | W10: =IF(U10="","",S10+IF(U10="XX",VLOOKUP("WRONG",Answers!Q:T,4,FALSE),U10)+V10) -> 1033 | X10: =IF($B10="","",0+UPPER(Mainframe!H9)) -> 451 | Y10: =IF(X10="","",IF(NOT(ISNA(VLOOKUP(X10,Answers!U:X,4,FALSE))),VLOOKUP(X10,Answers!U:X,4,FALSE),"Help!")) -> 8 | AA10: =IF(Y10="","",W10+IF(Y10="XX",VLOOKUP("WRONG",Answers!U:X,4,FALSE),Y10)+Z10) -> 1041 | AB10: =IF($B10="","",0+UPPER(Mainframe!I9)) -> 4 | AC10: XX | AD10: =IF(AC10>500,-1000,0) -> -1000 | AE10: =IF(AC10="","",AA10+IF(AC10="XX",VLOOKUP("WRONG",Answers!Y:AB,4,FALSE),AC10)+AD10) -> 1048 | AF10: =IF($B10="","",0+UPPER(Mainframe!J9)) -> 18 | AG10: =IF(AF10="","",IF(NOT(ISNA(VLOOKUP(AF10,Answers!AC:AF,4,FALSE))),VLOOKUP(AF10,Answers!AC:AF,4,FALSE),"Help!")) -> 10 | AI10: =IF(AG10="","",AE10+IF(AG10="XX",VLOOKUP("WRONG",Answers!AC:AF,4,FALSE),AG10)+AH10) -> 1058 | AJ10: =IF($B10="","",0+UPPER(Mainframe!K9)) -> 35 | AK10: =IF(AJ10="","",IF(NOT(ISNA(VLOOKUP(AJ10,Answers!AG:AJ,4,FALSE))),VLOOKUP(AJ10,Answers!AG:AJ,4,FALSE),"Help!")) -> 8 | AM10: =IF(AK10="","",AI10+IF(AK10="XX",VLOOKUP("WRONG",Answers!AG:AJ,4,FALSE),AK10)+AL10) -> 1066 | AN10: =IF($B10="","",0+UPPER(Mainframe!L9)) -> 5 | AO10: =IF(AN10="","",IF(NOT(ISNA(VLOOKUP(AN10,Answers!AK:AN,4,FALSE))),VLOOKUP(AN10,Answers!AK:AN,4,FALSE),"Help!")) -> 7 | AQ10: =IF(AO10="","",AM10+IF(AO10="XX",VLOOKUP("WRONG",Answers!AK:AN,4,FALSE),AO10)+AP10) -> 1073 | AR10: =IF($B10="","",0+UPPER(Mainframe!M9)) -> 3 | AS10: =IF(AR10="","",IF(NOT(ISNA(VLOOKUP(AR10,Answers!AO:AR,4,FALSE))),VLOOKUP(AR10,Answers!AO:AR,4,FALSE),"Help!")) -> 6 | AU10: =IF(AS10="","",AQ10+IF(AS10="XX",VLOOKUP("WRONG",Answers!AO:AR,4,FALSE),AS10)+AT10) -> 1079 | AV10: =IF($B10="","",0+UPPER(Mainframe!N9)) -> 666 | AW10: =IF(AV10="","",IF(NOT(ISNA(VLOOKUP(AV10,Answers!AS:AV,4,FALSE))),VLOOKUP(AV10,Answers!AS:AV,4,FALSE),"Help!")) -> 5 | AY10: =IF(AW10="","",AU10+IF(AW10="XX",VLOOKUP("WRONG",Answers!AS:AV,4,FALSE),AW10)+AX10) -> 1084 | AZ10: =IF($B10="","",0+UPPER(Mainframe!O9)) -> 480 | BA10: 8.479452055 | BB10: 1 | BC10: =IF($B10="","",LEFT(Mainframe!P9,SEARCH(".",Mainframe!P9)-1)) -> 7 | CH10: 8 | CI10: =IF(INDEX($B:$CE,ROW(),QNO*4)="XX","[b][u]"&INDEX($B:$CE,ROW(),QNO*4-1)&"[/u][/b]","[color=#BF0040]"&INDEX(OFFSET(Answers!C:C,0,(QNO-1)*4),MATCH(INDEX($A:$CB,ROW(),QNO*4),OFFSET(Answers!A:A,0,(QNO-1)*4),0))&"[/color]//[b]"&INDEX(OFFSET(Answers!B:B,0,(QNO-1)*4),MATCH(INDEX($A:$CB,ROW(),QNO*4),OFFSET(Answers!A:A,0,(QNO-1)*4),0))&"[/b] — [b]"&IF(INDEX($B:$CE,ROW(),QNO*4)=1,"Singleton!",CONCATENATE(INDEX($B:$CE,ROW(),QNO*4)," responses"))&"[/b]") -> [color=#BF0040]"Because of You", "The Hardest Thing", "Thank God I Found You"[/color]//[b][u]98[/u] DEGREES[/b] — [b]2 responses[/b] | CJ10: caknuck | CK10: Yes | CL10: 8. caknuck — [b]2[/b] pts | CM10: 18 | CN10: 10
A11: [*] | B11: =IF(Mainframe!B10="","",INDEX(Mainframe!$B:$B,C11+1,1)) -> Dlinn83 | C11: 9 | D11: =IF($B11="","",0+UPPER(Mainframe!C10)) -> 5000 | E11: =IF(D11="","",IF(NOT(ISNA(VLOOKUP(D11,Answers!A:D,4,FALSE))),VLOOKUP(D11,Answers!A:D,4,FALSE),"Help!")) -> 5 | G11: =IF(E11="","",IF(E11="XX",VLOOKUP("WRONG",Answers!A:D,4,FALSE),E11)+F11) -> 5 | H11: =IF($B11="","",0+UPPER(Mainframe!D10)) -> 11 | I11: =IF(H11="","",IF(NOT(ISNA(VLOOKUP(H11,Answers!E:H,4,FALSE))),VLOOKUP(H11,Answers!E:H,4,FALSE),"Help!")) -> 1 | K11: =IF(I11="","",G11+IF(I11="XX",VLOOKUP("WRONG",Answers!E:H,4,FALSE),I11)+J11) -> 6 | L11: =IF($B11="","",0+UPPER(Mainframe!E10)) -> 12 | M11: =IF(L11="","",IF(NOT(ISNA(VLOOKUP(L11,Answers!I:L,4,FALSE))),VLOOKUP(L11,Answers!I:L,4,FALSE),"Help!")) -> 3 | O11: =IF(M11="","",K11+IF(M11="XX",VLOOKUP("WRONG",Answers!I:L,4,FALSE),M11)+N11) -> 9 | P11: =IF($B11="","",0+UPPER(Mainframe!F10)) -> 1762 | Q11: XX | R11: =IF(Q11>500,-1000,0) -> -1000 | S11: =IF(Q11="","",O11+IF(Q11="XX",VLOOKUP("WRONG",Answers!M:P,4,FALSE),Q11)+R11) -> 16 | T11: =IF($B11="","",0+UPPER(Mainframe!G10)) -> 2 | U11: =IF(T11="","",IF(NOT(ISNA(VLOOKUP(T11,Answers!Q:T,4,FALSE))),VLOOKUP(T11,Answers!Q:T,4,FALSE),"Help!")) -> 14 | W11: =IF(U11="","",S11+IF(U11="XX",VLOOKUP("WRONG",Answers!Q:T,4,FALSE),U11)+V11) -> 30 | X11: =IF($B11="","",0+UPPER(Mainframe!H10)) -> 22 | Y11: =IF(X11="","",IF(NOT(ISNA(VLOOKUP(X11,Answers!U:X,4,FALSE))),VLOOKUP(X11,Answers!U:X,4,FALSE),"Help!")) -> 1000 | AA11: =IF(Y11="","",W11+IF(Y11="XX",VLOOKUP("WRONG",Answers!U:X,4,FALSE),Y11)+Z11) -> 1030 | AB11: =IF($B11="","",0+UPPER(Mainframe!I10)) -> 20 | AC11: =IF(AB11="","",IF(NOT(ISNA(VLOOKUP(AB11,Answers!Y:AB,4,FALSE))),VLOOKUP(AB11,Answers!Y:AB,4,FALSE),"Help!")) -> 13 | AE11: =IF(AC11="","",AA11+IF(AC11="XX",VLOOKUP("WRONG",Answers!Y:AB,4,FALSE),AC11)+AD11) -> 1043 | AF11: =IF($B11="","",0+UPPER(Mainframe!J10)) -> 11 | AG11: XX | AI11: =IF(AG11="","",AE11+IF(AG11="XX",VLOOKUP("WRONG",Answers!AC:AF,4,FALSE),AG11)+AH11) -> 2050 | AJ11: =IF($B11="","",0+UPPER(Mainframe!K10)) -> 5 | AK11: =IF(AJ11="","",IF(NOT(ISNA(VLOOKUP(AJ11,Answers!AG:AJ,4,FALSE))),VLOOKUP(AJ11,Answers!AG:AJ,4,FALSE),"Help!")) -> 9 | AM11: =IF(AK11="","",AI11+IF(AK11="XX",VLOOKUP("WRONG",Answers!AG:AJ,4,FALSE),AK11)+AL11) -> 2059 | AN11: =IF($B11="","",0+UPPER(Mainframe!L10)) -> 42 | AO11: =IF(AN11="","",IF(NOT(ISNA(VLOOKUP(AN11,Answers!AK:AN,4,FALSE))),VLOOKUP(AN11,Answers!AK:AN,4,FALSE),"Help!")) -> 8 | AQ11: =IF(AO11="","",AM11+IF(AO11="XX",VLOOKUP("WRONG",Answers!AK:AN,4,FALSE),AO11)+AP11) -> 2067 | AR11: =IF($B11="","",0+UPPER(Mainframe!M10)) -> 2 | AS11: =IF(AR11="","",IF(NOT(ISNA(VLOOKUP(AR11,Answers!AO:AR,4,FALSE))),VLOOKUP(AR11,Answers!AO:AR,4,FALSE),"Help!")) -> 4 | AU11: =IF(AS11="","",AQ11+IF(AS11="XX",VLOOKUP("WRONG",Answers!AO:AR,4,FALSE),AS11)+AT11) -> 2071 | AV11: =IF($B11="","",0+UPPER(Mainframe!N10)) -> 10 | AW11: =IF(AV11="","",IF(NOT(ISNA(VLOOKUP(AV11,Answers!AS:AV,4,FALSE))),VLOOKUP(AV11,Answers!AS:AV,4,FALSE),"Help!")) -> 1000 | AY11: =IF(AW11="","",AU11+IF(AW11="XX",VLOOKUP("WRONG",Answers!AS:AV,4,FALSE),AW11)+AX11) -> 3071 | AZ11: =IF($B11="","",0+UPPER(Mainframe!O10)) -> 500 | BA11: 11.52054795 | BB11: 1 | BC11: =IF($B11="","",LEFT(Mainframe!P10,SEARCH(".",Mainframe!P10)-1)) -> 4 | CH11: 9 | CI11: =IF(INDEX($B:$CE,ROW(),QNO*4)="XX","[b][u]"&INDEX($B:$CE,ROW(),QNO*4-1)&"[/u][/b]","[color=#BF0040]"&INDEX(OFFSET(Answers!C:C,0,(QNO-1)*4),MATCH(INDEX($A:$CB,ROW(),QNO*4),OFFSET(Answers!A:A,0,(QNO-1)*4),0))&"[/color]//[b]"&INDEX(OFFSET(Answers!B:B,0,(QNO-1)*4),MATCH(INDEX($A:$CB,ROW(),QNO*4),OFFSET(Answers!A:A,0,(QNO-1)*4),0))&"[/b] — [b]"&IF(INDEX($B:$CE,ROW(),QNO*4)=1,"Singleton!",CONCATENATE(INDEX($B:$CE,ROW(),QNO*4)," responses"))&"[/b]") -> [color=#BF0040]"When Worlds Collide", "Free", "How To Be a Human"[/color]//[b]POWERMAN [u]5000[/u][/b] — [b]5 responses[/b] | CJ11: Dlinn83 | CK11: Yes | CL11: 9. Dlinn83 — [b]5[/b] pts | CM11: 46 | CN11: 37
A12: [*] | B12: =IF(Mainframe!B11="","",INDEX(Mainframe!$B:$B,C12+1,1)) -> MitchO | C12: 10 | D12: =IF($B12="","",0+UPPER(Mainframe!C11)) -> 3 | E12: =IF(D12="","",IF(NOT(ISNA(VLOOKUP(D12,Answers!A:D,4,FALSE))),VLOOKUP(D12,Answers!A:D,4,FALSE),"Help!")) -> 11 | G12: =IF(E12="","",IF(E12="XX",VLOOKUP("WRONG",Answers!A:D,4,FALSE),E12)+F12) -> 11 | H12: =IF($B12="","",0+UPPER(Mainframe!D11)) -> 38 | I12: =IF(H12="","",IF(NOT(ISNA(VLOOKUP(H12,Answers!E:H,4,FALSE))),VLOOKUP(H12,Answers!E:H,4,FALSE),"Help!")) -> 7 | K12: =IF(I12="","",G12+IF(I12="XX",VLOOKUP("WRONG",Answers!E:H,4,FALSE),I12)+J12) -> 18 | L12: =IF($B12="","",0+UPPER(Mainframe!E11)) -> 16 | M12: =IF(L12="","",IF(NOT(ISNA(VLOOKUP(L12,Answers!I:L,4,FALSE))),VLOOKUP(L12,Answers!I:L,4,FALSE),"Help!")) -> 12 | O12: =IF(M12="","",K12+IF(M12="XX",VLOOKUP("WRONG",Answers!I:L,4,FALSE),M12)+N12) -> 30 | P12: =IF($B12="","",0+UPPER(Mainframe!F11)) -> 1940 | Q12: =IF(P12="","",IF(NOT(ISNA(VLOOKUP(P12,Answers!M:P,4,FALSE))),VLOOKUP(P12,Answers!M:P,4,FALSE),"Help!")) -> 7 | S12: =IF(Q12="","",O12+IF(Q12="XX",VLOOKUP("WRONG",Answers!M:P,4,FALSE),Q12)+R12) -> 37 | T12: =IF($B12="","",0+UPPER(Mainframe!G11)) -> 36 | U12: =IF(T12="","",IF(NOT(ISNA(VLOOKUP(T12,Answers!Q:T,4,FALSE))),VLOOKUP(T12,Answers!Q:T,4,FALSE),"Help!")) -> 4 | W12: =IF(U12="","",S12+IF(U12="XX",VLOOKUP("WRONG",Answers!Q:T,4,FALSE),U12)+V12) -> 41 | X12: =IF($B12="","",0+UPPER(Mainframe!H11)) -> 6 | Y12: XX | AA12: =IF(Y12="","",W12+IF(Y12="XX",VLOOKUP("WRONG",Answers!U:X,4,FALSE),Y12)+Z12) -> 1048 | AB12: =IF($B12="","",0+UPPER(Mainframe!I11)) -> 64 | AC12: =IF(AB12="","",IF(NOT(ISNA(VLOOKUP(AB12,Answers!Y:AB,4,FALSE))),VLOOKUP(AB12,Answers!Y:AB,4,FALSE),"Help!")) -> 3 | AE12: =IF(AC12="","",AA12+IF(AC12="XX",VLOOKUP("WRONG",Answers!Y:AB,4,FALSE),AC12)+AD12) -> 1051 | AF12: =IF($B12="","",0+UPPER(Mainframe!J11)) -> 9 | AG12: =IF(AF12="","",IF(NOT(ISNA(VLOOKUP(AF12,Answers!AC:AF,4,FALSE))),VLOOKUP(AF12,Answers!AC:AF,4,FALSE),"Help!")) -> 1000 | AI12: =IF(AG12="","",AE12+IF(AG12="XX",VLOOKUP("WRONG",Answers!AC:AF,4,FALSE),AG12)+AH12) -> 2051 | AJ12: =IF($B12="","",0+UPPER(Mainframe!K11)) -> 9 | AK12: XX | AM12: =IF(AK12="","",AI12+IF(AK12="XX",VLOOKUP("WRONG",Answers!AG:AJ,4,FALSE),AK12)+AL12) -> 3058 | AN12: =IF($B12="","",0+UPPER(Mainframe!L11)) -> 76 | AO12: =IF(AN12="","",IF(NOT(ISNA(VLOOKUP(AN12,Answers!AK:AN,4,FALSE))),VLOOKUP(AN12,Answers!AK:AN,4,FALSE),"Help!")) -> 6 | AQ12: =IF(AO12="","",AM12+IF(AO12="XX",VLOOKUP("WRONG",Answers!AK:AN,4,FALSE),AO12)+AP12) -> 3064 | AR12: =IF($B12="","",0+UPPER(Mainframe!M11)) -> 5 | AS12: =IF(AR12="","",IF(NOT(ISNA(VLOOKUP(AR12,Answers!AO:AR,4,FALSE))),VLOOKUP(AR12,Answers!AO:AR,4,FALSE),"Help!")) -> 1000 | AU12: =IF(AS12="","",AQ12+IF(AS12="XX",VLOOKUP("WRONG",Answers!AO:AR,4,FALSE),AS12)+AT12) -> 4064 | AV12: =IF($B12="","",0+UPPER(Mainframe!N11)) -> 10 | AW12: =IF(AV12="","",IF(NOT(ISNA(VLOOKUP(AV12,Answers!AS:AV,4,FALSE))),VLOOKUP(AV12,Answers!AS:AV,4,FALSE),"Help!")) -> 1000 | AX12: =IF(AW12>500,-1000,0) -> -1000 | AY12: =IF(AW12="","",AU12+IF(AW12="XX",VLOOKUP("WRONG",Answers!AS:AV,4,FALSE),AW12)+AX12) -> 4064 | AZ12: =IF($B12="","",0+UPPER(Mainframe!O11)) -> 733 | BA12: 244.5205479 | BB12: 1 | BC12: =IF($B12="","",LEFT(Mainframe!P11,SEARCH(".",Mainframe!P11)-1)) -> 12 | CH12: 10 | CI12: =IF(INDEX($B:$CE,ROW(),QNO*4)="XX","[b][u]"&INDEX($B:$CE,ROW(),QNO*4-1)&"[/u][/b]","[color=#BF0040]"&INDEX(OFFSET(Answers!C:C,0,(QNO-1)*4),MATCH(INDEX($A:$CB,ROW(),QNO*4),OFFSET(Answers!A:A,0,(QNO-1)*4),0))&"[/color]//[b]"&INDEX(OFFSET(Answers!B:B,0,(QNO-1)*4),MATCH(INDEX($A:$CB,ROW(),QNO*4),OFFSET(Answers!A:A,0,(QNO-1)*4),0))&"[/b] — [b]"&IF(INDEX($B:$CE,ROW(),QNO*4)=1,"Singleton!",CONCATENATE(INDEX($B:$CE,ROW(),QNO*4)," responses"))&"[/b]") -> [color=#BF0040]"Mama Told Me (Not to Come)", "Joy to the World", "Black and White"[/color]//[b][u]THREE[/u] DOG NIGHT[/b] — [b]11 responses[/b] | CJ12: MitchO | CK12: Yes | CL12: 10. MitchO — [b]11[/b] pts | CM12: 55 | CN12: 45
A13: [*] | B13: =IF(Mainframe!B12="","",INDEX(Mainframe!$B:$B,C13+1,1)) -> dinghammer | C13: 11 | D13: =IF($B13="","",0+UPPER(Mainframe!C12)) -> 65 | E13: =IF(D13="","",IF(NOT(ISNA(VLOOKUP(D13,Answers!A:D,4,FALSE))),VLOOKUP(D13,Answers!A:D,4,FALSE),"Help!")) -> 9 | G13: =IF(E13="","",IF(E13="XX",VLOOKUP("WRONG",Answers!A:D,4,FALSE),E13)+F13) -> 9 | H13: =IF($B13="","",0+UPPER(Mainframe!D12)) -> 1326 | I13: =IF(H13="","",IF(NOT(ISNA(VLOOKUP(H13,Answers!E:H,4,FALSE))),VLOOKUP(H13,Answers!E:H,4,FALSE),"Help!")) -> 2 | K13: =IF(I13="","",G13+IF(I13="XX",VLOOKUP("WRONG",Answers!E:H,4,FALSE),I13)+J13) -> 11 | L13: =IF($B13="","",0+UPPER(Mainframe!E12)) -> 300 | M13: =IF(L13="","",IF(NOT(ISNA(VLOOKUP(L13,Answers!I:L,4,FALSE))),VLOOKUP(L13,Answers!I:L,4,FALSE),"Help!")) -> 11 | O13: =IF(M13="","",K13+IF(M13="XX",VLOOKUP("WRONG",Answers!I:L,4,FALSE),M13)+N13) -> 22 | P13: =IF($B13="","",0+UPPER(Mainframe!F12)) -> 1815 | Q13: =IF(P13="","",IF(NOT(ISNA(VLOOKUP(P13,Answers!M:P,4,FALSE))),VLOOKUP(P13,Answers!M:P,4,FALSE),"Help!")) -> 10 | R13: =IF(Q13>500,-1000,0) -> 0 | S13: =IF(Q13="","",O13+IF(Q13="XX",VLOOKUP("WRONG",Answers!M:P,4,FALSE),Q13)+R13) -> 32 | T13: =IF($B13="","",0+UPPER(Mainframe!G12)) -> 5 | U13: =IF(T13="","",IF(NOT(ISNA(VLOOKUP(T13,Answers!Q:T,4,FALSE))),VLOOKUP(T13,Answers!Q:T,4,FALSE),"Help!")) -> 1000 | W13: =IF(U13="","",S13+IF(U13="XX",VLOOKUP("WRONG",Answers!Q:T,4,FALSE),U13)+V13) -> 1032 | X13: =IF($B13="","",0+UPPER(Mainframe!H12)) -> 12 | Y13: =IF(X13="","",IF(NOT(ISNA(VLOOKUP(X13,Answers!U:X,4,FALSE))),VLOOKUP(X13,Answers!U:X,4,FALSE),"Help!")) -> 5 | AA13: =IF(Y13="","",W13+IF(Y13="XX",VLOOKUP("WRONG",Answers!U:X,4,FALSE),Y13)+Z13) -> 1037 | AB13: =IF($B13="","",0+UPPER(Mainframe!I12)) -> 76 | AC13: =IF(AB13="","",IF(NOT(ISNA(VLOOKUP(AB13,Answers!Y:AB,4,FALSE))),VLOOKUP(AB13,Answers!Y:AB,4,FALSE),"Help!")) -> 1000 | AE13: =IF(AC13="","",AA13+IF(AC13="XX",VLOOKUP("WRONG",Answers!Y:AB,4,FALSE),AC13)+AD13) -> 2037 | AF13: =IF($B13="","",0+UPPER(Mainframe!J12)) -> 34 | AG13: =IF(AF13="","",IF(NOT(ISNA(VLOOKUP(AF13,Answers!AC:AF,4,FALSE))),VLOOKUP(AF13,Answers!AC:AF,4,FALSE),"Help!")) -> 4 | AI13: =IF(AG13="","",AE13+IF(AG13="XX",VLOOKUP("WRONG",Answers!AC:AF,4,FALSE),AG13)+AH13) -> 2041 | AJ13: =IF($B13="","",0+UPPER(Mainframe!K12)) -> 84 | AK13: =IF(AJ13="","",IF(NOT(ISNA(VLOOKUP(AJ13,Answers!AG:AJ,4,FALSE))),VLOOKUP(AJ13,Answers!AG:AJ,4,FALSE),"Help!")) -> 1000 | AM13: =IF(AK13="","",AI13+IF(AK13="XX",VLOOKUP("WRONG",Answers!AG:AJ,4,FALSE),AK13)+AL13) -> 3041 | AN13: =IF($B13="","",0+UPPER(Mainframe!L12)) -> 49 | AO13: =IF(AN13="","",IF(NOT(ISNA(VLOOKUP(AN13,Answers!AK:AN,4,FALSE))),VLOOKUP(AN13,Answers!AK:AN,4,FALSE),"Help!")) -> 9 | AQ13: =IF(AO13="","",AM13+IF(AO13="XX",VLOOKUP("WRONG",Answers!AK:AN,4,FALSE),AO13)+AP13) -> 3050 | AR13: =IF($B13="","",0+UPPER(Mainframe!M12)) -> 5 | AS13: =IF(AR13="","",IF(NOT(ISNA(VLOOKUP(AR13,Answers!AO:AR,4,FALSE))),VLOOKUP(AR13,Answers!AO:AR,4,FALSE),"Help!")) -> 1000 | AU13: =IF(AS13="","",AQ13+IF(AS13="XX",VLOOKUP("WRONG",Answers!AO:AR,4,FALSE),AS13)+AT13) -> 4050 | AV13: =IF($B13="","",0+UPPER(Mainframe!N12)) -> 613 | AW13: =IF(AV13="","",IF(NOT(ISNA(VLOOKUP(AV13,Answers!AS:AV,4,FALSE))),VLOOKUP(AV13,Answers!AS:AV,4,FALSE),"Help!")) -> 4 | AY13: =IF(AW13="","",AU13+IF(AW13="XX",VLOOKUP("WRONG",Answers!AS:AV,4,FALSE),AW13)+AX13) -> 4054 | AZ13: =IF($B13="","",0+UPPER(Mainframe!O12)) -> 587 | BA13: 98.52054795 | BB13: 1 | BC13: =IF($B13="","",LEFT(Mainframe!P12,SEARCH(".",Mainframe!P12)-1)) -> 4 | CH13: 11 | CI13: =IF(INDEX($B:$CE,ROW(),QNO*4)="XX","[b][u]"&INDEX($B:$CE,ROW(),QNO*4-1)&"[/u][/b]","[color=#BF0040]"&INDEX(OFFSET(Answers!C:C,0,(QNO-1)*4),MATCH(INDEX($A:$CB,ROW(),QNO*4),OFFSET(Answers!A:A,0,(QNO-1)*4),0))&"[/color]//[b]"&INDEX(OFFSET(Answers!B:B,0,(QNO-1)*4),MATCH(INDEX($A:$CB,ROW(),QNO*4),OFFSET(Answers!A:A,0,(QNO-1)*4),0))&"[/b] — [b]"&IF(INDEX($B:$CE,ROW(),QNO*4)=1,"Singleton!",CONCATENATE(INDEX($B:$CE,ROW(),QNO*4)," responses"))&"[/b]") -> [color=#BF0040]"Blue (Da Ba Dee)", "Move Your Body", "Lucky (In My Life)"[/color]//[b]EIFFEL [u]65[/u][/b] — [b]9 responses[/b] | CJ13: dinghammer | CK13: Yes | CL13: 11. dinghammer — [b]9[/b] pts | CM13: 52 | CN13: 41
A14: [*] | B14: =IF(Mainframe!B13="","",INDEX(Mainframe!$B:$B,C14+1,1)) -> RichmondJ | C14: 12 | D14: =IF($B14="","",0+UPPER(Mainframe!C13)) -> 40 | E14: =IF(D14="","",IF(NOT(ISNA(VLOOKUP(D14,Answers!A:D,4,FALSE))),VLOOKUP(D14,Answers!A:D,4,FALSE),"Help!")) -> 1000 | F14: =IF(E14>500,-1000,0) -> -1000 | G14: =IF(E14="","",IF(E14="XX",VLOOKUP("WRONG",Answers!A:D,4,FALSE),E14)+F14) -> 0 | H14: =IF($B14="","",0+UPPER(Mainframe!D13)) -> 22 | I14: =IF(H14="","",IF(NOT(ISNA(VLOOKUP(H14,Answers!E:H,4,FALSE))),VLOOKUP(H14,Answers!E:H,4,FALSE),"Help!")) -> 11 | K14: =IF(I14="","",G14+IF(I14="XX",VLOOKUP("WRONG",Answers!E:H,4,FALSE),I14)+J14) -> 11 | L14: =IF($B14="","",0+UPPER(Mainframe!E13)) -> 7 | M14: XX | O14: =IF(M14="","",K14+IF(M14="XX",VLOOKUP("WRONG",Answers!I:L,4,FALSE),M14)+N14) -> 1018 | P14: =IF($B14="","",0+UPPER(Mainframe!F13)) -> 1777 | Q14: =IF(P14="","",IF(NOT(ISNA(VLOOKUP(P14,Answers!M:P,4,FALSE))),VLOOKUP(P14,Answers!M:P,4,FALSE),"Help!")) -> 3 | S14: =IF(Q14="","",O14+IF(Q14="XX",VLOOKUP("WRONG",Answers!M:P,4,FALSE),Q14)+R14) -> 1021 | T14: =IF($B14="","",0+UPPER(Mainframe!G13)) -> 11 | U14: =IF(T14="","",IF(NOT(ISNA(VLOOKUP(T14,Answers!Q:T,4,FALSE))),VLOOKUP(T14,Answers!Q:T,4,FALSE),"Help!")) -> 4 | W14: =IF(U14="","",S14+IF(U14="XX",VLOOKUP("WRONG",Answers!Q:T,4,FALSE),U14)+V14) -> 1025 | X14: =IF($B14="","",0+UPPER(Mainframe!H13)) -> 80 | Y14: =IF(X14="","",IF(NOT(ISNA(VLOOKUP(X14,Answers!U:X,4,FALSE))),VLOOKUP(X14,Answers!U:X,4,FALSE),"Help!")) -> 5 | AA14: =IF(Y14="","",W14+IF(Y14="XX",VLOOKUP("WRONG",Answers!U:X,4,FALSE),Y14)+Z14) -> 1030 | AB14: =IF($B14="","",0+UPPER(Mainframe!I13)) -> 525600 | AC14: =IF(AB14="","",IF(NOT(ISNA(VLOOKUP(AB14,Answers!Y:AB,4,FALSE))),VLOOKUP(AB14,Answers!Y:AB,4,FALSE),"Help!")) -> 5 | AE14: =IF(AC14="","",AA14+IF(AC14="XX",VLOOKUP("WRONG",Answers!Y:AB,4,FALSE),AC14)+AD14) -> 1035 | AF14: =IF($B14="","",0+UPPER(Mainframe!J13)) -> 1850 | AG14: =IF(AF14="","",IF(NOT(ISNA(VLOOKUP(AF14,Answers!AC:AF,4,FALSE))),VLOOKUP(AF14,Answers!AC:AF,4,FALSE),"Help!")) -> 4 | AI14: =IF(AG14="","",AE14+IF(AG14="XX",VLOOKUP("WRONG",Answers!AC:AF,4,FALSE),AG14)+AH14) -> 1039 | AJ14: =IF($B14="","",0+UPPER(Mainframe!K13)) -> 94 | AK14: =IF(AJ14="","",IF(NOT(ISNA(VLOOKUP(AJ14,Answers!AG:AJ,4,FALSE))),VLOOKUP(AJ14,Answers!AG:AJ,4,FALSE),"Help!")) -> 5 | AM14: =IF(AK14="","",AI14+IF(AK14="XX",VLOOKUP("WRONG",Answers!AG:AJ,4,FALSE),AK14)+AL14) -> 1044 | AN14: =IF($B14="","",0+UPPER(Mainframe!L13)) -> 5 | AO14: =IF(AN14="","",IF(NOT(ISNA(VLOOKUP(AN14,Answers!AK:AN,4,FALSE))),VLOOKUP(AN14,Answers!AK:AN,4,FALSE),"Help!")) -> 7 | AQ14: =IF(AO14="","",AM14+IF(AO14="XX",VLOOKUP("WRONG",Answers!AK:AN,4,FALSE),AO14)+AP14) -> 1051 | AR14: =IF($B14="","",0+UPPER(Mainframe!M13)) -> 8 | AS14: =IF(AR14="","",IF(NOT(ISNA(VLOOKUP(AR14,Answers!AO:AR,4,FALSE))),VLOOKUP(AR14,Answers!AO:AR,4,FALSE),"Help!")) -> 6 | AU14: =IF(AS14="","",AQ14+IF(AS14="XX",VLOOKUP("WRONG",Answers!AO:AR,4,FALSE),AS14)+AT14) -> 1057 | AV14: =IF($B14="","",0+UPPER(Mainframe!N13)) -> 150 | AW14: =IF(AV14="","",IF(NOT(ISNA(VLOOKUP(AV14,Answers!AS:AV,4,FALSE))),VLOOKUP(AV14,Answers!AS:AV,4,FALSE),"Help!")) -> 5 | AY14: =IF(AW14="","",AU14+IF(AW14="XX",VLOOKUP("WRONG",Answers!AS:AV,4,FALSE),AW14)+AX14) -> 1062 | AZ14: =IF($B14="","",0+UPPER(Mainframe!O13)) -> 412 | BA14: 76.47945205 | BB14: 1 | BC14: =IF($B14="","",LEFT(Mainframe!P13,SEARCH(".",Mainframe!P13)-1)) -> 1 | CH14: 12 | CI14: =IF(INDEX($B:$CE,ROW(),QNO*4)="XX","[b][u]"&INDEX($B:$CE,ROW(),QNO*4-1)&"[/u][/b]","[color=#BF0040]"&INDEX(OFFSET(Answers!C:C,0,(QNO-1)*4),MATCH(INDEX($A:$CB,ROW(),QNO*4),OFFSET(Answers!A:A,0,(QNO-1)*4),0))&"[/color]//[b]"&INDEX(OFFSET(Answers!B:B,0,(QNO-1)*4),MATCH(INDEX($A:$CB,ROW(),QNO*4),OFFSET(Answers!A:A,0,(QNO-1)*4),0))&"[/b] — [b]"&IF(INDEX($B:$CE,ROW(),QNO*4)=1,"Singleton!",CONCATENATE(INDEX($B:$CE,ROW(),QNO*4)," responses"))&"[/b]") -> [color=#BF0040]"King", "Red Red Wine", "(I Can't Help) Falling in Love With You"[/color]//[b]UB[u]40[/u][/b] — [b]1000 responses[/b] | CJ14: RichmondJ [[b][color=#8000BF]FOX[/color][/b]] | CK14: Yes | CL14: 12. RichmondJ — [b]0[/b] pts | CM14: 10 | CN14: -2
A15: [*] | B15: =IF(Mainframe!B14="","",INDEX(Mainframe!$B:$B,C15+1,1)) -> geolawyerman | C15: 13 | D15: =IF($B15="","",0+UPPER(Mainframe!C14)) -> 1 | E15: =IF(D15="","",IF(NOT(ISNA(VLOOKUP(D15,Answers!A:D,4,FALSE))),VLOOKUP(D15,Answers!A:D,4,FALSE),"Help!")) -> 8 | G15: =IF(E15="","",IF(E15="XX",VLOOKUP("WRONG",Answers!A:D,4,FALSE),E15)+F15) -> 8 | H15: =IF($B15="","",0+UPPER(Mainframe!D14)) -> 21 | I15: =IF(H15="","",IF(NOT(ISNA(VLOOKUP(H15,Answers!E:H,4,FALSE))),VLOOKUP(H15,Answers!E:H,4,FALSE),"Help!")) -> 1000 | K15: =IF(I15="","",G15+IF(I15="XX",VLOOKUP("WRONG",Answers!E:H,4,FALSE),I15)+J15) -> 1008 | L15: =IF($B15="","",0+UPPER(Mainframe!E14)) -> 2012 | M15: =IF(L15="","",IF(NOT(ISNA(VLOOKUP(L15,Answers!I:L,4,FALSE))),VLOOKUP(L15,Answers!I:L,4,FALSE),"Help!")) -> 2 | O15: =IF(M15="","",K15+IF(M15="XX",VLOOKUP("WRONG",Answers!I:L,4,FALSE),M15)+N15) -> 1010 | P15: =IF($B15="","",0+UPPER(Mainframe!F14)) -> 312 | Q15: =IF(P15="","",IF(NOT(ISNA(VLOOKUP(P15,Answers!M:P,4,FALSE))),VLOOKUP(P15,Answers!M:P,4,FALSE),"Help!")) -> 4 | S15: =IF(Q15="","",O15+IF(Q15="XX",VLOOKUP("WRONG",Answers!M:P,4,FALSE),Q15)+R15) -> 1014 | T15: =IF($B15="","",0+UPPER(Mainframe!G14)) -> 2 | U15: =IF(T15="","",IF(NOT(ISNA(VLOOKUP(T15,Answers!Q:T,4,FALSE))),VLOOKUP(T15,Answers!Q:T,4,FALSE),"Help!")) -> 14 | W15: =IF(U15="","",S15+IF(U15="XX",VLOOKUP("WRONG",Answers!Q:T,4,FALSE),U15)+V15) -> 1028 | X15: =IF($B15="","",0+UPPER(Mainframe!H14)) -> 4 | Y15: =IF(X15="","",IF(NOT(ISNA(VLOOKUP(X15,Answers!U:X,4,FALSE))),VLOOKUP(X15,Answers!U:X,4,FALSE),"Help!")) -> 6 | AA15: =IF(Y15="","",W15+IF(Y15="XX",VLOOKUP("WRONG",Answers!U:X,4,FALSE),Y15)+Z15) -> 1034 | AB15: =IF($B15="","",0+UPPER(Mainframe!I14)) -> 8 | AC15: =IF(AB15="","",IF(NOT(ISNA(VLOOKUP(AB15,Answers!Y:AB,4,FALSE))),VLOOKUP(AB15,Answers!Y:AB,4,FALSE),"Help!")) -> 2 | AD15: =IF(AC15>500,-1000,0) -> 0 | AE15: =IF(AC15="","",AA15+IF(AC15="XX",VLOOKUP("WRONG",Answers!Y:AB,4,FALSE),AC15)+AD15) -> 1036 | AF15: =IF($B15="","",0+UPPER(Mainframe!J14)) -> 18 | AG15: =IF(AF15="","",IF(NOT(ISNA(VLOOKUP(AF15,Answers!AC:AF,4,FALSE))),VLOOKUP(AF15,Answers!AC:AF,4,FALSE),"Help!")) -> 10 | AI15: =IF(AG15="","",AE15+IF(AG15="XX",VLOOKUP("WRONG",Answers!AC:AF,4,FALSE),AG15)+AH15) -> 1046 | AJ15: =IF($B15="","",0+UPPER(Mainframe!K14)) -> 84 | AK15: =IF(AJ15="","",IF(NOT(ISNA(VLOOKUP(AJ15,Answers!AG:AJ,4,FALSE))),VLOOKUP(AJ15,Answers!AG:AJ,4,FALSE),"Help!")) -> 1000 | AM15: =IF(AK15="","",AI15+IF(AK15="XX",VLOOKUP("WRONG",Answers!AG:AJ,4,FALSE),AK15)+AL15) -> 2046 | AN15: =IF($B15="","",0+UPPER(Mainframe!L14)) -> 61 | AO15: =IF(AN15="","",IF(NOT(ISNA(VLOOKUP(AN15,Answers!AK:AN,4,FALSE))),VLOOKUP(AN15,Answers!AK:AN,4,FALSE),"Help!")) -> 5 | AQ15: =IF(AO15="","",AM15+IF(AO15="XX",VLOOKUP("WRONG",Answers!AK:AN,4,FALSE),AO15)+AP15) -> 2051 | AR15: =IF($B15="","",0+UPPER(Mainframe!M14)) -> 8 | AS15: =IF(AR15="","",IF(NOT(ISNA(VLOOKUP(AR15,Answers!AO:AR,4,FALSE))),VLOOKUP(AR15,Answers!AO:AR,4,FALSE),"Help!")) -> 6 | AU15: =IF(AS15="","",AQ15+IF(AS15="XX",VLOOKUP("WRONG",Answers!AO:AR,4,FALSE),AS15)+AT15) -> 2057 | AV15: =IF($B15="","",0+UPPER(Mainframe!N14)) -> 5000 | AW15: =IF(AV15="","",IF(NOT(ISNA(VLOOKUP(AV15,Answers!AS:AV,4,FALSE))),VLOOKUP(AV15,Answers!AS:AV,4,FALSE),"Help!")) -> 9 | AY15: =IF(AW15="","",AU15+IF(AW15="XX",VLOOKUP("WRONG",Answers!AS:AV,4,FALSE),AW15)+AX15) -> 2066 | AZ15: =IF($B15="","",0+UPPER(Mainframe!O14)) -> 500 | BA15: 11.52054795 | BB15: 1 | BC15: =IF($B15="","",LEFT(Mainframe!P14,SEARCH(".",Mainframe!P14)-1)) -> 7 | CH15: 13 | CI15: =IF(INDEX($B:$CE,ROW(),QNO*4)="XX","[b][u]"&INDEX($B:$CE,ROW(),QNO*4-1)&"[/u][/b]","[color=#BF0040]"&INDEX(OFFSET(Answers!C:C,0,(QNO-1)*4),MATCH(INDEX($A:$CB,ROW(),QNO*4),OFFSET(Answers!A:A,0,(QNO-1)*4),0))&"[/color]//[b]"&INDEX(OFFSET(Answers!B:B,0,(QNO-1)*4),MATCH(INDEX($A:$CB,ROW(),QNO*4),OFFSET(Answers!A:A,0,(QNO-1)*4),0))&"[/b] — [b]"&IF(INDEX($B:$CE,ROW(),QNO*4)=1,"Singleton!",CONCATENATE(INDEX($B:$CE,ROW(),QNO*4)," responses"))&"[/b]") -> [color=#BF0040]"What Makes You Beautiful", "Little Things", "Best Song Ever"[/color]//[b][u]ONE[/u] DIRECTION[/b] — [b]8 responses[/b] | CJ15: geolawyerman | CK15: Yes | CL15: 13. geolawyerman — [b]8[/b] pts | CM15: 22 | CN15: 9
A16: [*] | B16: =IF(Mainframe!B15="","",INDEX(Mainframe!$B:$B,C16+1,1)) -> Blue Lion | C16: 14 | D16: =IF($B16="","",0+UPPER(Mainframe!C15)) -> 40 | E16: =IF(D16="","",IF(NOT(ISNA(VLOOKUP(D16,Answers!A:D,4,FALSE))),VLOOKUP(D16,Answers!A:D,4,FALSE),"Help!")) -> 1000 | G16: =IF(E16="","",IF(E16="XX",VLOOKUP("WRONG",Answers!A:D,4,FALSE),E16)+F16) -> 1000 | H16: =IF($B16="","",0+UPPER(Mainframe!D15)) -> 23 | I16: XX | J16: =IF(I16>500,-1000,0) -> -1000 | K16: =IF(I16="","",G16+IF(I16="XX",VLOOKUP("WRONG",Answers!E:H,4,FALSE),I16)+J16) -> 1007 | L16: =IF($B16="","",0+UPPER(Mainframe!E15)) -> 400 | M16: =IF(L16="","",IF(NOT(ISNA(VLOOKUP(L16,Answers!I:L,4,FALSE))),VLOOKUP(L16,Answers!I:L,4,FALSE),"Help!")) -> 2 | O16: =IF(M16="","",K16+IF(M16="XX",VLOOKUP("WRONG",Answers!I:L,4,FALSE),M16)+N16) -> 1009 | P16: =IF($B16="","",0+UPPER(Mainframe!F15)) -> 1066 | Q16: =IF(P16="","",IF(NOT(ISNA(VLOOKUP(P16,Answers!M:P,4,FALSE))),VLOOKUP(P16,Answers!M:P,4,FALSE),"Help!")) -> 2 | S16: =IF(Q16="","",O16+IF(Q16="XX",VLOOKUP("WRONG",Answers!M:P,4,FALSE),Q16)+R16) -> 1011 | T16: =IF($B16="","",0+UPPER(Mainframe!G15)) -> 36 | U16: =IF(T16="","",IF(NOT(ISNA(VLOOKUP(T16,Answers!Q:T,4,FALSE))),VLOOKUP(T16,Answers!Q:T,4,FALSE),"Help!")) -> 4 | W16: =IF(U16="","",S16+IF(U16="XX",VLOOKUP("WRONG",Answers!Q:T,4,FALSE),U16)+V16) -> 1015 | X16: =IF($B16="","",0+UPPER(Mainframe!H15)) -> 47 | Y16: XX | AA16: =IF(Y16="","",W16+IF(Y16="XX",VLOOKUP("WRONG",Answers!U:X,4,FALSE),Y16)+Z16) -> 2022 | AB16: =IF($B16="","",0+UPPER(Mainframe!I15)) -> 42 | AC16: =IF(AB16="","",IF(NOT(ISNA(VLOOKUP(AB16,Answers!Y:AB,4,FALSE))),VLOOKUP(AB16,Answers!Y:AB,4,FALSE),"Help!")) -> 13 | AE16: =IF(AC16="","",AA16+IF(AC16="XX",VLOOKUP("WRONG",Answers!Y:AB,4,FALSE),AC16)+AD16) -> 2035 | AF16: =IF($B16="","",0+UPPER(Mainframe!J15)) -> 538 | AG16: =IF(AF16="","",IF(NOT(ISNA(VLOOKUP(AF16,Answers!AC:AF,4,FALSE))),VLOOKUP(AF16,Answers!AC:AF,4,FALSE),"Help!")) -> 4 | AI16: =IF(AG16="","",AE16+IF(AG16="XX",VLOOKUP("WRONG",Answers!AC:AF,4,FALSE),AG16)+AH16) -> 2039 | AJ16: =IF($B16="","",0+UPPER(Mainframe!K15)) -> 88 | AK16: XX | AM16: =IF(AK16="","",AI16+IF(AK16="XX",VLOOKUP("WRONG",Answers!AG:AJ,4,FALSE),AK16)+AL16) -> 3046 | AN16: =IF($B16="","",0+UPPER(Mainframe!L15)) -> 61 | AO16: =IF(AN16="","",IF(NOT(ISNA(VLOOKUP(AN16,Answers!AK:AN,4,FALSE))),VLOOKUP(AN16,Answers!AK:AN,4,FALSE),"Help!")) -> 5 | AQ16: =IF(AO16="","",AM16+IF(AO16="XX",VLOOKUP("WRONG",Answers!AK:AN,4,FALSE),AO16)+AP16) -> 3051 | AR16: =IF($B16="","",0+UPPER(Mainframe!M15)) -> 40 | AS16: =IF(AR16="","",IF(NOT(ISNA(VLOOKUP(AR16,Answers!AO:AR,4,FALSE))),VLOOKUP(AR16,Answers!AO:AR,4,FALSE),"Help!")) -> 3 | AU16: =IF(AS16="","",AQ16+IF(AS16="XX",VLOOKUP("WRONG",Answers!AO:AR,4,FALSE),AS16)+AT16) -> 3054 | AV16: =IF($B16="","",0+UPPER(Mainframe!N15)) -> 95 | AW16: =IF(AV16="","",IF(NOT(ISNA(VLOOKUP(AV16,Answers!AS:AV,4,FALSE))),VLOOKUP(AV16,Answers!AS:AV,4,FALSE),"Help!")) -> 7 | AY16: =IF(AW16="","",AU16+IF(AW16="XX",VLOOKUP("WRONG",Answers!AS:AV,4,FALSE),AW16)+AX16) -> 3061 | AZ16: =IF($B16="","",0+UPPER(Mainframe!O15)) -> 542 | BA16: 53.52054795 | BB16: 1 | BC16: =IF($B16="","",LEFT(Mainframe!P15,SEARCH(".",Mainframe!P15)-1)) -> 2 | CH16: 14 | CI16: =IF(INDEX($B:$CE,ROW(),QNO*4)="XX","[b][u]"&INDEX($B:$CE,ROW(),QNO*4-1)&"[/u][/b]","[color=#BF0040]"&INDEX(OFFSET(Answers!C:C,0,(QNO-1)*4),MATCH(INDEX($A:$CB,ROW(),QNO*4),OFFSET(Answers!A:A,0,(QNO-1)*4),0))&"[/color]//[b]"&INDEX(OFFSET(Answers!B:B,0,(QNO-1)*4),MATCH(INDEX($A:$CB,ROW(),QNO*4),OFFSET(Answers!A:A,0,(QNO-1)*4),0))&"[/b] — [b]"&IF(INDEX($B:$CE,ROW(),QNO*4)=1,"Singleton!",CONCATENATE(INDEX($B:$CE,ROW(),QNO*4)," responses"))&"[/b]") -> [color=#BF0040]"King", "Red Red Wine", "(I Can't Help) Falling in Love With You"[/color]//[b]UB[u]40[/u][/b] — [b]1000 responses[/b] | CJ16: Blue Lion | CK16: Yes | CL16: 14. Blue Lion — [b]1,000[/b] pts | CM16: 41 | CN16: 27
A17: [*] | B17: =IF(Mainframe!B16="","",INDEX(Mainframe!$B:$B,C17+1,1)) -> Abraxas | C17: 15 | D17: =IF($B17="","",0+UPPER(Mainframe!C16)) -> 5000 | E17: =IF(D17="","",IF(NOT(ISNA(VLOOKUP(D17,Answers!A:D,4,FALSE))),VLOOKUP(D17,Answers!A:D,4,FALSE),"Help!")) -> 5 | G17: =IF(E17="","",IF(E17="XX",VLOOKUP("WRONG",Answers!A:D,4,FALSE),E17)+F17) -> 5 | H17: =IF($B17="","",0+UPPER(Mainframe!D16)) -> 775 | I17: =IF(H17="","",IF(NOT(ISNA(VLOOKUP(H17,Answers!E:H,4,FALSE))),VLOOKUP(H17,Answers!E:H,4,FALSE),"Help!")) -> 5 | K17: =IF(I17="","",G17+IF(I17="XX",VLOOKUP("WRONG",Answers!E:H,4,FALSE),I17)+J17) -> 10 | L17: =IF($B17="","",0+UPPER(Mainframe!E16)) -> 3000 | M17: =IF(L17="","",IF(NOT(ISNA(VLOOKUP(L17,Answers!I:L,4,FALSE))),VLOOKUP(L17,Answers!I:L,4,FALSE),"Help!")) -> 2 | O17: =IF(M17="","",K17+IF(M17="XX",VLOOKUP("WRONG",Answers!I:L,4,FALSE),M17)+N17) -> 12 | P17: =IF($B17="","",0+UPPER(Mainframe!F16)) -> 2003 | Q17: =IF(P17="","",IF(NOT(ISNA(VLOOKUP(P17,Answers!M:P,4,FALSE))),VLOOKUP(P17,Answers!M:P,4,FALSE),"Help!")) -> 8 | S17: =IF(Q17="","",O17+IF(Q17="XX",VLOOKUP("WRONG",Answers!M:P,4,FALSE),Q17)+R17) -> 20 | T17: =IF($B17="","",0+UPPER(Mainframe!G16)) -> 47 | U17: =IF(T17="","",IF(NOT(ISNA(VLOOKUP(T17,Answers!Q:T,4,FALSE))),VLOOKUP(T17,Answers!Q:T,4,FALSE),"Help!")) -> 3 | W17: =IF(U17="","",S17+IF(U17="XX",VLOOKUP("WRONG",Answers!Q:T,4,FALSE),U17)+V17) -> 23 | X17: =IF($B17="","",0+UPPER(Mainframe!H16)) -> 49 | Y17: =IF(X17="","",IF(NOT(ISNA(VLOOKUP(X17,Answers!U:X,4,FALSE))),VLOOKUP(X17,Answers!U:X,4,FALSE),"Help!")) -> 4 | AA17: =IF(Y17="","",W17+IF(Y17="XX",VLOOKUP("WRONG",Answers!U:X,4,FALSE),Y17)+Z17) -> 27 | AB17: =IF($B17="","",0+UPPER(Mainframe!I16)) -> 525600 | AC17: =IF(AB17="","",IF(NOT(ISNA(VLOOKUP(AB17,Answers!Y:AB,4,FALSE))),VLOOKUP(AB17,Answers!Y:AB,4,FALSE),"Help!")) -> 5 | AE17: =IF(AC17="","",AA17+IF(AC17="XX",VLOOKUP("WRONG",Answers!Y:AB,4,FALSE),AC17)+AD17) -> 32 | AF17: =IF($B17="","",0+UPPER(Mainframe!J16)) -> 1974 | AG17: =IF(AF17="","",IF(NOT(ISNA(VLOOKUP(AF17,Answers!AC:AF,4,FALSE))),VLOOKUP(AF17,Answers!AC:AF,4,FALSE),"Help!")) -> 8 | AI17: =IF(AG17="","",AE17+IF(AG17="XX",VLOOKUP("WRONG",Answers!AC:AF,4,FALSE),AG17)+AH17) -> 40 | AJ17: =IF($B17="","",0+UPPER(Mainframe!K16)) -> 35 | AK17: =IF(AJ17="","",IF(NOT(ISNA(VLOOKUP(AJ17,Answers!AG:AJ,4,FALSE))),VLOOKUP(AJ17,Answers!AG:AJ,4,FALSE),"Help!")) -> 8 | AM17: =IF(AK17="","",AI17+IF(AK17="XX",VLOOKUP("WRONG",Answers!AG:AJ,4,FALSE),AK17)+AL17) -> 48 | AN17: =IF($B17="","",0+UPPER(Mainframe!L16)) -> 2130 | AO17: =IF(AN17="","",IF(NOT(ISNA(VLOOKUP(AN17,Answers!AK:AN,4,FALSE))),VLOOKUP(AN17,Answers!AK:AN,4,FALSE),"Help!")) -> 2 | AP17: =IF(AO17>500,-1000,0) -> 0 | AQ17: =IF(AO17="","",AM17+IF(AO17="XX",VLOOKUP("WRONG",Answers!AK:AN,4,FALSE),AO17)+AP17) -> 50 | AR17: =IF($B17="","",0+UPPER(Mainframe!M16)) -> 10 | AS17: XX | AU17: =IF(AS17="","",AQ17+IF(AS17="XX",VLOOKUP("WRONG",Answers!AO:AR,4,FALSE),AS17)+AT17) -> 1057 | AV17: =IF($B17="","",0+UPPER(Mainframe!N16)) -> 666 | AW17: =IF(AV17="","",IF(NOT(ISNA(VLOOKUP(AV17,Answers!AS:AV,4,FALSE))),VLOOKUP(AV17,Answers!AS:AV,4,FALSE),"Help!")) -> 5 | AY17: =IF(AW17="","",AU17+IF(AW17="XX",VLOOKUP("WRONG",Answers!AS:AV,4,FALSE),AW17)+AX17) -> 1062 | AZ17: =IF($B17="","",0+UPPER(Mainframe!O16)) -> 497 | BA17: 8.520547945 | BB17: 1 | BC17: =IF($B17="","",LEFT(Mainframe!P16,SEARCH(".",Mainframe!P16)-1)) -> 10 | CH17: 15 | CI17: =IF(INDEX($B:$CE,ROW(),QNO*4)="XX","[b][u]"&INDEX($B:$CE,ROW(),QNO*4-1)&"[/u][/b]","[color=#BF0040]"&INDEX(OFFSET(Answers!C:C,0,(QNO-1)*4),MATCH(INDEX($A:$CB,ROW(),QNO*4),OFFSET(Answers!A:A,0,(QNO-1)*4),0))&"[/color]//[b]"&INDEX(OFFSET(Answers!B:B,0,(QNO-1)*4),MATCH(INDEX($A:$CB,ROW(),QNO*4),OFFSET(Answers!A:A,0,(QNO-1)*4),0))&"[/b] — [b]"&IF(INDEX($B:$CE,ROW(),QNO*4)=1,"Singleton!",CONCATENATE(INDEX($B:$CE,ROW(),QNO*4)," responses"))&"[/b]") -> [color=#BF0040]"When Worlds Collide", "Free", "How To Be a Human"[/color]//[b]POWERMAN [u]5000[/u][/b] — [b]5 responses[/b] | CJ17: Abraxas | CK17: Yes | CL17: 15. Abraxas — [b]5[/b] pts | CM17: 10 | CN17: -5
A18: [*] | B18: =IF(Mainframe!B17="","",INDEX(Mainframe!$B:$B,C18+1,1)) -> quarterrican | C18: 16 | D18: =IF($B18="","",0+UPPER(Mainframe!C17)) -> 20 | E18: =IF(D18="","",IF(NOT(ISNA(VLOOKUP(D18,Answers!A:D,4,FALSE))),VLOOKUP(D18,Answers!A:D,4,FALSE),"Help!")) -> 6 | G18: =IF(E18="","",IF(E18="XX",VLOOKUP("WRONG",Answers!A:D,4,FALSE),E18)+F18) -> 6 | H18: =IF($B18="","",0+UPPER(Mainframe!D17)) -> 19 | I18: =IF(H18="","",IF(NOT(ISNA(VLOOKUP(H18,Answers!E:H,4,FALSE))),VLOOKUP(H18,Answers!E:H,4,FALSE),"Help!")) -> 1 | K18: =IF(I18="","",G18+IF(I18="XX",VLOOKUP("WRONG",Answers!E:H,4,FALSE),I18)+J18) -> 7 | L18: =IF($B18="","",0+UPPER(Mainframe!E17)) -> 300 | M18: =IF(L18="","",IF(NOT(ISNA(VLOOKUP(L18,Answers!I:L,4,FALSE))),VLOOKUP(L18,Answers!I:L,4,FALSE),"Help!")) -> 11 | O18: =IF(M18="","",K18+IF(M18="XX",VLOOKUP("WRONG",Answers!I:L,4,FALSE),M18)+N18) -> 18 | P18: =IF($B18="","",0+UPPER(Mainframe!F17)) -> 1863 | Q18: XX | R18: =IF(Q18>500,-1000,0) -> -1000 | S18: =IF(Q18="","",O18+IF(Q18="XX",VLOOKUP("WRONG",Answers!M:P,4,FALSE),Q18)+R18) -> 25 | T18: =IF($B18="","",0+UPPER(Mainframe!G17)) -> 5 | U18: =IF(T18="","",IF(NOT(ISNA(VLOOKUP(T18,Answers!Q:T,4,FALSE))),VLOOKUP(T18,Answers!Q:T,4,FALSE),"Help!")) -> 1000 | W18: =IF(U18="","",S18+IF(U18="XX",VLOOKUP("WRONG",Answers!Q:T,4,FALSE),U18)+V18) -> 1025 | X18: =IF($B18="","",0+UPPER(Mainframe!H17)) -> 80 | Y18: =IF(X18="","",IF(NOT(ISNA(VLOOKUP(X18,Answers!U:X,4,FALSE))),VLOOKUP(X18,Answers!U:X,4,FALSE),"Help!")) -> 5 | AA18: =IF(Y18="","",W18+IF(Y18="XX",VLOOKUP("WRONG",Answers!U:X,4,FALSE),Y18)+Z18) -> 1030 | AB18: =IF($B18="","",0+UPPER(Mainframe!I17)) -> 19 | AC18: =IF(AB18="","",IF(NOT(ISNA(VLOOKUP(AB18,Answers!Y:AB,4,FALSE))),VLOOKUP(AB18,Answers!Y:AB,4,FALSE),"Help!")) -> 2 | AE18: =IF(AC18="","",AA18+IF(AC18="XX",VLOOKUP("WRONG",Answers!Y:AB,4,FALSE),AC18)+AD18) -> 1032 | AF18: =IF($B18="","",0+UPPER(Mainframe!J17)) -> 1974 | AG18: =IF(AF18="","",IF(NOT(ISNA(VLOOKUP(AF18,Answers!AC:AF,4,FALSE))),VLOOKUP(AF18,Answers!AC:AF,4,FALSE),"Help!")) -> 8 | AI18: =IF(AG18="","",AE18+IF(AG18="XX",VLOOKUP("WRONG",Answers!AC:AF,4,FALSE),AG18)+AH18) -> 1040 | AJ18: =IF($B18="","",0+UPPER(Mainframe!K17)) -> 95 | AK18: =IF(AJ18="","",IF(NOT(ISNA(VLOOKUP(AJ18,Answers!AG:AJ,4,FALSE))),VLOOKUP(AJ18,Answers!AG:AJ,4,FALSE),"Help!")) -> 6 | AM18: =IF(AK18="","",AI18+IF(AK18="XX",VLOOKUP("WRONG",Answers!AG:AJ,4,FALSE),AK18)+AL18) -> 1046 | AN18: =IF($B18="","",0+UPPER(Mainframe!L17)) -> 49 | AO18: =IF(AN18="","",IF(NOT(ISNA(VLOOKUP(AN18,Answers!AK:AN,4,FALSE))),VLOOKUP(AN18,Answers!AK:AN,4,FALSE),"Help!")) -> 9 | AQ18: =IF(AO18="","",AM18+IF(AO18="XX",VLOOKUP("WRONG",Answers!AK:AN,4,FALSE),AO18)+AP18) -> 1055 | AR18: =IF($B18="","",0+UPPER(Mainframe!M17)) -> 5 | AS18: =IF(AR18="","",IF(NOT(ISNA(VLOOKUP(AR18,Answers!AO:AR,4,FALSE))),VLOOKUP(AR18,Answers!AO:AR,4,FALSE),"Help!")) -> 1000 | AU18: =IF(AS18="","",AQ18+IF(AS18="XX",VLOOKUP("WRONG",Answers!AO:AR,4,FALSE),AS18)+AT18) -> 2055 | AV18: =IF($B18="","",0+UPPER(Mainframe!N17)) -> 95 | AW18: =IF(AV18="","",IF(NOT(ISNA(VLOOKUP(AV18,Answers!AS:AV,4,FALSE))),VLOOKUP(AV18,Answers!AS:AV,4,FALSE),"Help!")) -> 7 | AY18: =IF(AW18="","",AU18+IF(AW18="XX",VLOOKUP("WRONG",Answers!AS:AV,4,FALSE),AW18)+AX18) -> 2062 | AZ18: =IF($B18="","",0+UPPER(Mainframe!O17)) -> 612 | BA18: 123.5205479 | BB18: 1 | BC18: =IF($B18="","",LEFT(Mainframe!P17,SEARCH(".",Mainframe!P17)-1)) -> 4 | CH18: 16 | CI18: =IF(INDEX($B:$CE,ROW(),QNO*4)="XX","[b][u]"&INDEX($B:$CE,ROW(),QNO*4-1)&"[/u][/b]","[color=#BF0040]"&INDEX(OFFSET(Answers!C:C,0,(QNO-1)*4),MATCH(INDEX($A:$CB,ROW(),QNO*4),OFFSET(Answers!A:A,0,(QNO-1)*4),0))&"[/color]//[b]"&INDEX(OFFSET(Answers!B:B,0,(QNO-1)*4),MATCH(INDEX($A:$CB,ROW(),QNO*4),OFFSET(Answers!A:A,0,(QNO-1)*4),0))&"[/b] — [b]"&IF(INDEX($B:$CE,ROW(),QNO*4)=1,"Singleton!",CONCATENATE(INDEX($B:$CE,ROW(),QNO*4)," responses"))&"[/b]") -> [color=#BF0040]"Push", "Bent", "Unwell"[/color]//[b]MATCHBOX [u]20[/u][/b] — [b]6 responses[/b] | CJ18: quarterrican | CK18: Yes | CL18: 16. quarterrican — [b]6[/b] pts | CM18: 19 | CN18: 3
A19: [*] | B19: =IF(Mainframe!B18="","",INDEX(Mainframe!$B:$B,C19+1,1)) -> mitchparov | C19: 17 | D19: =IF($B19="","",0+UPPER(Mainframe!C18)) -> 65 | E19: =IF(D19="","",IF(NOT(ISNA(VLOOKUP(D19,Answers!A:D,4,FALSE))),VLOOKUP(D19,Answers!A:D,4,FALSE),"Help!")) -> 9 | G19: =IF(E19="","",IF(E19="XX",VLOOKUP("WRONG",Answers!A:D,4,FALSE),E19)+F19) -> 9 | H19: =IF($B19="","",0+UPPER(Mainframe!D18)) -> 775 | I19: =IF(H19="","",IF(NOT(ISNA(VLOOKUP(H19,Answers!E:H,4,FALSE))),VLOOKUP(H19,Answers!E:H,4,FALSE),"Help!")) -> 5 | J19: =IF(I19>500,-1000,0) -> 0 | K19: =IF(I19="","",G19+IF(I19="XX",VLOOKUP("WRONG",Answers!E:H,4,FALSE),I19)+J19) -> 14 | L19: =IF($B19="","",0+UPPER(Mainframe!E18)) -> 300 | M19: =IF(L19="","",IF(NOT(ISNA(VLOOKUP(L19,Answers!I:L,4,FALSE))),VLOOKUP(L19,Answers!I:L,4,FALSE),"Help!")) -> 11 | O19: =IF(M19="","",K19+IF(M19="XX",VLOOKUP("WRONG",Answers!I:L,4,FALSE),M19)+N19) -> 25 | P19: =IF($B19="","",0+UPPER(Mainframe!F18)) -> 1964 | Q19: =IF(P19="","",IF(NOT(ISNA(VLOOKUP(P19,Answers!M:P,4,FALSE))),VLOOKUP(P19,Answers!M:P,4,FALSE),"Help!")) -> 3 | S19: =IF(Q19="","",O19+IF(Q19="XX",VLOOKUP("WRONG",Answers!M:P,4,FALSE),Q19)+R19) -> 28 | T19: =IF($B19="","",0+UPPER(Mainframe!G18)) -> 2 | U19: =IF(T19="","",IF(NOT(ISNA(VLOOKUP(T19,Answers!Q:T,4,FALSE))),VLOOKUP(T19,Answers!Q:T,4,FALSE),"Help!")) -> 14 | W19: =IF(U19="","",S19+IF(U19="XX",VLOOKUP("WRONG",Answers!Q:T,4,FALSE),U19)+V19) -> 42 | X19: =IF($B19="","",0+UPPER(Mainframe!H18)) -> 4 | Y19: =IF(X19="","",IF(NOT(ISNA(VLOOKUP(X19,Answers!U:X,4,FALSE))),VLOOKUP(X19,Answers!U:X,4,FALSE),"Help!")) -> 6 | AA19: =IF(Y19="","",W19+IF(Y19="XX",VLOOKUP("WRONG",Answers!U:X,4,FALSE),Y19)+Z19) -> 48 | AB19: =IF($B19="","",0+UPPER(Mainframe!I18)) -> 25 | AC19: =IF(AB19="","",IF(NOT(ISNA(VLOOKUP(AB19,Answers!Y:AB,4,FALSE))),VLOOKUP(AB19,Answers!Y:AB,4,FALSE),"Help!")) -> 7 | AE19: =IF(AC19="","",AA19+IF(AC19="XX",VLOOKUP("WRONG",Answers!Y:AB,4,FALSE),AC19)+AD19) -> 55 | AF19: =IF($B19="","",0+UPPER(Mainframe!J18)) -> 9 | AG19: =IF(AF19="","",IF(NOT(ISNA(VLOOKUP(AF19,Answers!AC:AF,4,FALSE))),VLOOKUP(AF19,Answers!AC:AF,4,FALSE),"Help!")) -> 1000 | AI19: =IF(AG19="","",AE19+IF(AG19="XX",VLOOKUP("WRONG",Answers!AC:AF,4,FALSE),AG19)+AH19) -> 1055 | AJ19: =IF($B19="","",0+UPPER(Mainframe!K18)) -> 95 | AK19: =IF(AJ19="","",IF(NOT(ISNA(VLOOKUP(AJ19,Answers!AG:AJ,4,FALSE))),VLOOKUP(AJ19,Answers!AG:AJ,4,FALSE),"Help!")) -> 6 | AM19: =IF(AK19="","",AI19+IF(AK19="XX",VLOOKUP("WRONG",Answers!AG:AJ,4,FALSE),AK19)+AL19) -> 1061 | AN19: =IF($B19="","",0+UPPER(Mainframe!L18)) -> 42 | AO19: =IF(AN19="","",IF(NOT(ISNA(VLOOKUP(AN19,Answers!AK:AN,4,FALSE))),VLOOKUP(AN19,Answers!AK:AN,4,FALSE),"Help!")) -> 8 | AQ19: =IF(AO19="","",AM19+IF(AO19="XX",VLOOKUP("WRONG",Answers!AK:AN,4,FALSE),AO19)+AP19) -> 1069 | AR19: =IF($B19="","",0+UPPER(Mainframe!M18)) -> 6 | AS19: =IF(AR19="","",IF(NOT(ISNA(VLOOKUP(AR19,Answers!AO:AR,4,FALSE))),VLOOKUP(AR19,Answers!AO:AR,4,FALSE),"Help!")) -> 8 | AU19: =IF(AS19="","",AQ19+IF(AS19="XX",VLOOKUP("WRONG",Answers!AO:AR,4,FALSE),AS19)+AT19) -> 1077 | AV19: =IF($B19="","",0+UPPER(Mainframe!N18)) -> 613 | AW19: =IF(AV19="","",IF(NOT(ISNA(VLOOKUP(AV19,Answers!AS:AV,4,FALSE))),VLOOKUP(AV19,Answers!AS:AV,4,FALSE),"Help!")) -> 4 | AY19: =IF(AW19="","",AU19+IF(AW19="XX",VLOOKUP("WRONG",Answers!AS:AV,4,FALSE),AW19)+AX19) -> 1081 | AZ19: =IF($B19="","",0+UPPER(Mainframe!O18)) -> 500 | BA19: 11.52054795 | BB19: 1 | BC19: =IF($B19="","",LEFT(Mainframe!P18,SEARCH(".",Mainframe!P18)-1)) -> 2 | CH19: 17 | CI19: =IF(INDEX($B:$CE,ROW(),QNO*4)="XX","[b][u]"&INDEX($B:$CE,ROW(),QNO*4-1)&"[/u][/b]","[color=#BF0040]"&INDEX(OFFSET(Answers!C:C,0,(QNO-1)*4),MATCH(INDEX($A:$CB,ROW(),QNO*4),OFFSET(Answers!A:A,0,(QNO-1)*4),0))&"[/color]//[b]"&INDEX(OFFSET(Answers!B:B,0,(QNO-1)*4),MATCH(INDEX($A:$CB,ROW(),QNO*4),OFFSET(Answers!A:A,0,(QNO-1)*4),0))&"[/b] — [b]"&IF(INDEX($B:$CE,ROW(),QNO*4)=1,"Singleton!",CONCATENATE(INDEX($B:$CE,ROW(),QNO*4)," responses"))&"[/b]") -> [color=#BF0040]"Blue (Da Ba Dee)", "Move Your Body", "Lucky (In My Life)"[/color]//[b]EIFFEL [u]65[/u][/b] — [b]9 responses[/b] | CJ19: mitchparov | CK19: Yes | CL19: 17. mitchparov — [b]9[/b] pts | CM19: 17 | CN19: 0
A20: [*] | B20: =IF(Mainframe!B19="","",INDEX(Mainframe!$B:$B,C20+1,1)) -> immaf | C20: 18 | D20: =IF($B20="","",0+UPPER(Mainframe!C19)) -> 5 | E20: =IF(D20="","",IF(NOT(ISNA(VLOOKUP(D20,Answers!A:D,4,FALSE))),VLOOKUP(D20,Answers!A:D,4,FALSE),"Help!")) -> 5 | F20: =IF(E20>500,-1000,0) -> 0 | G20: =IF(E20="","",IF(E20="XX",VLOOKUP("WRONG",Answers!A:D,4,FALSE),E20)+F20) -> 5 | H20: =IF($B20="","",0+UPPER(Mainframe!D19)) -> 100 | I20: =IF(H20="","",IF(NOT(ISNA(VLOOKUP(H20,Answers!E:H,4,FALSE))),VLOOKUP(H20,Answers!E:H,4,FALSE),"Help!")) -> 4 | K20: =IF(I20="","",G20+IF(I20="XX",VLOOKUP("WRONG",Answers!E:H,4,FALSE),I20)+J20) -> 9 | L20: =IF($B20="","",0+UPPER(Mainframe!E19)) -> 2001 | M20: =IF(L20="","",IF(NOT(ISNA(VLOOKUP(L20,Answers!I:L,4,FALSE))),VLOOKUP(L20,Answers!I:L,4,FALSE),"Help!")) -> 6 | O20: =IF(M20="","",K20+IF(M20="XX",VLOOKUP("WRONG",Answers!I:L,4,FALSE),M20)+N20) -> 15 | P20: =IF($B20="","",0+UPPER(Mainframe!F19)) -> 1512 | Q20: XX | S20: =IF(Q20="","",O20+IF(Q20="XX",VLOOKUP("WRONG",Answers!M:P,4,FALSE),Q20)+R20) -> 1022 | T20: =IF($B20="","",0+UPPER(Mainframe!G19)) -> 2 | U20: =IF(T20="","",IF(NOT(ISNA(VLOOKUP(T20,Answers!Q:T,4,FALSE))),VLOOKUP(T20,Answers!Q:T,4,FALSE),"Help!")) -> 14 | W20: =IF(U20="","",S20+IF(U20="XX",VLOOKUP("WRONG",Answers!Q:T,4,FALSE),U20)+V20) -> 1036 | X20: =IF($B20="","",0+UPPER(Mainframe!H19)) -> 22 | Y20: =IF(X20="","",IF(NOT(ISNA(VLOOKUP(X20,Answers!U:X,4,FALSE))),VLOOKUP(X20,Answers!U:X,4,FALSE),"Help!")) -> 1000 | AA20: =IF(Y20="","",W20+IF(Y20="XX",VLOOKUP("WRONG",Answers!U:X,4,FALSE),Y20)+Z20) -> 2036 | AB20: =IF($B20="","",0+UPPER(Mainframe!I19)) -> 42 | AC20: =IF(AB20="","",IF(NOT(ISNA(VLOOKUP(AB20,Answers!Y:AB,4,FALSE))),VLOOKUP(AB20,Answers!Y:AB,4,FALSE),"Help!")) -> 13 | AE20: =IF(AC20="","",AA20+IF(AC20="XX",VLOOKUP("WRONG",Answers!Y:AB,4,FALSE),AC20)+AD20) -> 2049 | AF20: =IF($B20="","",0+UPPER(Mainframe!J19)) -> 9 | AG20: =IF(AF20="","",IF(NOT(ISNA(VLOOKUP(AF20,Answers!AC:AF,4,FALSE))),VLOOKUP(AF20,Answers!AC:AF,4,FALSE),"Help!")) -> 1000 | AI20: =IF(AG20="","",AE20+IF(AG20="XX",VLOOKUP("WRONG",Answers!AC:AF,4,FALSE),AG20)+AH20) -> 3049 | AJ20: =IF($B20="","",0+UPPER(Mainframe!K19)) -> 84 | AK20: =IF(AJ20="","",IF(NOT(ISNA(VLOOKUP(AJ20,Answers!AG:AJ,4,FALSE))),VLOOKUP(AJ20,Answers!AG:AJ,4,FALSE),"Help!")) -> 1000 | AM20: =IF(AK20="","",AI20+IF(AK20="XX",VLOOKUP("WRONG",Answers!AG:AJ,4,FALSE),AK20)+AL20) -> 4049 | AN20: =IF($B20="","",0+UPPER(Mainframe!L19)) -> 49 | AO20: =IF(AN20="","",IF(NOT(ISNA(VLOOKUP(AN20,Answers!AK:AN,4,FALSE))),VLOOKUP(AN20,Answers!AK:AN,4,FALSE),"Help!")) -> 9 | AQ20: =IF(AO20="","",AM20+IF(AO20="XX",VLOOKUP("WRONG",Answers!AK:AN,4,FALSE),AO20)+AP20) -> 4058 | AR20: =IF($B20="","",0+UPPER(Mainframe!M19)) -> 9 | AS20: =IF(AR20="","",IF(NOT(ISNA(VLOOKUP(AR20,Answers!AO:AR,4,FALSE))),VLOOKUP(AR20,Answers!AO:AR,4,FALSE),"Help!")) -> 9 | AU20: =IF(AS20="","",AQ20+IF(AS20="XX",VLOOKUP("WRONG",Answers!AO:AR,4,FALSE),AS20)+AT20) -> 4067 | AV20: =IF($B20="","",0+UPPER(Mainframe!N19)) -> 10 | AW20: =IF(AV20="","",IF(NOT(ISNA(VLOOKUP(AV20,Answers!AS:AV,4,FALSE))),VLOOKUP(AV20,Answers!AS:AV,4,FALSE),"Help!")) -> 1000 | AY20: =IF(AW20="","",AU20+IF(AW20="XX",VLOOKUP("WRONG",Answers!AS:AV,4,FALSE),AW20)+AX20) -> 5067 | AZ20: =IF($B20="","",0+UPPER(Mainframe!O19)) -> 500 | BA20: 11.52054795 | BB20: 1 | BC20: =IF($B20="","",LEFT(Mainframe!P19,SEARCH(".",Mainframe!P19)-1)) -> 1 | CH20: 18 | CI20: =IF(INDEX($B:$CE,ROW(),QNO*4)="XX","[b][u]"&INDEX($B:$CE,ROW(),QNO*4-1)&"[/u][/b]","[color=#BF0040]"&INDEX(OFFSET(Answers!C:C,0,(QNO-1)*4),MATCH(INDEX($A:$CB,ROW(),QNO*4),OFFSET(Answers!A:A,0,(QNO-1)*4),0))&"[/color]//[b]"&INDEX(OFFSET(Answers!B:B,0,(QNO-1)*4),MATCH(INDEX($A:$CB,ROW(),QNO*4),OFFSET(Answers!A:A,0,(QNO-1)*4),0))&"[/b] — [b]"&IF(INDEX($B:$CE,ROW(),QNO*4)=1,"Singleton!",CONCATENATE(INDEX($B:$CE,ROW(),QNO*4)," responses"))&"[/b]") -> [color=#BF0040]"She Will Be Loved", "Makes Me Wonder", "Moves like Jagger"[/color]//[b]MAROON [u]5[/u][/b] — [b]5 responses[/b] | CJ20: immaf [[b][color=#8000BF]FOX[/color][/b]]//clprez | CK20: Yes | CL20: 18. immaf — [b]5[/b] pts | CM20: 70 | CN20: 52
A21: [*] | B21: =IF(Mainframe!B20="","",INDEX(Mainframe!$B:$B,C21+1,1)) -> clprez | C21: 19 | D21: =IF($B21="","",0+UPPER(Mainframe!C20)) -> 5 | E21: =IF(D21="","",IF(NOT(ISNA(VLOOKUP(D21,Answers!A:D,4,FALSE))),VLOOKUP(D21,Answers!A:D,4,FALSE),"Help!")) -> 5 | G21: =IF(E21="","",IF(E21="XX",VLOOKUP("WRONG",Answers!A:D,4,FALSE),E21)+F21) -> 5 | H21: =IF($B21="","",0+UPPER(Mainframe!D20)) -> 61 | I21: XX | K21: =IF(I21="","",G21+IF(I21="XX",VLOOKUP("WRONG",Answers!E:H,4,FALSE),I21)+J21) -> 1012 | L21: =IF($B21="","",0+UPPER(Mainframe!E20)) -> 34 | M21: =IF(L21="","",IF(NOT(ISNA(VLOOKUP(L21,Answers!I:L,4,FALSE))),VLOOKUP(L21,Answers!I:L,4,FALSE),"Help!")) -> 1000 | O21: =IF(M21="","",K21+IF(M21="XX",VLOOKUP("WRONG",Answers!I:L,4,FALSE),M21)+N21) -> 2012 | P21: =IF($B21="","",0+UPPER(Mainframe!F20)) -> 1940 | Q21: =IF(P21="","",IF(NOT(ISNA(VLOOKUP(P21,Answers!M:P,4,FALSE))),VLOOKUP(P21,Answers!M:P,4,FALSE),"Help!")) -> 7 | S21: =IF(Q21="","",O21+IF(Q21="XX",VLOOKUP("WRONG",Answers!M:P,4,FALSE),Q21)+R21) -> 2019 | T21: =IF($B21="","",0+UPPER(Mainframe!G20)) -> 20 | U21: XX | W21: =IF(U21="","",S21+IF(U21="XX",VLOOKUP("WRONG",Answers!Q:T,4,FALSE),U21)+V21) -> 3026 | X21: =IF($B21="","",0+UPPER(Mainframe!H20)) -> 451 | Y21: =IF(X21="","",IF(NOT(ISNA(VLOOKUP(X21,Answers!U:X,4,FALSE))),VLOOKUP(X21,Answers!U:X,4,FALSE),"Help!")) -> 8 | AA21: =IF(Y21="","",W21+IF(Y21="XX",VLOOKUP("WRONG",Answers!U:X,4,FALSE),Y21)+Z21) -> 3034 | AB21: =IF($B21="","",0+UPPER(Mainframe!I20)) -> 42 | AC21: =IF(AB21="","",IF(NOT(ISNA(VLOOKUP(AB21,Answers!Y:AB,4,FALSE))),VLOOKUP(AB21,Answers!Y:AB,4,FALSE),"Help!")) -> 13 | AE21: =IF(AC21="","",AA21+IF(AC21="XX",VLOOKUP("WRONG",Answers!Y:AB,4,FALSE),AC21)+AD21) -> 3047 | AF21: =IF($B21="","",0+UPPER(Mainframe!J20)) -> 49 | AG21: =IF(AF21="","",IF(NOT(ISNA(VLOOKUP(AF21,Answers!AC:AF,4,FALSE))),VLOOKUP(AF21,Answers!AC:AF,4,FALSE),"Help!")) -> 10 | AI21: =IF(AG21="","",AE21+IF(AG21="XX",VLOOKUP("WRONG",Answers!AC:AF,4,FALSE),AG21)+AH21) -> 3057 | AJ21: =IF($B21="","",0+UPPER(Mainframe!K20)) -> 94 | AK21: =IF(AJ21="","",IF(NOT(ISNA(VLOOKUP(AJ21,Answers!AG:AJ,4,FALSE))),VLOOKUP(AJ21,Answers!AG:AJ,4,FALSE),"Help!")) -> 5 | AM21: =IF(AK21="","",AI21+IF(AK21="XX",VLOOKUP("WRONG",Answers!AG:AJ,4,FALSE),AK21)+AL21) -> 3062 | AN21: =IF($B21="","",0+UPPER(Mainframe!L20)) -> 67 | AO21: =IF(AN21="","",IF(NOT(ISNA(VLOOKUP(AN21,Answers!AK:AN,4,FALSE))),VLOOKUP(AN21,Answers!AK:AN,4,FALSE),"Help!")) -> 1000 | AP21: =IF(AO21>500,-1000,0) -> -1000 | AQ21: =IF(AO21="","",AM21+IF(AO21="XX",VLOOKUP("WRONG",Answers!AK:AN,4,FALSE),AO21)+AP21) -> 3062 | AR21: =IF($B21="","",0+UPPER(Mainframe!M20)) -> 9 | AS21: =IF(AR21="","",IF(NOT(ISNA(VLOOKUP(AR21,Answers!AO:AR,4,FALSE))),VLOOKUP(AR21,Answers!AO:AR,4,FALSE),"Help!")) -> 9 | AU21: =IF(AS21="","",AQ21+IF(AS21="XX",VLOOKUP("WRONG",Answers!AO:AR,4,FALSE),AS21)+AT21) -> 3071 | AV21: =IF($B21="","",0+UPPER(Mainframe!N20)) -> 622 | AW21: =IF(AV21="","",IF(NOT(ISNA(VLOOKUP(AV21,Answers!AS:AV,4,FALSE))),VLOOKUP(AV21,Answers!AS:AV,4,FALSE),"Help!")) -> 4 | AY21: =IF(AW21="","",AU21+IF(AW21="XX",VLOOKUP("WRONG",Answers!AS:AV,4,FALSE),AW21)+AX21) -> 3075 | AZ21: =IF($B21="","",0+UPPER(Mainframe!O20)) -> 369 | BA21: 119.4794521 | BB21: 1 | BC21: =IF($B21="","",LEFT(Mainframe!P20,SEARCH(".",Mainframe!P20)-1)) -> 10 | CH21: 18 | CI21: =IF(INDEX($B:$CE,ROW(),QNO*4)="XX","[b][u]"&INDEX($B:$CE,ROW(),QNO*4-1)&"[/u][/b]","[color=#BF0040]"&INDEX(OFFSET(Answers!C:C,0,(QNO-1)*4),MATCH(INDEX($A:$CB,ROW(),QNO*4),OFFSET(Answers!A:A,0,(QNO-1)*4),0))&"[/color]//[b]"&INDEX(OFFSET(Answers!B:B,0,(QNO-1)*4),MATCH(INDEX($A:$CB,ROW(),QNO*4),OFFSET(Answers!A:A,0,(QNO-1)*4),0))&"[/b] — [b]"&IF(INDEX($B:$CE,ROW(),QNO*4)=1,"Singleton!",CONCATENATE(INDEX($B:$CE,ROW(),QNO*4)," responses"))&"[/b]") -> [color=#BF0040]"She Will Be Loved", "Makes Me Wonder", "Moves like Jagger"[/color]//[b]MAROON [u]5[/u][/b] — [b]5 responses[/b] | CJ21: clprez | CK21: No | CL21: 18. clprez — [b]5[/b] pts | CM21: 48 | CN21: 30
A22: [*] | B22: =IF(Mainframe!B21="","",INDEX(Mainframe!$B:$B,C22+1,1)) -> mikeyb | C22: 20 | D22: =IF($B22="","",0+UPPER(Mainframe!C21)) -> 40 | E22: =IF(D22="","",IF(NOT(ISNA(VLOOKUP(D22,Answers!A:D,4,FALSE))),VLOOKUP(D22,Answers!A:D,4,FALSE),"Help!")) -> 1000 | G22: =IF(E22="","",IF(E22="XX",VLOOKUP("WRONG",Answers!A:D,4,FALSE),E22)+F22) -> 1000 | H22: =IF($B22="","",0+UPPER(Mainframe!D21)) -> 108 | I22: =IF(H22="","",IF(NOT(ISNA(VLOOKUP(H22,Answers!E:H,4,FALSE))),VLOOKUP(H22,Answers!E:H,4,FALSE),"Help!")) -> 5 | K22: =IF(I22="","",G22+IF(I22="XX",VLOOKUP("WRONG",Answers!E:H,4,FALSE),I22)+J22) -> 1005 | L22: =IF($B22="","",0+UPPER(Mainframe!E21)) -> 34 | M22: =IF(L22="","",IF(NOT(ISNA(VLOOKUP(L22,Answers!I:L,4,FALSE))),VLOOKUP(L22,Answers!I:L,4,FALSE),"Help!")) -> 1000 | O22: =IF(M22="","",K22+IF(M22="XX",VLOOKUP("WRONG",Answers!I:L,4,FALSE),M22)+N22) -> 2005 | P22: =IF($B22="","",0+UPPER(Mainframe!F21)) -> 2003 | Q22: =IF(P22="","",IF(NOT(ISNA(VLOOKUP(P22,Answers!M:P,4,FALSE))),VLOOKUP(P22,Answers!M:P,4,FALSE),"Help!")) -> 8 | R22: =IF(Q22>500,-1000,0) -> 0 | S22: =IF(Q22="","",O22+IF(Q22="XX",VLOOKUP("WRONG",Answers!M:P,4,FALSE),Q22)+R22) -> 2013 | T22: =IF($B22="","",0+UPPER(Mainframe!G21)) -> 5 | U22: =IF(T22="","",IF(NOT(ISNA(VLOOKUP(T22,Answers!Q:T,4,FALSE))),VLOOKUP(T22,Answers!Q:T,4,FALSE),"Help!")) -> 1000 | W22: =IF(U22="","",S22+IF(U22="XX",VLOOKUP("WRONG",Answers!Q:T,4,FALSE),U22)+V22) -> 3013 | X22: =IF($B22="","",0+UPPER(Mainframe!H21)) -> 1000 | Y22: =IF(X22="","",IF(NOT(ISNA(VLOOKUP(X22,Answers!U:X,4,FALSE))),VLOOKUP(X22,Answers!U:X,4,FALSE),"Help!")) -> 6 | AA22: =IF(Y22="","",W22+IF(Y22="XX",VLOOKUP("WRONG",Answers!U:X,4,FALSE),Y22)+Z22) -> 3019 | AB22: =IF($B22="","",0+UPPER(Mainframe!I21)) -> 11 | AC22: =IF(AB22="","",IF(NOT(ISNA(VLOOKUP(AB22,Answers!Y:AB,4,FALSE))),VLOOKUP(AB22,Answers!Y:AB,4,FALSE),"Help!")) -> 4 | AE22: =IF(AC22="","",AA22+IF(AC22="XX",VLOOKUP("WRONG",Answers!Y:AB,4,FALSE),AC22)+AD22) -> 3023 | AF22: =IF($B22="","",0+UPPER(Mainframe!J21)) -> 1974 | AG22: =IF(AF22="","",IF(NOT(ISNA(VLOOKUP(AF22,Answers!AC:AF,4,FALSE))),VLOOKUP(AF22,Answers!AC:AF,4,FALSE),"Help!")) -> 8 | AI22: =IF(AG22="","",AE22+IF(AG22="XX",VLOOKUP("WRONG",Answers!AC:AF,4,FALSE),AG22)+AH22) -> 3031 | AJ22: =IF($B22="","",0+UPPER(Mainframe!K21)) -> 20 | AK22: =IF(AJ22="","",IF(NOT(ISNA(VLOOKUP(AJ22,Answers!AG:AJ,4,FALSE))),VLOOKUP(AJ22,Answers!AG:AJ,4,FALSE),"Help!")) -> 2 | AM22: =IF(AK22="","",AI22+IF(AK22="XX",VLOOKUP("WRONG",Answers!AG:AJ,4,FALSE),AK22)+AL22) -> 3033 | AN22: =IF($B22="","",0+UPPER(Mainframe!L21)) -> 49 | AO22: =IF(AN22="","",IF(NOT(ISNA(VLOOKUP(AN22,Answers!AK:AN,4,FALSE))),VLOOKUP(AN22,Answers!AK:AN,4,FALSE),"Help!")) -> 9 | AQ22: =IF(AO22="","",AM22+IF(AO22="XX",VLOOKUP("WRONG",Answers!AK:AN,4,FALSE),AO22)+AP22) -> 3042 | AR22: =IF($B22="","",0+UPPER(Mainframe!M21)) -> 9 | AS22: =IF(AR22="","",IF(NOT(ISNA(VLOOKUP(AR22,Answers!AO:AR,4,FALSE))),VLOOKUP(AR22,Answers!AO:AR,4,FALSE),"Help!")) -> 9 | AU22: =IF(AS22="","",AQ22+IF(AS22="XX",VLOOKUP("WRONG",Answers!AO:AR,4,FALSE),AS22)+AT22) -> 3051 | AV22: =IF($B22="","",0+UPPER(Mainframe!N21)) -> 27 | AW22: =IF(AV22="","",IF(NOT(ISNA(VLOOKUP(AV22,Answers!AS:AV,4,FALSE))),VLOOKUP(AV22,Answers!AS:AV,4,FALSE),"Help!")) -> 9 | AY22: =IF(AW22="","",AU22+IF(AW22="XX",VLOOKUP("WRONG",Answers!AS:AV,4,FALSE),AW22)+AX22) -> 3060 | AZ22: =IF($B22="","",0+UPPER(Mainframe!O21)) -> 667 | BA22: 178.5205479 | BB22: 1 | BC22: =IF($B22="","",LEFT(Mainframe!P21,SEARCH(".",Mainframe!P21)-1)) -> 4 | CH22: 20 | CI22: =IF(INDEX($B:$CE,ROW(),QNO*4)="XX","[b][u]"&INDEX($B:$CE,ROW(),QNO*4-1)&"[/u][/b]","[color=#BF0040]"&INDEX(OFFSET(Answers!C:C,0,(QNO-1)*4),MATCH(INDEX($A:$CB,ROW(),QNO*4),OFFSET(Answers!A:A,0,(QNO-1)*4),0))&"[/color]//[b]"&INDEX(OFFSET(Answers!B:B,0,(QNO-1)*4),MATCH(INDEX($A:$CB,ROW(),QNO*4),OFFSET(Answers!A:A,0,(QNO-1)*4),0))&"[/b] — [b]"&IF(INDEX($B:$CE,ROW(),QNO*4)=1,"Singleton!",CONCATENATE(INDEX($B:$CE,ROW(),QNO*4)," responses"))&"[/b]") -> [color=#BF0040]"King", "Red Red Wine", "(I Can't Help) Falling in Love With You"[/color]//[b]UB[u]40[/u][/b] — [b]1000 responses[/b] | CJ22: mikeyb | CK22: Yes | CL22: 20. mikeyb — [b]1,000[/b] pts | CM22: 38 | CN22: 18
A23: [*] | B23: =IF(Mainframe!B22="","",INDEX(Mainframe!$B:$B,C23+1,1)) -> ElendilPickle | C23: 21 | D23: =IF($B23="","",0+UPPER(Mainframe!C22)) -> 20 | E23: =IF(D23="","",IF(NOT(ISNA(VLOOKUP(D23,Answers!A:D,4,FALSE))),VLOOKUP(D23,Answers!A:D,4,FALSE),"Help!")) -> 6 | G23: =IF(E23="","",IF(E23="XX",VLOOKUP("WRONG",Answers!A:D,4,FALSE),E23)+F23) -> 6 | H23: =IF($B23="","",0+UPPER(Mainframe!D22)) -> 21 | I23: =IF(H23="","",IF(NOT(ISNA(VLOOKUP(H23,Answers!E:H,4,FALSE))),VLOOKUP(H23,Answers!E:H,4,FALSE),"Help!")) -> 1000 | K23: =IF(I23="","",G23+IF(I23="XX",VLOOKUP("WRONG",Answers!E:H,4,FALSE),I23)+J23) -> 1006 | L23: =IF($B23="","",0+UPPER(Mainframe!E22)) -> 34 | M23: =IF(L23="","",IF(NOT(ISNA(VLOOKUP(L23,Answers!I:L,4,FALSE))),VLOOKUP(L23,Answers!I:L,4,FALSE),"Help!")) -> 1000 | O23: =IF(M23="","",K23+IF(M23="XX",VLOOKUP("WRONG",Answers!I:L,4,FALSE),M23)+N23) -> 2006 | P23: =IF($B23="","",0+UPPER(Mainframe!F22)) -> 1815 | Q23: =IF(P23="","",IF(NOT(ISNA(VLOOKUP(P23,Answers!M:P,4,FALSE))),VLOOKUP(P23,Answers!M:P,4,FALSE),"Help!")) -> 10 | S23: =IF(Q23="","",O23+IF(Q23="XX",VLOOKUP("WRONG",Answers!M:P,4,FALSE),Q23)+R23) -> 2016 | T23: =IF($B23="","",0+UPPER(Mainframe!G22)) -> 5 | U23: =IF(T23="","",IF(NOT(ISNA(VLOOKUP(T23,Answers!Q:T,4,FALSE))),VLOOKUP(T23,Answers!Q:T,4,FALSE),"Help!")) -> 1000 | V23: =IF(U23>500,-1000,0) -> -1000 | W23: =IF(U23="","",S23+IF(U23="XX",VLOOKUP("WRONG",Answers!Q:T,4,FALSE),U23)+V23) -> 2016 | X23: =IF($B23="","",0+UPPER(Mainframe!H22)) -> 7 | Y23: =IF(X23="","",IF(NOT(ISNA(VLOOKUP(X23,Answers!U:X,4,FALSE))),VLOOKUP(X23,Answers!U:X,4,FALSE),"Help!")) -> 6 | AA23: =IF(Y23="","",W23+IF(Y23="XX",VLOOKUP("WRONG",Answers!U:X,4,FALSE),Y23)+Z23) -> 2022 | AB23: =IF($B23="","",0+UPPER(Mainframe!I22)) -> 20 | AC23: =IF(AB23="","",IF(NOT(ISNA(VLOOKUP(AB23,Answers!Y:AB,4,FALSE))),VLOOKUP(AB23,Answers!Y:AB,4,FALSE),"Help!")) -> 13 | AE23: =IF(AC23="","",AA23+IF(AC23="XX",VLOOKUP("WRONG",Answers!Y:AB,4,FALSE),AC23)+AD23) -> 2035 | AF23: =IF($B23="","",0+UPPER(Mainframe!J22)) -> 1974 | AG23: =IF(AF23="","",IF(NOT(ISNA(VLOOKUP(AF23,Answers!AC:AF,4,FALSE))),VLOOKUP(AF23,Answers!AC:AF,4,FALSE),"Help!")) -> 8 | AI23: =IF(AG23="","",AE23+IF(AG23="XX",VLOOKUP("WRONG",Answers!AC:AF,4,FALSE),AG23)+AH23) -> 2043 | AJ23: =IF($B23="","",0+UPPER(Mainframe!K22)) -> 8 | AK23: =IF(AJ23="","",IF(NOT(ISNA(VLOOKUP(AJ23,Answers!AG:AJ,4,FALSE))),VLOOKUP(AJ23,Answers!AG:AJ,4,FALSE),"Help!")) -> 5 | AM23: =IF(AK23="","",AI23+IF(AK23="XX",VLOOKUP("WRONG",Answers!AG:AJ,4,FALSE),AK23)+AL23) -> 2048 | AN23: =IF($B23="","",0+UPPER(Mainframe!L22)) -> 49 | AO23: =IF(AN23="","",IF(NOT(ISNA(VLOOKUP(AN23,Answers!AK:AN,4,FALSE))),VLOOKUP(AN23,Answers!AK:AN,4,FALSE),"Help!")) -> 9 | AQ23: =IF(AO23="","",AM23+IF(AO23="XX",VLOOKUP("WRONG",Answers!AK:AN,4,FALSE),AO23)+AP23) -> 2057 | AR23: =IF($B23="","",0+UPPER(Mainframe!M22)) -> 8 | AS23: =IF(AR23="","",IF(NOT(ISNA(VLOOKUP(AR23,Answers!AO:AR,4,FALSE))),VLOOKUP(AR23,Answers!AO:AR,4,FALSE),"Help!")) -> 6 | AU23: =IF(AS23="","",AQ23+IF(AS23="XX",VLOOKUP("WRONG",Answers!AO:AR,4,FALSE),AS23)+AT23) -> 2063 | AV23: =IF($B23="","",0+UPPER(Mainframe!N22)) -> 150 | AW23: =IF(AV23="","",IF(NOT(ISNA(VLOOKUP(AV23,Answers!AS:AV,4,FALSE))),VLOOKUP(AV23,Answers!AS:AV,4,FALSE),"Help!")) -> 5 | AY23: =IF(AW23="","",AU23+IF(AW23="XX",VLOOKUP("WRONG",Answers!AS:AV,4,FALSE),AW23)+AX23) -> 2068 | AZ23: =IF($B23="","",0+UPPER(Mainframe!O22)) -> 500 | BA23: 11.52054795 | BB23: 1 | BC23: =IF($B23="","",LEFT(Mainframe!P22,SEARCH(".",Mainframe!P22)-1)) -> 5 | CH23: 21 | CI23: =IF(INDEX($B:$CE,ROW(),QNO*4)="XX","[b][u]"&INDEX($B:$CE,ROW(),QNO*4-1)&"[/u][/b]","[color=#BF0040]"&INDEX(OFFSET(Answers!C:C,0,(QNO-1)*4),MATCH(INDEX($A:$CB,ROW(),QNO*4),OFFSET(Answers!A:A,0,(QNO-1)*4),0))&"[/color]//[b]"&INDEX(OFFSET(Answers!B:B,0,(QNO-1)*4),MATCH(INDEX($A:$CB,ROW(),QNO*4),OFFSET(Answers!A:A,0,(QNO-1)*4),0))&"[/b] — [b]"&IF(INDEX($B:$CE,ROW(),QNO*4)=1,"Singleton!",CONCATENATE(INDEX($B:$CE,ROW(),QNO*4)," responses"))&"[/b]") -> [color=#BF0040]"Push", "Bent", "Unwell"[/color]//[b]MATCHBOX [u]20[/u][/b] — [b]6 responses[/b] | CJ23: ElendilPickle | CK23: Yes | CL23: 21. ElendilPickle — [b]6[/b] pts | CM23: 24 | CN23: 3
A24: [*] | B24: =IF(Mainframe!B23="","",INDEX(Mainframe!$B:$B,C24+1,1)) -> MinnesotaMyron | C24: 22 | D24: =IF($B24="","",0+UPPER(Mainframe!C23)) -> 5000 | E24: =IF(D24="","",IF(NOT(ISNA(VLOOKUP(D24,Answers!A:D,4,FALSE))),VLOOKUP(D24,Answers!A:D,4,FALSE),"Help!")) -> 5 | G24: =IF(E24="","",IF(E24="XX",VLOOKUP("WRONG",Answers!A:D,4,FALSE),E24)+F24) -> 5 | H24: =IF($B24="","",0+UPPER(Mainframe!D23)) -> 22 | I24: =IF(H24="","",IF(NOT(ISNA(VLOOKUP(H24,Answers!E:H,4,FALSE))),VLOOKUP(H24,Answers!E:H,4,FALSE),"Help!")) -> 11 | K24: =IF(I24="","",G24+IF(I24="XX",VLOOKUP("WRONG",Answers!E:H,4,FALSE),I24)+J24) -> 16 | L24: =IF($B24="","",0+UPPER(Mainframe!E23)) -> 16 | M24: =IF(L24="","",IF(NOT(ISNA(VLOOKUP(L24,Answers!I:L,4,FALSE))),VLOOKUP(L24,Answers!I:L,4,FALSE),"Help!")) -> 12 | O24: =IF(M24="","",K24+IF(M24="XX",VLOOKUP("WRONG",Answers!I:L,4,FALSE),M24)+N24) -> 28 | P24: =IF($B24="","",0+UPPER(Mainframe!F23)) -> 1861 | Q24: =IF(P24="","",IF(NOT(ISNA(VLOOKUP(P24,Answers!M:P,4,FALSE))),VLOOKUP(P24,Answers!M:P,4,FALSE),"Help!")) -> 1000 | S24: =IF(Q24="","",O24+IF(Q24="XX",VLOOKUP("WRONG",Answers!M:P,4,FALSE),Q24)+R24) -> 1028 | T24: =IF($B24="","",0+UPPER(Mainframe!G23)) -> 5 | U24: =IF(T24="","",IF(NOT(ISNA(VLOOKUP(T24,Answers!Q:T,4,FALSE))),VLOOKUP(T24,Answers!Q:T,4,FALSE),"Help!")) -> 1000 | W24: =IF(U24="","",S24+IF(U24="XX",VLOOKUP("WRONG",Answers!Q:T,4,FALSE),U24)+V24) -> 2028 | X24: =IF($B24="","",0+UPPER(Mainframe!H23)) -> 1000 | Y24: =IF(X24="","",IF(NOT(ISNA(VLOOKUP(X24,Answers!U:X,4,FALSE))),VLOOKUP(X24,Answers!U:X,4,FALSE),"Help!")) -> 6 | AA24: =IF(Y24="","",W24+IF(Y24="XX",VLOOKUP("WRONG",Answers!U:X,4,FALSE),Y24)+Z24) -> 2034 | AB24: =IF($B24="","",0+UPPER(Mainframe!I23)) -> 11 | AC24: =IF(AB24="","",IF(NOT(ISNA(VLOOKUP(AB24,Answers!Y:AB,4,FALSE))),VLOOKUP(AB24,Answers!Y:AB,4,FALSE),"Help!")) -> 4 | AE24: =IF(AC24="","",AA24+IF(AC24="XX",VLOOKUP("WRONG",Answers!Y:AB,4,FALSE),AC24)+AD24) -> 2038 | AF24: =IF($B24="","",0+UPPER(Mainframe!J23)) -> 49 | AG24: =IF(AF24="","",IF(NOT(ISNA(VLOOKUP(AF24,Answers!AC:AF,4,FALSE))),VLOOKUP(AF24,Answers!AC:AF,4,FALSE),"Help!")) -> 10 | AI24: =IF(AG24="","",AE24+IF(AG24="XX",VLOOKUP("WRONG",Answers!AC:AF,4,FALSE),AG24)+AH24) -> 2048 | AJ24: =IF($B24="","",0+UPPER(Mainframe!K23)) -> 35 | AK24: =IF(AJ24="","",IF(NOT(ISNA(VLOOKUP(AJ24,Answers!AG:AJ,4,FALSE))),VLOOKUP(AJ24,Answers!AG:AJ,4,FALSE),"Help!")) -> 8 | AL24: =IF(AK24>500,-1000,0) -> 0 | AM24: =IF(AK24="","",AI24+IF(AK24="XX",VLOOKUP("WRONG",Answers!AG:AJ,4,FALSE),AK24)+AL24) -> 2056 | AN24: =IF($B24="","",0+UPPER(Mainframe!L23)) -> 61 | AO24: =IF(AN24="","",IF(NOT(ISNA(VLOOKUP(AN24,Answers!AK:AN,4,FALSE))),VLOOKUP(AN24,Answers!AK:AN,4,FALSE),"Help!")) -> 5 | AQ24: =IF(AO24="","",AM24+IF(AO24="XX",VLOOKUP("WRONG",Answers!AK:AN,4,FALSE),AO24)+AP24) -> 2061 | AR24: =IF($B24="","",0+UPPER(Mainframe!M23)) -> 1000 | AS24: =IF(AR24="","",IF(NOT(ISNA(VLOOKUP(AR24,Answers!AO:AR,4,FALSE))),VLOOKUP(AR24,Answers!AO:AR,4,FALSE),"Help!")) -> 6 | AU24: =IF(AS24="","",AQ24+IF(AS24="XX",VLOOKUP("WRONG",Answers!AO:AR,4,FALSE),AS24)+AT24) -> 2067 | AV24: =IF($B24="","",0+UPPER(Mainframe!N23)) -> 150 | AW24: =IF(AV24="","",IF(NOT(ISNA(VLOOKUP(AV24,Answers!AS:AV,4,FALSE))),VLOOKUP(AV24,Answers!AS:AV,4,FALSE),"Help!")) -> 5 | AY24: =IF(AW24="","",AU24+IF(AW24="XX",VLOOKUP("WRONG",Answers!AS:AV,4,FALSE),AW24)+AX24) -> 2072 | AZ24: =IF($B24="","",0+UPPER(Mainframe!O23)) -> 500 | BA24: 11.52054795 | BB24: 1 | BC24: =IF($B24="","",LEFT(Mainframe!P23,SEARCH(".",Mainframe!P23)-1)) -> 9 | CH24: 22 | CI24: =IF(INDEX($B:$CE,ROW(),QNO*4)="XX","[b][u]"&INDEX($B:$CE,ROW(),QNO*4-1)&"[/u][/b]","[color=#BF0040]"&INDEX(OFFSET(Answers!C:C,0,(QNO-1)*4),MATCH(INDEX($A:$CB,ROW(),QNO*4),OFFSET(Answers!A:A,0,(QNO-1)*4),0))&"[/color]//[b]"&INDEX(OFFSET(Answers!B:B,0,(QNO-1)*4),MATCH(INDEX($A:$CB,ROW(),QNO*4),OFFSET(Answers!A:A,0,(QNO-1)*4),0))&"[/b] — [b]"&IF(INDEX($B:$CE,ROW(),QNO*4)=1,"Singleton!",CONCATENATE(INDEX($B:$CE,ROW(),QNO*4)," responses"))&"[/b]") -> [color=#BF0040]"When Worlds Collide", "Free", "How To Be a Human"[/color]//[b]POWERMAN [u]5000[/u][/b] — [b]5 responses[/b] | CJ24: MinnesotaMyron | CK24: Yes | CL24: 22. MinnesotaMyron — [b]5[/b] pts | CM24: 26 | CN24: 4
A25: [*] | B25: =IF(Mainframe!B24="","",INDEX(Mainframe!$B:$B,C25+1,1)) -> BigDaddyMatty | C25: 23 | D25: =IF($B25="","",0+UPPER(Mainframe!C24)) -> 9 | E25: =IF(D25="","",IF(NOT(ISNA(VLOOKUP(D25,Answers!A:D,4,FALSE))),VLOOKUP(D25,Answers!A:D,4,FALSE),"Help!")) -> 2 | G25: =IF(E25="","",IF(E25="XX",VLOOKUP("WRONG",Answers!A:D,4,FALSE),E25)+F25) -> 2 | H25: =IF($B25="","",0+UPPER(Mainframe!D24)) -> 121 | I25: =IF(H25="","",IF(NOT(ISNA(VLOOKUP(H25,Answers!E:H,4,FALSE))),VLOOKUP(H25,Answers!E:H,4,FALSE),"Help!")) -> 8 | K25: =IF(I25="","",G25+IF(I25="XX",VLOOKUP("WRONG",Answers!E:H,4,FALSE),I25)+J25) -> 10 | L25: =IF($B25="","",0+UPPER(Mainframe!E24)) -> 34 | M25: =IF(L25="","",IF(NOT(ISNA(VLOOKUP(L25,Answers!I:L,4,FALSE))),VLOOKUP(L25,Answers!I:L,4,FALSE),"Help!")) -> 1000 | O25: =IF(M25="","",K25+IF(M25="XX",VLOOKUP("WRONG",Answers!I:L,4,FALSE),M25)+N25) -> 1010 | P25: =IF($B25="","",0+UPPER(Mainframe!F24)) -> 2003 | Q25: =IF(P25="","",IF(NOT(ISNA(VLOOKUP(P25,Answers!M:P,4,FALSE))),VLOOKUP(P25,Answers!M:P,4,FALSE),"Help!")) -> 8 | S25: =IF(Q25="","",O25+IF(Q25="XX",VLOOKUP("WRONG",Answers!M:P,4,FALSE),Q25)+R25) -> 1018 | T25: =IF($B25="","",0+UPPER(Mainframe!G24)) -> 8 | U25: =IF(T25="","",IF(NOT(ISNA(VLOOKUP(T25,Answers!Q:T,4,FALSE))),VLOOKUP(T25,Answers!Q:T,4,FALSE),"Help!")) -> 6 | W25: =IF(U25="","",S25+IF(U25="XX",VLOOKUP("WRONG",Answers!Q:T,4,FALSE),U25)+V25) -> 1024 | X25: =IF($B25="","",0+UPPER(Mainframe!H24)) -> 22 | Y25: =IF(X25="","",IF(NOT(ISNA(VLOOKUP(X25,Answers!U:X,4,FALSE))),VLOOKUP(X25,Answers!U:X,4,FALSE),"Help!")) -> 1000 | Z25: =IF(Y25>500,-1000,0) -> -1000 | AA25: =IF(Y25="","",W25+IF(Y25="XX",VLOOKUP("WRONG",Answers!U:X,4,FALSE),Y25)+Z25) -> 1024 | AB25: =IF($B25="","",0+UPPER(Mainframe!I24)) -> 64 | AC25: =IF(AB25="","",IF(NOT(ISNA(VLOOKUP(AB25,Answers!Y:AB,4,FALSE))),VLOOKUP(AB25,Answers!Y:AB,4,FALSE),"Help!")) -> 3 | AE25: =IF(AC25="","",AA25+IF(AC25="XX",VLOOKUP("WRONG",Answers!Y:AB,4,FALSE),AC25)+AD25) -> 1027 | AF25: =IF($B25="","",0+UPPER(Mainframe!J24)) -> 34 | AG25: =IF(AF25="","",IF(NOT(ISNA(VLOOKUP(AF25,Answers!AC:AF,4,FALSE))),VLOOKUP(AF25,Answers!AC:AF,4,FALSE),"Help!")) -> 4 | AI25: =IF(AG25="","",AE25+IF(AG25="XX",VLOOKUP("WRONG",Answers!AC:AF,4,FALSE),AG25)+AH25) -> 1031 | AJ25: =IF($B25="","",0+UPPER(Mainframe!K24)) -> 84 | AK25: =IF(AJ25="","",IF(NOT(ISNA(VLOOKUP(AJ25,Answers!AG:AJ,4,FALSE))),VLOOKUP(AJ25,Answers!AG:AJ,4,FALSE),"Help!")) -> 1000 | AM25: =IF(AK25="","",AI25+IF(AK25="XX",VLOOKUP("WRONG",Answers!AG:AJ,4,FALSE),AK25)+AL25) -> 2031 | AN25: =IF($B25="","",0+UPPER(Mainframe!L24)) -> 67 | AO25: =IF(AN25="","",IF(NOT(ISNA(VLOOKUP(AN25,Answers!AK:AN,4,FALSE))),VLOOKUP(AN25,Answers!AK:AN,4,FALSE),"Help!")) -> 1000 | AQ25: =IF(AO25="","",AM25+IF(AO25="XX",VLOOKUP("WRONG",Answers!AK:AN,4,FALSE),AO25)+AP25) -> 3031 | AR25: =IF($B25="","",0+UPPER(Mainframe!M24)) -> 3 | AS25: =IF(AR25="","",IF(NOT(ISNA(VLOOKUP(AR25,Answers!AO:AR,4,FALSE))),VLOOKUP(AR25,Answers!AO:AR,4,FALSE),"Help!")) -> 6 | AU25: =IF(AS25="","",AQ25+IF(AS25="XX",VLOOKUP("WRONG",Answers!AO:AR,4,FALSE),AS25)+AT25) -> 3037 | AV25: =IF($B25="","",0+UPPER(Mainframe!N24)) -> 27 | AW25: =IF(AV25="","",IF(NOT(ISNA(VLOOKUP(AV25,Answers!AS:AV,4,FALSE))),VLOOKUP(AV25,Answers!AS:AV,4,FALSE),"Help!")) -> 9 | AY25: =IF(AW25="","",AU25+IF(AW25="XX",VLOOKUP("WRONG",Answers!AS:AV,4,FALSE),AW25)+AX25) -> 3046 | AZ25: =IF($B25="","",0+UPPER(Mainframe!O24)) -> 500 | BA25: 11.52054795 | BB25: 1 | BC25: =IF($B25="","",LEFT(Mainframe!P24,SEARCH(".",Mainframe!P24)-1)) -> 6 | CH25: 23 | CI25: =IF(INDEX($B:$CE,ROW(),QNO*4)="XX","[b][u]"&INDEX($B:$CE,ROW(),QNO*4-1)&"[/u][/b]","[color=#BF0040]"&INDEX(OFFSET(Answers!C:C,0,(QNO-1)*4),MATCH(INDEX($A:$CB,ROW(),QNO*4),OFFSET(Answers!A:A,0,(QNO-1)*4),0))&"[/color]//[b]"&INDEX(OFFSET(Answers!B:B,0,(QNO-1)*4),MATCH(INDEX($A:$CB,ROW(),QNO*4),OFFSET(Answers!A:A,0,(QNO-1)*4),0))&"[/b] — [b]"&IF(INDEX($B:$CE,ROW(),QNO*4)=1,"Singleton!",CONCATENATE(INDEX($B:$CE,ROW(),QNO*4)," responses"))&"[/b]") -> [color=#BF0040]"Down in It", "The Hand That Feeds", "Came Back Haunted"[/color]//[b][u]NINE[/u] INCH NAILS[/b] — [b]2 responses[/b] | CJ25: BigDaddyMatty | CK25: Yes | CL25: 23. BigDaddyMatty — [b]2[/b] pts | CM25: 35 | CN25: 12
A26: [*] | B26: =IF(Mainframe!B25="","",INDEX(Mainframe!$B:$B,C26+1,1)) -> Category 13 | C26: 24 | D26: =IF($B26="","",0+UPPER(Mainframe!C25)) -> 3 | E26: =IF(D26="","",IF(NOT(ISNA(VLOOKUP(D26,Answers!A:D,4,FALSE))),VLOOKUP(D26,Answers!A:D,4,FALSE),"Help!")) -> 11 | G26: =IF(E26="","",IF(E26="XX",VLOOKUP("WRONG",Answers!A:D,4,FALSE),E26)+F26) -> 11 | H26: =IF($B26="","",0+UPPER(Mainframe!D25)) -> 38 | I26: =IF(H26="","",IF(NOT(ISNA(VLOOKUP(H26,Answers!E:H,4,FALSE))),VLOOKUP(H26,Answers!E:H,4,FALSE),"Help!")) -> 7 | K26: =IF(I26="","",G26+IF(I26="XX",VLOOKUP("WRONG",Answers!E:H,4,FALSE),I26)+J26) -> 18 | L26: =IF($B26="","",0+UPPER(Mainframe!E25)) -> 16 | M26: =IF(L26="","",IF(NOT(ISNA(VLOOKUP(L26,Answers!I:L,4,FALSE))),VLOOKUP(L26,Answers!I:L,4,FALSE),"Help!")) -> 12 | O26: =IF(M26="","",K26+IF(M26="XX",VLOOKUP("WRONG",Answers!I:L,4,FALSE),M26)+N26) -> 30 | P26: =IF($B26="","",0+UPPER(Mainframe!F25)) -> 1940 | Q26: =IF(P26="","",IF(NOT(ISNA(VLOOKUP(P26,Answers!M:P,4,FALSE))),VLOOKUP(P26,Answers!M:P,4,FALSE),"Help!")) -> 7 | S26: =IF(Q26="","",O26+IF(Q26="XX",VLOOKUP("WRONG",Answers!M:P,4,FALSE),Q26)+R26) -> 37 | T26: =IF($B26="","",0+UPPER(Mainframe!G25)) -> 18 | U26: =IF(T26="","",IF(NOT(ISNA(VLOOKUP(T26,Answers!Q:T,4,FALSE))),VLOOKUP(T26,Answers!Q:T,4,FALSE),"Help!")) -> 6 | W26: =IF(U26="","",S26+IF(U26="XX",VLOOKUP("WRONG",Answers!Q:T,4,FALSE),U26)+V26) -> 43 | X26: =IF($B26="","",0+UPPER(Mainframe!H25)) -> 61 | Y26: =IF(X26="","",IF(NOT(ISNA(VLOOKUP(X26,Answers!U:X,4,FALSE))),VLOOKUP(X26,Answers!U:X,4,FALSE),"Help!")) -> 1 | AA26: =IF(Y26="","",W26+IF(Y26="XX",VLOOKUP("WRONG",Answers!U:X,4,FALSE),Y26)+Z26) -> 44 | AB26: =IF($B26="","",0+UPPER(Mainframe!I25)) -> 76 | AC26: =IF(AB26="","",IF(NOT(ISNA(VLOOKUP(AB26,Answers!Y:AB,4,FALSE))),VLOOKUP(AB26,Answers!Y:AB,4,FALSE),"Help!")) -> 1000 | AD26: =IF(AC26>500,-1000,0) -> -1000 | AE26: =IF(AC26="","",AA26+IF(AC26="XX",VLOOKUP("WRONG",Answers!Y:AB,4,FALSE),AC26)+AD26) -> 44 | AF26: =IF($B26="","",0+UPPER(Mainframe!J25)) -> 1789 | AG26: =IF(AF26="","",IF(NOT(ISNA(VLOOKUP(AF26,Answers!AC:AF,4,FALSE))),VLOOKUP(AF26,Answers!AC:AF,4,FALSE),"Help!")) -> 1 | AI26: =IF(AG26="","",AE26+IF(AG26="XX",VLOOKUP("WRONG",Answers!AC:AF,4,FALSE),AG26)+AH26) -> 45 | AJ26: =IF($B26="","",0+UPPER(Mainframe!K25)) -> 94 | AK26: =IF(AJ26="","",IF(NOT(ISNA(VLOOKUP(AJ26,Answers!AG:AJ,4,FALSE))),VLOOKUP(AJ26,Answers!AG:AJ,4,FALSE),"Help!")) -> 5 | AM26: =IF(AK26="","",AI26+IF(AK26="XX",VLOOKUP("WRONG",Answers!AG:AJ,4,FALSE),AK26)+AL26) -> 50 | AN26: =IF($B26="","",0+UPPER(Mainframe!L25)) -> 42 | AO26: =IF(AN26="","",IF(NOT(ISNA(VLOOKUP(AN26,Answers!AK:AN,4,FALSE))),VLOOKUP(AN26,Answers!AK:AN,4,FALSE),"Help!")) -> 8 | AQ26: =IF(AO26="","",AM26+IF(AO26="XX",VLOOKUP("WRONG",Answers!AK:AN,4,FALSE),AO26)+AP26) -> 58 | AR26: =IF($B26="","",0+UPPER(Mainframe!M25)) -> 5 | AS26: =IF(AR26="","",IF(NOT(ISNA(VLOOKUP(AR26,Answers!AO:AR,4,FALSE))),VLOOKUP(AR26,Answers!AO:AR,4,FALSE),"Help!")) -> 1000 | AU26: =IF(AS26="","",AQ26+IF(AS26="XX",VLOOKUP("WRONG",Answers!AO:AR,4,FALSE),AS26)+AT26) -> 1058 | AV26: =IF($B26="","",0+UPPER(Mainframe!N25)) -> 12 | AW26: =IF(AV26="","",IF(NOT(ISNA(VLOOKUP(AV26,Answers!AS:AV,4,FALSE))),VLOOKUP(AV26,Answers!AS:AV,4,FALSE),"Help!")) -> 4 | AY26: =IF(AW26="","",AU26+IF(AW26="XX",VLOOKUP("WRONG",Answers!AS:AV,4,FALSE),AW26)+AX26) -> 1062 | AZ26: =IF($B26="","",0+UPPER(Mainframe!O25)) -> 455 | BA26: 33.47945205 | BB26: 1 | BC26: =IF($B26="","",LEFT(Mainframe!P25,SEARCH(".",Mainframe!P25)-1)) -> 7 | CH26: 24 | CI26: =IF(INDEX($B:$CE,ROW(),QNO*4)="XX","[b][u]"&INDEX($B:$CE,ROW(),QNO*4-1)&"[/u][/b]","[color=#BF0040]"&INDEX(OFFSET(Answers!C:C,0,(QNO-1)*4),MATCH(INDEX($A:$CB,ROW(),QNO*4),OFFSET(Answers!A:A,0,(QNO-1)*4),0))&"[/color]//[b]"&INDEX(OFFSET(Answers!B:B,0,(QNO-1)*4),MATCH(INDEX($A:$CB,ROW(),QNO*4),OFFSET(Answers!A:A,0,(QNO-1)*4),0))&"[/b] — [b]"&IF(INDEX($B:$CE,ROW(),QNO*4)=1,"Singleton!",CONCATENATE(INDEX($B:$CE,ROW(),QNO*4)," responses"))&"[/b]") -> [color=#BF0040]"Mama Told Me (Not to Come)", "Joy to the World", "Black and White"[/color]//[b][u]THREE[/u] DOG NIGHT[/b] — [b]11 responses[/b] | CJ26: Category 13 | CK26: Yes | CL26: 24. Category 13 — [b]11[/b] pts | CM26: 10 | CN26: -14
A27: [*] | B27: =IF(Mainframe!B26="","",INDEX(Mainframe!$B:$B,C27+1,1)) -> Lampy | C27: 25 | D27: =IF($B27="","",0+UPPER(Mainframe!C26)) -> 65 | E27: =IF(D27="","",IF(NOT(ISNA(VLOOKUP(D27,Answers!A:D,4,FALSE))),VLOOKUP(D27,Answers!A:D,4,FALSE),"Help!")) -> 9 | G27: =IF(E27="","",IF(E27="XX",VLOOKUP("WRONG",Answers!A:D,4,FALSE),E27)+F27) -> 9 | H27: =IF($B27="","",0+UPPER(Mainframe!D26)) -> 1326 | I27: =IF(H27="","",IF(NOT(ISNA(VLOOKUP(H27,Answers!E:H,4,FALSE))),VLOOKUP(H27,Answers!E:H,4,FALSE),"Help!")) -> 2 | K27: =IF(I27="","",G27+IF(I27="XX",VLOOKUP("WRONG",Answers!E:H,4,FALSE),I27)+J27) -> 11 | L27: =IF($B27="","",0+UPPER(Mainframe!E26)) -> 10 | M27: =IF(L27="","",IF(NOT(ISNA(VLOOKUP(L27,Answers!I:L,4,FALSE))),VLOOKUP(L27,Answers!I:L,4,FALSE),"Help!")) -> 10 | O27: =IF(M27="","",K27+IF(M27="XX",VLOOKUP("WRONG",Answers!I:L,4,FALSE),M27)+N27) -> 21 | P27: =IF($B27="","",0+UPPER(Mainframe!F26)) -> 312 | Q27: =IF(P27="","",IF(NOT(ISNA(VLOOKUP(P27,Answers!M:P,4,FALSE))),VLOOKUP(P27,Answers!M:P,4,FALSE),"Help!")) -> 4 | S27: =IF(Q27="","",O27+IF(Q27="XX",VLOOKUP("WRONG",Answers!M:P,4,FALSE),Q27)+R27) -> 25 | T27: =IF($B27="","",0+UPPER(Mainframe!G26)) -> 92 | U27: =IF(T27="","",IF(NOT(ISNA(VLOOKUP(T27,Answers!Q:T,4,FALSE))),VLOOKUP(T27,Answers!Q:T,4,FALSE),"Help!")) -> 3 | V27: =IF(U27>500,-1000,0) -> 0 | W27: =IF(U27="","",S27+IF(U27="XX",VLOOKUP("WRONG",Answers!Q:T,4,FALSE),U27)+V27) -> 28 | X27: =IF($B27="","",0+UPPER(Mainframe!H26)) -> 49 | Y27: =IF(X27="","",IF(NOT(ISNA(VLOOKUP(X27,Answers!U:X,4,FALSE))),VLOOKUP(X27,Answers!U:X,4,FALSE),"Help!")) -> 4 | AA27: =IF(Y27="","",W27+IF(Y27="XX",VLOOKUP("WRONG",Answers!U:X,4,FALSE),Y27)+Z27) -> 32 | AB27: =IF($B27="","",0+UPPER(Mainframe!I26)) -> 20 | AC27: =IF(AB27="","",IF(NOT(ISNA(VLOOKUP(AB27,Answers!Y:AB,4,FALSE))),VLOOKUP(AB27,Answers!Y:AB,4,FALSE),"Help!")) -> 13 | AE27: =IF(AC27="","",AA27+IF(AC27="XX",VLOOKUP("WRONG",Answers!Y:AB,4,FALSE),AC27)+AD27) -> 45 | AF27: =IF($B27="","",0+UPPER(Mainframe!J26)) -> 47 | AG27: =IF(AF27="","",IF(NOT(ISNA(VLOOKUP(AF27,Answers!AC:AF,4,FALSE))),VLOOKUP(AF27,Answers!AC:AF,4,FALSE),"Help!")) -> 2 | AI27: =IF(AG27="","",AE27+IF(AG27="XX",VLOOKUP("WRONG",Answers!AC:AF,4,FALSE),AG27)+AH27) -> 47 | AJ27: =IF($B27="","",0+UPPER(Mainframe!K26)) -> 4 | AK27: =IF(AJ27="","",IF(NOT(ISNA(VLOOKUP(AJ27,Answers!AG:AJ,4,FALSE))),VLOOKUP(AJ27,Answers!AG:AJ,4,FALSE),"Help!")) -> 4 | AM27: =IF(AK27="","",AI27+IF(AK27="XX",VLOOKUP("WRONG",Answers!AG:AJ,4,FALSE),AK27)+AL27) -> 51 | AN27: =IF($B27="","",0+UPPER(Mainframe!L26)) -> 20 | AO27: =IF(AN27="","",IF(NOT(ISNA(VLOOKUP(AN27,Answers!AK:AN,4,FALSE))),VLOOKUP(AN27,Answers!AK:AN,4,FALSE),"Help!")) -> 3 | AQ27: =IF(AO27="","",AM27+IF(AO27="XX",VLOOKUP("WRONG",Answers!AK:AN,4,FALSE),AO27)+AP27) -> 54 | AR27: =IF($B27="","",0+UPPER(Mainframe!M26)) -> 19 | AS27: =IF(AR27="","",IF(NOT(ISNA(VLOOKUP(AR27,Answers!AO:AR,4,FALSE))),VLOOKUP(AR27,Answers!AO:AR,4,FALSE),"Help!")) -> 1 | AU27: =IF(AS27="","",AQ27+IF(AS27="XX",VLOOKUP("WRONG",Answers!AO:AR,4,FALSE),AS27)+AT27) -> 55 | AV27: =IF($B27="","",0+UPPER(Mainframe!N26)) -> 622 | AW27: =IF(AV27="","",IF(NOT(ISNA(VLOOKUP(AV27,Answers!AS:AV,4,FALSE))),VLOOKUP(AV27,Answers!AS:AV,4,FALSE),"Help!")) -> 4 | AY27: =IF(AW27="","",AU27+IF(AW27="XX",VLOOKUP("WRONG",Answers!AS:AV,4,FALSE),AW27)+AX27) -> 59 | AZ27: =IF($B27="","",0+UPPER(Mainframe!O26)) -> 412 | BA27: 76.47945205 | BB27: 1 | BC27: =IF($B27="","",LEFT(Mainframe!P26,SEARCH(".",Mainframe!P26)-1)) -> 5 | CH27: 25 | CI27: =IF(INDEX($B:$CE,ROW(),QNO*4)="XX","[b][u]"&INDEX($B:$CE,ROW(),QNO*4-1)&"[/u][/b]","[color=#BF0040]"&INDEX(OFFSET(Answers!C:C,0,(QNO-1)*4),MATCH(INDEX($A:$CB,ROW(),QNO*4),OFFSET(Answers!A:A,0,(QNO-1)*4),0))&"[/color]//[b]"&INDEX(OFFSET(Answers!B:B,0,(QNO-1)*4),MATCH(INDEX($A:$CB,ROW(),QNO*4),OFFSET(Answers!A:A,0,(QNO-1)*4),0))&"[/b] — [b]"&IF(INDEX($B:$CE,ROW(),QNO*4)=1,"Singleton!",CONCATENATE(INDEX($B:$CE,ROW(),QNO*4)," responses"))&"[/b]") -> [color=#BF0040]"Blue (Da Ba Dee)", "Move Your Body", "Lucky (In My Life)"[/color]//[b]EIFFEL [u]65[/u][/b] — [b]9 responses[/b] | CJ27: Lampy | CK27: Yes | CL27: 25. Lampy — [b]9[/b] pts | CM27: 1 | CN27: -24
A28: [*] | B28: =IF(Mainframe!B27="","",INDEX(Mainframe!$B:$B,C28+1,1)) -> Magna | C28: 26 | D28: =IF($B28="","",0+UPPER(Mainframe!C27)) -> 1 | E28: =IF(D28="","",IF(NOT(ISNA(VLOOKUP(D28,Answers!A:D,4,FALSE))),VLOOKUP(D28,Answers!A:D,4,FALSE),"Help!")) -> 8 | G28: =IF(E28="","",IF(E28="XX",VLOOKUP("WRONG",Answers!A:D,4,FALSE),E28)+F28) -> 8 | H28: =IF($B28="","",0+UPPER(Mainframe!D27)) -> 2652 | I28: XX | K28: =IF(I28="","",G28+IF(I28="XX",VLOOKUP("WRONG",Answers!E:H,4,FALSE),I28)+J28) -> 1015 | L28: =IF($B28="","",0+UPPER(Mainframe!E27)) -> 16 | M28: =IF(L28="","",IF(NOT(ISNA(VLOOKUP(L28,Answers!I:L,4,FALSE))),VLOOKUP(L28,Answers!I:L,4,FALSE),"Help!")) -> 12 | O28: =IF(M28="","",K28+IF(M28="XX",VLOOKUP("WRONG",Answers!I:L,4,FALSE),M28)+N28) -> 1027 | P28: =IF($B28="","",0+UPPER(Mainframe!F27)) -> 1968 | Q28: XX | R28: =IF(Q28>500,-1000,0) -> -1000 | S28: =IF(Q28="","",O28+IF(Q28="XX",VLOOKUP("WRONG",Answers!M:P,4,FALSE),Q28)+R28) -> 1034 | T28: =IF($B28="","",0+UPPER(Mainframe!G27)) -> 6 | U28: =IF(T28="","",IF(NOT(ISNA(VLOOKUP(T28,Answers!Q:T,4,FALSE))),VLOOKUP(T28,Answers!Q:T,4,FALSE),"Help!")) -> 9 | W28: =IF(U28="","",S28+IF(U28="XX",VLOOKUP("WRONG",Answers!Q:T,4,FALSE),U28)+V28) -> 1043 | X28: =IF($B28="","",0+UPPER(Mainframe!H27)) -> 80 | Y28: =IF(X28="","",IF(NOT(ISNA(VLOOKUP(X28,Answers!U:X,4,FALSE))),VLOOKUP(X28,Answers!U:X,4,FALSE),"Help!")) -> 5 | AA28: =IF(Y28="","",W28+IF(Y28="XX",VLOOKUP("WRONG",Answers!U:X,4,FALSE),Y28)+Z28) -> 1048 | AB28: =IF($B28="","",0+UPPER(Mainframe!I27)) -> 20 | AC28: =IF(AB28="","",IF(NOT(ISNA(VLOOKUP(AB28,Answers!Y:AB,4,FALSE))),VLOOKUP(AB28,Answers!Y:AB,4,FALSE),"Help!")) -> 13 | AE28: =IF(AC28="","",AA28+IF(AC28="XX",VLOOKUP("WRONG",Answers!Y:AB,4,FALSE),AC28)+AD28) -> 1061 | AF28: =IF($B28="","",0+UPPER(Mainframe!J27)) -> 9 | AG28: =IF(AF28="","",IF(NOT(ISNA(VLOOKUP(AF28,Answers!AC:AF,4,FALSE))),VLOOKUP(AF28,Answers!AC:AF,4,FALSE),"Help!")) -> 1000 | AI28: =IF(AG28="","",AE28+IF(AG28="XX",VLOOKUP("WRONG",Answers!AC:AF,4,FALSE),AG28)+AH28) -> 2061 | AJ28: =IF($B28="","",0+UPPER(Mainframe!K27)) -> 8 | AK28: =IF(AJ28="","",IF(NOT(ISNA(VLOOKUP(AJ28,Answers!AG:AJ,4,FALSE))),VLOOKUP(AJ28,Answers!AG:AJ,4,FALSE),"Help!")) -> 5 | AM28: =IF(AK28="","",AI28+IF(AK28="XX",VLOOKUP("WRONG",Answers!AG:AJ,4,FALSE),AK28)+AL28) -> 2066 | AN28: =IF($B28="","",0+UPPER(Mainframe!L27)) -> 76 | AO28: =IF(AN28="","",IF(NOT(ISNA(VLOOKUP(AN28,Answers!AK:AN,4,FALSE))),VLOOKUP(AN28,Answers!AK:AN,4,FALSE),"Help!")) -> 6 | AQ28: =IF(AO28="","",AM28+IF(AO28="XX",VLOOKUP("WRONG",Answers!AK:AN,4,FALSE),AO28)+AP28) -> 2072 | AR28: =IF($B28="","",0+UPPER(Mainframe!M27)) -> 11 | AS28: =IF(AR28="","",IF(NOT(ISNA(VLOOKUP(AR28,Answers!AO:AR,4,FALSE))),VLOOKUP(AR28,Answers!AO:AR,4,FALSE),"Help!")) -> 5 | AU28: =IF(AS28="","",AQ28+IF(AS28="XX",VLOOKUP("WRONG",Answers!AO:AR,4,FALSE),AS28)+AT28) -> 2077 | AV28: =IF($B28="","",0+UPPER(Mainframe!N27)) -> 27 | AW28: =IF(AV28="","",IF(NOT(ISNA(VLOOKUP(AV28,Answers!AS:AV,4,FALSE))),VLOOKUP(AV28,Answers!AS:AV,4,FALSE),"Help!")) -> 9 | AY28: =IF(AW28="","",AU28+IF(AW28="XX",VLOOKUP("WRONG",Answers!AS:AV,4,FALSE),AW28)+AX28) -> 2086 | AZ28: =IF($B28="","",0+UPPER(Mainframe!O27)) -> 618 | BA28: 129.5205479 | BB28: 1 | BC28: =IF($B28="","",LEFT(Mainframe!P27,SEARCH(".",Mainframe!P27)-1)) -> 4 | CH28: 26 | CI28: =IF(INDEX($B:$CE,ROW(),QNO*4)="XX","[b][u]"&INDEX($B:$CE,ROW(),QNO*4-1)&"[/u][/b]","[color=#BF0040]"&INDEX(OFFSET(Answers!C:C,0,(QNO-1)*4),MATCH(INDEX($A:$CB,ROW(),QNO*4),OFFSET(Answers!A:A,0,(QNO-1)*4),0))&"[/color]//[b]"&INDEX(OFFSET(Answers!B:B,0,(QNO-1)*4),MATCH(INDEX($A:$CB,ROW(),QNO*4),OFFSET(Answers!A:A,0,(QNO-1)*4),0))&"[/b] — [b]"&IF(INDEX($B:$CE,ROW(),QNO*4)=1,"Singleton!",CONCATENATE(INDEX($B:$CE,ROW(),QNO*4)," responses"))&"[/b]") -> [color=#BF0040]"What Makes You Beautiful", "Little Things", "Best Song Ever"[/color]//[b][u]ONE[/u] DIRECTION[/b] — [b]8 responses[/b] | CJ28: Magna | CK28: Yes | CL28: 26. Magna — [b]8[/b] pts | CM28: 33 | CN28: 7
A29: [*] | B29: =IF(Mainframe!B28="","",INDEX(Mainframe!$B:$B,C29+1,1)) -> BerneseMountainDogLover | C29: 27 | D29: =IF($B29="","",0+UPPER(Mainframe!C28)) -> 65 | E29: =IF(D29="","",IF(NOT(ISNA(VLOOKUP(D29,Answers!A:D,4,FALSE))),VLOOKUP(D29,Answers!A:D,4,FALSE),"Help!")) -> 9 | G29: =IF(E29="","",IF(E29="XX",VLOOKUP("WRONG",Answers!A:D,4,FALSE),E29)+F29) -> 9 | H29: =IF($B29="","",0+UPPER(Mainframe!D28)) -> 42 | I29: =IF(H29="","",IF(NOT(ISNA(VLOOKUP(H29,Answers!E:H,4,FALSE))),VLOOKUP(H29,Answers!E:H,4,FALSE),"Help!")) -> 3 | K29: =IF(I29="","",G29+IF(I29="XX",VLOOKUP("WRONG",Answers!E:H,4,FALSE),I29)+J29) -> 12 | L29: =IF($B29="","",0+UPPER(Mainframe!E28)) -> 10 | M29: =IF(L29="","",IF(NOT(ISNA(VLOOKUP(L29,Answers!I:L,4,FALSE))),VLOOKUP(L29,Answers!I:L,4,FALSE),"Help!")) -> 10 | O29: =IF(M29="","",K29+IF(M29="XX",VLOOKUP("WRONG",Answers!I:L,4,FALSE),M29)+N29) -> 22 | P29: =IF($B29="","",0+UPPER(Mainframe!F28)) -> 1415 | Q29: =IF(P29="","",IF(NOT(ISNA(VLOOKUP(P29,Answers!M:P,4,FALSE))),VLOOKUP(P29,Answers!M:P,4,FALSE),"Help!")) -> 7 | S29: =IF(Q29="","",O29+IF(Q29="XX",VLOOKUP("WRONG",Answers!M:P,4,FALSE),Q29)+R29) -> 29 | T29: =IF($B29="","",0+UPPER(Mainframe!G28)) -> 17 | U29: =IF(T29="","",IF(NOT(ISNA(VLOOKUP(T29,Answers!Q:T,4,FALSE))),VLOOKUP(T29,Answers!Q:T,4,FALSE),"Help!")) -> 2 | W29: =IF(U29="","",S29+IF(U29="XX",VLOOKUP("WRONG",Answers!Q:T,4,FALSE),U29)+V29) -> 31 | X29: =IF($B29="","",0+UPPER(Mainframe!H28)) -> 1000 | Y29: =IF(X29="","",IF(NOT(ISNA(VLOOKUP(X29,Answers!U:X,4,FALSE))),VLOOKUP(X29,Answers!U:X,4,FALSE),"Help!")) -> 6 | AA29: =IF(Y29="","",W29+IF(Y29="XX",VLOOKUP("WRONG",Answers!U:X,4,FALSE),Y29)+Z29) -> 37 | AB29: =IF($B29="","",0+UPPER(Mainframe!I28)) -> 25 | AC29: =IF(AB29="","",IF(NOT(ISNA(VLOOKUP(AB29,Answers!Y:AB,4,FALSE))),VLOOKUP(AB29,Answers!Y:AB,4,FALSE),"Help!")) -> 7 | AE29: =IF(AC29="","",AA29+IF(AC29="XX",VLOOKUP("WRONG",Answers!Y:AB,4,FALSE),AC29)+AD29) -> 44 | AF29: =IF($B29="","",0+UPPER(Mainframe!J28)) -> 15 | AG29: =IF(AF29="","",IF(NOT(ISNA(VLOOKUP(AF29,Answers!AC:AF,4,FALSE))),VLOOKUP(AF29,Answers!AC:AF,4,FALSE),"Help!")) -> 2 | AI29: =IF(AG29="","",AE29+IF(AG29="XX",VLOOKUP("WRONG",Answers!AC:AF,4,FALSE),AG29)+AH29) -> 46 | AJ29: =IF($B29="","",0+UPPER(Mainframe!K28)) -> 80 | AK29: =IF(AJ29="","",IF(NOT(ISNA(VLOOKUP(AJ29,Answers!AG:AJ,4,FALSE))),VLOOKUP(AJ29,Answers!AG:AJ,4,FALSE),"Help!")) -> 6 | AM29: =IF(AK29="","",AI29+IF(AK29="XX",VLOOKUP("WRONG",Answers!AG:AJ,4,FALSE),AK29)+AL29) -> 52 | AN29: =IF($B29="","",0+UPPER(Mainframe!L28)) -> 5 | AO29: =IF(AN29="","",IF(NOT(ISNA(VLOOKUP(AN29,Answers!AK:AN,4,FALSE))),VLOOKUP(AN29,Answers!AK:AN,4,FALSE),"Help!")) -> 7 | AQ29: =IF(AO29="","",AM29+IF(AO29="XX",VLOOKUP("WRONG",Answers!AK:AN,4,FALSE),AO29)+AP29) -> 59 | AR29: =IF($B29="","",0+UPPER(Mainframe!M28)) -> 1000 | AS29: =IF(AR29="","",IF(NOT(ISNA(VLOOKUP(AR29,Answers!AO:AR,4,FALSE))),VLOOKUP(AR29,Answers!AO:AR,4,FALSE),"Help!")) -> 6 | AT29: =IF(AS29>500,-1000,0) -> 0 | AU29: =IF(AS29="","",AQ29+IF(AS29="XX",VLOOKUP("WRONG",Answers!AO:AR,4,FALSE),AS29)+AT29) -> 65 | AV29: =IF($B29="","",0+UPPER(Mainframe!N28)) -> 5000 | AW29: =IF(AV29="","",IF(NOT(ISNA(VLOOKUP(AV29,Answers!AS:AV,4,FALSE))),VLOOKUP(AV29,Answers!AS:AV,4,FALSE),"Help!")) -> 9 | AY29: =IF(AW29="","",AU29+IF(AW29="XX",VLOOKUP("WRONG",Answers!AS:AV,4,FALSE),AW29)+AX29) -> 74 | AZ29: =IF($B29="","",0+UPPER(Mainframe!O28)) -> 123 | BA29: 365.4794521 | BB29: 1 | BC29: =IF($B29="","",LEFT(Mainframe!P28,SEARCH(".",Mainframe!P28)-1)) -> 11 | CH29: 27 | CI29: =IF(INDEX($B:$CE,ROW(),QNO*4)="XX","[b][u]"&INDEX($B:$CE,ROW(),QNO*4-1)&"[/u][/b]","[color=#BF0040]"&INDEX(OFFSET(Answers!C:C,0,(QNO-1)*4),MATCH(INDEX($A:$CB,ROW(),QNO*4),OFFSET(Answers!A:A,0,(QNO-1)*4),0))&"[/color]//[b]"&INDEX(OFFSET(Answers!B:B,0,(QNO-1)*4),MATCH(INDEX($A:$CB,ROW(),QNO*4),OFFSET(Answers!A:A,0,(QNO-1)*4),0))&"[/b] — [b]"&IF(INDEX($B:$CE,ROW(),QNO*4)=1,"Singleton!",CONCATENATE(INDEX($B:$CE,ROW(),QNO*4)," responses"))&"[/b]") -> [color=#BF0040]"Blue (Da Ba Dee)", "Move Your Body", "Lucky (In My Life)"[/color]//[b]EIFFEL [u]65[/u][/b] — [b]9 responses[/b] | CJ29: BerneseMountainDogLover | CK29: Yes | CL29: 27. BerneseMountainDogLover — [b]9[/b] pts | CM29: 6 | CN29: -21
A30: [*] | B30: =IF(Mainframe!B29="","",INDEX(Mainframe!$B:$B,C30+1,1)) -> CoachP | C30: 28 | D30: =IF($B30="","",0+UPPER(Mainframe!C29)) -> 9 | E30: =IF(D30="","",IF(NOT(ISNA(VLOOKUP(D30,Answers!A:D,4,FALSE))),VLOOKUP(D30,Answers!A:D,4,FALSE),"Help!")) -> 2 | G30: =IF(E30="","",IF(E30="XX",VLOOKUP("WRONG",Answers!A:D,4,FALSE),E30)+F30) -> 2 | H30: =IF($B30="","",0+UPPER(Mainframe!D29)) -> 21 | I30: =IF(H30="","",IF(NOT(ISNA(VLOOKUP(H30,Answers!E:H,4,FALSE))),VLOOKUP(H30,Answers!E:H,4,FALSE),"Help!")) -> 1000 | K30: =IF(I30="","",G30+IF(I30="XX",VLOOKUP("WRONG",Answers!E:H,4,FALSE),I30)+J30) -> 1002 | L30: =IF($B30="","",0+UPPER(Mainframe!E29)) -> 300 | M30: =IF(L30="","",IF(NOT(ISNA(VLOOKUP(L30,Answers!I:L,4,FALSE))),VLOOKUP(L30,Answers!I:L,4,FALSE),"Help!")) -> 11 | O30: =IF(M30="","",K30+IF(M30="XX",VLOOKUP("WRONG",Answers!I:L,4,FALSE),M30)+N30) -> 1013 | P30: =IF($B30="","",0+UPPER(Mainframe!F29)) -> 2003 | Q30: =IF(P30="","",IF(NOT(ISNA(VLOOKUP(P30,Answers!M:P,4,FALSE))),VLOOKUP(P30,Answers!M:P,4,FALSE),"Help!")) -> 8 | R30: =IF(Q30>500,-1000,0) -> 0 | S30: =IF(Q30="","",O30+IF(Q30="XX",VLOOKUP("WRONG",Answers!M:P,4,FALSE),Q30)+R30) -> 1021 | T30: =IF($B30="","",0+UPPER(Mainframe!G29)) -> 11 | U30: =IF(T30="","",IF(NOT(ISNA(VLOOKUP(T30,Answers!Q:T,4,FALSE))),VLOOKUP(T30,Answers!Q:T,4,FALSE),"Help!")) -> 4 | W30: =IF(U30="","",S30+IF(U30="XX",VLOOKUP("WRONG",Answers!Q:T,4,FALSE),U30)+V30) -> 1025 | X30: =IF($B30="","",0+UPPER(Mainframe!H29)) -> 22 | Y30: =IF(X30="","",IF(NOT(ISNA(VLOOKUP(X30,Answers!U:X,4,FALSE))),VLOOKUP(X30,Answers!U:X,4,FALSE),"Help!")) -> 1000 | AA30: =IF(Y30="","",W30+IF(Y30="XX",VLOOKUP("WRONG",Answers!U:X,4,FALSE),Y30)+Z30) -> 2025 | AB30: =IF($B30="","",0+UPPER(Mainframe!I29)) -> 6 | AC30: =IF(AB30="","",IF(NOT(ISNA(VLOOKUP(AB30,Answers!Y:AB,4,FALSE))),VLOOKUP(AB30,Answers!Y:AB,4,FALSE),"Help!")) -> 4 | AE30: =IF(AC30="","",AA30+IF(AC30="XX",VLOOKUP("WRONG",Answers!Y:AB,4,FALSE),AC30)+AD30) -> 2029 | AF30: =IF($B30="","",0+UPPER(Mainframe!J29)) -> 202 | AG30: =IF(AF30="","",IF(NOT(ISNA(VLOOKUP(AF30,Answers!AC:AF,4,FALSE))),VLOOKUP(AF30,Answers!AC:AF,4,FALSE),"Help!")) -> 10 | AI30: =IF(AG30="","",AE30+IF(AG30="XX",VLOOKUP("WRONG",Answers!AC:AF,4,FALSE),AG30)+AH30) -> 2039 | AJ30: =IF($B30="","",0+UPPER(Mainframe!K29)) -> 84 | AK30: =IF(AJ30="","",IF(NOT(ISNA(VLOOKUP(AJ30,Answers!AG:AJ,4,FALSE))),VLOOKUP(AJ30,Answers!AG:AJ,4,FALSE),"Help!")) -> 1000 | AM30: =IF(AK30="","",AI30+IF(AK30="XX",VLOOKUP("WRONG",Answers!AG:AJ,4,FALSE),AK30)+AL30) -> 3039 | AN30: =IF($B30="","",0+UPPER(Mainframe!L29)) -> 22 | AO30: =IF(AN30="","",IF(NOT(ISNA(VLOOKUP(AN30,Answers!AK:AN,4,FALSE))),VLOOKUP(AN30,Answers!AK:AN,4,FALSE),"Help!")) -> 6 | AQ30: =IF(AO30="","",AM30+IF(AO30="XX",VLOOKUP("WRONG",Answers!AK:AN,4,FALSE),AO30)+AP30) -> 3045 | AR30: =IF($B30="","",0+UPPER(Mainframe!M29)) -> 5 | AS30: =IF(AR30="","",IF(NOT(ISNA(VLOOKUP(AR30,Answers!AO:AR,4,FALSE))),VLOOKUP(AR30,Answers!AO:AR,4,FALSE),"Help!")) -> 1000 | AU30: =IF(AS30="","",AQ30+IF(AS30="XX",VLOOKUP("WRONG",Answers!AO:AR,4,FALSE),AS30)+AT30) -> 4045 | AV30: =IF($B30="","",0+UPPER(Mainframe!N29)) -> 10 | AW30: =IF(AV30="","",IF(NOT(ISNA(VLOOKUP(AV30,Answers!AS:AV,4,FALSE))),VLOOKUP(AV30,Answers!AS:AV,4,FALSE),"Help!")) -> 1000 | AY30: =IF(AW30="","",AU30+IF(AW30="XX",VLOOKUP("WRONG",Answers!AS:AV,4,FALSE),AW30)+AX30) -> 5045 | AZ30: =IF($B30="","",0+UPPER(Mainframe!O29)) -> 500 | BA30: 11.52054795 | BB30: 1 | BC30: =IF($B30="","",LEFT(Mainframe!P29,SEARCH(".",Mainframe!P29)-1)) -> 4 | CH30: 28 | CI30: =IF(INDEX($B:$CE,ROW(),QNO*4)="XX","[b][u]"&INDEX($B:$CE,ROW(),QNO*4-1)&"[/u][/b]","[color=#BF0040]"&INDEX(OFFSET(Answers!C:C,0,(QNO-1)*4),MATCH(INDEX($A:$CB,ROW(),QNO*4),OFFSET(Answers!A:A,0,(QNO-1)*4),0))&"[/color]//[b]"&INDEX(OFFSET(Answers!B:B,0,(QNO-1)*4),MATCH(INDEX($A:$CB,ROW(),QNO*4),OFFSET(Answers!A:A,0,(QNO-1)*4),0))&"[/b] — [b]"&IF(INDEX($B:$CE,ROW(),QNO*4)=1,"Singleton!",CONCATENATE(INDEX($B:$CE,ROW(),QNO*4)," responses"))&"[/b]") -> [color=#BF0040]"Down in It", "The Hand That Feeds", "Came Back Haunted"[/color]//[b][u]NINE[/u] INCH NAILS[/b] — [b]2 responses[/b] | CJ30: CoachP | CK30: Yes | CL30: 28. CoachP — [b]2[/b] pts | CM30: 61 | CN30: 33
A31: [*] | B31: =IF(Mainframe!B30="","",INDEX(Mainframe!$B:$B,C31+1,1)) -> BennyBXB | C31: 29 | D31: =IF($B31="","",0+UPPER(Mainframe!C30)) -> 1 | E31: =IF(D31="","",IF(NOT(ISNA(VLOOKUP(D31,Answers!A:D,4,FALSE))),VLOOKUP(D31,Answers!A:D,4,FALSE),"Help!")) -> 8 | G31: =IF(E31="","",IF(E31="XX",VLOOKUP("WRONG",Answers!A:D,4,FALSE),E31)+F31) -> 8 | H31: =IF($B31="","",0+UPPER(Mainframe!D30)) -> 775 | I31: =IF(H31="","",IF(NOT(ISNA(VLOOKUP(H31,Answers!E:H,4,FALSE))),VLOOKUP(H31,Answers!E:H,4,FALSE),"Help!")) -> 5 | K31: =IF(I31="","",G31+IF(I31="XX",VLOOKUP("WRONG",Answers!E:H,4,FALSE),I31)+J31) -> 13 | L31: =IF($B31="","",0+UPPER(Mainframe!E30)) -> 300 | M31: =IF(L31="","",IF(NOT(ISNA(VLOOKUP(L31,Answers!I:L,4,FALSE))),VLOOKUP(L31,Answers!I:L,4,FALSE),"Help!")) -> 11 | O31: =IF(M31="","",K31+IF(M31="XX",VLOOKUP("WRONG",Answers!I:L,4,FALSE),M31)+N31) -> 24 | P31: =IF($B31="","",0+UPPER(Mainframe!F30)) -> 1942 | Q31: XX | S31: =IF(Q31="","",O31+IF(Q31="XX",VLOOKUP("WRONG",Answers!M:P,4,FALSE),Q31)+R31) -> 1031 | T31: =IF($B31="","",0+UPPER(Mainframe!G30)) -> 6 | U31: =IF(T31="","",IF(NOT(ISNA(VLOOKUP(T31,Answers!Q:T,4,FALSE))),VLOOKUP(T31,Answers!Q:T,4,FALSE),"Help!")) -> 9 | W31: =IF(U31="","",S31+IF(U31="XX",VLOOKUP("WRONG",Answers!Q:T,4,FALSE),U31)+V31) -> 1040 | X31: =IF($B31="","",0+UPPER(Mainframe!H30)) -> 66 | Y31: XX | AA31: =IF(Y31="","",W31+IF(Y31="XX",VLOOKUP("WRONG",Answers!U:X,4,FALSE),Y31)+Z31) -> 2047 | AB31: =IF($B31="","",0+UPPER(Mainframe!I30)) -> 525600 | AC31: =IF(AB31="","",IF(NOT(ISNA(VLOOKUP(AB31,Answers!Y:AB,4,FALSE))),VLOOKUP(AB31,Answers!Y:AB,4,FALSE),"Help!")) -> 5 | AE31: =IF(AC31="","",AA31+IF(AC31="XX",VLOOKUP("WRONG",Answers!Y:AB,4,FALSE),AC31)+AD31) -> 2052 | AF31: =IF($B31="","",0+UPPER(Mainframe!J30)) -> 538 | AG31: =IF(AF31="","",IF(NOT(ISNA(VLOOKUP(AF31,Answers!AC:AF,4,FALSE))),VLOOKUP(AF31,Answers!AC:AF,4,FALSE),"Help!")) -> 4 | AI31: =IF(AG31="","",AE31+IF(AG31="XX",VLOOKUP("WRONG",Answers!AC:AF,4,FALSE),AG31)+AH31) -> 2056 | AJ31: =IF($B31="","",0+UPPER(Mainframe!K30)) -> 95 | AK31: =IF(AJ31="","",IF(NOT(ISNA(VLOOKUP(AJ31,Answers!AG:AJ,4,FALSE))),VLOOKUP(AJ31,Answers!AG:AJ,4,FALSE),"Help!")) -> 6 | AL31: =IF(AK31>500,-1000,0) -> 0 | AM31: =IF(AK31="","",AI31+IF(AK31="XX",VLOOKUP("WRONG",Answers!AG:AJ,4,FALSE),AK31)+AL31) -> 2062 | AN31: =IF($B31="","",0+UPPER(Mainframe!L30)) -> 20 | AO31: =IF(AN31="","",IF(NOT(ISNA(VLOOKUP(AN31,Answers!AK:AN,4,FALSE))),VLOOKUP(AN31,Answers!AK:AN,4,FALSE),"Help!")) -> 3 | AQ31: =IF(AO31="","",AM31+IF(AO31="XX",VLOOKUP("WRONG",Answers!AK:AN,4,FALSE),AO31)+AP31) -> 2065 | AR31: =IF($B31="","",0+UPPER(Mainframe!M30)) -> 2 | AS31: =IF(AR31="","",IF(NOT(ISNA(VLOOKUP(AR31,Answers!AO:AR,4,FALSE))),VLOOKUP(AR31,Answers!AO:AR,4,FALSE),"Help!")) -> 4 | AU31: =IF(AS31="","",AQ31+IF(AS31="XX",VLOOKUP("WRONG",Answers!AO:AR,4,FALSE),AS31)+AT31) -> 2069 | AV31: =IF($B31="","",0+UPPER(Mainframe!N30)) -> 10 | AW31: =IF(AV31="","",IF(NOT(ISNA(VLOOKUP(AV31,Answers!AS:AV,4,FALSE))),VLOOKUP(AV31,Answers!AS:AV,4,FALSE),"Help!")) -> 1000 | AY31: =IF(AW31="","",AU31+IF(AW31="XX",VLOOKUP("WRONG",Answers!AS:AV,4,FALSE),AW31)+AX31) -> 3069 | AZ31: =IF($B31="","",0+UPPER(Mainframe!O30)) -> 502 | BA31: 13.52054795 | BB31: 1 | BC31: =IF($B31="","",LEFT(Mainframe!P30,SEARCH(".",Mainframe!P30)-1)) -> 9 | CH31: 29 | CI31: =IF(INDEX($B:$CE,ROW(),QNO*4)="XX","[b][u]"&INDEX($B:$CE,ROW(),QNO*4-1)&"[/u][/b]","[color=#BF0040]"&INDEX(OFFSET(Answers!C:C,0,(QNO-1)*4),MATCH(INDEX($A:$CB,ROW(),QNO*4),OFFSET(Answers!A:A,0,(QNO-1)*4),0))&"[/color]//[b]"&INDEX(OFFSET(Answers!B:B,0,(QNO-1)*4),MATCH(INDEX($A:$CB,ROW(),QNO*4),OFFSET(Answers!A:A,0,(QNO-1)*4),0))&"[/b] — [b]"&IF(INDEX($B:$CE,ROW(),QNO*4)=1,"Singleton!",CONCATENATE(INDEX($B:$CE,ROW(),QNO*4)," responses"))&"[/b]") -> [color=#BF0040]"What Makes You Beautiful", "Little Things", "Best Song Ever"[/color]//[b][u]ONE[/u] DIRECTION[/b] — [b]8 responses[/b] | CJ31: BennyBXB | CK31: Yes | CL31: 29. BennyBXB — [b]8[/b] pts | CM31: 43 | CN31: 14
A32: [*] | B32: =IF(Mainframe!B31="","",INDEX(Mainframe!$B:$B,C32+1,1)) -> Holocene Hero | C32: 30 | D32: =IF($B32="","",0+UPPER(Mainframe!C31)) -> 65 | E32: =IF(D32="","",IF(NOT(ISNA(VLOOKUP(D32,Answers!A:D,4,FALSE))),VLOOKUP(D32,Answers!A:D,4,FALSE),"Help!")) -> 9 | G32: =IF(E32="","",IF(E32="XX",VLOOKUP("WRONG",Answers!A:D,4,FALSE),E32)+F32) -> 9 | H32: =IF($B32="","",0+UPPER(Mainframe!D31)) -> 775 | I32: =IF(H32="","",IF(NOT(ISNA(VLOOKUP(H32,Answers!E:H,4,FALSE))),VLOOKUP(H32,Answers!E:H,4,FALSE),"Help!")) -> 5 | K32: =IF(I32="","",G32+IF(I32="XX",VLOOKUP("WRONG",Answers!E:H,4,FALSE),I32)+J32) -> 14 | L32: =IF($B32="","",0+UPPER(Mainframe!E31)) -> 12 | M32: =IF(L32="","",IF(NOT(ISNA(VLOOKUP(L32,Answers!I:L,4,FALSE))),VLOOKUP(L32,Answers!I:L,4,FALSE),"Help!")) -> 3 | O32: =IF(M32="","",K32+IF(M32="XX",VLOOKUP("WRONG",Answers!I:L,4,FALSE),M32)+N32) -> 17 | P32: =IF($B32="","",0+UPPER(Mainframe!F31)) -> 1815 | Q32: =IF(P32="","",IF(NOT(ISNA(VLOOKUP(P32,Answers!M:P,4,FALSE))),VLOOKUP(P32,Answers!M:P,4,FALSE),"Help!")) -> 10 | R32: =IF(Q32>500,-1000,0) -> 0 | S32: =IF(Q32="","",O32+IF(Q32="XX",VLOOKUP("WRONG",Answers!M:P,4,FALSE),Q32)+R32) -> 27 | T32: =IF($B32="","",0+UPPER(Mainframe!G31)) -> 5 | U32: =IF(T32="","",IF(NOT(ISNA(VLOOKUP(T32,Answers!Q:T,4,FALSE))),VLOOKUP(T32,Answers!Q:T,4,FALSE),"Help!")) -> 1000 | W32: =IF(U32="","",S32+IF(U32="XX",VLOOKUP("WRONG",Answers!Q:T,4,FALSE),U32)+V32) -> 1027 | X32: =IF($B32="","",0+UPPER(Mainframe!H31)) -> 20000 | Y32: XX | AA32: =IF(Y32="","",W32+IF(Y32="XX",VLOOKUP("WRONG",Answers!U:X,4,FALSE),Y32)+Z32) -> 2034 | AB32: =IF($B32="","",0+UPPER(Mainframe!I31)) -> 20 | AC32: =IF(AB32="","",IF(NOT(ISNA(VLOOKUP(AB32,Answers!Y:AB,4,FALSE))),VLOOKUP(AB32,Answers!Y:AB,4,FALSE),"Help!")) -> 13 | AE32: =IF(AC32="","",AA32+IF(AC32="XX",VLOOKUP("WRONG",Answers!Y:AB,4,FALSE),AC32)+AD32) -> 2047 | AF32: =IF($B32="","",0+UPPER(Mainframe!J31)) -> 18 | AG32: =IF(AF32="","",IF(NOT(ISNA(VLOOKUP(AF32,Answers!AC:AF,4,FALSE))),VLOOKUP(AF32,Answers!AC:AF,4,FALSE),"Help!")) -> 10 | AI32: =IF(AG32="","",AE32+IF(AG32="XX",VLOOKUP("WRONG",Answers!AC:AF,4,FALSE),AG32)+AH32) -> 2057 | AJ32: =IF($B32="","",0+UPPER(Mainframe!K31)) -> 95 | AK32: =IF(AJ32="","",IF(NOT(ISNA(VLOOKUP(AJ32,Answers!AG:AJ,4,FALSE))),VLOOKUP(AJ32,Answers!AG:AJ,4,FALSE),"Help!")) -> 6 | AM32: =IF(AK32="","",AI32+IF(AK32="XX",VLOOKUP("WRONG",Answers!AG:AJ,4,FALSE),AK32)+AL32) -> 2063 | AN32: =IF($B32="","",0+UPPER(Mainframe!L31)) -> 76 | AO32: =IF(AN32="","",IF(NOT(ISNA(VLOOKUP(AN32,Answers!AK:AN,4,FALSE))),VLOOKUP(AN32,Answers!AK:AN,4,FALSE),"Help!")) -> 6 | AQ32: =IF(AO32="","",AM32+IF(AO32="XX",VLOOKUP("WRONG",Answers!AK:AN,4,FALSE),AO32)+AP32) -> 2069 | AR32: =IF($B32="","",0+UPPER(Mainframe!M31)) -> 50 | AS32: =IF(AR32="","",IF(NOT(ISNA(VLOOKUP(AR32,Answers!AO:AR,4,FALSE))),VLOOKUP(AR32,Answers!AO:AR,4,FALSE),"Help!")) -> 5 | AU32: =IF(AS32="","",AQ32+IF(AS32="XX",VLOOKUP("WRONG",Answers!AO:AR,4,FALSE),AS32)+AT32) -> 2074 | AV32: =IF($B32="","",0+UPPER(Mainframe!N31)) -> 613 | AW32: =IF(AV32="","",IF(NOT(ISNA(VLOOKUP(AV32,Answers!AS:AV,4,FALSE))),VLOOKUP(AV32,Answers!AS:AV,4,FALSE),"Help!")) -> 4 | AY32: =IF(AW32="","",AU32+IF(AW32="XX",VLOOKUP("WRONG",Answers!AS:AV,4,FALSE),AW32)+AX32) -> 2078 | AZ32: =IF($B32="","",0+UPPER(Mainframe!O31)) -> 499 | BA32: 10.52054795 | BB32: 1 | BC32: =IF($B32="","",LEFT(Mainframe!P31,SEARCH(".",Mainframe!P31)-1)) -> 4 | CH32: 30 | CI32: =IF(INDEX($B:$CE,ROW(),QNO*4)="XX","[b][u]"&INDEX($B:$CE,ROW(),QNO*4-1)&"[/u][/b]","[color=#BF0040]"&INDEX(OFFSET(Answers!C:C,0,(QNO-1)*4),MATCH(INDEX($A:$CB,ROW(),QNO*4),OFFSET(Answers!A:A,0,(QNO-1)*4),0))&"[/color]//[b]"&INDEX(OFFSET(Answers!B:B,0,(QNO-1)*4),MATCH(INDEX($A:$CB,ROW(),QNO*4),OFFSET(Answers!A:A,0,(QNO-1)*4),0))&"[/b] — [b]"&IF(INDEX($B:$CE,ROW(),QNO*4)=1,"Singleton!",CONCATENATE(INDEX($B:$CE,ROW(),QNO*4)," responses"))&"[/b]") -> [color=#BF0040]"Blue (Da Ba Dee)", "Move Your Body", "Lucky (In My Life)"[/color]//[b]EIFFEL [u]65[/u][/b] — [b]9 responses[/b] | CJ32: Holocene Hero | CK32: Yes | CL32: 30. Holocene Hero — [b]9[/b] pts | CM32: 29 | CN32: -1
A33: [*] | B33: =IF(Mainframe!B32="","",INDEX(Mainframe!$B:$B,C33+1,1)) -> tjconn728 | C33: 31 | D33: =IF($B33="","",0+UPPER(Mainframe!C32)) -> 311 | E33: =IF(D33="","",IF(NOT(ISNA(VLOOKUP(D33,Answers!A:D,4,FALSE))),VLOOKUP(D33,Answers!A:D,4,FALSE),"Help!")) -> 1 | G33: =IF(E33="","",IF(E33="XX",VLOOKUP("WRONG",Answers!A:D,4,FALSE),E33)+F33) -> 1 | H33: =IF($B33="","",0+UPPER(Mainframe!D32)) -> 775 | I33: =IF(H33="","",IF(NOT(ISNA(VLOOKUP(H33,Answers!E:H,4,FALSE))),VLOOKUP(H33,Answers!E:H,4,FALSE),"Help!")) -> 5 | K33: =IF(I33="","",G33+IF(I33="XX",VLOOKUP("WRONG",Answers!E:H,4,FALSE),I33)+J33) -> 6 | L33: =IF($B33="","",0+UPPER(Mainframe!E32)) -> 10 | M33: =IF(L33="","",IF(NOT(ISNA(VLOOKUP(L33,Answers!I:L,4,FALSE))),VLOOKUP(L33,Answers!I:L,4,FALSE),"Help!")) -> 10 | O33: =IF(M33="","",K33+IF(M33="XX",VLOOKUP("WRONG",Answers!I:L,4,FALSE),M33)+N33) -> 16 | P33: =IF($B33="","",0+UPPER(Mainframe!F32)) -> 1861 | Q33: =IF(P33="","",IF(NOT(ISNA(VLOOKUP(P33,Answers!M:P,4,FALSE))),VLOOKUP(P33,Answers!M:P,4,FALSE),"Help!")) -> 1000 | R33: =IF(Q33>500,-1000,0) -> -1000 | S33: =IF(Q33="","",O33+IF(Q33="XX",VLOOKUP("WRONG",Answers!M:P,4,FALSE),Q33)+R33) -> 16 | T33: =IF($B33="","",0+UPPER(Mainframe!G32)) -> 2 | U33: =IF(T33="","",IF(NOT(ISNA(VLOOKUP(T33,Answers!Q:T,4,FALSE))),VLOOKUP(T33,Answers!Q:T,4,FALSE),"Help!")) -> 14 | W33: =IF(U33="","",S33+IF(U33="XX",VLOOKUP("WRONG",Answers!Q:T,4,FALSE),U33)+V33) -> 30 | X33: =IF($B33="","",0+UPPER(Mainframe!H32)) -> 7 | Y33: =IF(X33="","",IF(NOT(ISNA(VLOOKUP(X33,Answers!U:X,4,FALSE))),VLOOKUP(X33,Answers!U:X,4,FALSE),"Help!")) -> 6 | AA33: =IF(Y33="","",W33+IF(Y33="XX",VLOOKUP("WRONG",Answers!U:X,4,FALSE),Y33)+Z33) -> 36 | AB33: =IF($B33="","",0+UPPER(Mainframe!I32)) -> 20 | AC33: =IF(AB33="","",IF(NOT(ISNA(VLOOKUP(AB33,Answers!Y:AB,4,FALSE))),VLOOKUP(AB33,Answers!Y:AB,4,FALSE),"Help!")) -> 13 | AE33: =IF(AC33="","",AA33+IF(AC33="XX",VLOOKUP("WRONG",Answers!Y:AB,4,FALSE),AC33)+AD33) -> 49 | AF33: =IF($B33="","",0+UPPER(Mainframe!J32)) -> 538 | AG33: =IF(AF33="","",IF(NOT(ISNA(VLOOKUP(AF33,Answers!AC:AF,4,FALSE))),VLOOKUP(AF33,Answers!AC:AF,4,FALSE),"Help!")) -> 4 | AI33: =IF(AG33="","",AE33+IF(AG33="XX",VLOOKUP("WRONG",Answers!AC:AF,4,FALSE),AG33)+AH33) -> 53 | AJ33: =IF($B33="","",0+UPPER(Mainframe!K32)) -> 99 | AK33: =IF(AJ33="","",IF(NOT(ISNA(VLOOKUP(AJ33,Answers!AG:AJ,4,FALSE))),VLOOKUP(AJ33,Answers!AG:AJ,4,FALSE),"Help!")) -> 2 | AM33: =IF(AK33="","",AI33+IF(AK33="XX",VLOOKUP("WRONG",Answers!AG:AJ,4,FALSE),AK33)+AL33) -> 55 | AN33: =IF($B33="","",0+UPPER(Mainframe!L32)) -> 22 | AO33: =IF(AN33="","",IF(NOT(ISNA(VLOOKUP(AN33,Answers!AK:AN,4,FALSE))),VLOOKUP(AN33,Answers!AK:AN,4,FALSE),"Help!")) -> 6 | AQ33: =IF(AO33="","",AM33+IF(AO33="XX",VLOOKUP("WRONG",Answers!AK:AN,4,FALSE),AO33)+AP33) -> 61 | AR33: =IF($B33="","",0+UPPER(Mainframe!M32)) -> 50 | AS33: =IF(AR33="","",IF(NOT(ISNA(VLOOKUP(AR33,Answers!AO:AR,4,FALSE))),VLOOKUP(AR33,Answers!AO:AR,4,FALSE),"Help!")) -> 5 | AU33: =IF(AS33="","",AQ33+IF(AS33="XX",VLOOKUP("WRONG",Answers!AO:AR,4,FALSE),AS33)+AT33) -> 66 | AV33: =IF($B33="","",0+UPPER(Mainframe!N32)) -> 10 | AW33: =IF(AV33="","",IF(NOT(ISNA(VLOOKUP(AV33,Answers!AS:AV,4,FALSE))),VLOOKUP(AV33,Answers!AS:AV,4,FALSE),"Help!")) -> 1000 | AY33: =IF(AW33="","",AU33+IF(AW33="XX",VLOOKUP("WRONG",Answers!AS:AV,4,FALSE),AW33)+AX33) -> 1066 | AZ33: =IF($B33="","",0+UPPER(Mainframe!O32)) -> 533 | BA33: 44.52054795 | BB33: 1 | BC33: =IF($B33="","",LEFT(Mainframe!P32,SEARCH(".",Mainframe!P32)-1)) -> 4 | CH33: 31 | CI33: =IF(INDEX($B:$CE,ROW(),QNO*4)="XX","[b][u]"&INDEX($B:$CE,ROW(),QNO*4-1)&"[/u][/b]","[color=#BF0040]"&INDEX(OFFSET(Answers!C:C,0,(QNO-1)*4),MATCH(INDEX($A:$CB,ROW(),QNO*4),OFFSET(Answers!A:A,0,(QNO-1)*4),0))&"[/color]//[b]"&INDEX(OFFSET(Answers!B:B,0,(QNO-1)*4),MATCH(INDEX($A:$CB,ROW(),QNO*4),OFFSET(Answers!A:A,0,(QNO-1)*4),0))&"[/b] — [b]"&IF(INDEX($B:$CE,ROW(),QNO*4)=1,"Singleton!",CONCATENATE(INDEX($B:$CE,ROW(),QNO*4)," responses"))&"[/b]") -> [color=#BF0040]"Down", "Amber", "Sunset in July"[/color]//[b][u]311[/u][/b] — [b]Singleton![/b] | CJ33: tjconn728 | CK33: Yes | CL33: 31. tjconn728 — [b]1[/b] pts | CM33: 14 | CN33: -17
A34: [*] | B34: =IF(Mainframe!B33="","",INDEX(Mainframe!$B:$B,C34+1,1)) -> dhkendall | C34: 32 | D34: =IF($B34="","",0+UPPER(Mainframe!C33)) -> 40 | E34: =IF(D34="","",IF(NOT(ISNA(VLOOKUP(D34,Answers!A:D,4,FALSE))),VLOOKUP(D34,Answers!A:D,4,FALSE),"Help!")) -> 1000 | G34: =IF(E34="","",IF(E34="XX",VLOOKUP("WRONG",Answers!A:D,4,FALSE),E34)+F34) -> 1000 | H34: =IF($B34="","",0+UPPER(Mainframe!D33)) -> 100 | I34: =IF(H34="","",IF(NOT(ISNA(VLOOKUP(H34,Answers!E:H,4,FALSE))),VLOOKUP(H34,Answers!E:H,4,FALSE),"Help!")) -> 4 | K34: =IF(I34="","",G34+IF(I34="XX",VLOOKUP("WRONG",Answers!E:H,4,FALSE),I34)+J34) -> 1004 | L34: =IF($B34="","",0+UPPER(Mainframe!E33)) -> 10 | M34: =IF(L34="","",IF(NOT(ISNA(VLOOKUP(L34,Answers!I:L,4,FALSE))),VLOOKUP(L34,Answers!I:L,4,FALSE),"Help!")) -> 10 | O34: =IF(M34="","",K34+IF(M34="XX",VLOOKUP("WRONG",Answers!I:L,4,FALSE),M34)+N34) -> 1014 | P34: =IF($B34="","",0+UPPER(Mainframe!F33)) -> 9 | Q34: =IF(P34="","",IF(NOT(ISNA(VLOOKUP(P34,Answers!M:P,4,FALSE))),VLOOKUP(P34,Answers!M:P,4,FALSE),"Help!")) -> 1 | S34: =IF(Q34="","",O34+IF(Q34="XX",VLOOKUP("WRONG",Answers!M:P,4,FALSE),Q34)+R34) -> 1015 | T34: =IF($B34="","",0+UPPER(Mainframe!G33)) -> 6 | U34: =IF(T34="","",IF(NOT(ISNA(VLOOKUP(T34,Answers!Q:T,4,FALSE))),VLOOKUP(T34,Answers!Q:T,4,FALSE),"Help!")) -> 9 | W34: =IF(U34="","",S34+IF(U34="XX",VLOOKUP("WRONG",Answers!Q:T,4,FALSE),U34)+V34) -> 1024 | X34: =IF($B34="","",0+UPPER(Mainframe!H33)) -> 66 | Y34: XX | Z34: =IF(Y34>500,-1000,0) -> -1000 | AA34: =IF(Y34="","",W34+IF(Y34="XX",VLOOKUP("WRONG",Answers!U:X,4,FALSE),Y34)+Z34) -> 1031 | AB34: =IF($B34="","",0+UPPER(Mainframe!I33)) -> 76 | AC34: =IF(AB34="","",IF(NOT(ISNA(VLOOKUP(AB34,Answers!Y:AB,4,FALSE))),VLOOKUP(AB34,Answers!Y:AB,4,FALSE),"Help!")) -> 1000 | AE34: =IF(AC34="","",AA34+IF(AC34="XX",VLOOKUP("WRONG",Answers!Y:AB,4,FALSE),AC34)+AD34) -> 2031 | AF34: =IF($B34="","",0+UPPER(Mainframe!J33)) -> 202 | AG34: =IF(AF34="","",IF(NOT(ISNA(VLOOKUP(AF34,Answers!AC:AF,4,FALSE))),VLOOKUP(AF34,Answers!AC:AF,4,FALSE),"Help!")) -> 10 | AI34: =IF(AG34="","",AE34+IF(AG34="XX",VLOOKUP("WRONG",Answers!AC:AF,4,FALSE),AG34)+AH34) -> 2041 | AJ34: =IF($B34="","",0+UPPER(Mainframe!K33)) -> 35 | AK34: =IF(AJ34="","",IF(NOT(ISNA(VLOOKUP(AJ34,Answers!AG:AJ,4,FALSE))),VLOOKUP(AJ34,Answers!AG:AJ,4,FALSE),"Help!")) -> 8 | AM34: =IF(AK34="","",AI34+IF(AK34="XX",VLOOKUP("WRONG",Answers!AG:AJ,4,FALSE),AK34)+AL34) -> 2049 | AN34: =IF($B34="","",0+UPPER(Mainframe!L33)) -> 42 | AO34: =IF(AN34="","",IF(NOT(ISNA(VLOOKUP(AN34,Answers!AK:AN,4,FALSE))),VLOOKUP(AN34,Answers!AK:AN,4,FALSE),"Help!")) -> 8 | AQ34: =IF(AO34="","",AM34+IF(AO34="XX",VLOOKUP("WRONG",Answers!AK:AN,4,FALSE),AO34)+AP34) -> 2057 | AR34: =IF($B34="","",0+UPPER(Mainframe!M33)) -> 40 | AS34: =IF(AR34="","",IF(NOT(ISNA(VLOOKUP(AR34,Answers!AO:AR,4,FALSE))),VLOOKUP(AR34,Answers!AO:AR,4,FALSE),"Help!")) -> 3 | AU34: =IF(AS34="","",AQ34+IF(AS34="XX",VLOOKUP("WRONG",Answers!AO:AR,4,FALSE),AS34)+AT34) -> 2060 | AV34: =IF($B34="","",0+UPPER(Mainframe!N33)) -> 622 | AW34: =IF(AV34="","",IF(NOT(ISNA(VLOOKUP(AV34,Answers!AS:AV,4,FALSE))),VLOOKUP(AV34,Answers!AS:AV,4,FALSE),"Help!")) -> 4 | AY34: =IF(AW34="","",AU34+IF(AW34="XX",VLOOKUP("WRONG",Answers!AS:AV,4,FALSE),AW34)+AX34) -> 2064 | AZ34: =IF($B34="","",0+UPPER(Mainframe!O33)) -> 623 | BA34: 134.5205479 | BB34: 1 | BC34: =IF($B34="","",LEFT(Mainframe!P33,SEARCH(".",Mainframe!P33)-1)) -> 6 | CH34: 32 | CI34: =IF(INDEX($B:$CE,ROW(),QNO*4)="XX","[b][u]"&INDEX($B:$CE,ROW(),QNO*4-1)&"[/u][/b]","[color=#BF0040]"&INDEX(OFFSET(Answers!C:C,0,(QNO-1)*4),MATCH(INDEX($A:$CB,ROW(),QNO*4),OFFSET(Answers!A:A,0,(QNO-1)*4),0))&"[/color]//[b]"&INDEX(OFFSET(Answers!B:B,0,(QNO-1)*4),MATCH(INDEX($A:$CB,ROW(),QNO*4),OFFSET(Answers!A:A,0,(QNO-1)*4),0))&"[/b] — [b]"&IF(INDEX($B:$CE,ROW(),QNO*4)=1,"Singleton!",CONCATENATE(INDEX($B:$CE,ROW(),QNO*4)," responses"))&"[/b]") -> [color=#BF0040]"King", "Red Red Wine", "(I Can't Help) Falling in Love With You"[/color]//[b]UB[u]40[/u][/b] — [b]1000 responses[/b] | CJ34: dhkendall//Rusty's in the club | CK34: Yes | CL34: 32. dhkendall — [b]1,000[/b] pts | CM34: 21 | CN34: -11
A35: [*] | B35: =IF(Mainframe!B34="","",INDEX(Mainframe!$B:$B,C35+1,1)) -> Rusty's in the club | C35: 33 | D35: =IF($B35="","",0+UPPER(Mainframe!C34)) -> 40 | E35: =IF(D35="","",IF(NOT(ISNA(VLOOKUP(D35,Answers!A:D,4,FALSE))),VLOOKUP(D35,Answers!A:D,4,FALSE),"Help!")) -> 1000 | G35: =IF(E35="","",IF(E35="XX",VLOOKUP("WRONG",Answers!A:D,4,FALSE),E35)+F35) -> 1000 | H35: =IF($B35="","",0+UPPER(Mainframe!D34)) -> 108 | I35: =IF(H35="","",IF(NOT(ISNA(VLOOKUP(H35,Answers!E:H,4,FALSE))),VLOOKUP(H35,Answers!E:H,4,FALSE),"Help!")) -> 5 | K35: =IF(I35="","",G35+IF(I35="XX",VLOOKUP("WRONG",Answers!E:H,4,FALSE),I35)+J35) -> 1005 | L35: =IF($B35="","",0+UPPER(Mainframe!E34)) -> 101 | M35: =IF(L35="","",IF(NOT(ISNA(VLOOKUP(L35,Answers!I:L,4,FALSE))),VLOOKUP(L35,Answers!I:L,4,FALSE),"Help!")) -> 7 | O35: =IF(M35="","",K35+IF(M35="XX",VLOOKUP("WRONG",Answers!I:L,4,FALSE),M35)+N35) -> 1012 | P35: =IF($B35="","",0+UPPER(Mainframe!F34)) -> 1964 | Q35: =IF(P35="","",IF(NOT(ISNA(VLOOKUP(P35,Answers!M:P,4,FALSE))),VLOOKUP(P35,Answers!M:P,4,FALSE),"Help!")) -> 3 | S35: =IF(Q35="","",O35+IF(Q35="XX",VLOOKUP("WRONG",Answers!M:P,4,FALSE),Q35)+R35) -> 1015 | T35: =IF($B35="","",0+UPPER(Mainframe!G34)) -> 5 | U35: =IF(T35="","",IF(NOT(ISNA(VLOOKUP(T35,Answers!Q:T,4,FALSE))),VLOOKUP(T35,Answers!Q:T,4,FALSE),"Help!")) -> 1000 | W35: =IF(U35="","",S35+IF(U35="XX",VLOOKUP("WRONG",Answers!Q:T,4,FALSE),U35)+V35) -> 2015 | X35: =IF($B35="","",0+UPPER(Mainframe!H34)) -> 52 | Y35: =IF(X35="","",IF(NOT(ISNA(VLOOKUP(X35,Answers!U:X,4,FALSE))),VLOOKUP(X35,Answers!U:X,4,FALSE),"Help!")) -> 2 | AA35: =IF(Y35="","",W35+IF(Y35="XX",VLOOKUP("WRONG",Answers!U:X,4,FALSE),Y35)+Z35) -> 2017 | AB35: =IF($B35="","",0+UPPER(Mainframe!I34)) -> 42 | AC35: =IF(AB35="","",IF(NOT(ISNA(VLOOKUP(AB35,Answers!Y:AB,4,FALSE))),VLOOKUP(AB35,Answers!Y:AB,4,FALSE),"Help!")) -> 13 | AE35: =IF(AC35="","",AA35+IF(AC35="XX",VLOOKUP("WRONG",Answers!Y:AB,4,FALSE),AC35)+AD35) -> 2030 | AF35: =IF($B35="","",0+UPPER(Mainframe!J34)) -> 18 | AG35: =IF(AF35="","",IF(NOT(ISNA(VLOOKUP(AF35,Answers!AC:AF,4,FALSE))),VLOOKUP(AF35,Answers!AC:AF,4,FALSE),"Help!")) -> 10 | AI35: =IF(AG35="","",AE35+IF(AG35="XX",VLOOKUP("WRONG",Answers!AC:AF,4,FALSE),AG35)+AH35) -> 2040 | AJ35: =IF($B35="","",0+UPPER(Mainframe!K34)) -> 4 | AK35: =IF(AJ35="","",IF(NOT(ISNA(VLOOKUP(AJ35,Answers!AG:AJ,4,FALSE))),VLOOKUP(AJ35,Answers!AG:AJ,4,FALSE),"Help!")) -> 4 | AM35: =IF(AK35="","",AI35+IF(AK35="XX",VLOOKUP("WRONG",Answers!AG:AJ,4,FALSE),AK35)+AL35) -> 2044 | AN35: =IF($B35="","",0+UPPER(Mainframe!L34)) -> 100 | AO35: =IF(AN35="","",IF(NOT(ISNA(VLOOKUP(AN35,Answers!AK:AN,4,FALSE))),VLOOKUP(AN35,Answers!AK:AN,4,FALSE),"Help!")) -> 4 | AQ35: =IF(AO35="","",AM35+IF(AO35="XX",VLOOKUP("WRONG",Answers!AK:AN,4,FALSE),AO35)+AP35) -> 2048 | AR35: =IF($B35="","",0+UPPER(Mainframe!M34)) -> 5 | AS35: =IF(AR35="","",IF(NOT(ISNA(VLOOKUP(AR35,Answers!AO:AR,4,FALSE))),VLOOKUP(AR35,Answers!AO:AR,4,FALSE),"Help!")) -> 1000 | AU35: =IF(AS35="","",AQ35+IF(AS35="XX",VLOOKUP("WRONG",Answers!AO:AR,4,FALSE),AS35)+AT35) -> 3048 | AV35: =IF($B35="","",0+UPPER(Mainframe!N34)) -> 10 | AW35: =IF(AV35="","",IF(NOT(ISNA(VLOOKUP(AV35,Answers!AS:AV,4,FALSE))),VLOOKUP(AV35,Answers!AS:AV,4,FALSE),"Help!")) -> 1000 | AX35: =IF(AW35>500,-1000,0) -> -1000 | AY35: =IF(AW35="","",AU35+IF(AW35="XX",VLOOKUP("WRONG",Answers!AS:AV,4,FALSE),AW35)+AX35) -> 3048 | AZ35: =IF($B35="","",0+UPPER(Mainframe!O34)) -> 495 | BA35: =IF(AZ35="","",ABS(AZ35-AVERAGE(AZ$3:AZ$101))) -> 6.520547945 | BB35: =IF(BA35="","",COUNTA(F35,J35,N35,R35,V35,Z35,AD35,AH35,AL35,AP35,AT35,AX35)) -> 1 | BC35: =IF($B35="","",LEFT(Mainframe!P34,SEARCH(".",Mainframe!P34)-1)) -> 12 | CH35: =IF(B35=0,"",IF(INDEX($B:$CE,ROW(),1)=0,"",IF(INDEX($B:$CE,ROW(),4*QNO+2)=INDEX($B:$CE,ROW()-1,4*QNO+2),$CH34,ROW()-2))) -> 32 | CI35: =IF(INDEX($B:$CE,ROW(),QNO*4)="XX","[b][u]"&INDEX($B:$CE,ROW(),QNO*4-1)&"[/u][/b]","[color=#BF0040]"&INDEX(OFFSET(Answers!C:C,0,(QNO-1)*4),MATCH(INDEX($A:$CB,ROW(),QNO*4),OFFSET(Answers!A:A,0,(QNO-1)*4),0))&"[/color]//[b]"&INDEX(OFFSET(Answers!B:B,0,(QNO-1)*4),MATCH(INDEX($A:$CB,ROW(),QNO*4),OFFSET(Answers!A:A,0,(QNO-1)*4),0))&"[/b] — [b]"&IF(INDEX($B:$CE,ROW(),QNO*4)=1,"Singleton!",CONCATENATE(INDEX($B:$CE,ROW(),QNO*4)," responses"))&"[/b]") -> [color=#BF0040]"King", "Red Red Wine", "(I Can't Help) Falling in Love With You"[/color]//[b]UB[u]40[/u][/b] — [b]1000 responses[/b] | CJ35: =IF(INDEX($B:$CE,ROW(),1)=0,"",IF(INDEX($B:$CE,ROW(),QNO*4-1)=INDEX($B:$CE,ROW()+1,QNO*4-1),CONCATENATE(INDEX($B:$CE,ROW(),1),IF(BC35-0=QNO-0," [[b][color=#8000BF]FOX[/color][/b]]",""),"//",INDEX($CJ:$CJ,ROW()+1,1)),INDEX($B:$CE,ROW(),1)&IF(BC35-0=QNO-0," [[b][color=#8000BF]FOX[/color][/b]]",""))) -> Rusty's in the club | CK35: =IF(INDEX($B:$CE,ROW(),1)=0,"",IF(ISNUMBER(SEARCH("//",INDEX($CJ:$CJ,ROW()-1,1))),"No","Yes")) -> No | CL35: =IF(B35=0,"",CONCATENATE(INDEX($CH:$CL,ROW(),1),". ",INDEX($B:$CE,ROW(),1)," — ")&IF(QNO=1,CONCATENATE("[b]",TEXT(INDEX($B:$CE,ROW(),QNO*4+2),"#,##0"),"[/b] pts"),CONCATENATE("[color=#BBBBBB]",TEXT(INDEX($B:$CE,ROW(),QNO*4-2),"#,##0")," + ",IF(INDEX($B:$CE,ROW(),QNO*4)="XX","[/color][color=#BF8000][b]"&TEXT(WRONGSCORE,"#,##0")&"[/b][/color][color=#BBBBBB]",IF(INDEX($B:$CE,ROW(),QNO*4)=1000,"[/color][color=#BF8000][b]1,000[/b][/color][color=#BBBBBB]",INDEX($B:$CE,ROW(),QNO*4))),IF(INDEX($C:$CE,ROW(),QNO*4)<0," [/color][b][color=#8000BF]- 1,000[/color][/b][color=#BBBBBB]","")," → [/color][b]",TEXT(INDEX($B:$CE,ROW(),QNO*4+2),"#,##0"),"[/b] pts "&"[[b]"&IF(CN35>0,"[color=#00BF00]↑"&CN35,IF(CN35<0,"[color=#FF0000]↓"&ABS(CN35),"[color=#0000FF]unch"))&"[/b][/color]]"))) -> 32. Rusty's in the club — [b]1,000[/b] pts | CM35: 36 | CN35: =CM35-CH35 -> 4
A36: [*] | B36: =IF(Mainframe!B35="","",INDEX(Mainframe!$B:$B,C36+1,1)) -> groovitude | C36: 34 | D36: =IF($B36="","",0+UPPER(Mainframe!C35)) -> 5000 | E36: =IF(D36="","",IF(NOT(ISNA(VLOOKUP(D36,Answers!A:D,4,FALSE))),VLOOKUP(D36,Answers!A:D,4,FALSE),"Help!")) -> 5 | G36: =IF(E36="","",IF(E36="XX",VLOOKUP("WRONG",Answers!A:D,4,FALSE),E36)+F36) -> 5 | H36: =IF($B36="","",0+UPPER(Mainframe!D35)) -> 21 | I36: =IF(H36="","",IF(NOT(ISNA(VLOOKUP(H36,Answers!E:H,4,FALSE))),VLOOKUP(H36,Answers!E:H,4,FALSE),"Help!")) -> 1000 | K36: =IF(I36="","",G36+IF(I36="XX",VLOOKUP("WRONG",Answers!E:H,4,FALSE),I36)+J36) -> 1005 | L36: =IF($B36="","",0+UPPER(Mainframe!E35)) -> 2001 | M36: =IF(L36="","",IF(NOT(ISNA(VLOOKUP(L36,Answers!I:L,4,FALSE))),VLOOKUP(L36,Answers!I:L,4,FALSE),"Help!")) -> 6 | N36: =IF(M36>500,-1000,0) -> 0 | O36: =IF(M36="","",K36+IF(M36="XX",VLOOKUP("WRONG",Answers!I:L,4,FALSE),M36)+N36) -> 1011 | P36: =IF($B36="","",0+UPPER(Mainframe!F35)) -> 1861 | Q36: =IF(P36="","",IF(NOT(ISNA(VLOOKUP(P36,Answers!M:P,4,FALSE))),VLOOKUP(P36,Answers!M:P,4,FALSE),"Help!")) -> 1000 | S36: =IF(Q36="","",O36+IF(Q36="XX",VLOOKUP("WRONG",Answers!M:P,4,FALSE),Q36)+R36) -> 2011 | T36: =IF($B36="","",0+UPPER(Mainframe!G35)) -> 5 | U36: =IF(T36="","",IF(NOT(ISNA(VLOOKUP(T36,Answers!Q:T,4,FALSE))),VLOOKUP(T36,Answers!Q:T,4,FALSE),"Help!")) -> 1000 | W36: =IF(U36="","",S36+IF(U36="XX",VLOOKUP("WRONG",Answers!Q:T,4,FALSE),U36)+V36) -> 3011 | X36: =IF($B36="","",0+UPPER(Mainframe!H35)) -> 4 | Y36: =IF(X36="","",IF(NOT(ISNA(VLOOKUP(X36,Answers!U:X,4,FALSE))),VLOOKUP(X36,Answers!U:X,4,FALSE),"Help!")) -> 6 | AA36: =IF(Y36="","",W36+IF(Y36="XX",VLOOKUP("WRONG",Answers!U:X,4,FALSE),Y36)+Z36) -> 3017 | AB36: =IF($B36="","",0+UPPER(Mainframe!I35)) -> 20 | AC36: =IF(AB36="","",IF(NOT(ISNA(VLOOKUP(AB36,Answers!Y:AB,4,FALSE))),VLOOKUP(AB36,Answers!Y:AB,4,FALSE),"Help!")) -> 13 | AE36: =IF(AC36="","",AA36+IF(AC36="XX",VLOOKUP("WRONG",Answers!Y:AB,4,FALSE),AC36)+AD36) -> 3030 | AF36: =IF($B36="","",0+UPPER(Mainframe!J35)) -> 1974 | AG36: =IF(AF36="","",IF(NOT(ISNA(VLOOKUP(AF36,Answers!AC:AF,4,FALSE))),VLOOKUP(AF36,Answers!AC:AF,4,FALSE),"Help!")) -> 8 | AI36: =IF(AG36="","",AE36+IF(AG36="XX",VLOOKUP("WRONG",Answers!AC:AF,4,FALSE),AG36)+AH36) -> 3038 | AJ36: =IF($B36="","",0+UPPER(Mainframe!K35)) -> 80 | AK36: =IF(AJ36="","",IF(NOT(ISNA(VLOOKUP(AJ36,Answers!AG:AJ,4,FALSE))),VLOOKUP(AJ36,Answers!AG:AJ,4,FALSE),"Help!")) -> 6 | AM36: =IF(AK36="","",AI36+IF(AK36="XX",VLOOKUP("WRONG",Answers!AG:AJ,4,FALSE),AK36)+AL36) -> 3044 | AN36: =IF($B36="","",0+UPPER(Mainframe!L35)) -> 5 | AO36: =IF(AN36="","",IF(NOT(ISNA(VLOOKUP(AN36,Answers!AK:AN,4,FALSE))),VLOOKUP(AN36,Answers!AK:AN,4,FALSE),"Help!")) -> 7 | AQ36: =IF(AO36="","",AM36+IF(AO36="XX",VLOOKUP("WRONG",Answers!AK:AN,4,FALSE),AO36)+AP36) -> 3051 | AR36: =IF($B36="","",0+UPPER(Mainframe!M35)) -> 2 | AS36: =IF(AR36="","",IF(NOT(ISNA(VLOOKUP(AR36,Answers!AO:AR,4,FALSE))),VLOOKUP(AR36,Answers!AO:AR,4,FALSE),"Help!")) -> 4 | AU36: =IF(AS36="","",AQ36+IF(AS36="XX",VLOOKUP("WRONG",Answers!AO:AR,4,FALSE),AS36)+AT36) -> 3055 | AV36: =IF($B36="","",0+UPPER(Mainframe!N35)) -> 4 | AW36: =IF(AV36="","",IF(NOT(ISNA(VLOOKUP(AV36,Answers!AS:AV,4,FALSE))),VLOOKUP(AV36,Answers!AS:AV,4,FALSE),"Help!")) -> 5 | AY36: =IF(AW36="","",AU36+IF(AW36="XX",VLOOKUP("WRONG",Answers!AS:AV,4,FALSE),AW36)+AX36) -> 3060 | AZ36: =IF($B36="","",0+UPPER(Mainframe!O35)) -> 438 | BA36: 50.47945205 | BB36: 1 | BC36: =IF($B36="","",LEFT(Mainframe!P35,SEARCH(".",Mainframe!P35)-1)) -> 3 | CH36: 34 | CI36: =IF(INDEX($B:$CE,ROW(),QNO*4)="XX","[b][u]"&INDEX($B:$CE,ROW(),QNO*4-1)&"[/u][/b]","[color=#BF0040]"&INDEX(OFFSET(Answers!C:C,0,(QNO-1)*4),MATCH(INDEX($A:$CB,ROW(),QNO*4),OFFSET(Answers!A:A,0,(QNO-1)*4),0))&"[/color]//[b]"&INDEX(OFFSET(Answers!B:B,0,(QNO-1)*4),MATCH(INDEX($A:$CB,ROW(),QNO*4),OFFSET(Answers!A:A,0,(QNO-1)*4),0))&"[/b] — [b]"&IF(INDEX($B:$CE,ROW(),QNO*4)=1,"Singleton!",CONCATENATE(INDEX($B:$CE,ROW(),QNO*4)," responses"))&"[/b]") -> [color=#BF0040]"When Worlds Collide", "Free", "How To Be a Human"[/color]//[b]POWERMAN [u]5000[/u][/b] — [b]5 responses[/b] | CJ36: groovitude | CK36: Yes | CL36: 34. groovitude — [b]5[/b] pts | CM36: 38 | CN36: 4
A37: [*] | B37: =IF(Mainframe!B36="","",INDEX(Mainframe!$B:$B,C37+1,1)) -> cmp146 | C37: 35 | D37: =IF($B37="","",0+UPPER(Mainframe!C36)) -> 40 | E37: =IF(D37="","",IF(NOT(ISNA(VLOOKUP(D37,Answers!A:D,4,FALSE))),VLOOKUP(D37,Answers!A:D,4,FALSE),"Help!")) -> 1000 | G37: =IF(E37="","",IF(E37="XX",VLOOKUP("WRONG",Answers!A:D,4,FALSE),E37)+F37) -> 1000 | H37: =IF($B37="","",0+UPPER(Mainframe!D36)) -> 21 | I37: =IF(H37="","",IF(NOT(ISNA(VLOOKUP(H37,Answers!E:H,4,FALSE))),VLOOKUP(H37,Answers!E:H,4,FALSE),"Help!")) -> 1000 | K37: =IF(I37="","",G37+IF(I37="XX",VLOOKUP("WRONG",Answers!E:H,4,FALSE),I37)+J37) -> 2000 | L37: =IF($B37="","",0+UPPER(Mainframe!E36)) -> 10 | M37: =IF(L37="","",IF(NOT(ISNA(VLOOKUP(L37,Answers!I:L,4,FALSE))),VLOOKUP(L37,Answers!I:L,4,FALSE),"Help!")) -> 10 | O37: =IF(M37="","",K37+IF(M37="XX",VLOOKUP("WRONG",Answers!I:L,4,FALSE),M37)+N37) -> 2010 | P37: =IF($B37="","",0+UPPER(Mainframe!F36)) -> 1861 | Q37: =IF(P37="","",IF(NOT(ISNA(VLOOKUP(P37,Answers!M:P,4,FALSE))),VLOOKUP(P37,Answers!M:P,4,FALSE),"Help!")) -> 1000 | S37: =IF(Q37="","",O37+IF(Q37="XX",VLOOKUP("WRONG",Answers!M:P,4,FALSE),Q37)+R37) -> 3010 | T37: =IF($B37="","",0+UPPER(Mainframe!G36)) -> 16 | U37: XX | W37: =IF(U37="","",S37+IF(U37="XX",VLOOKUP("WRONG",Answers!Q:T,4,FALSE),U37)+V37) -> 4017 | X37: =IF($B37="","",0+UPPER(Mainframe!H36)) -> 4 | Y37: =IF(X37="","",IF(NOT(ISNA(VLOOKUP(X37,Answers!U:X,4,FALSE))),VLOOKUP(X37,Answers!U:X,4,FALSE),"Help!")) -> 6 | AA37: =IF(Y37="","",W37+IF(Y37="XX",VLOOKUP("WRONG",Answers!U:X,4,FALSE),Y37)+Z37) -> 4023 | AB37: =IF($B37="","",0+UPPER(Mainframe!I36)) -> 11 | AC37: =IF(AB37="","",IF(NOT(ISNA(VLOOKUP(AB37,Answers!Y:AB,4,FALSE))),VLOOKUP(AB37,Answers!Y:AB,4,FALSE),"Help!")) -> 4 | AE37: =IF(AC37="","",AA37+IF(AC37="XX",VLOOKUP("WRONG",Answers!Y:AB,4,FALSE),AC37)+AD37) -> 4027 | AF37: =IF($B37="","",0+UPPER(Mainframe!J36)) -> 18 | AG37: =IF(AF37="","",IF(NOT(ISNA(VLOOKUP(AF37,Answers!AC:AF,4,FALSE))),VLOOKUP(AF37,Answers!AC:AF,4,FALSE),"Help!")) -> 10 | AI37: =IF(AG37="","",AE37+IF(AG37="XX",VLOOKUP("WRONG",Answers!AC:AF,4,FALSE),AG37)+AH37) -> 4037 | AJ37: =IF($B37="","",0+UPPER(Mainframe!K36)) -> 76 | AK37: =IF(AJ37="","",IF(NOT(ISNA(VLOOKUP(AJ37,Answers!AG:AJ,4,FALSE))),VLOOKUP(AJ37,Answers!AG:AJ,4,FALSE),"Help!")) -> 4 | AM37: =IF(AK37="","",AI37+IF(AK37="XX",VLOOKUP("WRONG",Answers!AG:AJ,4,FALSE),AK37)+AL37) -> 4041 | AN37: =IF($B37="","",0+UPPER(Mainframe!L36)) -> 49 | AO37: =IF(AN37="","",IF(NOT(ISNA(VLOOKUP(AN37,Answers!AK:AN,4,FALSE))),VLOOKUP(AN37,Answers!AK:AN,4,FALSE),"Help!")) -> 9 | AQ37: =IF(AO37="","",AM37+IF(AO37="XX",VLOOKUP("WRONG",Answers!AK:AN,4,FALSE),AO37)+AP37) -> 4050 | AR37: =IF($B37="","",0+UPPER(Mainframe!M36)) -> 6 | AS37: =IF(AR37="","",IF(NOT(ISNA(VLOOKUP(AR37,Answers!AO:AR,4,FALSE))),VLOOKUP(AR37,Answers!AO:AR,4,FALSE),"Help!")) -> 8 | AU37: =IF(AS37="","",AQ37+IF(AS37="XX",VLOOKUP("WRONG",Answers!AO:AR,4,FALSE),AS37)+AT37) -> 4058 | AV37: =IF($B37="","",0+UPPER(Mainframe!N36)) -> 10 | AW37: =IF(AV37="","",IF(NOT(ISNA(VLOOKUP(AV37,Answers!AS:AV,4,FALSE))),VLOOKUP(AV37,Answers!AS:AV,4,FALSE),"Help!")) -> 1000 | AX37: =IF(AW37>500,-1000,0) -> -1000 | AY37: =IF(AW37="","",AU37+IF(AW37="XX",VLOOKUP("WRONG",Answers!AS:AV,4,FALSE),AW37)+AX37) -> 4058 | AZ37: =IF($B37="","",0+UPPER(Mainframe!O36)) -> 502 | BA37: 13.52054795 | BB37: 1 | BC37: =IF($B37="","",LEFT(Mainframe!P36,SEARCH(".",Mainframe!P36)-1)) -> 12 | CH37: 35 | CI37: =IF(INDEX($B:$CE,ROW(),QNO*4)="XX","[b][u]"&INDEX($B:$CE,ROW(),QNO*4-1)&"[/u][/b]","[color=#BF0040]"&INDEX(OFFSET(Answers!C:C,0,(QNO-1)*4),MATCH(INDEX($A:$CB,ROW(),QNO*4),OFFSET(Answers!A:A,0,(QNO-1)*4),0))&"[/color]//[b]"&INDEX(OFFSET(Answers!B:B,0,(QNO-1)*4),MATCH(INDEX($A:$CB,ROW(),QNO*4),OFFSET(Answers!A:A,0,(QNO-1)*4),0))&"[/b] — [b]"&IF(INDEX($B:$CE,ROW(),QNO*4)=1,"Singleton!",CONCATENATE(INDEX($B:$CE,ROW(),QNO*4)," responses"))&"[/b]") -> [color=#BF0040]"King", "Red Red Wine", "(I Can't Help) Falling in Love With You"[/color]//[b]UB[u]40[/u][/b] — [b]1000 responses[/b] | CJ37: cmp146 | CK37: Yes | CL37: 35. cmp146 — [b]1,000[/b] pts | CM37: 53 | CN37: 18
A38: [*] | B38: =IF(Mainframe!B37="","",INDEX(Mainframe!$B:$B,C38+1,1)) -> psgola | C38: 36 | D38: =IF($B38="","",0+UPPER(Mainframe!C37)) -> 5 | E38: =IF(D38="","",IF(NOT(ISNA(VLOOKUP(D38,Answers!A:D,4,FALSE))),VLOOKUP(D38,Answers!A:D,4,FALSE),"Help!")) -> 5 | F38: =IF(E38>500,-1000,0) -> 0 | G38: =IF(E38="","",IF(E38="XX",VLOOKUP("WRONG",Answers!A:D,4,FALSE),E38)+F38) -> 5 | H38: =IF($B38="","",0+UPPER(Mainframe!D37)) -> 21 | I38: =IF(H38="","",IF(NOT(ISNA(VLOOKUP(H38,Answers!E:H,4,FALSE))),VLOOKUP(H38,Answers!E:H,4,FALSE),"Help!")) -> 1000 | K38: =IF(I38="","",G38+IF(I38="XX",VLOOKUP("WRONG",Answers!E:H,4,FALSE),I38)+J38) -> 1005 | L38: =IF($B38="","",0+UPPER(Mainframe!E37)) -> 300 | M38: =IF(L38="","",IF(NOT(ISNA(VLOOKUP(L38,Answers!I:L,4,FALSE))),VLOOKUP(L38,Answers!I:L,4,FALSE),"Help!")) -> 11 | O38: =IF(M38="","",K38+IF(M38="XX",VLOOKUP("WRONG",Answers!I:L,4,FALSE),M38)+N38) -> 1016 | P38: =IF($B38="","",0+UPPER(Mainframe!F37)) -> 2003 | Q38: =IF(P38="","",IF(NOT(ISNA(VLOOKUP(P38,Answers!M:P,4,FALSE))),VLOOKUP(P38,Answers!M:P,4,FALSE),"Help!")) -> 8 | S38: =IF(Q38="","",O38+IF(Q38="XX",VLOOKUP("WRONG",Answers!M:P,4,FALSE),Q38)+R38) -> 1024 | T38: =IF($B38="","",0+UPPER(Mainframe!G37)) -> 5 | U38: =IF(T38="","",IF(NOT(ISNA(VLOOKUP(T38,Answers!Q:T,4,FALSE))),VLOOKUP(T38,Answers!Q:T,4,FALSE),"Help!")) -> 1000 | W38: =IF(U38="","",S38+IF(U38="XX",VLOOKUP("WRONG",Answers!Q:T,4,FALSE),U38)+V38) -> 2024 | X38: =IF($B38="","",0+UPPER(Mainframe!H37)) -> 22 | Y38: =IF(X38="","",IF(NOT(ISNA(VLOOKUP(X38,Answers!U:X,4,FALSE))),VLOOKUP(X38,Answers!U:X,4,FALSE),"Help!")) -> 1000 | AA38: =IF(Y38="","",W38+IF(Y38="XX",VLOOKUP("WRONG",Answers!U:X,4,FALSE),Y38)+Z38) -> 3024 | AB38: =IF($B38="","",0+UPPER(Mainframe!I37)) -> 76 | AC38: =IF(AB38="","",IF(NOT(ISNA(VLOOKUP(AB38,Answers!Y:AB,4,FALSE))),VLOOKUP(AB38,Answers!Y:AB,4,FALSE),"Help!")) -> 1000 | AE38: =IF(AC38="","",AA38+IF(AC38="XX",VLOOKUP("WRONG",Answers!Y:AB,4,FALSE),AC38)+AD38) -> 4024 | AF38: =IF($B38="","",0+UPPER(Mainframe!J37)) -> 538 | AG38: =IF(AF38="","",IF(NOT(ISNA(VLOOKUP(AF38,Answers!AC:AF,4,FALSE))),VLOOKUP(AF38,Answers!AC:AF,4,FALSE),"Help!")) -> 4 | AI38: =IF(AG38="","",AE38+IF(AG38="XX",VLOOKUP("WRONG",Answers!AC:AF,4,FALSE),AG38)+AH38) -> 4028 | AJ38: =IF($B38="","",0+UPPER(Mainframe!K37)) -> 5 | AK38: =IF(AJ38="","",IF(NOT(ISNA(VLOOKUP(AJ38,Answers!AG:AJ,4,FALSE))),VLOOKUP(AJ38,Answers!AG:AJ,4,FALSE),"Help!")) -> 9 | AM38: =IF(AK38="","",AI38+IF(AK38="XX",VLOOKUP("WRONG",Answers!AG:AJ,4,FALSE),AK38)+AL38) -> 4037 | AN38: =IF($B38="","",0+UPPER(Mainframe!L37)) -> 67 | AO38: =IF(AN38="","",IF(NOT(ISNA(VLOOKUP(AN38,Answers!AK:AN,4,FALSE))),VLOOKUP(AN38,Answers!AK:AN,4,FALSE),"Help!")) -> 1000 | AQ38: =IF(AO38="","",AM38+IF(AO38="XX",VLOOKUP("WRONG",Answers!AK:AN,4,FALSE),AO38)+AP38) -> 5037 | AR38: =IF($B38="","",0+UPPER(Mainframe!M37)) -> 1000 | AS38: =IF(AR38="","",IF(NOT(ISNA(VLOOKUP(AR38,Answers!AO:AR,4,FALSE))),VLOOKUP(AR38,Answers!AO:AR,4,FALSE),"Help!")) -> 6 | AU38: =IF(AS38="","",AQ38+IF(AS38="XX",VLOOKUP("WRONG",Answers!AO:AR,4,FALSE),AS38)+AT38) -> 5043 | AV38: =IF($B38="","",0+UPPER(Mainframe!N37)) -> 5000 | AW38: =IF(AV38="","",IF(NOT(ISNA(VLOOKUP(AV38,Answers!AS:AV,4,FALSE))),VLOOKUP(AV38,Answers!AS:AV,4,FALSE),"Help!")) -> 9 | AY38: =IF(AW38="","",AU38+IF(AW38="XX",VLOOKUP("WRONG",Answers!AS:AV,4,FALSE),AW38)+AX38) -> 5052 | AZ38: =IF($B38="","",0+UPPER(Mainframe!O37)) -> 365 | BA38: 123.4794521 | BB38: 1 | BC38: =IF($B38="","",LEFT(Mainframe!P37,SEARCH(".",Mainframe!P37)-1)) -> 1 | CH38: 36 | CI38: =IF(INDEX($B:$CE,ROW(),QNO*4)="XX","[b][u]"&INDEX($B:$CE,ROW(),QNO*4-1)&"[/u][/b]","[color=#BF0040]"&INDEX(OFFSET(Answers!C:C,0,(QNO-1)*4),MATCH(INDEX($A:$CB,ROW(),QNO*4),OFFSET(Answers!A:A,0,(QNO-1)*4),0))&"[/color]//[b]"&INDEX(OFFSET(Answers!B:B,0,(QNO-1)*4),MATCH(INDEX($A:$CB,ROW(),QNO*4),OFFSET(Answers!A:A,0,(QNO-1)*4),0))&"[/b] — [b]"&IF(INDEX($B:$CE,ROW(),QNO*4)=1,"Singleton!",CONCATENATE(INDEX($B:$CE,ROW(),QNO*4)," responses"))&"[/b]") -> [color=#BF0040]"She Will Be Loved", "Makes Me Wonder", "Moves like Jagger"[/color]//[b]MAROON [u]5[/u][/b] — [b]5 responses[/b] | CJ38: psgola [[b][color=#8000BF]FOX[/color][/b]] | CK38: Yes | CL38: 36. psgola — [b]5[/b] pts | CM38: 63 | CN38: 27
A39: [*] | B39: =IF(Mainframe!B38="","",INDEX(Mainframe!$B:$B,C39+1,1)) -> mennoknight | C39: 37 | D39: =IF($B39="","",0+UPPER(Mainframe!C38)) -> 10000 | E39: =IF(D39="","",IF(NOT(ISNA(VLOOKUP(D39,Answers!A:D,4,FALSE))),VLOOKUP(D39,Answers!A:D,4,FALSE),"Help!")) -> 6 | G39: =IF(E39="","",IF(E39="XX",VLOOKUP("WRONG",Answers!A:D,4,FALSE),E39)+F39) -> 6 | H39: =IF($B39="","",0+UPPER(Mainframe!D38)) -> 22 | I39: =IF(H39="","",IF(NOT(ISNA(VLOOKUP(H39,Answers!E:H,4,FALSE))),VLOOKUP(H39,Answers!E:H,4,FALSE),"Help!")) -> 11 | K39: =IF(I39="","",G39+IF(I39="XX",VLOOKUP("WRONG",Answers!E:H,4,FALSE),I39)+J39) -> 17 | L39: =IF($B39="","",0+UPPER(Mainframe!E38)) -> 300 | M39: =IF(L39="","",IF(NOT(ISNA(VLOOKUP(L39,Answers!I:L,4,FALSE))),VLOOKUP(L39,Answers!I:L,4,FALSE),"Help!")) -> 11 | O39: =IF(M39="","",K39+IF(M39="XX",VLOOKUP("WRONG",Answers!I:L,4,FALSE),M39)+N39) -> 28 | P39: =IF($B39="","",0+UPPER(Mainframe!F38)) -> 1964 | Q39: =IF(P39="","",IF(NOT(ISNA(VLOOKUP(P39,Answers!M:P,4,FALSE))),VLOOKUP(P39,Answers!M:P,4,FALSE),"Help!")) -> 3 | R39: =IF(Q39>500,-1000,0) -> 0 | S39: =IF(Q39="","",O39+IF(Q39="XX",VLOOKUP("WRONG",Answers!M:P,4,FALSE),Q39)+R39) -> 31 | T39: =IF($B39="","",0+UPPER(Mainframe!G38)) -> 8 | U39: =IF(T39="","",IF(NOT(ISNA(VLOOKUP(T39,Answers!Q:T,4,FALSE))),VLOOKUP(T39,Answers!Q:T,4,FALSE),"Help!")) -> 6 | W39: =IF(U39="","",S39+IF(U39="XX",VLOOKUP("WRONG",Answers!Q:T,4,FALSE),U39)+V39) -> 37 | X39: =IF($B39="","",0+UPPER(Mainframe!H38)) -> 66 | Y39: XX | AA39: =IF(Y39="","",W39+IF(Y39="XX",VLOOKUP("WRONG",Answers!U:X,4,FALSE),Y39)+Z39) -> 1044 | AB39: =IF($B39="","",0+UPPER(Mainframe!I38)) -> 76 | AC39: =IF(AB39="","",IF(NOT(ISNA(VLOOKUP(AB39,Answers!Y:AB,4,FALSE))),VLOOKUP(AB39,Answers!Y:AB,4,FALSE),"Help!")) -> 1000 | AE39: =IF(AC39="","",AA39+IF(AC39="XX",VLOOKUP("WRONG",Answers!Y:AB,4,FALSE),AC39)+AD39) -> 2044 | AF39: =IF($B39="","",0+UPPER(Mainframe!J38)) -> 9 | AG39: =IF(AF39="","",IF(NOT(ISNA(VLOOKUP(AF39,Answers!AC:AF,4,FALSE))),VLOOKUP(AF39,Answers!AC:AF,4,FALSE),"Help!")) -> 1000 | AI39: =IF(AG39="","",AE39+IF(AG39="XX",VLOOKUP("WRONG",Answers!AC:AF,4,FALSE),AG39)+AH39) -> 3044 | AJ39: =IF($B39="","",0+UPPER(Mainframe!K38)) -> 5 | AK39: =IF(AJ39="","",IF(NOT(ISNA(VLOOKUP(AJ39,Answers!AG:AJ,4,FALSE))),VLOOKUP(AJ39,Answers!AG:AJ,4,FALSE),"Help!")) -> 9 | AM39: =IF(AK39="","",AI39+IF(AK39="XX",VLOOKUP("WRONG",Answers!AG:AJ,4,FALSE),AK39)+AL39) -> 3053 | AN39: =IF($B39="","",0+UPPER(Mainframe!L38)) -> 60 | AO39: =IF(AN39="","",IF(NOT(ISNA(VLOOKUP(AN39,Answers!AK:AN,4,FALSE))),VLOOKUP(AN39,Answers!AK:AN,4,FALSE),"Help!")) -> 4 | AQ39: =IF(AO39="","",AM39+IF(AO39="XX",VLOOKUP("WRONG",Answers!AK:AN,4,FALSE),AO39)+AP39) -> 3057 | AR39: =IF($B39="","",0+UPPER(Mainframe!M38)) -> 6 | AS39: =IF(AR39="","",IF(NOT(ISNA(VLOOKUP(AR39,Answers!AO:AR,4,FALSE))),VLOOKUP(AR39,Answers!AO:AR,4,FALSE),"Help!")) -> 8 | AU39: =IF(AS39="","",AQ39+IF(AS39="XX",VLOOKUP("WRONG",Answers!AO:AR,4,FALSE),AS39)+AT39) -> 3065 | AV39: =IF($B39="","",0+UPPER(Mainframe!N38)) -> 40 | AW39: =IF(AV39="","",IF(NOT(ISNA(VLOOKUP(AV39,Answers!AS:AV,4,FALSE))),VLOOKUP(AV39,Answers!AS:AV,4,FALSE),"Help!")) -> 4 | AY39: =IF(AW39="","",AU39+IF(AW39="XX",VLOOKUP("WRONG",Answers!AS:AV,4,FALSE),AW39)+AX39) -> 3069 | AZ39: =IF($B39="","",0+UPPER(Mainframe!O38)) -> 500 | BA39: 11.52054795 | BB39: 1 | BC39: =IF($B39="","",LEFT(Mainframe!P38,SEARCH(".",Mainframe!P38)-1)) -> 4 | CH39: 37 | CI39: =IF(INDEX($B:$CE,ROW(),QNO*4)="XX","[b][u]"&INDEX($B:$CE,ROW(),QNO*4-1)&"[/u][/b]","[color=#BF0040]"&INDEX(OFFSET(Answers!C:C,0,(QNO-1)*4),MATCH(INDEX($A:$CB,ROW(),QNO*4),OFFSET(Answers!A:A,0,(QNO-1)*4),0))&"[/color]//[b]"&INDEX(OFFSET(Answers!B:B,0,(QNO-1)*4),MATCH(INDEX($A:$CB,ROW(),QNO*4),OFFSET(Answers!A:A,0,(QNO-1)*4),0))&"[/b] — [b]"&IF(INDEX($B:$CE,ROW(),QNO*4)=1,"Singleton!",CONCATENATE(INDEX($B:$CE,ROW(),QNO*4)," responses"))&"[/b]") -> [color=#BF0040]"What's the Matter Here?", "Trouble Me", "Because the Night" (on [i]MTV Unplugged[/i])[/color]//[b][u]10,000[/u] MANIACS[/b] — [b]6 responses[/b] | CJ39: mennoknight | CK39: Yes | CL39: 37. mennoknight — [b]6[/b] pts | CM39: 43 | CN39: 6
A40: [*] | B40: =IF(Mainframe!B39="","",INDEX(Mainframe!$B:$B,C40+1,1)) -> econgator | C40: 38 | D40: =IF($B40="","",0+UPPER(Mainframe!C39)) -> 3 | E40: =IF(D40="","",IF(NOT(ISNA(VLOOKUP(D40,Answers!A:D,4,FALSE))),VLOOKUP(D40,Answers!A:D,4,FALSE),"Help!")) -> 11 | G40: =IF(E40="","",IF(E40="XX",VLOOKUP("WRONG",Answers!A:D,4,FALSE),E40)+F40) -> 11 | H40: =IF($B40="","",0+UPPER(Mainframe!D39)) -> 121 | I40: =IF(H40="","",IF(NOT(ISNA(VLOOKUP(H40,Answers!E:H,4,FALSE))),VLOOKUP(H40,Answers!E:H,4,FALSE),"Help!")) -> 8 | K40: =IF(I40="","",G40+IF(I40="XX",VLOOKUP("WRONG",Answers!E:H,4,FALSE),I40)+J40) -> 19 | L40: =IF($B40="","",0+UPPER(Mainframe!E39)) -> 101 | M40: =IF(L40="","",IF(NOT(ISNA(VLOOKUP(L40,Answers!I:L,4,FALSE))),VLOOKUP(L40,Answers!I:L,4,FALSE),"Help!")) -> 7 | O40: =IF(M40="","",K40+IF(M40="XX",VLOOKUP("WRONG",Answers!I:L,4,FALSE),M40)+N40) -> 26 | P40: =IF($B40="","",0+UPPER(Mainframe!F39)) -> 1066 | Q40: =IF(P40="","",IF(NOT(ISNA(VLOOKUP(P40,Answers!M:P,4,FALSE))),VLOOKUP(P40,Answers!M:P,4,FALSE),"Help!")) -> 2 | S40: =IF(Q40="","",O40+IF(Q40="XX",VLOOKUP("WRONG",Answers!M:P,4,FALSE),Q40)+R40) -> 28 | T40: =IF($B40="","",0+UPPER(Mainframe!G39)) -> 92 | U40: =IF(T40="","",IF(NOT(ISNA(VLOOKUP(T40,Answers!Q:T,4,FALSE))),VLOOKUP(T40,Answers!Q:T,4,FALSE),"Help!")) -> 3 | W40: =IF(U40="","",S40+IF(U40="XX",VLOOKUP("WRONG",Answers!Q:T,4,FALSE),U40)+V40) -> 31 | X40: =IF($B40="","",0+UPPER(Mainframe!H39)) -> 451 | Y40: =IF(X40="","",IF(NOT(ISNA(VLOOKUP(X40,Answers!U:X,4,FALSE))),VLOOKUP(X40,Answers!U:X,4,FALSE),"Help!")) -> 8 | AA40: =IF(Y40="","",W40+IF(Y40="XX",VLOOKUP("WRONG",Answers!U:X,4,FALSE),Y40)+Z40) -> 39 | AB40: =IF($B40="","",0+UPPER(Mainframe!I39)) -> 8 | AC40: =IF(AB40="","",IF(NOT(ISNA(VLOOKUP(AB40,Answers!Y:AB,4,FALSE))),VLOOKUP(AB40,Answers!Y:AB,4,FALSE),"Help!")) -> 2 | AE40: =IF(AC40="","",AA40+IF(AC40="XX",VLOOKUP("WRONG",Answers!Y:AB,4,FALSE),AC40)+AD40) -> 41 | AF40: =IF($B40="","",0+UPPER(Mainframe!J39)) -> 49 | AG40: =IF(AF40="","",IF(NOT(ISNA(VLOOKUP(AF40,Answers!AC:AF,4,FALSE))),VLOOKUP(AF40,Answers!AC:AF,4,FALSE),"Help!")) -> 10 | AI40: =IF(AG40="","",AE40+IF(AG40="XX",VLOOKUP("WRONG",Answers!AC:AF,4,FALSE),AG40)+AH40) -> 51 | AJ40: =IF($B40="","",0+UPPER(Mainframe!K39)) -> 75 | AK40: =IF(AJ40="","",IF(NOT(ISNA(VLOOKUP(AJ40,Answers!AG:AJ,4,FALSE))),VLOOKUP(AJ40,Answers!AG:AJ,4,FALSE),"Help!")) -> 4 | AM40: =IF(AK40="","",AI40+IF(AK40="XX",VLOOKUP("WRONG",Answers!AG:AJ,4,FALSE),AK40)+AL40) -> 55 | AN40: =IF($B40="","",0+UPPER(Mainframe!L39)) -> 5 | AO40: =IF(AN40="","",IF(NOT(ISNA(VLOOKUP(AN40,Answers!AK:AN,4,FALSE))),VLOOKUP(AN40,Answers!AK:AN,4,FALSE),"Help!")) -> 7 | AQ40: =IF(AO40="","",AM40+IF(AO40="XX",VLOOKUP("WRONG",Answers!AK:AN,4,FALSE),AO40)+AP40) -> 62 | AR40: =IF($B40="","",0+UPPER(Mainframe!M39)) -> 1000000 | AS40: =IF(AR40="","",IF(NOT(ISNA(VLOOKUP(AR40,Answers!AO:AR,4,FALSE))),VLOOKUP(AR40,Answers!AO:AR,4,FALSE),"Help!")) -> 1 | AU40: =IF(AS40="","",AQ40+IF(AS40="XX",VLOOKUP("WRONG",Answers!AO:AR,4,FALSE),AS40)+AT40) -> 63 | AV40: =IF($B40="","",0+UPPER(Mainframe!N39)) -> 666 | AW40: =IF(AV40="","",IF(NOT(ISNA(VLOOKUP(AV40,Answers!AS:AV,4,FALSE))),VLOOKUP(AV40,Answers!AS:AV,4,FALSE),"Help!")) -> 5 | AX40: =IF(AW40>500,-1000,0) -> 0 | AY40: =IF(AW40="","",AU40+IF(AW40="XX",VLOOKUP("WRONG",Answers!AS:AV,4,FALSE),AW40)+AX40) -> 68 | AZ40: =IF($B40="","",0+UPPER(Mainframe!O39)) -> 295 | BA40: 193.4794521 | BB40: 1 | BC40: =IF($B40="","",LEFT(Mainframe!P39,SEARCH(".",Mainframe!P39)-1)) -> 12 | CH40: 38 | CI40: =IF(INDEX($B:$CE,ROW(),QNO*4)="XX","[b][u]"&INDEX($B:$CE,ROW(),QNO*4-1)&"[/u][/b]","[color=#BF0040]"&INDEX(OFFSET(Answers!C:C,0,(QNO-1)*4),MATCH(INDEX($A:$CB,ROW(),QNO*4),OFFSET(Answers!A:A,0,(QNO-1)*4),0))&"[/color]//[b]"&INDEX(OFFSET(Answers!B:B,0,(QNO-1)*4),MATCH(INDEX($A:$CB,ROW(),QNO*4),OFFSET(Answers!A:A,0,(QNO-1)*4),0))&"[/b] — [b]"&IF(INDEX($B:$CE,ROW(),QNO*4)=1,"Singleton!",CONCATENATE(INDEX($B:$CE,ROW(),QNO*4)," responses"))&"[/b]") -> [color=#BF0040]"Mama Told Me (Not to Come)", "Joy to the World", "Black and White"[/color]//[b][u]THREE[/u] DOG NIGHT[/b] — [b]11 responses[/b] | CJ40: econgator | CK40: Yes | CL40: 38. econgator — [b]11[/b] pts | CM40: 4 | CN40: -34
A41: [*] | B41: =IF(Mainframe!B40="","",INDEX(Mainframe!$B:$B,C41+1,1)) -> Caboom | C41: 39 | D41: =IF($B41="","",0+UPPER(Mainframe!C40)) -> 1 | E41: =IF(D41="","",IF(NOT(ISNA(VLOOKUP(D41,Answers!A:D,4,FALSE))),VLOOKUP(D41,Answers!A:D,4,FALSE),"Help!")) -> 8 | G41: =IF(E41="","",IF(E41="XX",VLOOKUP("WRONG",Answers!A:D,4,FALSE),E41)+F41) -> 8 | H41: =IF($B41="","",0+UPPER(Mainframe!D40)) -> 21 | I41: =IF(H41="","",IF(NOT(ISNA(VLOOKUP(H41,Answers!E:H,4,FALSE))),VLOOKUP(H41,Answers!E:H,4,FALSE),"Help!")) -> 1000 | K41: =IF(I41="","",G41+IF(I41="XX",VLOOKUP("WRONG",Answers!E:H,4,FALSE),I41)+J41) -> 1008 | L41: =IF($B41="","",0+UPPER(Mainframe!E40)) -> 300 | M41: =IF(L41="","",IF(NOT(ISNA(VLOOKUP(L41,Answers!I:L,4,FALSE))),VLOOKUP(L41,Answers!I:L,4,FALSE),"Help!")) -> 11 | O41: =IF(M41="","",K41+IF(M41="XX",VLOOKUP("WRONG",Answers!I:L,4,FALSE),M41)+N41) -> 1019 | P41: =IF($B41="","",0+UPPER(Mainframe!F40)) -> 1815 | Q41: =IF(P41="","",IF(NOT(ISNA(VLOOKUP(P41,Answers!M:P,4,FALSE))),VLOOKUP(P41,Answers!M:P,4,FALSE),"Help!")) -> 10 | S41: =IF(Q41="","",O41+IF(Q41="XX",VLOOKUP("WRONG",Answers!M:P,4,FALSE),Q41)+R41) -> 1029 | T41: =IF($B41="","",0+UPPER(Mainframe!G40)) -> 106 | U41: =IF(T41="","",IF(NOT(ISNA(VLOOKUP(T41,Answers!Q:T,4,FALSE))),VLOOKUP(T41,Answers!Q:T,4,FALSE),"Help!")) -> 2 | W41: =IF(U41="","",S41+IF(U41="XX",VLOOKUP("WRONG",Answers!Q:T,4,FALSE),U41)+V41) -> 1031 | X41: =IF($B41="","",0+UPPER(Mainframe!H40)) -> 22 | Y41: =IF(X41="","",IF(NOT(ISNA(VLOOKUP(X41,Answers!U:X,4,FALSE))),VLOOKUP(X41,Answers!U:X,4,FALSE),"Help!")) -> 1000 | AA41: =IF(Y41="","",W41+IF(Y41="XX",VLOOKUP("WRONG",Answers!U:X,4,FALSE),Y41)+Z41) -> 2031 | AB41: =IF($B41="","",0+UPPER(Mainframe!I40)) -> 16 | AC41: XX | AE41: =IF(AC41="","",AA41+IF(AC41="XX",VLOOKUP("WRONG",Answers!Y:AB,4,FALSE),AC41)+AD41) -> 3038 | AF41: =IF($B41="","",0+UPPER(Mainframe!J40)) -> 9 | AG41: =IF(AF41="","",IF(NOT(ISNA(VLOOKUP(AF41,Answers!AC:AF,4,FALSE))),VLOOKUP(AF41,Answers!AC:AF,4,FALSE),"Help!")) -> 1000 | AI41: =IF(AG41="","",AE41+IF(AG41="XX",VLOOKUP("WRONG",Answers!AC:AF,4,FALSE),AG41)+AH41) -> 4038 | AJ41: =IF($B41="","",0+UPPER(Mainframe!K40)) -> 3 | AK41: XX | AL41: =IF(AK41>500,-1000,0) -> -1000 | AM41: =IF(AK41="","",AI41+IF(AK41="XX",VLOOKUP("WRONG",Answers!AG:AJ,4,FALSE),AK41)+AL41) -> 4045 | AN41: =IF($B41="","",0+UPPER(Mainframe!L40)) -> 22 | AO41: =IF(AN41="","",IF(NOT(ISNA(VLOOKUP(AN41,Answers!AK:AN,4,FALSE))),VLOOKUP(AN41,Answers!AK:AN,4,FALSE),"Help!")) -> 6 | AQ41: =IF(AO41="","",AM41+IF(AO41="XX",VLOOKUP("WRONG",Answers!AK:AN,4,FALSE),AO41)+AP41) -> 4051 | AR41: =IF($B41="","",0+UPPER(Mainframe!M40)) -> 50 | AS41: =IF(AR41="","",IF(NOT(ISNA(VLOOKUP(AR41,Answers!AO:AR,4,FALSE))),VLOOKUP(AR41,Answers!AO:AR,4,FALSE),"Help!")) -> 5 | AU41: =IF(AS41="","",AQ41+IF(AS41="XX",VLOOKUP("WRONG",Answers!AO:AR,4,FALSE),AS41)+AT41) -> 4056 | AV41: =IF($B41="","",0+UPPER(Mainframe!N40)) -> 10 | AW41: =IF(AV41="","",IF(NOT(ISNA(VLOOKUP(AV41,Answers!AS:AV,4,FALSE))),VLOOKUP(AV41,Answers!AS:AV,4,FALSE),"Help!")) -> 1000 | AY41: =IF(AW41="","",AU41+IF(AW41="XX",VLOOKUP("WRONG",Answers!AS:AV,4,FALSE),AW41)+AX41) -> 5056 | AZ41: =IF($B41="","",0+UPPER(Mainframe!O40)) -> 501 | BA41: 12.52054795 | BB41: 1 | BC41: =IF($B41="","",LEFT(Mainframe!P40,SEARCH(".",Mainframe!P40)-1)) -> 9 | CH41: 39 | CI41: =IF(INDEX($B:$CE,ROW(),QNO*4)="XX","[b][u]"&INDEX($B:$CE,ROW(),QNO*4-1)&"[/u][/b]","[color=#BF0040]"&INDEX(OFFSET(Answers!C:C,0,(QNO-1)*4),MATCH(INDEX($A:$CB,ROW(),QNO*4),OFFSET(Answers!A:A,0,(QNO-1)*4),0))&"[/color]//[b]"&INDEX(OFFSET(Answers!B:B,0,(QNO-1)*4),MATCH(INDEX($A:$CB,ROW(),QNO*4),OFFSET(Answers!A:A,0,(QNO-1)*4),0))&"[/b] — [b]"&IF(INDEX($B:$CE,ROW(),QNO*4)=1,"Singleton!",CONCATENATE(INDEX($B:$CE,ROW(),QNO*4)," responses"))&"[/b]") -> [color=#BF0040]"What Makes You Beautiful", "Little Things", "Best Song Ever"[/color]//[b][u]ONE[/u] DIRECTION[/b] — [b]8 responses[/b] | CJ41: Caboom | CK41: Yes | CL41: 39. Caboom — [b]8[/b] pts | CM41: 65 | CN41: 26
A42: [*] | B42: =IF(Mainframe!B41="","",INDEX(Mainframe!$B:$B,C42+1,1)) -> dnbguy | C42: 40 | D42: =IF($B42="","",0+UPPER(Mainframe!C41)) -> 20 | E42: =IF(D42="","",IF(NOT(ISNA(VLOOKUP(D42,Answers!A:D,4,FALSE))),VLOOKUP(D42,Answers!A:D,4,FALSE),"Help!")) -> 6 | G42: =IF(E42="","",IF(E42="XX",VLOOKUP("WRONG",Answers!A:D,4,FALSE),E42)+F42) -> 6 | H42: =IF($B42="","",0+UPPER(Mainframe!D41)) -> 31 | I42: XX | K42: =IF(I42="","",G42+IF(I42="XX",VLOOKUP("WRONG",Answers!E:H,4,FALSE),I42)+J42) -> 1013 | L42: =IF($B42="","",0+UPPER(Mainframe!E41)) -> 10 | M42: =IF(L42="","",IF(NOT(ISNA(VLOOKUP(L42,Answers!I:L,4,FALSE))),VLOOKUP(L42,Answers!I:L,4,FALSE),"Help!")) -> 10 | O42: =IF(M42="","",K42+IF(M42="XX",VLOOKUP("WRONG",Answers!I:L,4,FALSE),M42)+N42) -> 1023 | P42: =IF($B42="","",0+UPPER(Mainframe!F41)) -> 2003 | Q42: =IF(P42="","",IF(NOT(ISNA(VLOOKUP(P42,Answers!M:P,4,FALSE))),VLOOKUP(P42,Answers!M:P,4,FALSE),"Help!")) -> 8 | R42: =IF(Q42>500,-1000,0) -> 0 | S42: =IF(Q42="","",O42+IF(Q42="XX",VLOOKUP("WRONG",Answers!M:P,4,FALSE),Q42)+R42) -> 1031 | T42: =IF($B42="","",0+UPPER(Mainframe!G41)) -> 6 | U42: =IF(T42="","",IF(NOT(ISNA(VLOOKUP(T42,Answers!Q:T,4,FALSE))),VLOOKUP(T42,Answers!Q:T,4,FALSE),"Help!")) -> 9 | W42: =IF(U42="","",S42+IF(U42="XX",VLOOKUP("WRONG",Answers!Q:T,4,FALSE),U42)+V42) -> 1040 | X42: =IF($B42="","",0+UPPER(Mainframe!H41)) -> 12 | Y42: =IF(X42="","",IF(NOT(ISNA(VLOOKUP(X42,Answers!U:X,4,FALSE))),VLOOKUP(X42,Answers!U:X,4,FALSE),"Help!")) -> 5 | AA42: =IF(Y42="","",W42+IF(Y42="XX",VLOOKUP("WRONG",Answers!U:X,4,FALSE),Y42)+Z42) -> 1045 | AB42: =IF($B42="","",0+UPPER(Mainframe!I41)) -> 6 | AC42: =IF(AB42="","",IF(NOT(ISNA(VLOOKUP(AB42,Answers!Y:AB,4,FALSE))),VLOOKUP(AB42,Answers!Y:AB,4,FALSE),"Help!")) -> 4 | AE42: =IF(AC42="","",AA42+IF(AC42="XX",VLOOKUP("WRONG",Answers!Y:AB,4,FALSE),AC42)+AD42) -> 1049 | AF42: =IF($B42="","",0+UPPER(Mainframe!J41)) -> 202 | AG42: =IF(AF42="","",IF(NOT(ISNA(VLOOKUP(AF42,Answers!AC:AF,4,FALSE))),VLOOKUP(AF42,Answers!AC:AF,4,FALSE),"Help!")) -> 10 | AI42: =IF(AG42="","",AE42+IF(AG42="XX",VLOOKUP("WRONG",Answers!AC:AF,4,FALSE),AG42)+AH42) -> 1059 | AJ42: =IF($B42="","",0+UPPER(Mainframe!K41)) -> 84 | AK42: =IF(AJ42="","",IF(NOT(ISNA(VLOOKUP(AJ42,Answers!AG:AJ,4,FALSE))),VLOOKUP(AJ42,Answers!AG:AJ,4,FALSE),"Help!")) -> 1000 | AM42: =IF(AK42="","",AI42+IF(AK42="XX",VLOOKUP("WRONG",Answers!AG:AJ,4,FALSE),AK42)+AL42) -> 2059 | AN42: =IF($B42="","",0+UPPER(Mainframe!L41)) -> 67 | AO42: =IF(AN42="","",IF(NOT(ISNA(VLOOKUP(AN42,Answers!AK:AN,4,FALSE))),VLOOKUP(AN42,Answers!AK:AN,4,FALSE),"Help!")) -> 1000 | AQ42: =IF(AO42="","",AM42+IF(AO42="XX",VLOOKUP("WRONG",Answers!AK:AN,4,FALSE),AO42)+AP42) -> 3059 | AR42: =IF($B42="","",0+UPPER(Mainframe!M41)) -> 8 | AS42: =IF(AR42="","",IF(NOT(ISNA(VLOOKUP(AR42,Answers!AO:AR,4,FALSE))),VLOOKUP(AR42,Answers!AO:AR,4,FALSE),"Help!")) -> 6 | AU42: =IF(AS42="","",AQ42+IF(AS42="XX",VLOOKUP("WRONG",Answers!AO:AR,4,FALSE),AS42)+AT42) -> 3065 | AV42: =IF($B42="","",0+UPPER(Mainframe!N41)) -> 10 | AW42: =IF(AV42="","",IF(NOT(ISNA(VLOOKUP(AV42,Answers!AS:AV,4,FALSE))),VLOOKUP(AV42,Answers!AS:AV,4,FALSE),"Help!")) -> 1000 | AY42: =IF(AW42="","",AU42+IF(AW42="XX",VLOOKUP("WRONG",Answers!AS:AV,4,FALSE),AW42)+AX42) -> 4065 | AZ42: =IF($B42="","",0+UPPER(Mainframe!O41)) -> 500 | BA42: 11.52054795 | BB42: 1 | BC42: =IF($B42="","",LEFT(Mainframe!P41,SEARCH(".",Mainframe!P41)-1)) -> 4 | CH42: 40 | CI42: =IF(INDEX($B:$CE,ROW(),QNO*4)="XX","[b][u]"&INDEX($B:$CE,ROW(),QNO*4-1)&"[/u][/b]","[color=#BF0040]"&INDEX(OFFSET(Answers!C:C,0,(QNO-1)*4),MATCH(INDEX($A:$CB,ROW(),QNO*4),OFFSET(Answers!A:A,0,(QNO-1)*4),0))&"[/color]//[b]"&INDEX(OFFSET(Answers!B:B,0,(QNO-1)*4),MATCH(INDEX($A:$CB,ROW(),QNO*4),OFFSET(Answers!A:A,0,(QNO-1)*4),0))&"[/b] — [b]"&IF(INDEX($B:$CE,ROW(),QNO*4)=1,"Singleton!",CONCATENATE(INDEX($B:$CE,ROW(),QNO*4)," responses"))&"[/b]") -> [color=#BF0040]"Push", "Bent", "Unwell"[/color]//[b]MATCHBOX [u]20[/u][/b] — [b]6 responses[/b] | CJ42: dnbguy | CK42: Yes | CL42: 40. dnbguy — [b]6[/b] pts | CM42: 56 | CN42: 16
A43: [*] | B43: =IF(Mainframe!B42="","",INDEX(Mainframe!$B:$B,C43+1,1)) -> chmmr | C43: 41 | D43: =IF($B43="","",0+UPPER(Mainframe!C42)) -> 182 | E43: =IF(D43="","",IF(NOT(ISNA(VLOOKUP(D43,Answers!A:D,4,FALSE))),VLOOKUP(D43,Answers!A:D,4,FALSE),"Help!")) -> 2 | G43: =IF(E43="","",IF(E43="XX",VLOOKUP("WRONG",Answers!A:D,4,FALSE),E43)+F43) -> 2 | H43: =IF($B43="","",0+UPPER(Mainframe!D42)) -> 21 | I43: =IF(H43="","",IF(NOT(ISNA(VLOOKUP(H43,Answers!E:H,4,FALSE))),VLOOKUP(H43,Answers!E:H,4,FALSE),"Help!")) -> 1000 | K43: =IF(I43="","",G43+IF(I43="XX",VLOOKUP("WRONG",Answers!E:H,4,FALSE),I43)+J43) -> 1002 | L43: =IF($B43="","",0+UPPER(Mainframe!E42)) -> 300 | M43: =IF(L43="","",IF(NOT(ISNA(VLOOKUP(L43,Answers!I:L,4,FALSE))),VLOOKUP(L43,Answers!I:L,4,FALSE),"Help!")) -> 11 | N43: =IF(M43>500,-1000,0) -> 0 | O43: =IF(M43="","",K43+IF(M43="XX",VLOOKUP("WRONG",Answers!I:L,4,FALSE),M43)+N43) -> 1013 | P43: =IF($B43="","",0+UPPER(Mainframe!F42)) -> 1861 | Q43: =IF(P43="","",IF(NOT(ISNA(VLOOKUP(P43,Answers!M:P,4,FALSE))),VLOOKUP(P43,Answers!M:P,4,FALSE),"Help!")) -> 1000 | S43: =IF(Q43="","",O43+IF(Q43="XX",VLOOKUP("WRONG",Answers!M:P,4,FALSE),Q43)+R43) -> 2013 | T43: =IF($B43="","",0+UPPER(Mainframe!G42)) -> 6 | U43: =IF(T43="","",IF(NOT(ISNA(VLOOKUP(T43,Answers!Q:T,4,FALSE))),VLOOKUP(T43,Answers!Q:T,4,FALSE),"Help!")) -> 9 | W43: =IF(U43="","",S43+IF(U43="XX",VLOOKUP("WRONG",Answers!Q:T,4,FALSE),U43)+V43) -> 2022 | X43: =IF($B43="","",0+UPPER(Mainframe!H42)) -> 22 | Y43: =IF(X43="","",IF(NOT(ISNA(VLOOKUP(X43,Answers!U:X,4,FALSE))),VLOOKUP(X43,Answers!U:X,4,FALSE),"Help!")) -> 1000 | AA43: =IF(Y43="","",W43+IF(Y43="XX",VLOOKUP("WRONG",Answers!U:X,4,FALSE),Y43)+Z43) -> 3022 | AB43: =IF($B43="","",0+UPPER(Mainframe!I42)) -> 42 | AC43: =IF(AB43="","",IF(NOT(ISNA(VLOOKUP(AB43,Answers!Y:AB,4,FALSE))),VLOOKUP(AB43,Answers!Y:AB,4,FALSE),"Help!")) -> 13 | AE43: =IF(AC43="","",AA43+IF(AC43="XX",VLOOKUP("WRONG",Answers!Y:AB,4,FALSE),AC43)+AD43) -> 3035 | AF43: =IF($B43="","",0+UPPER(Mainframe!J42)) -> 9 | AG43: =IF(AF43="","",IF(NOT(ISNA(VLOOKUP(AF43,Answers!AC:AF,4,FALSE))),VLOOKUP(AF43,Answers!AC:AF,4,FALSE),"Help!")) -> 1000 | AI43: =IF(AG43="","",AE43+IF(AG43="XX",VLOOKUP("WRONG",Answers!AC:AF,4,FALSE),AG43)+AH43) -> 4035 | AJ43: =IF($B43="","",0+UPPER(Mainframe!K42)) -> 5 | AK43: =IF(AJ43="","",IF(NOT(ISNA(VLOOKUP(AJ43,Answers!AG:AJ,4,FALSE))),VLOOKUP(AJ43,Answers!AG:AJ,4,FALSE),"Help!")) -> 9 | AM43: =IF(AK43="","",AI43+IF(AK43="XX",VLOOKUP("WRONG",Answers!AG:AJ,4,FALSE),AK43)+AL43) -> 4044 | AN43: =IF($B43="","",0+UPPER(Mainframe!L42)) -> 49 | AO43: =IF(AN43="","",IF(NOT(ISNA(VLOOKUP(AN43,Answers!AK:AN,4,FALSE))),VLOOKUP(AN43,Answers!AK:AN,4,FALSE),"Help!")) -> 9 | AQ43: =IF(AO43="","",AM43+IF(AO43="XX",VLOOKUP("WRONG",Answers!AK:AN,4,FALSE),AO43)+AP43) -> 4053 | AR43: =IF($B43="","",0+UPPER(Mainframe!M42)) -> 5 | AS43: =IF(AR43="","",IF(NOT(ISNA(VLOOKUP(AR43,Answers!AO:AR,4,FALSE))),VLOOKUP(AR43,Answers!AO:AR,4,FALSE),"Help!")) -> 1000 | AU43: =IF(AS43="","",AQ43+IF(AS43="XX",VLOOKUP("WRONG",Answers!AO:AR,4,FALSE),AS43)+AT43) -> 5053 | AV43: =IF($B43="","",0+UPPER(Mainframe!N42)) -> 666 | AW43: =IF(AV43="","",IF(NOT(ISNA(VLOOKUP(AV43,Answers!AS:AV,4,FALSE))),VLOOKUP(AV43,Answers!AS:AV,4,FALSE),"Help!")) -> 5 | AY43: =IF(AW43="","",AU43+IF(AW43="XX",VLOOKUP("WRONG",Answers!AS:AV,4,FALSE),AW43)+AX43) -> 5058 | AZ43: =IF($B43="","",0+UPPER(Mainframe!O42)) -> 500 | BA43: 11.52054795 | BB43: 1 | BC43: =IF($B43="","",LEFT(Mainframe!P42,SEARCH(".",Mainframe!P42)-1)) -> 3 | CH43: 41 | CI43: =IF(INDEX($B:$CE,ROW(),QNO*4)="XX","[b][u]"&INDEX($B:$CE,ROW(),QNO*4-1)&"[/u][/b]","[color=#BF0040]"&INDEX(OFFSET(Answers!C:C,0,(QNO-1)*4),MATCH(INDEX($A:$CB,ROW(),QNO*4),OFFSET(Answers!A:A,0,(QNO-1)*4),0))&"[/color]//[b]"&INDEX(OFFSET(Answers!B:B,0,(QNO-1)*4),MATCH(INDEX($A:$CB,ROW(),QNO*4),OFFSET(Answers!A:A,0,(QNO-1)*4),0))&"[/b] — [b]"&IF(INDEX($B:$CE,ROW(),QNO*4)=1,"Singleton!",CONCATENATE(INDEX($B:$CE,ROW(),QNO*4)," responses"))&"[/b]") -> [color=#BF0040]"Dammit (Growing Up)", "What's My Age Again?", "All the Small Things"[/color]//[b]BLINK [u]182[/u][/b] — [b]2 responses[/b] | CJ43: chmmr | CK43: Yes | CL43: 41. chmmr — [b]2[/b] pts | CM43: 66 | CN43: 25
A44: [*] | B44: =IF(Mainframe!B43="","",INDEX(Mainframe!$B:$B,C44+1,1)) -> Ryno | C44: 42 | D44: =IF($B44="","",0+UPPER(Mainframe!C43)) -> 3 | E44: =IF(D44="","",IF(NOT(ISNA(VLOOKUP(D44,Answers!A:D,4,FALSE))),VLOOKUP(D44,Answers!A:D,4,FALSE),"Help!")) -> 11 | G44: =IF(E44="","",IF(E44="XX",VLOOKUP("WRONG",Answers!A:D,4,FALSE),E44)+F44) -> 11 | H44: =IF($B44="","",0+UPPER(Mainframe!D43)) -> 38 | I44: =IF(H44="","",IF(NOT(ISNA(VLOOKUP(H44,Answers!E:H,4,FALSE))),VLOOKUP(H44,Answers!E:H,4,FALSE),"Help!")) -> 7 | K44: =IF(I44="","",G44+IF(I44="XX",VLOOKUP("WRONG",Answers!E:H,4,FALSE),I44)+J44) -> 18 | L44: =IF($B44="","",0+UPPER(Mainframe!E43)) -> 2012 | M44: =IF(L44="","",IF(NOT(ISNA(VLOOKUP(L44,Answers!I:L,4,FALSE))),VLOOKUP(L44,Answers!I:L,4,FALSE),"Help!")) -> 2 | O44: =IF(M44="","",K44+IF(M44="XX",VLOOKUP("WRONG",Answers!I:L,4,FALSE),M44)+N44) -> 20 | P44: =IF($B44="","",0+UPPER(Mainframe!F43)) -> 1815 | Q44: =IF(P44="","",IF(NOT(ISNA(VLOOKUP(P44,Answers!M:P,4,FALSE))),VLOOKUP(P44,Answers!M:P,4,FALSE),"Help!")) -> 10 | R44: =IF(Q44>500,-1000,0) -> 0 | S44: =IF(Q44="","",O44+IF(Q44="XX",VLOOKUP("WRONG",Answers!M:P,4,FALSE),Q44)+R44) -> 30 | T44: =IF($B44="","",0+UPPER(Mainframe!G43)) -> 5 | U44: =IF(T44="","",IF(NOT(ISNA(VLOOKUP(T44,Answers!Q:T,4,FALSE))),VLOOKUP(T44,Answers!Q:T,4,FALSE),"Help!")) -> 1000 | W44: =IF(U44="","",S44+IF(U44="XX",VLOOKUP("WRONG",Answers!Q:T,4,FALSE),U44)+V44) -> 1030 | X44: =IF($B44="","",0+UPPER(Mainframe!H43)) -> 66 | Y44: XX | AA44: =IF(Y44="","",W44+IF(Y44="XX",VLOOKUP("WRONG",Answers!U:X,4,FALSE),Y44)+Z44) -> 2037 | AB44: =IF($B44="","",0+UPPER(Mainframe!I43)) -> 42 | AC44: =IF(AB44="","",IF(NOT(ISNA(VLOOKUP(AB44,Answers!Y:AB,4,FALSE))),VLOOKUP(AB44,Answers!Y:AB,4,FALSE),"Help!")) -> 13 | AE44: =IF(AC44="","",AA44+IF(AC44="XX",VLOOKUP("WRONG",Answers!Y:AB,4,FALSE),AC44)+AD44) -> 2050 | AF44: =IF($B44="","",0+UPPER(Mainframe!J43)) -> 49 | AG44: =IF(AF44="","",IF(NOT(ISNA(VLOOKUP(AF44,Answers!AC:AF,4,FALSE))),VLOOKUP(AF44,Answers!AC:AF,4,FALSE),"Help!")) -> 10 | AI44: =IF(AG44="","",AE44+IF(AG44="XX",VLOOKUP("WRONG",Answers!AC:AF,4,FALSE),AG44)+AH44) -> 2060 | AJ44: =IF($B44="","",0+UPPER(Mainframe!K43)) -> 5 | AK44: =IF(AJ44="","",IF(NOT(ISNA(VLOOKUP(AJ44,Answers!AG:AJ,4,FALSE))),VLOOKUP(AJ44,Answers!AG:AJ,4,FALSE),"Help!")) -> 9 | AM44: =IF(AK44="","",AI44+IF(AK44="XX",VLOOKUP("WRONG",Answers!AG:AJ,4,FALSE),AK44)+AL44) -> 2069 | AN44: =IF($B44="","",0+UPPER(Mainframe!L43)) -> 42 | AO44: =IF(AN44="","",IF(NOT(ISNA(VLOOKUP(AN44,Answers!AK:AN,4,FALSE))),VLOOKUP(AN44,Answers!AK:AN,4,FALSE),"Help!")) -> 8 | AQ44: =IF(AO44="","",AM44+IF(AO44="XX",VLOOKUP("WRONG",Answers!AK:AN,4,FALSE),AO44)+AP44) -> 2077 | AR44: =IF($B44="","",0+UPPER(Mainframe!M43)) -> 3 | AS44: =IF(AR44="","",IF(NOT(ISNA(VLOOKUP(AR44,Answers!AO:AR,4,FALSE))),VLOOKUP(AR44,Answers!AO:AR,4,FALSE),"Help!")) -> 6 | AU44: =IF(AS44="","",AQ44+IF(AS44="XX",VLOOKUP("WRONG",Answers!AO:AR,4,FALSE),AS44)+AT44) -> 2083 | AV44: =IF($B44="","",0+UPPER(Mainframe!N43)) -> 27 | AW44: =IF(AV44="","",IF(NOT(ISNA(VLOOKUP(AV44,Answers!AS:AV,4,FALSE))),VLOOKUP(AV44,Answers!AS:AV,4,FALSE),"Help!")) -> 9 | AY44: =IF(AW44="","",AU44+IF(AW44="XX",VLOOKUP("WRONG",Answers!AS:AV,4,FALSE),AW44)+AX44) -> 2092 | AZ44: =IF($B44="","",0+UPPER(Mainframe!O43)) -> 500 | BA44: 11.52054795 | BB44: 1 | BC44: =IF($B44="","",LEFT(Mainframe!P43,SEARCH(".",Mainframe!P43)-1)) -> 4 | CH44: 42 | CI44: =IF(INDEX($B:$CE,ROW(),QNO*4)="XX","[b][u]"&INDEX($B:$CE,ROW(),QNO*4-1)&"[/u][/b]","[color=#BF0040]"&INDEX(OFFSET(Answers!C:C,0,(QNO-1)*4),MATCH(INDEX($A:$CB,ROW(),QNO*4),OFFSET(Answers!A:A,0,(QNO-1)*4),0))&"[/color]//[b]"&INDEX(OFFSET(Answers!B:B,0,(QNO-1)*4),MATCH(INDEX($A:$CB,ROW(),QNO*4),OFFSET(Answers!A:A,0,(QNO-1)*4),0))&"[/b] — [b]"&IF(INDEX($B:$CE,ROW(),QNO*4)=1,"Singleton!",CONCATENATE(INDEX($B:$CE,ROW(),QNO*4)," responses"))&"[/b]") -> [color=#BF0040]"Mama Told Me (Not to Come)", "Joy to the World", "Black and White"[/color]//[b][u]THREE[/u] DOG NIGHT[/b] — [b]11 responses[/b] | CJ44: Ryno | CK44: Yes | CL44: 42. Ryno — [b]11[/b] pts | CM44: 34 | CN44: -8
A45: [*] | B45: =IF(Mainframe!B44="","",INDEX(Mainframe!$B:$B,C45+1,1)) -> patkav | C45: 43 | D45: =IF($B45="","",0+UPPER(Mainframe!C44)) -> 5 | E45: =IF(D45="","",IF(NOT(ISNA(VLOOKUP(D45,Answers!A:D,4,FALSE))),VLOOKUP(D45,Answers!A:D,4,FALSE),"Help!")) -> 5 | G45: =IF(E45="","",IF(E45="XX",VLOOKUP("WRONG",Answers!A:D,4,FALSE),E45)+F45) -> 5 | H45: =IF($B45="","",0+UPPER(Mainframe!D44)) -> 38 | I45: =IF(H45="","",IF(NOT(ISNA(VLOOKUP(H45,Answers!E:H,4,FALSE))),VLOOKUP(H45,Answers!E:H,4,FALSE),"Help!")) -> 7 | K45: =IF(I45="","",G45+IF(I45="XX",VLOOKUP("WRONG",Answers!E:H,4,FALSE),I45)+J45) -> 12 | L45: =IF($B45="","",0+UPPER(Mainframe!E44)) -> 34 | M45: =IF(L45="","",IF(NOT(ISNA(VLOOKUP(L45,Answers!I:L,4,FALSE))),VLOOKUP(L45,Answers!I:L,4,FALSE),"Help!")) -> 1000 | O45: =IF(M45="","",K45+IF(M45="XX",VLOOKUP("WRONG",Answers!I:L,4,FALSE),M45)+N45) -> 1012 | P45: =IF($B45="","",0+UPPER(Mainframe!F44)) -> 1777 | Q45: =IF(P45="","",IF(NOT(ISNA(VLOOKUP(P45,Answers!M:P,4,FALSE))),VLOOKUP(P45,Answers!M:P,4,FALSE),"Help!")) -> 3 | S45: =IF(Q45="","",O45+IF(Q45="XX",VLOOKUP("WRONG",Answers!M:P,4,FALSE),Q45)+R45) -> 1015 | T45: =IF($B45="","",0+UPPER(Mainframe!G44)) -> 5 | U45: =IF(T45="","",IF(NOT(ISNA(VLOOKUP(T45,Answers!Q:T,4,FALSE))),VLOOKUP(T45,Answers!Q:T,4,FALSE),"Help!")) -> 1000 | W45: =IF(U45="","",S45+IF(U45="XX",VLOOKUP("WRONG",Answers!Q:T,4,FALSE),U45)+V45) -> 2015 | X45: =IF($B45="","",0+UPPER(Mainframe!H44)) -> 49 | Y45: =IF(X45="","",IF(NOT(ISNA(VLOOKUP(X45,Answers!U:X,4,FALSE))),VLOOKUP(X45,Answers!U:X,4,FALSE),"Help!")) -> 4 | AA45: =IF(Y45="","",W45+IF(Y45="XX",VLOOKUP("WRONG",Answers!U:X,4,FALSE),Y45)+Z45) -> 2019 | AB45: =IF($B45="","",0+UPPER(Mainframe!I44)) -> 25 | AC45: =IF(AB45="","",IF(NOT(ISNA(VLOOKUP(AB45,Answers!Y:AB,4,FALSE))),VLOOKUP(AB45,Answers!Y:AB,4,FALSE),"Help!")) -> 7 | AE45: =IF(AC45="","",AA45+IF(AC45="XX",VLOOKUP("WRONG",Answers!Y:AB,4,FALSE),AC45)+AD45) -> 2026 | AF45: =IF($B45="","",0+UPPER(Mainframe!J44)) -> 18 | AG45: =IF(AF45="","",IF(NOT(ISNA(VLOOKUP(AF45,Answers!AC:AF,4,FALSE))),VLOOKUP(AF45,Answers!AC:AF,4,FALSE),"Help!")) -> 10 | AI45: =IF(AG45="","",AE45+IF(AG45="XX",VLOOKUP("WRONG",Answers!AC:AF,4,FALSE),AG45)+AH45) -> 2036 | AJ45: =IF($B45="","",0+UPPER(Mainframe!K44)) -> 35 | AK45: =IF(AJ45="","",IF(NOT(ISNA(VLOOKUP(AJ45,Answers!AG:AJ,4,FALSE))),VLOOKUP(AJ45,Answers!AG:AJ,4,FALSE),"Help!")) -> 8 | AM45: =IF(AK45="","",AI45+IF(AK45="XX",VLOOKUP("WRONG",Answers!AG:AJ,4,FALSE),AK45)+AL45) -> 2044 | AN45: =IF($B45="","",0+UPPER(Mainframe!L44)) -> 61 | AO45: =IF(AN45="","",IF(NOT(ISNA(VLOOKUP(AN45,Answers!AK:AN,4,FALSE))),VLOOKUP(AN45,Answers!AK:AN,4,FALSE),"Help!")) -> 5 | AP45: =IF(AO45>500,-1000,0) -> 0 | AQ45: =IF(AO45="","",AM45+IF(AO45="XX",VLOOKUP("WRONG",Answers!AK:AN,4,FALSE),AO45)+AP45) -> 2049 | AR45: =IF($B45="","",0+UPPER(Mainframe!M44)) -> 5 | AS45: =IF(AR45="","",IF(NOT(ISNA(VLOOKUP(AR45,Answers!AO:AR,4,FALSE))),VLOOKUP(AR45,Answers!AO:AR,4,FALSE),"Help!")) -> 1000 | AU45: =IF(AS45="","",AQ45+IF(AS45="XX",VLOOKUP("WRONG",Answers!AO:AR,4,FALSE),AS45)+AT45) -> 3049 | AV45: =IF($B45="","",0+UPPER(Mainframe!N44)) -> 12 | AW45: =IF(AV45="","",IF(NOT(ISNA(VLOOKUP(AV45,Answers!AS:AV,4,FALSE))),VLOOKUP(AV45,Answers!AS:AV,4,FALSE),"Help!")) -> 4 | AY45: =IF(AW45="","",AU45+IF(AW45="XX",VLOOKUP("WRONG",Answers!AS:AV,4,FALSE),AW45)+AX45) -> 3053 | AZ45: =IF($B45="","",0+UPPER(Mainframe!O44)) -> 23 | BA45: 465.4794521 | BB45: 1 | BC45: =IF($B45="","",LEFT(Mainframe!P44,SEARCH(".",Mainframe!P44)-1)) -> 10 | CH45: 43 | CI45: =IF(INDEX($B:$CE,ROW(),QNO*4)="XX","[b][u]"&INDEX($B:$CE,ROW(),QNO*4-1)&"[/u][/b]","[color=#BF0040]"&INDEX(OFFSET(Answers!C:C,0,(QNO-1)*4),MATCH(INDEX($A:$CB,ROW(),QNO*4),OFFSET(Answers!A:A,0,(QNO-1)*4),0))&"[/color]//[b]"&INDEX(OFFSET(Answers!B:B,0,(QNO-1)*4),MATCH(INDEX($A:$CB,ROW(),QNO*4),OFFSET(Answers!A:A,0,(QNO-1)*4),0))&"[/b] — [b]"&IF(INDEX($B:$CE,ROW(),QNO*4)=1,"Singleton!",CONCATENATE(INDEX($B:$CE,ROW(),QNO*4)," responses"))&"[/b]") -> [color=#BF0040]"She Will Be Loved", "Makes Me Wonder", "Moves like Jagger"[/color]//[b]MAROON [u]5[/u][/b] — [b]5 responses[/b] | CJ45: patkav | CK45: Yes | CL45: 43. patkav — [b]5[/b] pts | CM45: 37 | CN45: -6
A46: [*] | B46: =IF(Mainframe!B45="","",INDEX(Mainframe!$B:$B,C46+1,1)) -> Bamaman | C46: 44 | D46: =IF($B46="","",0+UPPER(Mainframe!C45)) -> 3 | E46: =IF(D46="","",IF(NOT(ISNA(VLOOKUP(D46,Answers!A:D,4,FALSE))),VLOOKUP(D46,Answers!A:D,4,FALSE),"Help!")) -> 11 | G46: =IF(E46="","",IF(E46="XX",VLOOKUP("WRONG",Answers!A:D,4,FALSE),E46)+F46) -> 11 | H46: =IF($B46="","",0+UPPER(Mainframe!D45)) -> 22 | I46: =IF(H46="","",IF(NOT(ISNA(VLOOKUP(H46,Answers!E:H,4,FALSE))),VLOOKUP(H46,Answers!E:H,4,FALSE),"Help!")) -> 11 | K46: =IF(I46="","",G46+IF(I46="XX",VLOOKUP("WRONG",Answers!E:H,4,FALSE),I46)+J46) -> 22 | L46: =IF($B46="","",0+UPPER(Mainframe!E45)) -> 34 | M46: =IF(L46="","",IF(NOT(ISNA(VLOOKUP(L46,Answers!I:L,4,FALSE))),VLOOKUP(L46,Answers!I:L,4,FALSE),"Help!")) -> 1000 | O46: =IF(M46="","",K46+IF(M46="XX",VLOOKUP("WRONG",Answers!I:L,4,FALSE),M46)+N46) -> 1022 | P46: =IF($B46="","",0+UPPER(Mainframe!F45)) -> 1815 | Q46: =IF(P46="","",IF(NOT(ISNA(VLOOKUP(P46,Answers!M:P,4,FALSE))),VLOOKUP(P46,Answers!M:P,4,FALSE),"Help!")) -> 10 | S46: =IF(Q46="","",O46+IF(Q46="XX",VLOOKUP("WRONG",Answers!M:P,4,FALSE),Q46)+R46) -> 1032 | T46: =IF($B46="","",0+UPPER(Mainframe!G45)) -> 8 | U46: =IF(T46="","",IF(NOT(ISNA(VLOOKUP(T46,Answers!Q:T,4,FALSE))),VLOOKUP(T46,Answers!Q:T,4,FALSE),"Help!")) -> 6 | V46: =IF(U46>500,-1000,0) -> 0 | W46: =IF(U46="","",S46+IF(U46="XX",VLOOKUP("WRONG",Answers!Q:T,4,FALSE),U46)+V46) -> 1038 | X46: =IF($B46="","",0+UPPER(Mainframe!H45)) -> 22 | Y46: =IF(X46="","",IF(NOT(ISNA(VLOOKUP(X46,Answers!U:X,4,FALSE))),VLOOKUP(X46,Answers!U:X,4,FALSE),"Help!")) -> 1000 | AA46: =IF(Y46="","",W46+IF(Y46="XX",VLOOKUP("WRONG",Answers!U:X,4,FALSE),Y46)+Z46) -> 2038 | AB46: =IF($B46="","",0+UPPER(Mainframe!I45)) -> 76 | AC46: =IF(AB46="","",IF(NOT(ISNA(VLOOKUP(AB46,Answers!Y:AB,4,FALSE))),VLOOKUP(AB46,Answers!Y:AB,4,FALSE),"Help!")) -> 1000 | AE46: =IF(AC46="","",AA46+IF(AC46="XX",VLOOKUP("WRONG",Answers!Y:AB,4,FALSE),AC46)+AD46) -> 3038 | AF46: =IF($B46="","",0+UPPER(Mainframe!J45)) -> 1850 | AG46: =IF(AF46="","",IF(NOT(ISNA(VLOOKUP(AF46,Answers!AC:AF,4,FALSE))),VLOOKUP(AF46,Answers!AC:AF,4,FALSE),"Help!")) -> 4 | AI46: =IF(AG46="","",AE46+IF(AG46="XX",VLOOKUP("WRONG",Answers!AC:AF,4,FALSE),AG46)+AH46) -> 3042 | AJ46: =IF($B46="","",0+UPPER(Mainframe!K45)) -> 20 | AK46: =IF(AJ46="","",IF(NOT(ISNA(VLOOKUP(AJ46,Answers!AG:AJ,4,FALSE))),VLOOKUP(AJ46,Answers!AG:AJ,4,FALSE),"Help!")) -> 2 | AM46: =IF(AK46="","",AI46+IF(AK46="XX",VLOOKUP("WRONG",Answers!AG:AJ,4,FALSE),AK46)+AL46) -> 3044 | AN46: =IF($B46="","",0+UPPER(Mainframe!L45)) -> 67 | AO46: =IF(AN46="","",IF(NOT(ISNA(VLOOKUP(AN46,Answers!AK:AN,4,FALSE))),VLOOKUP(AN46,Answers!AK:AN,4,FALSE),"Help!")) -> 1000 | AQ46: =IF(AO46="","",AM46+IF(AO46="XX",VLOOKUP("WRONG",Answers!AK:AN,4,FALSE),AO46)+AP46) -> 4044 | AR46: =IF($B46="","",0+UPPER(Mainframe!M45)) -> 5 | AS46: =IF(AR46="","",IF(NOT(ISNA(VLOOKUP(AR46,Answers!AO:AR,4,FALSE))),VLOOKUP(AR46,Answers!AO:AR,4,FALSE),"Help!")) -> 1000 | AU46: =IF(AS46="","",AQ46+IF(AS46="XX",VLOOKUP("WRONG",Answers!AO:AR,4,FALSE),AS46)+AT46) -> 5044 | AV46: =IF($B46="","",0+UPPER(Mainframe!N45)) -> 27 | AW46: =IF(AV46="","",IF(NOT(ISNA(VLOOKUP(AV46,Answers!AS:AV,4,FALSE))),VLOOKUP(AV46,Answers!AS:AV,4,FALSE),"Help!")) -> 9 | AY46: =IF(AW46="","",AU46+IF(AW46="XX",VLOOKUP("WRONG",Answers!AS:AV,4,FALSE),AW46)+AX46) -> 5053 | AZ46: =IF($B46="","",0+UPPER(Mainframe!O45)) -> 513 | BA46: 24.52054795 | BB46: 1 | BC46: =IF($B46="","",LEFT(Mainframe!P45,SEARCH(".",Mainframe!P45)-1)) -> 5 | CH46: 44 | CI46: =IF(INDEX($B:$CE,ROW(),QNO*4)="XX","[b][u]"&INDEX($B:$CE,ROW(),QNO*4-1)&"[/u][/b]","[color=#BF0040]"&INDEX(OFFSET(Answers!C:C,0,(QNO-1)*4),MATCH(INDEX($A:$CB,ROW(),QNO*4),OFFSET(Answers!A:A,0,(QNO-1)*4),0))&"[/color]//[b]"&INDEX(OFFSET(Answers!B:B,0,(QNO-1)*4),MATCH(INDEX($A:$CB,ROW(),QNO*4),OFFSET(Answers!A:A,0,(QNO-1)*4),0))&"[/b] — [b]"&IF(INDEX($B:$CE,ROW(),QNO*4)=1,"Singleton!",CONCATENATE(INDEX($B:$CE,ROW(),QNO*4)," responses"))&"[/b]") -> [color=#BF0040]"Mama Told Me (Not to Come)", "Joy to the World", "Black and White"[/color]//[b][u]THREE[/u] DOG NIGHT[/b] — [b]11 responses[/b] | CJ46: Bamaman | CK46: Yes | CL46: 44. Bamaman — [b]11[/b] pts | CM46: 69 | CN46: 25
A47: [*] | B47: =IF(Mainframe!B46="","",INDEX(Mainframe!$B:$B,C47+1,1)) -> nightlove1200 | C47: 45 | D47: =IF($B47="","",0+UPPER(Mainframe!C46)) -> 20 | E47: =IF(D47="","",IF(NOT(ISNA(VLOOKUP(D47,Answers!A:D,4,FALSE))),VLOOKUP(D47,Answers!A:D,4,FALSE),"Help!")) -> 6 | G47: =IF(E47="","",IF(E47="XX",VLOOKUP("WRONG",Answers!A:D,4,FALSE),E47)+F47) -> 6 | H47: =IF($B47="","",0+UPPER(Mainframe!D46)) -> 664 | I47: XX | J47: =IF(I47>500,-1000,0) -> -1000 | K47: =IF(I47="","",G47+IF(I47="XX",VLOOKUP("WRONG",Answers!E:H,4,FALSE),I47)+J47) -> 13 | L47: =IF($B47="","",0+UPPER(Mainframe!E46)) -> 34 | M47: =IF(L47="","",IF(NOT(ISNA(VLOOKUP(L47,Answers!I:L,4,FALSE))),VLOOKUP(L47,Answers!I:L,4,FALSE),"Help!")) -> 1000 | O47: =IF(M47="","",K47+IF(M47="XX",VLOOKUP("WRONG",Answers!I:L,4,FALSE),M47)+N47) -> 1013 | P47: =IF($B47="","",0+UPPER(Mainframe!F46)) -> 1777 | Q47: =IF(P47="","",IF(NOT(ISNA(VLOOKUP(P47,Answers!M:P,4,FALSE))),VLOOKUP(P47,Answers!M:P,4,FALSE),"Help!")) -> 3 | S47: =IF(Q47="","",O47+IF(Q47="XX",VLOOKUP("WRONG",Answers!M:P,4,FALSE),Q47)+R47) -> 1016 | T47: =IF($B47="","",0+UPPER(Mainframe!G46)) -> 18 | U47: =IF(T47="","",IF(NOT(ISNA(VLOOKUP(T47,Answers!Q:T,4,FALSE))),VLOOKUP(T47,Answers!Q:T,4,FALSE),"Help!")) -> 6 | W47: =IF(U47="","",S47+IF(U47="XX",VLOOKUP("WRONG",Answers!Q:T,4,FALSE),U47)+V47) -> 1022 | X47: =IF($B47="","",0+UPPER(Mainframe!H46)) -> 22 | Y47: =IF(X47="","",IF(NOT(ISNA(VLOOKUP(X47,Answers!U:X,4,FALSE))),VLOOKUP(X47,Answers!U:X,4,FALSE),"Help!")) -> 1000 | AA47: =IF(Y47="","",W47+IF(Y47="XX",VLOOKUP("WRONG",Answers!U:X,4,FALSE),Y47)+Z47) -> 2022 | AB47: =IF($B47="","",0+UPPER(Mainframe!I46)) -> 25 | AC47: =IF(AB47="","",IF(NOT(ISNA(VLOOKUP(AB47,Answers!Y:AB,4,FALSE))),VLOOKUP(AB47,Answers!Y:AB,4,FALSE),"Help!")) -> 7 | AE47: =IF(AC47="","",AA47+IF(AC47="XX",VLOOKUP("WRONG",Answers!Y:AB,4,FALSE),AC47)+AD47) -> 2029 | AF47: =IF($B47="","",0+UPPER(Mainframe!J46)) -> 1974 | AG47: =IF(AF47="","",IF(NOT(ISNA(VLOOKUP(AF47,Answers!AC:AF,4,FALSE))),VLOOKUP(AF47,Answers!AC:AF,4,FALSE),"Help!")) -> 8 | AI47: =IF(AG47="","",AE47+IF(AG47="XX",VLOOKUP("WRONG",Answers!AC:AF,4,FALSE),AG47)+AH47) -> 2037 | AJ47: =IF($B47="","",0+UPPER(Mainframe!K46)) -> 80 | AK47: =IF(AJ47="","",IF(NOT(ISNA(VLOOKUP(AJ47,Answers!AG:AJ,4,FALSE))),VLOOKUP(AJ47,Answers!AG:AJ,4,FALSE),"Help!")) -> 6 | AM47: =IF(AK47="","",AI47+IF(AK47="XX",VLOOKUP("WRONG",Answers!AG:AJ,4,FALSE),AK47)+AL47) -> 2043 | AN47: =IF($B47="","",0+UPPER(Mainframe!L46)) -> 42 | AO47: =IF(AN47="","",IF(NOT(ISNA(VLOOKUP(AN47,Answers!AK:AN,4,FALSE))),VLOOKUP(AN47,Answers!AK:AN,4,FALSE),"Help!")) -> 8 | AQ47: =IF(AO47="","",AM47+IF(AO47="XX",VLOOKUP("WRONG",Answers!AK:AN,4,FALSE),AO47)+AP47) -> 2051 | AR47: =IF($B47="","",0+UPPER(Mainframe!M46)) -> 5 | AS47: =IF(AR47="","",IF(NOT(ISNA(VLOOKUP(AR47,Answers!AO:AR,4,FALSE))),VLOOKUP(AR47,Answers!AO:AR,4,FALSE),"Help!")) -> 1000 | AU47: =IF(AS47="","",AQ47+IF(AS47="XX",VLOOKUP("WRONG",Answers!AO:AR,4,FALSE),AS47)+AT47) -> 3051 | AV47: =IF($B47="","",0+UPPER(Mainframe!N46)) -> 27 | AW47: =IF(AV47="","",IF(NOT(ISNA(VLOOKUP(AV47,Answers!AS:AV,4,FALSE))),VLOOKUP(AV47,Answers!AS:AV,4,FALSE),"Help!")) -> 9 | AY47: =IF(AW47="","",AU47+IF(AW47="XX",VLOOKUP("WRONG",Answers!AS:AV,4,FALSE),AW47)+AX47) -> 3060 | AZ47: =IF($B47="","",0+UPPER(Mainframe!O46)) -> 442 | BA47: 46.47945205 | BB47: 1 | BC47: =IF($B47="","",LEFT(Mainframe!P46,SEARCH(".",Mainframe!P46)-1)) -> 2 | CH47: 45 | CI47: =IF(INDEX($B:$CE,ROW(),QNO*4)="XX","[b][u]"&INDEX($B:$CE,ROW(),QNO*4-1)&"[/u][/b]","[color=#BF0040]"&INDEX(OFFSET(Answers!C:C,0,(QNO-1)*4),MATCH(INDEX($A:$CB,ROW(),QNO*4),OFFSET(Answers!A:A,0,(QNO-1)*4),0))&"[/color]//[b]"&INDEX(OFFSET(Answers!B:B,0,(QNO-1)*4),MATCH(INDEX($A:$CB,ROW(),QNO*4),OFFSET(Answers!A:A,0,(QNO-1)*4),0))&"[/b] — [b]"&IF(INDEX($B:$CE,ROW(),QNO*4)=1,"Singleton!",CONCATENATE(INDEX($B:$CE,ROW(),QNO*4)," responses"))&"[/b]") -> [color=#BF0040]"Push", "Bent", "Unwell"[/color]//[b]MATCHBOX [u]20[/u][/b] — [b]6 responses[/b] | CJ47: nightlove1200 | CK47: Yes | CL47: 45. nightlove1200 — [b]6[/b] pts | CM47: 38 | CN47: -7
A48: [*] | B48: =IF(Mainframe!B47="","",INDEX(Mainframe!$B:$B,C48+1,1)) -> ouachiouat | C48: 46 | D48: =IF($B48="","",0+UPPER(Mainframe!C47)) -> 3 | E48: =IF(D48="","",IF(NOT(ISNA(VLOOKUP(D48,Answers!A:D,4,FALSE))),VLOOKUP(D48,Answers!A:D,4,FALSE),"Help!")) -> 11 | G48: =IF(E48="","",IF(E48="XX",VLOOKUP("WRONG",Answers!A:D,4,FALSE),E48)+F48) -> 11 | H48: =IF($B48="","",0+UPPER(Mainframe!D47)) -> 21 | I48: =IF(H48="","",IF(NOT(ISNA(VLOOKUP(H48,Answers!E:H,4,FALSE))),VLOOKUP(H48,Answers!E:H,4,FALSE),"Help!")) -> 1000 | K48: =IF(I48="","",G48+IF(I48="XX",VLOOKUP("WRONG",Answers!E:H,4,FALSE),I48)+J48) -> 1011 | L48: =IF($B48="","",0+UPPER(Mainframe!E47)) -> 16 | M48: =IF(L48="","",IF(NOT(ISNA(VLOOKUP(L48,Answers!I:L,4,FALSE))),VLOOKUP(L48,Answers!I:L,4,FALSE),"Help!")) -> 12 | O48: =IF(M48="","",K48+IF(M48="XX",VLOOKUP("WRONG",Answers!I:L,4,FALSE),M48)+N48) -> 1023 | P48: =IF($B48="","",0+UPPER(Mainframe!F47)) -> 1861 | Q48: =IF(P48="","",IF(NOT(ISNA(VLOOKUP(P48,Answers!M:P,4,FALSE))),VLOOKUP(P48,Answers!M:P,4,FALSE),"Help!")) -> 1000 | S48: =IF(Q48="","",O48+IF(Q48="XX",VLOOKUP("WRONG",Answers!M:P,4,FALSE),Q48)+R48) -> 2023 | T48: =IF($B48="","",0+UPPER(Mainframe!G47)) -> 8 | U48: =IF(T48="","",IF(NOT(ISNA(VLOOKUP(T48,Answers!Q:T,4,FALSE))),VLOOKUP(T48,Answers!Q:T,4,FALSE),"Help!")) -> 6 | W48: =IF(U48="","",S48+IF(U48="XX",VLOOKUP("WRONG",Answers!Q:T,4,FALSE),U48)+V48) -> 2029 | X48: =IF($B48="","",0+UPPER(Mainframe!H47)) -> 22 | Y48: =IF(X48="","",IF(NOT(ISNA(VLOOKUP(X48,Answers!U:X,4,FALSE))),VLOOKUP(X48,Answers!U:X,4,FALSE),"Help!")) -> 1000 | AA48: =IF(Y48="","",W48+IF(Y48="XX",VLOOKUP("WRONG",Answers!U:X,4,FALSE),Y48)+Z48) -> 3029 | AB48: =IF($B48="","",0+UPPER(Mainframe!I47)) -> 76 | AC48: =IF(AB48="","",IF(NOT(ISNA(VLOOKUP(AB48,Answers!Y:AB,4,FALSE))),VLOOKUP(AB48,Answers!Y:AB,4,FALSE),"Help!")) -> 1000 | AD48: =IF(AC48>500,-1000,0) -> -1000 | AE48: =IF(AC48="","",AA48+IF(AC48="XX",VLOOKUP("WRONG",Answers!Y:AB,4,FALSE),AC48)+AD48) -> 3029 | AF48: =IF($B48="","",0+UPPER(Mainframe!J47)) -> 9 | AG48: =IF(AF48="","",IF(NOT(ISNA(VLOOKUP(AF48,Answers!AC:AF,4,FALSE))),VLOOKUP(AF48,Answers!AC:AF,4,FALSE),"Help!")) -> 1000 | AI48: =IF(AG48="","",AE48+IF(AG48="XX",VLOOKUP("WRONG",Answers!AC:AF,4,FALSE),AG48)+AH48) -> 4029 | AJ48: =IF($B48="","",0+UPPER(Mainframe!K47)) -> 75 | AK48: =IF(AJ48="","",IF(NOT(ISNA(VLOOKUP(AJ48,Answers!AG:AJ,4,FALSE))),VLOOKUP(AJ48,Answers!AG:AJ,4,FALSE),"Help!")) -> 4 | AM48: =IF(AK48="","",AI48+IF(AK48="XX",VLOOKUP("WRONG",Answers!AG:AJ,4,FALSE),AK48)+AL48) -> 4033 | AN48: =IF($B48="","",0+UPPER(Mainframe!L47)) -> 22 | AO48: =IF(AN48="","",IF(NOT(ISNA(VLOOKUP(AN48,Answers!AK:AN,4,FALSE))),VLOOKUP(AN48,Answers!AK:AN,4,FALSE),"Help!")) -> 6 | AQ48: =IF(AO48="","",AM48+IF(AO48="XX",VLOOKUP("WRONG",Answers!AK:AN,4,FALSE),AO48)+AP48) -> 4039 | AR48: =IF($B48="","",0+UPPER(Mainframe!M47)) -> 50 | AS48: =IF(AR48="","",IF(NOT(ISNA(VLOOKUP(AR48,Answers!AO:AR,4,FALSE))),VLOOKUP(AR48,Answers!AO:AR,4,FALSE),"Help!")) -> 5 | AU48: =IF(AS48="","",AQ48+IF(AS48="XX",VLOOKUP("WRONG",Answers!AO:AR,4,FALSE),AS48)+AT48) -> 4044 | AV48: =IF($B48="","",0+UPPER(Mainframe!N47)) -> 27 | AW48: =IF(AV48="","",IF(NOT(ISNA(VLOOKUP(AV48,Answers!AS:AV,4,FALSE))),VLOOKUP(AV48,Answers!AS:AV,4,FALSE),"Help!")) -> 9 | AY48: =IF(AW48="","",AU48+IF(AW48="XX",VLOOKUP("WRONG",Answers!AS:AV,4,FALSE),AW48)+AX48) -> 4053 | AZ48: =IF($B48="","",0+UPPER(Mainframe!O47)) -> 500 | BA48: 11.52054795 | BB48: 1 | BC48: =IF($B48="","",LEFT(Mainframe!P47,SEARCH(".",Mainframe!P47)-1)) -> 7 | CH48: 46 | CI48: =IF(INDEX($B:$CE,ROW(),QNO*4)="XX","[b][u]"&INDEX($B:$CE,ROW(),QNO*4-1)&"[/u][/b]","[color=#BF0040]"&INDEX(OFFSET(Answers!C:C,0,(QNO-1)*4),MATCH(INDEX($A:$CB,ROW(),QNO*4),OFFSET(Answers!A:A,0,(QNO-1)*4),0))&"[/color]//[b]"&INDEX(OFFSET(Answers!B:B,0,(QNO-1)*4),MATCH(INDEX($A:$CB,ROW(),QNO*4),OFFSET(Answers!A:A,0,(QNO-1)*4),0))&"[/b] — [b]"&IF(INDEX($B:$CE,ROW(),QNO*4)=1,"Singleton!",CONCATENATE(INDEX($B:$CE,ROW(),QNO*4)," responses"))&"[/b]") -> [color=#BF0040]"Mama Told Me (Not to Come)", "Joy to the World", "Black and White"[/color]//[b][u]THREE[/u] DOG NIGHT[/b] — [b]11 responses[/b] | CJ48: ouachiouat | CK48: Yes | CL48: 46. ouachiouat — [b]11[/b] pts | CM48: 51 | CN48: 5
A49: [*] | B49: =IF(Mainframe!B48="","",INDEX(Mainframe!$B:$B,C49+1,1)) -> RyanWillDestroySofia | C49: 47 | D49: =IF($B49="","",0+UPPER(Mainframe!C48)) -> 5000 | E49: =IF(D49="","",IF(NOT(ISNA(VLOOKUP(D49,Answers!A:D,4,FALSE))),VLOOKUP(D49,Answers!A:D,4,FALSE),"Help!")) -> 5 | G49: =IF(E49="","",IF(E49="XX",VLOOKUP("WRONG",Answers!A:D,4,FALSE),E49)+F49) -> 5 | H49: =IF($B49="","",0+UPPER(Mainframe!D48)) -> 22 | I49: =IF(H49="","",IF(NOT(ISNA(VLOOKUP(H49,Answers!E:H,4,FALSE))),VLOOKUP(H49,Answers!E:H,4,FALSE),"Help!")) -> 11 | K49: =IF(I49="","",G49+IF(I49="XX",VLOOKUP("WRONG",Answers!E:H,4,FALSE),I49)+J49) -> 16 | L49: =IF($B49="","",0+UPPER(Mainframe!E48)) -> 16 | M49: =IF(L49="","",IF(NOT(ISNA(VLOOKUP(L49,Answers!I:L,4,FALSE))),VLOOKUP(L49,Answers!I:L,4,FALSE),"Help!")) -> 12 | O49: =IF(M49="","",K49+IF(M49="XX",VLOOKUP("WRONG",Answers!I:L,4,FALSE),M49)+N49) -> 28 | P49: =IF($B49="","",0+UPPER(Mainframe!F48)) -> 1861 | Q49: =IF(P49="","",IF(NOT(ISNA(VLOOKUP(P49,Answers!M:P,4,FALSE))),VLOOKUP(P49,Answers!M:P,4,FALSE),"Help!")) -> 1000 | R49: =IF(Q49>500,-1000,0) -> -1000 | S49: =IF(Q49="","",O49+IF(Q49="XX",VLOOKUP("WRONG",Answers!M:P,4,FALSE),Q49)+R49) -> 28 | T49: =IF($B49="","",0+UPPER(Mainframe!G48)) -> 6 | U49: =IF(T49="","",IF(NOT(ISNA(VLOOKUP(T49,Answers!Q:T,4,FALSE))),VLOOKUP(T49,Answers!Q:T,4,FALSE),"Help!")) -> 9 | W49: =IF(U49="","",S49+IF(U49="XX",VLOOKUP("WRONG",Answers!Q:T,4,FALSE),U49)+V49) -> 37 | X49: =IF($B49="","",0+UPPER(Mainframe!H48)) -> 1000 | Y49: =IF(X49="","",IF(NOT(ISNA(VLOOKUP(X49,Answers!U:X,4,FALSE))),VLOOKUP(X49,Answers!U:X,4,FALSE),"Help!")) -> 6 | AA49: =IF(Y49="","",W49+IF(Y49="XX",VLOOKUP("WRONG",Answers!U:X,4,FALSE),Y49)+Z49) -> 43 | AB49: =IF($B49="","",0+UPPER(Mainframe!I48)) -> 19 | AC49: =IF(AB49="","",IF(NOT(ISNA(VLOOKUP(AB49,Answers!Y:AB,4,FALSE))),VLOOKUP(AB49,Answers!Y:AB,4,FALSE),"Help!")) -> 2 | AE49: =IF(AC49="","",AA49+IF(AC49="XX",VLOOKUP("WRONG",Answers!Y:AB,4,FALSE),AC49)+AD49) -> 45 | AF49: =IF($B49="","",0+UPPER(Mainframe!J48)) -> 18 | AG49: =IF(AF49="","",IF(NOT(ISNA(VLOOKUP(AF49,Answers!AC:AF,4,FALSE))),VLOOKUP(AF49,Answers!AC:AF,4,FALSE),"Help!")) -> 10 | AI49: =IF(AG49="","",AE49+IF(AG49="XX",VLOOKUP("WRONG",Answers!AC:AF,4,FALSE),AG49)+AH49) -> 55 | AJ49: =IF($B49="","",0+UPPER(Mainframe!K48)) -> 4 | AK49: =IF(AJ49="","",IF(NOT(ISNA(VLOOKUP(AJ49,Answers!AG:AJ,4,FALSE))),VLOOKUP(AJ49,Answers!AG:AJ,4,FALSE),"Help!")) -> 4 | AM49: =IF(AK49="","",AI49+IF(AK49="XX",VLOOKUP("WRONG",Answers!AG:AJ,4,FALSE),AK49)+AL49) -> 59 | AN49: =IF($B49="","",0+UPPER(Mainframe!L48)) -> 67 | AO49: =IF(AN49="","",IF(NOT(ISNA(VLOOKUP(AN49,Answers!AK:AN,4,FALSE))),VLOOKUP(AN49,Answers!AK:AN,4,FALSE),"Help!")) -> 1000 | AQ49: =IF(AO49="","",AM49+IF(AO49="XX",VLOOKUP("WRONG",Answers!AK:AN,4,FALSE),AO49)+AP49) -> 1059 | AR49: =IF($B49="","",0+UPPER(Mainframe!M48)) -> 5 | AS49: =IF(AR49="","",IF(NOT(ISNA(VLOOKUP(AR49,Answers!AO:AR,4,FALSE))),VLOOKUP(AR49,Answers!AO:AR,4,FALSE),"Help!")) -> 1000 | AU49: =IF(AS49="","",AQ49+IF(AS49="XX",VLOOKUP("WRONG",Answers!AO:AR,4,FALSE),AS49)+AT49) -> 2059 | AV49: =IF($B49="","",0+UPPER(Mainframe!N48)) -> 95 | AW49: =IF(AV49="","",IF(NOT(ISNA(VLOOKUP(AV49,Answers!AS:AV,4,FALSE))),VLOOKUP(AV49,Answers!AS:AV,4,FALSE),"Help!")) -> 7 | AY49: =IF(AW49="","",AU49+IF(AW49="XX",VLOOKUP("WRONG",Answers!AS:AV,4,FALSE),AW49)+AX49) -> 2066 | AZ49: =IF($B49="","",0+UPPER(Mainframe!O48)) -> 401 | BA49: 87.47945205 | BB49: 1 | BC49: =IF($B49="","",LEFT(Mainframe!P48,SEARCH(".",Mainframe!P48)-1)) -> 4 | CH49: 47 | CI49: =IF(INDEX($B:$CE,ROW(),QNO*4)="XX","[b][u]"&INDEX($B:$CE,ROW(),QNO*4-1)&"[/u][/b]","[color=#BF0040]"&INDEX(OFFSET(Answers!C:C,0,(QNO-1)*4),MATCH(INDEX($A:$CB,ROW(),QNO*4),OFFSET(Answers!A:A,0,(QNO-1)*4),0))&"[/color]//[b]"&INDEX(OFFSET(Answers!B:B,0,(QNO-1)*4),MATCH(INDEX($A:$CB,ROW(),QNO*4),OFFSET(Answers!A:A,0,(QNO-1)*4),0))&"[/b] — [b]"&IF(INDEX($B:$CE,ROW(),QNO*4)=1,"Singleton!",CONCATENATE(INDEX($B:$CE,ROW(),QNO*4)," responses"))&"[/b]") -> [color=#BF0040]"When Worlds Collide", "Free", "How To Be a Human"[/color]//[b]POWERMAN [u]5000[/u][/b] — [b]5 responses[/b] | CJ49: RyanWillDestroySofia | CK49: Yes | CL49: 47. RyanWillDestroySofia — [b]5[/b] pts | CM49: 22 | CN49: -25
A50: [*] | B50: =IF(Mainframe!B49="","",INDEX(Mainframe!$B:$B,C50+1,1)) -> Pickle | C50: 48 | D50: =IF($B50="","",0+UPPER(Mainframe!C49)) -> 10000 | E50: =IF(D50="","",IF(NOT(ISNA(VLOOKUP(D50,Answers!A:D,4,FALSE))),VLOOKUP(D50,Answers!A:D,4,FALSE),"Help!")) -> 6 | G50: =IF(E50="","",IF(E50="XX",VLOOKUP("WRONG",Answers!A:D,4,FALSE),E50)+F50) -> 6 | H50: =IF($B50="","",0+UPPER(Mainframe!D49)) -> 186 | I50: XX | K50: =IF(I50="","",G50+IF(I50="XX",VLOOKUP("WRONG",Answers!E:H,4,FALSE),I50)+J50) -> 1013 | L50: =IF($B50="","",0+UPPER(Mainframe!E49)) -> 2001 | M50: =IF(L50="","",IF(NOT(ISNA(VLOOKUP(L50,Answers!I:L,4,FALSE))),VLOOKUP(L50,Answers!I:L,4,FALSE),"Help!")) -> 6 | O50: =IF(M50="","",K50+IF(M50="XX",VLOOKUP("WRONG",Answers!I:L,4,FALSE),M50)+N50) -> 1019 | P50: =IF($B50="","",0+UPPER(Mainframe!F49)) -> 2003 | Q50: =IF(P50="","",IF(NOT(ISNA(VLOOKUP(P50,Answers!M:P,4,FALSE))),VLOOKUP(P50,Answers!M:P,4,FALSE),"Help!")) -> 8 | S50: =IF(Q50="","",O50+IF(Q50="XX",VLOOKUP("WRONG",Answers!M:P,4,FALSE),Q50)+R50) -> 1027 | T50: =IF($B50="","",0+UPPER(Mainframe!G49)) -> 18 | U50: =IF(T50="","",IF(NOT(ISNA(VLOOKUP(T50,Answers!Q:T,4,FALSE))),VLOOKUP(T50,Answers!Q:T,4,FALSE),"Help!")) -> 6 | W50: =IF(U50="","",S50+IF(U50="XX",VLOOKUP("WRONG",Answers!Q:T,4,FALSE),U50)+V50) -> 1033 | X50: =IF($B50="","",0+UPPER(Mainframe!H49)) -> 12 | Y50: =IF(X50="","",IF(NOT(ISNA(VLOOKUP(X50,Answers!U:X,4,FALSE))),VLOOKUP(X50,Answers!U:X,4,FALSE),"Help!")) -> 5 | AA50: =IF(Y50="","",W50+IF(Y50="XX",VLOOKUP("WRONG",Answers!U:X,4,FALSE),Y50)+Z50) -> 1038 | AB50: =IF($B50="","",0+UPPER(Mainframe!I49)) -> 20 | AC50: =IF(AB50="","",IF(NOT(ISNA(VLOOKUP(AB50,Answers!Y:AB,4,FALSE))),VLOOKUP(AB50,Answers!Y:AB,4,FALSE),"Help!")) -> 13 | AE50: =IF(AC50="","",AA50+IF(AC50="XX",VLOOKUP("WRONG",Answers!Y:AB,4,FALSE),AC50)+AD50) -> 1051 | AF50: =IF($B50="","",0+UPPER(Mainframe!J49)) -> 1791 | AG50: XX | AI50: =IF(AG50="","",AE50+IF(AG50="XX",VLOOKUP("WRONG",Answers!AC:AF,4,FALSE),AG50)+AH50) -> 2058 | AJ50: =IF($B50="","",0+UPPER(Mainframe!K49)) -> 95 | AK50: =IF(AJ50="","",IF(NOT(ISNA(VLOOKUP(AJ50,Answers!AG:AJ,4,FALSE))),VLOOKUP(AJ50,Answers!AG:AJ,4,FALSE),"Help!")) -> 6 | AM50: =IF(AK50="","",AI50+IF(AK50="XX",VLOOKUP("WRONG",Answers!AG:AJ,4,FALSE),AK50)+AL50) -> 2064 | AN50: =IF($B50="","",0+UPPER(Mainframe!L49)) -> 2130 | AO50: =IF(AN50="","",IF(NOT(ISNA(VLOOKUP(AN50,Answers!AK:AN,4,FALSE))),VLOOKUP(AN50,Answers!AK:AN,4,FALSE),"Help!")) -> 2 | AQ50: =IF(AO50="","",AM50+IF(AO50="XX",VLOOKUP("WRONG",Answers!AK:AN,4,FALSE),AO50)+AP50) -> 2066 | AR50: =IF($B50="","",0+UPPER(Mainframe!M49)) -> 1000 | AS50: =IF(AR50="","",IF(NOT(ISNA(VLOOKUP(AR50,Answers!AO:AR,4,FALSE))),VLOOKUP(AR50,Answers!AO:AR,4,FALSE),"Help!")) -> 6 | AU50: =IF(AS50="","",AQ50+IF(AS50="XX",VLOOKUP("WRONG",Answers!AO:AR,4,FALSE),AS50)+AT50) -> 2072 | AV50: =IF($B50="","",0+UPPER(Mainframe!N49)) -> 10 | AW50: =IF(AV50="","",IF(NOT(ISNA(VLOOKUP(AV50,Answers!AS:AV,4,FALSE))),VLOOKUP(AV50,Answers!AS:AV,4,FALSE),"Help!")) -> 1000 | AX50: =IF(AW50>500,-1000,0) -> -1000 | AY50: =IF(AW50="","",AU50+IF(AW50="XX",VLOOKUP("WRONG",Answers!AS:AV,4,FALSE),AW50)+AX50) -> 2072 | AZ50: =IF($B50="","",0+UPPER(Mainframe!O49)) -> 343 | BA50: 145.4794521 | BB50: 1 | BC50: =IF($B50="","",LEFT(Mainframe!P49,SEARCH(".",Mainframe!P49)-1)) -> 12 | CH50: 48 | CI50: =IF(INDEX($B:$CE,ROW(),QNO*4)="XX","[b][u]"&INDEX($B:$CE,ROW(),QNO*4-1)&"[/u][/b]","[color=#BF0040]"&INDEX(OFFSET(Answers!C:C,0,(QNO-1)*4),MATCH(INDEX($A:$CB,ROW(),QNO*4),OFFSET(Answers!A:A,0,(QNO-1)*4),0))&"[/color]//[b]"&INDEX(OFFSET(Answers!B:B,0,(QNO-1)*4),MATCH(INDEX($A:$CB,ROW(),QNO*4),OFFSET(Answers!A:A,0,(QNO-1)*4),0))&"[/b] — [b]"&IF(INDEX($B:$CE,ROW(),QNO*4)=1,"Singleton!",CONCATENATE(INDEX($B:$CE,ROW(),QNO*4)," responses"))&"[/b]") -> [color=#BF0040]"What's the Matter Here?", "Trouble Me", "Because the Night" (on [i]MTV Unplugged[/i])[/color]//[b][u]10,000[/u] MANIACS[/b] — [b]6 responses[/b] | CJ50: Pickle | CK50: Yes | CL50: 48. Pickle — [b]6[/b] pts | CM50: 26 | CN50: -22
A51: [*] | B51: =IF(Mainframe!B50="","",INDEX(Mainframe!$B:$B,C51+1,1)) -> BobF | C51: 49 | D51: =IF($B51="","",0+UPPER(Mainframe!C50)) -> 182 | E51: =IF(D51="","",IF(NOT(ISNA(VLOOKUP(D51,Answers!A:D,4,FALSE))),VLOOKUP(D51,Answers!A:D,4,FALSE),"Help!")) -> 2 | G51: =IF(E51="","",IF(E51="XX",VLOOKUP("WRONG",Answers!A:D,4,FALSE),E51)+F51) -> 2 | H51: =IF($B51="","",0+UPPER(Mainframe!D50)) -> 49 | I51: XX | K51: =IF(I51="","",G51+IF(I51="XX",VLOOKUP("WRONG",Answers!E:H,4,FALSE),I51)+J51) -> 1009 | L51: =IF($B51="","",0+UPPER(Mainframe!E50)) -> 300 | M51: =IF(L51="","",IF(NOT(ISNA(VLOOKUP(L51,Answers!I:L,4,FALSE))),VLOOKUP(L51,Answers!I:L,4,FALSE),"Help!")) -> 11 | N51: =IF(M51>500,-1000,0) -> 0 | O51: =IF(M51="","",K51+IF(M51="XX",VLOOKUP("WRONG",Answers!I:L,4,FALSE),M51)+N51) -> 1020 | P51: =IF($B51="","",0+UPPER(Mainframe!F50)) -> 476 | Q51: XX | S51: =IF(Q51="","",O51+IF(Q51="XX",VLOOKUP("WRONG",Answers!M:P,4,FALSE),Q51)+R51) -> 2027 | T51: =IF($B51="","",0+UPPER(Mainframe!G50)) -> 6 | U51: =IF(T51="","",IF(NOT(ISNA(VLOOKUP(T51,Answers!Q:T,4,FALSE))),VLOOKUP(T51,Answers!Q:T,4,FALSE),"Help!")) -> 9 | W51: =IF(U51="","",S51+IF(U51="XX",VLOOKUP("WRONG",Answers!Q:T,4,FALSE),U51)+V51) -> 2036 | X51: =IF($B51="","",0+UPPER(Mainframe!H50)) -> 1000 | Y51: =IF(X51="","",IF(NOT(ISNA(VLOOKUP(X51,Answers!U:X,4,FALSE))),VLOOKUP(X51,Answers!U:X,4,FALSE),"Help!")) -> 6 | AA51: =IF(Y51="","",W51+IF(Y51="XX",VLOOKUP("WRONG",Answers!U:X,4,FALSE),Y51)+Z51) -> 2042 | AB51: =IF($B51="","",0+UPPER(Mainframe!I50)) -> 42 | AC51: =IF(AB51="","",IF(NOT(ISNA(VLOOKUP(AB51,Answers!Y:AB,4,FALSE))),VLOOKUP(AB51,Answers!Y:AB,4,FALSE),"Help!")) -> 13 | AE51: =IF(AC51="","",AA51+IF(AC51="XX",VLOOKUP("WRONG",Answers!Y:AB,4,FALSE),AC51)+AD51) -> 2055 | AF51: =IF($B51="","",0+UPPER(Mainframe!J50)) -> 34 | AG51: =IF(AF51="","",IF(NOT(ISNA(VLOOKUP(AF51,Answers!AC:AF,4,FALSE))),VLOOKUP(AF51,Answers!AC:AF,4,FALSE),"Help!")) -> 4 | AI51: =IF(AG51="","",AE51+IF(AG51="XX",VLOOKUP("WRONG",Answers!AC:AF,4,FALSE),AG51)+AH51) -> 2059 | AJ51: =IF($B51="","",0+UPPER(Mainframe!K50)) -> 4 | AK51: =IF(AJ51="","",IF(NOT(ISNA(VLOOKUP(AJ51,Answers!AG:AJ,4,FALSE))),VLOOKUP(AJ51,Answers!AG:AJ,4,FALSE),"Help!")) -> 4 | AM51: =IF(AK51="","",AI51+IF(AK51="XX",VLOOKUP("WRONG",Answers!AG:AJ,4,FALSE),AK51)+AL51) -> 2063 | AN51: =IF($B51="","",0+UPPER(Mainframe!L50)) -> 67 | AO51: =IF(AN51="","",IF(NOT(ISNA(VLOOKUP(AN51,Answers!AK:AN,4,FALSE))),VLOOKUP(AN51,Answers!AK:AN,4,FALSE),"Help!")) -> 1000 | AQ51: =IF(AO51="","",AM51+IF(AO51="XX",VLOOKUP("WRONG",Answers!AK:AN,4,FALSE),AO51)+AP51) -> 3063 | AR51: =IF($B51="","",0+UPPER(Mainframe!M50)) -> 11 | AS51: =IF(AR51="","",IF(NOT(ISNA(VLOOKUP(AR51,Answers!AO:AR,4,FALSE))),VLOOKUP(AR51,Answers!AO:AR,4,FALSE),"Help!")) -> 5 | AU51: =IF(AS51="","",AQ51+IF(AS51="XX",VLOOKUP("WRONG",Answers!AO:AR,4,FALSE),AS51)+AT51) -> 3068 | AV51: =IF($B51="","",0+UPPER(Mainframe!N50)) -> 632 | AW51: XX | AY51: =IF(AW51="","",AU51+IF(AW51="XX",VLOOKUP("WRONG",Answers!AS:AV,4,FALSE),AW51)+AX51) -> 4075 | AZ51: =IF($B51="","",0+UPPER(Mainframe!O50)) -> 500 | BA51: 11.52054795 | BB51: 1 | BC51: =IF($B51="","",LEFT(Mainframe!P50,SEARCH(".",Mainframe!P50)-1)) -> 3 | CH51: 49 | CI51: =IF(INDEX($B:$CE,ROW(),QNO*4)="XX","[b][u]"&INDEX($B:$CE,ROW(),QNO*4-1)&"[/u][/b]","[color=#BF0040]"&INDEX(OFFSET(Answers!C:C,0,(QNO-1)*4),MATCH(INDEX($A:$CB,ROW(),QNO*4),OFFSET(Answers!A:A,0,(QNO-1)*4),0))&"[/color]//[b]"&INDEX(OFFSET(Answers!B:B,0,(QNO-1)*4),MATCH(INDEX($A:$CB,ROW(),QNO*4),OFFSET(Answers!A:A,0,(QNO-1)*4),0))&"[/b] — [b]"&IF(INDEX($B:$CE,ROW(),QNO*4)=1,"Singleton!",CONCATENATE(INDEX($B:$CE,ROW(),QNO*4)," responses"))&"[/b]") -> [color=#BF0040]"Dammit (Growing Up)", "What's My Age Again?", "All the Small Things"[/color]//[b]BLINK [u]182[/u][/b] — [b]2 responses[/b] | CJ51: BobF | CK51: Yes | CL51: 49. BobF — [b]2[/b] pts | CM51: 58 | CN51: 9
A52: [*] | B52: =IF(Mainframe!B51="","",INDEX(Mainframe!$B:$B,C52+1,1)) -> Peachbox | C52: 50 | D52: =IF($B52="","",0+UPPER(Mainframe!C51)) -> 1 | E52: =IF(D52="","",IF(NOT(ISNA(VLOOKUP(D52,Answers!A:D,4,FALSE))),VLOOKUP(D52,Answers!A:D,4,FALSE),"Help!")) -> 8 | G52: =IF(E52="","",IF(E52="XX",VLOOKUP("WRONG",Answers!A:D,4,FALSE),E52)+F52) -> 8 | H52: =IF($B52="","",0+UPPER(Mainframe!D51)) -> 21 | I52: =IF(H52="","",IF(NOT(ISNA(VLOOKUP(H52,Answers!E:H,4,FALSE))),VLOOKUP(H52,Answers!E:H,4,FALSE),"Help!")) -> 1000 | K52: =IF(I52="","",G52+IF(I52="XX",VLOOKUP("WRONG",Answers!E:H,4,FALSE),I52)+J52) -> 1008 | L52: =IF($B52="","",0+UPPER(Mainframe!E51)) -> 34 | M52: =IF(L52="","",IF(NOT(ISNA(VLOOKUP(L52,Answers!I:L,4,FALSE))),VLOOKUP(L52,Answers!I:L,4,FALSE),"Help!")) -> 1000 | O52: =IF(M52="","",K52+IF(M52="XX",VLOOKUP("WRONG",Answers!I:L,4,FALSE),M52)+N52) -> 2008 | P52: =IF($B52="","",0+UPPER(Mainframe!F51)) -> 1861 | Q52: =IF(P52="","",IF(NOT(ISNA(VLOOKUP(P52,Answers!M:P,4,FALSE))),VLOOKUP(P52,Answers!M:P,4,FALSE),"Help!")) -> 1000 | S52: =IF(Q52="","",O52+IF(Q52="XX",VLOOKUP("WRONG",Answers!M:P,4,FALSE),Q52)+R52) -> 3008 | T52: =IF($B52="","",0+UPPER(Mainframe!G51)) -> 2 | U52: =IF(T52="","",IF(NOT(ISNA(VLOOKUP(T52,Answers!Q:T,4,FALSE))),VLOOKUP(T52,Answers!Q:T,4,FALSE),"Help!")) -> 14 | V52: =IF(U52>500,-1000,0) -> 0 | W52: =IF(U52="","",S52+IF(U52="XX",VLOOKUP("WRONG",Answers!Q:T,4,FALSE),U52)+V52) -> 3022 | X52: =IF($B52="","",0+UPPER(Mainframe!H51)) -> 12 | Y52: =IF(X52="","",IF(NOT(ISNA(VLOOKUP(X52,Answers!U:X,4,FALSE))),VLOOKUP(X52,Answers!U:X,4,FALSE),"Help!")) -> 5 | AA52: =IF(Y52="","",W52+IF(Y52="XX",VLOOKUP("WRONG",Answers!U:X,4,FALSE),Y52)+Z52) -> 3027 | AB52: =IF($B52="","",0+UPPER(Mainframe!I51)) -> 76 | AC52: =IF(AB52="","",IF(NOT(ISNA(VLOOKUP(AB52,Answers!Y:AB,4,FALSE))),VLOOKUP(AB52,Answers!Y:AB,4,FALSE),"Help!")) -> 1000 | AE52: =IF(AC52="","",AA52+IF(AC52="XX",VLOOKUP("WRONG",Answers!Y:AB,4,FALSE),AC52)+AD52) -> 4027 | AF52: =IF($B52="","",0+UPPER(Mainframe!J51)) -> 1974 | AG52: =IF(AF52="","",IF(NOT(ISNA(VLOOKUP(AF52,Answers!AC:AF,4,FALSE))),VLOOKUP(AF52,Answers!AC:AF,4,FALSE),"Help!")) -> 8 | AI52: =IF(AG52="","",AE52+IF(AG52="XX",VLOOKUP("WRONG",Answers!AC:AF,4,FALSE),AG52)+AH52) -> 4035 | AJ52: =IF($B52="","",0+UPPER(Mainframe!K51)) -> 80 | AK52: =IF(AJ52="","",IF(NOT(ISNA(VLOOKUP(AJ52,Answers!AG:AJ,4,FALSE))),VLOOKUP(AJ52,Answers!AG:AJ,4,FALSE),"Help!")) -> 6 | AM52: =IF(AK52="","",AI52+IF(AK52="XX",VLOOKUP("WRONG",Answers!AG:AJ,4,FALSE),AK52)+AL52) -> 4041 | AN52: =IF($B52="","",0+UPPER(Mainframe!L51)) -> 60 | AO52: =IF(AN52="","",IF(NOT(ISNA(VLOOKUP(AN52,Answers!AK:AN,4,FALSE))),VLOOKUP(AN52,Answers!AK:AN,4,FALSE),"Help!")) -> 4 | AQ52: =IF(AO52="","",AM52+IF(AO52="XX",VLOOKUP("WRONG",Answers!AK:AN,4,FALSE),AO52)+AP52) -> 4045 | AR52: =IF($B52="","",0+UPPER(Mainframe!M51)) -> 9 | AS52: =IF(AR52="","",IF(NOT(ISNA(VLOOKUP(AR52,Answers!AO:AR,4,FALSE))),VLOOKUP(AR52,Answers!AO:AR,4,FALSE),"Help!")) -> 9 | AU52: =IF(AS52="","",AQ52+IF(AS52="XX",VLOOKUP("WRONG",Answers!AO:AR,4,FALSE),AS52)+AT52) -> 4054 | AV52: =IF($B52="","",0+UPPER(Mainframe!N51)) -> 95 | AW52: =IF(AV52="","",IF(NOT(ISNA(VLOOKUP(AV52,Answers!AS:AV,4,FALSE))),VLOOKUP(AV52,Answers!AS:AV,4,FALSE),"Help!")) -> 7 | AY52: =IF(AW52="","",AU52+IF(AW52="XX",VLOOKUP("WRONG",Answers!AS:AV,4,FALSE),AW52)+AX52) -> 4061 | AZ52: =IF($B52="","",0+UPPER(Mainframe!O51)) -> 528 | BA52: 39.52054795 | BB52: 1 | BC52: =IF($B52="","",LEFT(Mainframe!P51,SEARCH(".",Mainframe!P51)-1)) -> 5 | CH52: 50 | CI52: =IF(INDEX($B:$CE,ROW(),QNO*4)="XX","[b][u]"&INDEX($B:$CE,ROW(),QNO*4-1)&"[/u][/b]","[color=#BF0040]"&INDEX(OFFSET(Answers!C:C,0,(QNO-1)*4),MATCH(INDEX($A:$CB,ROW(),QNO*4),OFFSET(Answers!A:A,0,(QNO-1)*4),0))&"[/color]//[b]"&INDEX(OFFSET(Answers!B:B,0,(QNO-1)*4),MATCH(INDEX($A:$CB,ROW(),QNO*4),OFFSET(Answers!A:A,0,(QNO-1)*4),0))&"[/b] — [b]"&IF(INDEX($B:$CE,ROW(),QNO*4)=1,"Singleton!",CONCATENATE(INDEX($B:$CE,ROW(),QNO*4)," responses"))&"[/b]") -> [color=#BF0040]"What Makes You Beautiful", "Little Things", "Best Song Ever"[/color]//[b][u]ONE[/u] DIRECTION[/b] — [b]8 responses[/b] | CJ52: Peachbox | CK52: Yes | CL52: 50. Peachbox — [b]8[/b] pts | CM52: 54 | CN52: 4
A53: [*] | B53: =IF(Mainframe!B52="","",INDEX(Mainframe!$B:$B,C53+1,1)) -> RandyG | C53: 51 | D53: =IF($B53="","",0+UPPER(Mainframe!C52)) -> 10000 | E53: =IF(D53="","",IF(NOT(ISNA(VLOOKUP(D53,Answers!A:D,4,FALSE))),VLOOKUP(D53,Answers!A:D,4,FALSE),"Help!")) -> 6 | G53: =IF(E53="","",IF(E53="XX",VLOOKUP("WRONG",Answers!A:D,4,FALSE),E53)+F53) -> 6 | H53: =IF($B53="","",0+UPPER(Mainframe!D52)) -> 38 | I53: =IF(H53="","",IF(NOT(ISNA(VLOOKUP(H53,Answers!E:H,4,FALSE))),VLOOKUP(H53,Answers!E:H,4,FALSE),"Help!")) -> 7 | K53: =IF(I53="","",G53+IF(I53="XX",VLOOKUP("WRONG",Answers!E:H,4,FALSE),I53)+J53) -> 13 | L53: =IF($B53="","",0+UPPER(Mainframe!E52)) -> 34 | M53: =IF(L53="","",IF(NOT(ISNA(VLOOKUP(L53,Answers!I:L,4,FALSE))),VLOOKUP(L53,Answers!I:L,4,FALSE),"Help!")) -> 1000 | O53: =IF(M53="","",K53+IF(M53="XX",VLOOKUP("WRONG",Answers!I:L,4,FALSE),M53)+N53) -> 1013 | P53: =IF($B53="","",0+UPPER(Mainframe!F52)) -> 1965 | Q53: XX | S53: =IF(Q53="","",O53+IF(Q53="XX",VLOOKUP("WRONG",Answers!M:P,4,FALSE),Q53)+R53) -> 2020 | T53: =IF($B53="","",0+UPPER(Mainframe!G52)) -> 47 | U53: =IF(T53="","",IF(NOT(ISNA(VLOOKUP(T53,Answers!Q:T,4,FALSE))),VLOOKUP(T53,Answers!Q:T,4,FALSE),"Help!")) -> 3 | W53: =IF(U53="","",S53+IF(U53="XX",VLOOKUP("WRONG",Answers!Q:T,4,FALSE),U53)+V53) -> 2023 | X53: =IF($B53="","",0+UPPER(Mainframe!H52)) -> 17 | Y53: XX | Z53: =IF(Y53>500,-1000,0) -> -1000 | AA53: =IF(Y53="","",W53+IF(Y53="XX",VLOOKUP("WRONG",Answers!U:X,4,FALSE),Y53)+Z53) -> 2030 | AB53: =IF($B53="","",0+UPPER(Mainframe!I52)) -> 42 | AC53: =IF(AB53="","",IF(NOT(ISNA(VLOOKUP(AB53,Answers!Y:AB,4,FALSE))),VLOOKUP(AB53,Answers!Y:AB,4,FALSE),"Help!")) -> 13 | AE53: =IF(AC53="","",AA53+IF(AC53="XX",VLOOKUP("WRONG",Answers!Y:AB,4,FALSE),AC53)+AD53) -> 2043 | AF53: =IF($B53="","",0+UPPER(Mainframe!J52)) -> 202 | AG53: =IF(AF53="","",IF(NOT(ISNA(VLOOKUP(AF53,Answers!AC:AF,4,FALSE))),VLOOKUP(AF53,Answers!AC:AF,4,FALSE),"Help!")) -> 10 | AI53: =IF(AG53="","",AE53+IF(AG53="XX",VLOOKUP("WRONG",Answers!AC:AF,4,FALSE),AG53)+AH53) -> 2053 | AJ53: =IF($B53="","",0+UPPER(Mainframe!K52)) -> 8 | AK53: =IF(AJ53="","",IF(NOT(ISNA(VLOOKUP(AJ53,Answers!AG:AJ,4,FALSE))),VLOOKUP(AJ53,Answers!AG:AJ,4,FALSE),"Help!")) -> 5 | AM53: =IF(AK53="","",AI53+IF(AK53="XX",VLOOKUP("WRONG",Answers!AG:AJ,4,FALSE),AK53)+AL53) -> 2058 | AN53: =IF($B53="","",0+UPPER(Mainframe!L52)) -> 94 | AO53: =IF(AN53="","",IF(NOT(ISNA(VLOOKUP(AN53,Answers!AK:AN,4,FALSE))),VLOOKUP(AN53,Answers!AK:AN,4,FALSE),"Help!")) -> 4 | AQ53: =IF(AO53="","",AM53+IF(AO53="XX",VLOOKUP("WRONG",Answers!AK:AN,4,FALSE),AO53)+AP53) -> 2062 | AR53: =IF($B53="","",0+UPPER(Mainframe!M52)) -> 5 | AS53: =IF(AR53="","",IF(NOT(ISNA(VLOOKUP(AR53,Answers!AO:AR,4,FALSE))),VLOOKUP(AR53,Answers!AO:AR,4,FALSE),"Help!")) -> 1000 | AU53: =IF(AS53="","",AQ53+IF(AS53="XX",VLOOKUP("WRONG",Answers!AO:AR,4,FALSE),AS53)+AT53) -> 3062 | AV53: =IF($B53="","",0+UPPER(Mainframe!N52)) -> 613 | AW53: =IF(AV53="","",IF(NOT(ISNA(VLOOKUP(AV53,Answers!AS:AV,4,FALSE))),VLOOKUP(AV53,Answers!AS:AV,4,FALSE),"Help!")) -> 4 | AY53: =IF(AW53="","",AU53+IF(AW53="XX",VLOOKUP("WRONG",Answers!AS:AV,4,FALSE),AW53)+AX53) -> 3066 | AZ53: =IF($B53="","",0+UPPER(Mainframe!O52)) -> 100 | BA53: 388.4794521 | BB53: 1 | BC53: =IF($B53="","",LEFT(Mainframe!P52,SEARCH(".",Mainframe!P52)-1)) -> 6 | CH53: 51 | CI53: =IF(INDEX($B:$CE,ROW(),QNO*4)="XX","[b][u]"&INDEX($B:$CE,ROW(),QNO*4-1)&"[/u][/b]","[color=#BF0040]"&INDEX(OFFSET(Answers!C:C,0,(QNO-1)*4),MATCH(INDEX($A:$CB,ROW(),QNO*4),OFFSET(Answers!A:A,0,(QNO-1)*4),0))&"[/color]//[b]"&INDEX(OFFSET(Answers!B:B,0,(QNO-1)*4),MATCH(INDEX($A:$CB,ROW(),QNO*4),OFFSET(Answers!A:A,0,(QNO-1)*4),0))&"[/b] — [b]"&IF(INDEX($B:$CE,ROW(),QNO*4)=1,"Singleton!",CONCATENATE(INDEX($B:$CE,ROW(),QNO*4)," responses"))&"[/b]") -> [color=#BF0040]"What's the Matter Here?", "Trouble Me", "Because the Night" (on [i]MTV Unplugged[/i])[/color]//[b][u]10,000[/u] MANIACS[/b] — [b]6 responses[/b] | CJ53: RandyG | CK53: Yes | CL53: 51. RandyG — [b]6[/b] pts | CM53: 42 | CN53: -9
A54: [*] | B54: =IF(Mainframe!B53="","",INDEX(Mainframe!$B:$B,C54+1,1)) -> Armandillo | C54: 52 | D54: =IF($B54="","",0+UPPER(Mainframe!C53)) -> 65 | E54: =IF(D54="","",IF(NOT(ISNA(VLOOKUP(D54,Answers!A:D,4,FALSE))),VLOOKUP(D54,Answers!A:D,4,FALSE),"Help!")) -> 9 | G54: =IF(E54="","",IF(E54="XX",VLOOKUP("WRONG",Answers!A:D,4,FALSE),E54)+F54) -> 9 | H54: =IF($B54="","",0+UPPER(Mainframe!D53)) -> 22 | I54: =IF(H54="","",IF(NOT(ISNA(VLOOKUP(H54,Answers!E:H,4,FALSE))),VLOOKUP(H54,Answers!E:H,4,FALSE),"Help!")) -> 11 | K54: =IF(I54="","",G54+IF(I54="XX",VLOOKUP("WRONG",Answers!E:H,4,FALSE),I54)+J54) -> 20 | L54: =IF($B54="","",0+UPPER(Mainframe!E53)) -> 101 | M54: =IF(L54="","",IF(NOT(ISNA(VLOOKUP(L54,Answers!I:L,4,FALSE))),VLOOKUP(L54,Answers!I:L,4,FALSE),"Help!")) -> 7 | O54: =IF(M54="","",K54+IF(M54="XX",VLOOKUP("WRONG",Answers!I:L,4,FALSE),M54)+N54) -> 27 | P54: =IF($B54="","",0+UPPER(Mainframe!F53)) -> 1861 | Q54: =IF(P54="","",IF(NOT(ISNA(VLOOKUP(P54,Answers!M:P,4,FALSE))),VLOOKUP(P54,Answers!M:P,4,FALSE),"Help!")) -> 1000 | S54: =IF(Q54="","",O54+IF(Q54="XX",VLOOKUP("WRONG",Answers!M:P,4,FALSE),Q54)+R54) -> 1027 | T54: =IF($B54="","",0+UPPER(Mainframe!G53)) -> 1 | U54: XX | W54: =IF(U54="","",S54+IF(U54="XX",VLOOKUP("WRONG",Answers!Q:T,4,FALSE),U54)+V54) -> 2034 | X54: =IF($B54="","",0+UPPER(Mainframe!H53)) -> 451 | Y54: =IF(X54="","",IF(NOT(ISNA(VLOOKUP(X54,Answers!U:X,4,FALSE))),VLOOKUP(X54,Answers!U:X,4,FALSE),"Help!")) -> 8 | AA54: =IF(Y54="","",W54+IF(Y54="XX",VLOOKUP("WRONG",Answers!U:X,4,FALSE),Y54)+Z54) -> 2042 | AB54: =IF($B54="","",0+UPPER(Mainframe!I53)) -> 6 | AC54: =IF(AB54="","",IF(NOT(ISNA(VLOOKUP(AB54,Answers!Y:AB,4,FALSE))),VLOOKUP(AB54,Answers!Y:AB,4,FALSE),"Help!")) -> 4 | AE54: =IF(AC54="","",AA54+IF(AC54="XX",VLOOKUP("WRONG",Answers!Y:AB,4,FALSE),AC54)+AD54) -> 2046 | AF54: =IF($B54="","",0+UPPER(Mainframe!J53)) -> 9 | AG54: =IF(AF54="","",IF(NOT(ISNA(VLOOKUP(AF54,Answers!AC:AF,4,FALSE))),VLOOKUP(AF54,Answers!AC:AF,4,FALSE),"Help!")) -> 1000 | AI54: =IF(AG54="","",AE54+IF(AG54="XX",VLOOKUP("WRONG",Answers!AC:AF,4,FALSE),AG54)+AH54) -> 3046 | AJ54: =IF($B54="","",0+UPPER(Mainframe!K53)) -> 5 | AK54: =IF(AJ54="","",IF(NOT(ISNA(VLOOKUP(AJ54,Answers!AG:AJ,4,FALSE))),VLOOKUP(AJ54,Answers!AG:AJ,4,FALSE),"Help!")) -> 9 | AM54: =IF(AK54="","",AI54+IF(AK54="XX",VLOOKUP("WRONG",Answers!AG:AJ,4,FALSE),AK54)+AL54) -> 3055 | AN54: =IF($B54="","",0+UPPER(Mainframe!L53)) -> 22 | AO54: =IF(AN54="","",IF(NOT(ISNA(VLOOKUP(AN54,Answers!AK:AN,4,FALSE))),VLOOKUP(AN54,Answers!AK:AN,4,FALSE),"Help!")) -> 6 | AQ54: =IF(AO54="","",AM54+IF(AO54="XX",VLOOKUP("WRONG",Answers!AK:AN,4,FALSE),AO54)+AP54) -> 3061 | AR54: =IF($B54="","",0+UPPER(Mainframe!M53)) -> 9 | AS54: =IF(AR54="","",IF(NOT(ISNA(VLOOKUP(AR54,Answers!AO:AR,4,FALSE))),VLOOKUP(AR54,Answers!AO:AR,4,FALSE),"Help!")) -> 9 | AU54: =IF(AS54="","",AQ54+IF(AS54="XX",VLOOKUP("WRONG",Answers!AO:AR,4,FALSE),AS54)+AT54) -> 3070 | AV54: =IF($B54="","",0+UPPER(Mainframe!N53)) -> 10 | AW54: =IF(AV54="","",IF(NOT(ISNA(VLOOKUP(AV54,Answers!AS:AV,4,FALSE))),VLOOKUP(AV54,Answers!AS:AV,4,FALSE),"Help!")) -> 1000 | AX54: =IF(AW54>500,-1000,0) -> -1000 | AY54: =IF(AW54="","",AU54+IF(AW54="XX",VLOOKUP("WRONG",Answers!AS:AV,4,FALSE),AW54)+AX54) -> 3070 | AZ54: =IF($B54="","",0+UPPER(Mainframe!O53)) -> 864 | BA54: 375.5205479 | BB54: 1 | BC54: =IF($B54="","",LEFT(Mainframe!P53,SEARCH(".",Mainframe!P53)-1)) -> 12 | CH54: 52 | CI54: =IF(INDEX($B:$CE,ROW(),QNO*4)="XX","[b][u]"&INDEX($B:$CE,ROW(),QNO*4-1)&"[/u][/b]","[color=#BF0040]"&INDEX(OFFSET(Answers!C:C,0,(QNO-1)*4),MATCH(INDEX($A:$CB,ROW(),QNO*4),OFFSET(Answers!A:A,0,(QNO-1)*4),0))&"[/color]//[b]"&INDEX(OFFSET(Answers!B:B,0,(QNO-1)*4),MATCH(INDEX($A:$CB,ROW(),QNO*4),OFFSET(Answers!A:A,0,(QNO-1)*4),0))&"[/b] — [b]"&IF(INDEX($B:$CE,ROW(),QNO*4)=1,"Singleton!",CONCATENATE(INDEX($B:$CE,ROW(),QNO*4)," responses"))&"[/b]") -> [color=#BF0040]"Blue (Da Ba Dee)", "Move Your Body", "Lucky (In My Life)"[/color]//[b]EIFFEL [u]65[/u][/b] — [b]9 responses[/b] | CJ54: Armandillo | CK54: Yes | CL54: 52. Armandillo — [b]9[/b] pts | CM54: 45 | CN54: -7
A55: [*] | B55: =IF(Mainframe!B54="","",INDEX(Mainframe!$B:$B,C55+1,1)) -> dott888 | C55: 53 | D55: =IF($B55="","",0+UPPER(Mainframe!C54)) -> 40 | E55: =IF(D55="","",IF(NOT(ISNA(VLOOKUP(D55,Answers!A:D,4,FALSE))),VLOOKUP(D55,Answers!A:D,4,FALSE),"Help!")) -> 1000 | G55: =IF(E55="","",IF(E55="XX",VLOOKUP("WRONG",Answers!A:D,4,FALSE),E55)+F55) -> 1000 | H55: =IF($B55="","",0+UPPER(Mainframe!D54)) -> 121 | I55: =IF(H55="","",IF(NOT(ISNA(VLOOKUP(H55,Answers!E:H,4,FALSE))),VLOOKUP(H55,Answers!E:H,4,FALSE),"Help!")) -> 8 | K55: =IF(I55="","",G55+IF(I55="XX",VLOOKUP("WRONG",Answers!E:H,4,FALSE),I55)+J55) -> 1008 | L55: =IF($B55="","",0+UPPER(Mainframe!E54)) -> 2001 | M55: =IF(L55="","",IF(NOT(ISNA(VLOOKUP(L55,Answers!I:L,4,FALSE))),VLOOKUP(L55,Answers!I:L,4,FALSE),"Help!")) -> 6 | O55: =IF(M55="","",K55+IF(M55="XX",VLOOKUP("WRONG",Answers!I:L,4,FALSE),M55)+N55) -> 1014 | P55: =IF($B55="","",0+UPPER(Mainframe!F54)) -> 2006 | Q55: XX | R55: =IF(Q55>500,-1000,0) -> -1000 | S55: =IF(Q55="","",O55+IF(Q55="XX",VLOOKUP("WRONG",Answers!M:P,4,FALSE),Q55)+R55) -> 1021 | T55: =IF($B55="","",0+UPPER(Mainframe!G54)) -> 2 | U55: =IF(T55="","",IF(NOT(ISNA(VLOOKUP(T55,Answers!Q:T,4,FALSE))),VLOOKUP(T55,Answers!Q:T,4,FALSE),"Help!")) -> 14 | W55: =IF(U55="","",S55+IF(U55="XX",VLOOKUP("WRONG",Answers!Q:T,4,FALSE),U55)+V55) -> 1035 | X55: =IF($B55="","",0+UPPER(Mainframe!H54)) -> 1984 | Y55: =IF(X55="","",IF(NOT(ISNA(VLOOKUP(X55,Answers!U:X,4,FALSE))),VLOOKUP(X55,Answers!U:X,4,FALSE),"Help!")) -> 3 | AA55: =IF(Y55="","",W55+IF(Y55="XX",VLOOKUP("WRONG",Answers!U:X,4,FALSE),Y55)+Z55) -> 1038 | AB55: =IF($B55="","",0+UPPER(Mainframe!I54)) -> 18 | AC55: XX | AE55: =IF(AC55="","",AA55+IF(AC55="XX",VLOOKUP("WRONG",Answers!Y:AB,4,FALSE),AC55)+AD55) -> 2045 | AF55: =IF($B55="","",0+UPPER(Mainframe!J54)) -> 9 | AG55: =IF(AF55="","",IF(NOT(ISNA(VLOOKUP(AF55,Answers!AC:AF,4,FALSE))),VLOOKUP(AF55,Answers!AC:AF,4,FALSE),"Help!")) -> 1000 | AI55: =IF(AG55="","",AE55+IF(AG55="XX",VLOOKUP("WRONG",Answers!AC:AF,4,FALSE),AG55)+AH55) -> 3045 | AJ55: =IF($B55="","",0+UPPER(Mainframe!K54)) -> 75 | AK55: =IF(AJ55="","",IF(NOT(ISNA(VLOOKUP(AJ55,Answers!AG:AJ,4,FALSE))),VLOOKUP(AJ55,Answers!AG:AJ,4,FALSE),"Help!")) -> 4 | AM55: =IF(AK55="","",AI55+IF(AK55="XX",VLOOKUP("WRONG",Answers!AG:AJ,4,FALSE),AK55)+AL55) -> 3049 | AN55: =IF($B55="","",0+UPPER(Mainframe!L54)) -> 67 | AO55: =IF(AN55="","",IF(NOT(ISNA(VLOOKUP(AN55,Answers!AK:AN,4,FALSE))),VLOOKUP(AN55,Answers!AK:AN,4,FALSE),"Help!")) -> 1000 | AQ55: =IF(AO55="","",AM55+IF(AO55="XX",VLOOKUP("WRONG",Answers!AK:AN,4,FALSE),AO55)+AP55) -> 4049 | AR55: =IF($B55="","",0+UPPER(Mainframe!M54)) -> 9 | AS55: =IF(AR55="","",IF(NOT(ISNA(VLOOKUP(AR55,Answers!AO:AR,4,FALSE))),VLOOKUP(AR55,Answers!AO:AR,4,FALSE),"Help!")) -> 9 | AU55: =IF(AS55="","",AQ55+IF(AS55="XX",VLOOKUP("WRONG",Answers!AO:AR,4,FALSE),AS55)+AT55) -> 4058 | AV55: =IF($B55="","",0+UPPER(Mainframe!N54)) -> 10 | AW55: =IF(AV55="","",IF(NOT(ISNA(VLOOKUP(AV55,Answers!AS:AV,4,FALSE))),VLOOKUP(AV55,Answers!AS:AV,4,FALSE),"Help!")) -> 1000 | AY55: =IF(AW55="","",AU55+IF(AW55="XX",VLOOKUP("WRONG",Answers!AS:AV,4,FALSE),AW55)+AX55) -> 5058 | AZ55: =IF($B55="","",0+UPPER(Mainframe!O54)) -> 665 | BA55: 176.5205479 | BB55: 1 | BC55: =IF($B55="","",LEFT(Mainframe!P54,SEARCH(".",Mainframe!P54)-1)) -> 4 | CH55: 53 | CI55: =IF(INDEX($B:$CE,ROW(),QNO*4)="XX","[b][u]"&INDEX($B:$CE,ROW(),QNO*4-1)&"[/u][/b]","[color=#BF0040]"&INDEX(OFFSET(Answers!C:C,0,(QNO-1)*4),MATCH(INDEX($A:$CB,ROW(),QNO*4),OFFSET(Answers!A:A,0,(QNO-1)*4),0))&"[/color]//[b]"&INDEX(OFFSET(Answers!B:B,0,(QNO-1)*4),MATCH(INDEX($A:$CB,ROW(),QNO*4),OFFSET(Answers!A:A,0,(QNO-1)*4),0))&"[/b] — [b]"&IF(INDEX($B:$CE,ROW(),QNO*4)=1,"Singleton!",CONCATENATE(INDEX($B:$CE,ROW(),QNO*4)," responses"))&"[/b]") -> [color=#BF0040]"King", "Red Red Wine", "(I Can't Help) Falling in Love With You"[/color]//[b]UB[u]40[/u][/b] — [b]1000 responses[/b] | CJ55: dott888 | CK55: Yes | CL55: 53. dott888 — [b]1,000[/b] pts | CM55: 66 | CN55: 13
A56: [*] | B56: =IF(Mainframe!B55="","",INDEX(Mainframe!$B:$B,C56+1,1)) -> jgamer | C56: 54 | D56: =IF($B56="","",0+UPPER(Mainframe!C55)) -> 65 | E56: =IF(D56="","",IF(NOT(ISNA(VLOOKUP(D56,Answers!A:D,4,FALSE))),VLOOKUP(D56,Answers!A:D,4,FALSE),"Help!")) -> 9 | G56: =IF(E56="","",IF(E56="XX",VLOOKUP("WRONG",Answers!A:D,4,FALSE),E56)+F56) -> 9 | H56: =IF($B56="","",0+UPPER(Mainframe!D55)) -> 100 | I56: =IF(H56="","",IF(NOT(ISNA(VLOOKUP(H56,Answers!E:H,4,FALSE))),VLOOKUP(H56,Answers!E:H,4,FALSE),"Help!")) -> 4 | K56: =IF(I56="","",G56+IF(I56="XX",VLOOKUP("WRONG",Answers!E:H,4,FALSE),I56)+J56) -> 13 | L56: =IF($B56="","",0+UPPER(Mainframe!E55)) -> 400 | M56: =IF(L56="","",IF(NOT(ISNA(VLOOKUP(L56,Answers!I:L,4,FALSE))),VLOOKUP(L56,Answers!I:L,4,FALSE),"Help!")) -> 2 | O56: =IF(M56="","",K56+IF(M56="XX",VLOOKUP("WRONG",Answers!I:L,4,FALSE),M56)+N56) -> 15 | P56: =IF($B56="","",0+UPPER(Mainframe!F55)) -> 312 | Q56: =IF(P56="","",IF(NOT(ISNA(VLOOKUP(P56,Answers!M:P,4,FALSE))),VLOOKUP(P56,Answers!M:P,4,FALSE),"Help!")) -> 4 | S56: =IF(Q56="","",O56+IF(Q56="XX",VLOOKUP("WRONG",Answers!M:P,4,FALSE),Q56)+R56) -> 19 | T56: =IF($B56="","",0+UPPER(Mainframe!G55)) -> 18 | U56: =IF(T56="","",IF(NOT(ISNA(VLOOKUP(T56,Answers!Q:T,4,FALSE))),VLOOKUP(T56,Answers!Q:T,4,FALSE),"Help!")) -> 6 | W56: =IF(U56="","",S56+IF(U56="XX",VLOOKUP("WRONG",Answers!Q:T,4,FALSE),U56)+V56) -> 25 | X56: =IF($B56="","",0+UPPER(Mainframe!H55)) -> 7 | Y56: =IF(X56="","",IF(NOT(ISNA(VLOOKUP(X56,Answers!U:X,4,FALSE))),VLOOKUP(X56,Answers!U:X,4,FALSE),"Help!")) -> 6 | AA56: =IF(Y56="","",W56+IF(Y56="XX",VLOOKUP("WRONG",Answers!U:X,4,FALSE),Y56)+Z56) -> 31 | AB56: =IF($B56="","",0+UPPER(Mainframe!I55)) -> 33 | AC56: =IF(AB56="","",IF(NOT(ISNA(VLOOKUP(AB56,Answers!Y:AB,4,FALSE))),VLOOKUP(AB56,Answers!Y:AB,4,FALSE),"Help!")) -> 1 | AE56: =IF(AC56="","",AA56+IF(AC56="XX",VLOOKUP("WRONG",Answers!Y:AB,4,FALSE),AC56)+AD56) -> 32 | AF56: =IF($B56="","",0+UPPER(Mainframe!J55)) -> 49 | AG56: =IF(AF56="","",IF(NOT(ISNA(VLOOKUP(AF56,Answers!AC:AF,4,FALSE))),VLOOKUP(AF56,Answers!AC:AF,4,FALSE),"Help!")) -> 10 | AI56: =IF(AG56="","",AE56+IF(AG56="XX",VLOOKUP("WRONG",Answers!AC:AF,4,FALSE),AG56)+AH56) -> 42 | AJ56: =IF($B56="","",0+UPPER(Mainframe!K55)) -> 8 | AK56: =IF(AJ56="","",IF(NOT(ISNA(VLOOKUP(AJ56,Answers!AG:AJ,4,FALSE))),VLOOKUP(AJ56,Answers!AG:AJ,4,FALSE),"Help!")) -> 5 | AM56: =IF(AK56="","",AI56+IF(AK56="XX",VLOOKUP("WRONG",Answers!AG:AJ,4,FALSE),AK56)+AL56) -> 47 | AN56: =IF($B56="","",0+UPPER(Mainframe!L55)) -> 94 | AO56: =IF(AN56="","",IF(NOT(ISNA(VLOOKUP(AN56,Answers!AK:AN,4,FALSE))),VLOOKUP(AN56,Answers!AK:AN,4,FALSE),"Help!")) -> 4 | AQ56: =IF(AO56="","",AM56+IF(AO56="XX",VLOOKUP("WRONG",Answers!AK:AN,4,FALSE),AO56)+AP56) -> 51 | AR56: =IF($B56="","",0+UPPER(Mainframe!M55)) -> 6 | AS56: =IF(AR56="","",IF(NOT(ISNA(VLOOKUP(AR56,Answers!AO:AR,4,FALSE))),VLOOKUP(AR56,Answers!AO:AR,4,FALSE),"Help!")) -> 8 | AU56: =IF(AS56="","",AQ56+IF(AS56="XX",VLOOKUP("WRONG",Answers!AO:AR,4,FALSE),AS56)+AT56) -> 59 | AV56: =IF($B56="","",0+UPPER(Mainframe!N55)) -> 4 | AW56: =IF(AV56="","",IF(NOT(ISNA(VLOOKUP(AV56,Answers!AS:AV,4,FALSE))),VLOOKUP(AV56,Answers!AS:AV,4,FALSE),"Help!")) -> 5 | AX56: =IF(AW56>500,-1000,0) -> 0 | AY56: =IF(AW56="","",AU56+IF(AW56="XX",VLOOKUP("WRONG",Answers!AS:AV,4,FALSE),AW56)+AX56) -> 64 | AZ56: =IF($B56="","",0+UPPER(Mainframe!O55)) -> 501 | BA56: 12.52054795 | BB56: 1 | BC56: =IF($B56="","",LEFT(Mainframe!P55,SEARCH(".",Mainframe!P55)-1)) -> 11 | CH56: 54 | CI56: =IF(INDEX($B:$CE,ROW(),QNO*4)="XX","[b][u]"&INDEX($B:$CE,ROW(),QNO*4-1)&"[/u][/b]","[color=#BF0040]"&INDEX(OFFSET(Answers!C:C,0,(QNO-1)*4),MATCH(INDEX($A:$CB,ROW(),QNO*4),OFFSET(Answers!A:A,0,(QNO-1)*4),0))&"[/color]//[b]"&INDEX(OFFSET(Answers!B:B,0,(QNO-1)*4),MATCH(INDEX($A:$CB,ROW(),QNO*4),OFFSET(Answers!A:A,0,(QNO-1)*4),0))&"[/b] — [b]"&IF(INDEX($B:$CE,ROW(),QNO*4)=1,"Singleton!",CONCATENATE(INDEX($B:$CE,ROW(),QNO*4)," responses"))&"[/b]") -> [color=#BF0040]"Blue (Da Ba Dee)", "Move Your Body", "Lucky (In My Life)"[/color]//[b]EIFFEL [u]65[/u][/b] — [b]9 responses[/b] | CJ56: jgamer//ihavejeoprosy | CK56: Yes | CL56: 54. jgamer — [b]9[/b] pts | CM56: 2 | CN56: -52
A57: [*] | B57: =IF(Mainframe!B56="","",INDEX(Mainframe!$B:$B,C57+1,1)) -> ihavejeoprosy | C57: 55 | D57: =IF($B57="","",0+UPPER(Mainframe!C56)) -> 65 | E57: =IF(D57="","",IF(NOT(ISNA(VLOOKUP(D57,Answers!A:D,4,FALSE))),VLOOKUP(D57,Answers!A:D,4,FALSE),"Help!")) -> 9 | G57: =IF(E57="","",IF(E57="XX",VLOOKUP("WRONG",Answers!A:D,4,FALSE),E57)+F57) -> 9 | H57: =IF($B57="","",0+UPPER(Mainframe!D56)) -> 121 | I57: =IF(H57="","",IF(NOT(ISNA(VLOOKUP(H57,Answers!E:H,4,FALSE))),VLOOKUP(H57,Answers!E:H,4,FALSE),"Help!")) -> 8 | J57: =IF(I57>500,-1000,0) -> 0 | K57: =IF(I57="","",G57+IF(I57="XX",VLOOKUP("WRONG",Answers!E:H,4,FALSE),I57)+J57) -> 17 | L57: =IF($B57="","",0+UPPER(Mainframe!E56)) -> 10 | M57: =IF(L57="","",IF(NOT(ISNA(VLOOKUP(L57,Answers!I:L,4,FALSE))),VLOOKUP(L57,Answers!I:L,4,FALSE),"Help!")) -> 10 | O57: =IF(M57="","",K57+IF(M57="XX",VLOOKUP("WRONG",Answers!I:L,4,FALSE),M57)+N57) -> 27 | P57: =IF($B57="","",0+UPPER(Mainframe!F56)) -> 1940 | Q57: =IF(P57="","",IF(NOT(ISNA(VLOOKUP(P57,Answers!M:P,4,FALSE))),VLOOKUP(P57,Answers!M:P,4,FALSE),"Help!")) -> 7 | S57: =IF(Q57="","",O57+IF(Q57="XX",VLOOKUP("WRONG",Answers!M:P,4,FALSE),Q57)+R57) -> 34 | T57: =IF($B57="","",0+UPPER(Mainframe!G56)) -> 36 | U57: =IF(T57="","",IF(NOT(ISNA(VLOOKUP(T57,Answers!Q:T,4,FALSE))),VLOOKUP(T57,Answers!Q:T,4,FALSE),"Help!")) -> 4 | W57: =IF(U57="","",S57+IF(U57="XX",VLOOKUP("WRONG",Answers!Q:T,4,FALSE),U57)+V57) -> 38 | X57: =IF($B57="","",0+UPPER(Mainframe!H56)) -> 52 | Y57: =IF(X57="","",IF(NOT(ISNA(VLOOKUP(X57,Answers!U:X,4,FALSE))),VLOOKUP(X57,Answers!U:X,4,FALSE),"Help!")) -> 2 | AA57: =IF(Y57="","",W57+IF(Y57="XX",VLOOKUP("WRONG",Answers!U:X,4,FALSE),Y57)+Z57) -> 40 | AB57: =IF($B57="","",0+UPPER(Mainframe!I56)) -> 25 | AC57: =IF(AB57="","",IF(NOT(ISNA(VLOOKUP(AB57,Answers!Y:AB,4,FALSE))),VLOOKUP(AB57,Answers!Y:AB,4,FALSE),"Help!")) -> 7 | AE57: =IF(AC57="","",AA57+IF(AC57="XX",VLOOKUP("WRONG",Answers!Y:AB,4,FALSE),AC57)+AD57) -> 47 | AF57: =IF($B57="","",0+UPPER(Mainframe!J56)) -> 49 | AG57: =IF(AF57="","",IF(NOT(ISNA(VLOOKUP(AF57,Answers!AC:AF,4,FALSE))),VLOOKUP(AF57,Answers!AC:AF,4,FALSE),"Help!")) -> 10 | AI57: =IF(AG57="","",AE57+IF(AG57="XX",VLOOKUP("WRONG",Answers!AC:AF,4,FALSE),AG57)+AH57) -> 57 | AJ57: =IF($B57="","",0+UPPER(Mainframe!K56)) -> 35 | AK57: =IF(AJ57="","",IF(NOT(ISNA(VLOOKUP(AJ57,Answers!AG:AJ,4,FALSE))),VLOOKUP(AJ57,Answers!AG:AJ,4,FALSE),"Help!")) -> 8 | AM57: =IF(AK57="","",AI57+IF(AK57="XX",VLOOKUP("WRONG",Answers!AG:AJ,4,FALSE),AK57)+AL57) -> 65 | AN57: =IF($B57="","",0+UPPER(Mainframe!L56)) -> 20 | AO57: =IF(AN57="","",IF(NOT(ISNA(VLOOKUP(AN57,Answers!AK:AN,4,FALSE))),VLOOKUP(AN57,Answers!AK:AN,4,FALSE),"Help!")) -> 3 | AQ57: =IF(AO57="","",AM57+IF(AO57="XX",VLOOKUP("WRONG",Answers!AK:AN,4,FALSE),AO57)+AP57) -> 68 | AR57: =IF($B57="","",0+UPPER(Mainframe!M56)) -> 5 | AS57: =IF(AR57="","",IF(NOT(ISNA(VLOOKUP(AR57,Answers!AO:AR,4,FALSE))),VLOOKUP(AR57,Answers!AO:AR,4,FALSE),"Help!")) -> 1000 | AU57: =IF(AS57="","",AQ57+IF(AS57="XX",VLOOKUP("WRONG",Answers!AO:AR,4,FALSE),AS57)+AT57) -> 1068 | AV57: =IF($B57="","",0+UPPER(Mainframe!N56)) -> 4 | AW57: =IF(AV57="","",IF(NOT(ISNA(VLOOKUP(AV57,Answers!AS:AV,4,FALSE))),VLOOKUP(AV57,Answers!AS:AV,4,FALSE),"Help!")) -> 5 | AY57: =IF(AW57="","",AU57+IF(AW57="XX",VLOOKUP("WRONG",Answers!AS:AV,4,FALSE),AW57)+AX57) -> 1073 | AZ57: =IF($B57="","",0+UPPER(Mainframe!O56)) -> 500 | BA57: 11.52054795 | BB57: 1 | BC57: =IF($B57="","",LEFT(Mainframe!P56,SEARCH(".",Mainframe!P56)-1)) -> 2 | CH57: 54 | CI57: =IF(INDEX($B:$CE,ROW(),QNO*4)="XX","[b][u]"&INDEX($B:$CE,ROW(),QNO*4-1)&"[/u][/b]","[color=#BF0040]"&INDEX(OFFSET(Answers!C:C,0,(QNO-1)*4),MATCH(INDEX($A:$CB,ROW(),QNO*4),OFFSET(Answers!A:A,0,(QNO-1)*4),0))&"[/color]//[b]"&INDEX(OFFSET(Answers!B:B,0,(QNO-1)*4),MATCH(INDEX($A:$CB,ROW(),QNO*4),OFFSET(Answers!A:A,0,(QNO-1)*4),0))&"[/b] — [b]"&IF(INDEX($B:$CE,ROW(),QNO*4)=1,"Singleton!",CONCATENATE(INDEX($B:$CE,ROW(),QNO*4)," responses"))&"[/b]") -> [color=#BF0040]"Blue (Da Ba Dee)", "Move Your Body", "Lucky (In My Life)"[/color]//[b]EIFFEL [u]65[/u][/b] — [b]9 responses[/b] | CJ57: ihavejeoprosy | CK57: No | CL57: 54. ihavejeoprosy — [b]9[/b] pts | CM57: 15 | CN57: -39
A58: [*] | B58: =IF(Mainframe!B57="","",INDEX(Mainframe!$B:$B,C58+1,1)) -> DadofTwins | C58: 56 | D58: =IF($B58="","",0+UPPER(Mainframe!C57)) -> 40 | E58: =IF(D58="","",IF(NOT(ISNA(VLOOKUP(D58,Answers!A:D,4,FALSE))),VLOOKUP(D58,Answers!A:D,4,FALSE),"Help!")) -> 1000 | G58: =IF(E58="","",IF(E58="XX",VLOOKUP("WRONG",Answers!A:D,4,FALSE),E58)+F58) -> 1000 | H58: =IF($B58="","",0+UPPER(Mainframe!D57)) -> 42 | I58: =IF(H58="","",IF(NOT(ISNA(VLOOKUP(H58,Answers!E:H,4,FALSE))),VLOOKUP(H58,Answers!E:H,4,FALSE),"Help!")) -> 3 | K58: =IF(I58="","",G58+IF(I58="XX",VLOOKUP("WRONG",Answers!E:H,4,FALSE),I58)+J58) -> 1003 | L58: =IF($B58="","",0+UPPER(Mainframe!E57)) -> 34 | M58: =IF(L58="","",IF(NOT(ISNA(VLOOKUP(L58,Answers!I:L,4,FALSE))),VLOOKUP(L58,Answers!I:L,4,FALSE),"Help!")) -> 1000 | O58: =IF(M58="","",K58+IF(M58="XX",VLOOKUP("WRONG",Answers!I:L,4,FALSE),M58)+N58) -> 2003 | P58: =IF($B58="","",0+UPPER(Mainframe!F57)) -> 312 | Q58: =IF(P58="","",IF(NOT(ISNA(VLOOKUP(P58,Answers!M:P,4,FALSE))),VLOOKUP(P58,Answers!M:P,4,FALSE),"Help!")) -> 4 | S58: =IF(Q58="","",O58+IF(Q58="XX",VLOOKUP("WRONG",Answers!M:P,4,FALSE),Q58)+R58) -> 2007 | T58: =IF($B58="","",0+UPPER(Mainframe!G57)) -> 17 | U58: =IF(T58="","",IF(NOT(ISNA(VLOOKUP(T58,Answers!Q:T,4,FALSE))),VLOOKUP(T58,Answers!Q:T,4,FALSE),"Help!")) -> 2 | W58: =IF(U58="","",S58+IF(U58="XX",VLOOKUP("WRONG",Answers!Q:T,4,FALSE),U58)+V58) -> 2009 | X58: =IF($B58="","",0+UPPER(Mainframe!H57)) -> 22 | Y58: =IF(X58="","",IF(NOT(ISNA(VLOOKUP(X58,Answers!U:X,4,FALSE))),VLOOKUP(X58,Answers!U:X,4,FALSE),"Help!")) -> 1000 | AA58: =IF(Y58="","",W58+IF(Y58="XX",VLOOKUP("WRONG",Answers!U:X,4,FALSE),Y58)+Z58) -> 3009 | AB58: =IF($B58="","",0+UPPER(Mainframe!I57)) -> 20 | AC58: =IF(AB58="","",IF(NOT(ISNA(VLOOKUP(AB58,Answers!Y:AB,4,FALSE))),VLOOKUP(AB58,Answers!Y:AB,4,FALSE),"Help!")) -> 13 | AE58: =IF(AC58="","",AA58+IF(AC58="XX",VLOOKUP("WRONG",Answers!Y:AB,4,FALSE),AC58)+AD58) -> 3022 | AF58: =IF($B58="","",0+UPPER(Mainframe!J57)) -> 46 | AG58: XX | AH58: =IF(AG58>500,-1000,0) -> -1000 | AI58: =IF(AG58="","",AE58+IF(AG58="XX",VLOOKUP("WRONG",Answers!AC:AF,4,FALSE),AG58)+AH58) -> 3029 | AJ58: =IF($B58="","",0+UPPER(Mainframe!K57)) -> 8 | AK58: =IF(AJ58="","",IF(NOT(ISNA(VLOOKUP(AJ58,Answers!AG:AJ,4,FALSE))),VLOOKUP(AJ58,Answers!AG:AJ,4,FALSE),"Help!")) -> 5 | AM58: =IF(AK58="","",AI58+IF(AK58="XX",VLOOKUP("WRONG",Answers!AG:AJ,4,FALSE),AK58)+AL58) -> 3034 | AN58: =IF($B58="","",0+UPPER(Mainframe!L57)) -> 40 | AO58: XX | AQ58: =IF(AO58="","",AM58+IF(AO58="XX",VLOOKUP("WRONG",Answers!AK:AN,4,FALSE),AO58)+AP58) -> 4041 | AR58: =IF($B58="","",0+UPPER(Mainframe!M57)) -> 5 | AS58: =IF(AR58="","",IF(NOT(ISNA(VLOOKUP(AR58,Answers!AO:AR,4,FALSE))),VLOOKUP(AR58,Answers!AO:AR,4,FALSE),"Help!")) -> 1000 | AU58: =IF(AS58="","",AQ58+IF(AS58="XX",VLOOKUP("WRONG",Answers!AO:AR,4,FALSE),AS58)+AT58) -> 5041 | AV58: =IF($B58="","",0+UPPER(Mainframe!N57)) -> 150 | AW58: =IF(AV58="","",IF(NOT(ISNA(VLOOKUP(AV58,Answers!AS:AV,4,FALSE))),VLOOKUP(AV58,Answers!AS:AV,4,FALSE),"Help!")) -> 5 | AY58: =IF(AW58="","",AU58+IF(AW58="XX",VLOOKUP("WRONG",Answers!AS:AV,4,FALSE),AW58)+AX58) -> 5046 | AZ58: =IF($B58="","",0+UPPER(Mainframe!O57)) -> 500 | BA58: 11.52054795 | BB58: 1 | BC58: =IF($B58="","",LEFT(Mainframe!P57,SEARCH(".",Mainframe!P57)-1)) -> 8 | CH58: 56 | CI58: =IF(INDEX($B:$CE,ROW(),QNO*4)="XX","[b][u]"&INDEX($B:$CE,ROW(),QNO*4-1)&"[/u][/b]","[color=#BF0040]"&INDEX(OFFSET(Answers!C:C,0,(QNO-1)*4),MATCH(INDEX($A:$CB,ROW(),QNO*4),OFFSET(Answers!A:A,0,(QNO-1)*4),0))&"[/color]//[b]"&INDEX(OFFSET(Answers!B:B,0,(QNO-1)*4),MATCH(INDEX($A:$CB,ROW(),QNO*4),OFFSET(Answers!A:A,0,(QNO-1)*4),0))&"[/b] — [b]"&IF(INDEX($B:$CE,ROW(),QNO*4)=1,"Singleton!",CONCATENATE(INDEX($B:$CE,ROW(),QNO*4)," responses"))&"[/b]") -> [color=#BF0040]"King", "Red Red Wine", "(I Can't Help) Falling in Love With You"[/color]//[b]UB[u]40[/u][/b] — [b]1000 responses[/b] | CJ58: DadofTwins | CK58: Yes | CL58: 56. DadofTwins — [b]1,000[/b] pts | CM58: 62 | CN58: 6
A59: [*] | B59: =IF(Mainframe!B58="","",INDEX(Mainframe!$B:$B,C59+1,1)) -> cool_hand | C59: 57 | D59: =IF($B59="","",0+UPPER(Mainframe!C58)) -> 98 | E59: =IF(D59="","",IF(NOT(ISNA(VLOOKUP(D59,Answers!A:D,4,FALSE))),VLOOKUP(D59,Answers!A:D,4,FALSE),"Help!")) -> 2 | G59: =IF(E59="","",IF(E59="XX",VLOOKUP("WRONG",Answers!A:D,4,FALSE),E59)+F59) -> 2 | H59: =IF($B59="","",0+UPPER(Mainframe!D58)) -> 22 | I59: =IF(H59="","",IF(NOT(ISNA(VLOOKUP(H59,Answers!E:H,4,FALSE))),VLOOKUP(H59,Answers!E:H,4,FALSE),"Help!")) -> 11 | K59: =IF(I59="","",G59+IF(I59="XX",VLOOKUP("WRONG",Answers!E:H,4,FALSE),I59)+J59) -> 13 | L59: =IF($B59="","",0+UPPER(Mainframe!E58)) -> 10 | M59: =IF(L59="","",IF(NOT(ISNA(VLOOKUP(L59,Answers!I:L,4,FALSE))),VLOOKUP(L59,Answers!I:L,4,FALSE),"Help!")) -> 10 | O59: =IF(M59="","",K59+IF(M59="XX",VLOOKUP("WRONG",Answers!I:L,4,FALSE),M59)+N59) -> 23 | P59: =IF($B59="","",0+UPPER(Mainframe!F58)) -> 1940 | Q59: =IF(P59="","",IF(NOT(ISNA(VLOOKUP(P59,Answers!M:P,4,FALSE))),VLOOKUP(P59,Answers!M:P,4,FALSE),"Help!")) -> 7 | S59: =IF(Q59="","",O59+IF(Q59="XX",VLOOKUP("WRONG",Answers!M:P,4,FALSE),Q59)+R59) -> 30 | T59: =IF($B59="","",0+UPPER(Mainframe!G58)) -> 2 | U59: =IF(T59="","",IF(NOT(ISNA(VLOOKUP(T59,Answers!Q:T,4,FALSE))),VLOOKUP(T59,Answers!Q:T,4,FALSE),"Help!")) -> 14 | W59: =IF(U59="","",S59+IF(U59="XX",VLOOKUP("WRONG",Answers!Q:T,4,FALSE),U59)+V59) -> 44 | X59: =IF($B59="","",0+UPPER(Mainframe!H58)) -> 20000 | Y59: XX | Z59: =IF(Y59>500,-1000,0) -> -1000 | AA59: =IF(Y59="","",W59+IF(Y59="XX",VLOOKUP("WRONG",Answers!U:X,4,FALSE),Y59)+Z59) -> 51 | AB59: =IF($B59="","",0+UPPER(Mainframe!I58)) -> 64 | AC59: =IF(AB59="","",IF(NOT(ISNA(VLOOKUP(AB59,Answers!Y:AB,4,FALSE))),VLOOKUP(AB59,Answers!Y:AB,4,FALSE),"Help!")) -> 3 | AE59: =IF(AC59="","",AA59+IF(AC59="XX",VLOOKUP("WRONG",Answers!Y:AB,4,FALSE),AC59)+AD59) -> 54 | AF59: =IF($B59="","",0+UPPER(Mainframe!J58)) -> 49 | AG59: =IF(AF59="","",IF(NOT(ISNA(VLOOKUP(AF59,Answers!AC:AF,4,FALSE))),VLOOKUP(AF59,Answers!AC:AF,4,FALSE),"Help!")) -> 10 | AI59: =IF(AG59="","",AE59+IF(AG59="XX",VLOOKUP("WRONG",Answers!AC:AF,4,FALSE),AG59)+AH59) -> 64 | AJ59: =IF($B59="","",0+UPPER(Mainframe!K58)) -> 84 | AK59: =IF(AJ59="","",IF(NOT(ISNA(VLOOKUP(AJ59,Answers!AG:AJ,4,FALSE))),VLOOKUP(AJ59,Answers!AG:AJ,4,FALSE),"Help!")) -> 1000 | AM59: =IF(AK59="","",AI59+IF(AK59="XX",VLOOKUP("WRONG",Answers!AG:AJ,4,FALSE),AK59)+AL59) -> 1064 | AN59: =IF($B59="","",0+UPPER(Mainframe!L58)) -> 63 | AO59: XX | AQ59: =IF(AO59="","",AM59+IF(AO59="XX",VLOOKUP("WRONG",Answers!AK:AN,4,FALSE),AO59)+AP59) -> 2071 | AR59: =IF($B59="","",0+UPPER(Mainframe!M58)) -> 6 | AS59: =IF(AR59="","",IF(NOT(ISNA(VLOOKUP(AR59,Answers!AO:AR,4,FALSE))),VLOOKUP(AR59,Answers!AO:AR,4,FALSE),"Help!")) -> 8 | AU59: =IF(AS59="","",AQ59+IF(AS59="XX",VLOOKUP("WRONG",Answers!AO:AR,4,FALSE),AS59)+AT59) -> 2079 | AV59: =IF($B59="","",0+UPPER(Mainframe!N58)) -> 4 | AW59: =IF(AV59="","",IF(NOT(ISNA(VLOOKUP(AV59,Answers!AS:AV,4,FALSE))),VLOOKUP(AV59,Answers!AS:AV,4,FALSE),"Help!")) -> 5 | AY59: =IF(AW59="","",AU59+IF(AW59="XX",VLOOKUP("WRONG",Answers!AS:AV,4,FALSE),AW59)+AX59) -> 2084 | AZ59: =IF($B59="","",0+UPPER(Mainframe!O58)) -> 212 | BA59: 276.4794521 | BB59: 1 | BC59: =IF($B59="","",LEFT(Mainframe!P58,SEARCH(".",Mainframe!P58)-1)) -> 6 | CH59: 57 | CI59: =IF(INDEX($B:$CE,ROW(),QNO*4)="XX","[b][u]"&INDEX($B:$CE,ROW(),QNO*4-1)&"[/u][/b]","[color=#BF0040]"&INDEX(OFFSET(Answers!C:C,0,(QNO-1)*4),MATCH(INDEX($A:$CB,ROW(),QNO*4),OFFSET(Answers!A:A,0,(QNO-1)*4),0))&"[/color]//[b]"&INDEX(OFFSET(Answers!B:B,0,(QNO-1)*4),MATCH(INDEX($A:$CB,ROW(),QNO*4),OFFSET(Answers!A:A,0,(QNO-1)*4),0))&"[/b] — [b]"&IF(INDEX($B:$CE,ROW(),QNO*4)=1,"Singleton!",CONCATENATE(INDEX($B:$CE,ROW(),QNO*4)," responses"))&"[/b]") -> [color=#BF0040]"Because of You", "The Hardest Thing", "Thank God I Found You"[/color]//[b][u]98[/u] DEGREES[/b] — [b]2 responses[/b] | CJ59: cool_hand | CK59: Yes | CL59: 57. cool_hand — [b]2[/b] pts | CM59: 32 | CN59: -25
A60: [*] | B60: =IF(Mainframe!B59="","",INDEX(Mainframe!$B:$B,C60+1,1)) -> kettledrum | C60: 58 | D60: =IF($B60="","",0+UPPER(Mainframe!C59)) -> 1 | E60: =IF(D60="","",IF(NOT(ISNA(VLOOKUP(D60,Answers!A:D,4,FALSE))),VLOOKUP(D60,Answers!A:D,4,FALSE),"Help!")) -> 8 | G60: =IF(E60="","",IF(E60="XX",VLOOKUP("WRONG",Answers!A:D,4,FALSE),E60)+F60) -> 8 | H60: =IF($B60="","",0+UPPER(Mainframe!D59)) -> 108 | I60: =IF(H60="","",IF(NOT(ISNA(VLOOKUP(H60,Answers!E:H,4,FALSE))),VLOOKUP(H60,Answers!E:H,4,FALSE),"Help!")) -> 5 | K60: =IF(I60="","",G60+IF(I60="XX",VLOOKUP("WRONG",Answers!E:H,4,FALSE),I60)+J60) -> 13 | L60: =IF($B60="","",0+UPPER(Mainframe!E59)) -> 16 | M60: =IF(L60="","",IF(NOT(ISNA(VLOOKUP(L60,Answers!I:L,4,FALSE))),VLOOKUP(L60,Answers!I:L,4,FALSE),"Help!")) -> 12 | O60: =IF(M60="","",K60+IF(M60="XX",VLOOKUP("WRONG",Answers!I:L,4,FALSE),M60)+N60) -> 25 | P60: =IF($B60="","",0+UPPER(Mainframe!F59)) -> 2003 | Q60: =IF(P60="","",IF(NOT(ISNA(VLOOKUP(P60,Answers!M:P,4,FALSE))),VLOOKUP(P60,Answers!M:P,4,FALSE),"Help!")) -> 8 | R60: =IF(Q60>500,-1000,0) -> 0 | S60: =IF(Q60="","",O60+IF(Q60="XX",VLOOKUP("WRONG",Answers!M:P,4,FALSE),Q60)+R60) -> 33 | T60: =IF($B60="","",0+UPPER(Mainframe!G59)) -> 106 | U60: =IF(T60="","",IF(NOT(ISNA(VLOOKUP(T60,Answers!Q:T,4,FALSE))),VLOOKUP(T60,Answers!Q:T,4,FALSE),"Help!")) -> 2 | W60: =IF(U60="","",S60+IF(U60="XX",VLOOKUP("WRONG",Answers!Q:T,4,FALSE),U60)+V60) -> 35 | X60: =IF($B60="","",0+UPPER(Mainframe!H59)) -> 451 | Y60: =IF(X60="","",IF(NOT(ISNA(VLOOKUP(X60,Answers!U:X,4,FALSE))),VLOOKUP(X60,Answers!U:X,4,FALSE),"Help!")) -> 8 | AA60: =IF(Y60="","",W60+IF(Y60="XX",VLOOKUP("WRONG",Answers!U:X,4,FALSE),Y60)+Z60) -> 43 | AB60: =IF($B60="","",0+UPPER(Mainframe!I59)) -> 20 | AC60: =IF(AB60="","",IF(NOT(ISNA(VLOOKUP(AB60,Answers!Y:AB,4,FALSE))),VLOOKUP(AB60,Answers!Y:AB,4,FALSE),"Help!")) -> 13 | AE60: =IF(AC60="","",AA60+IF(AC60="XX",VLOOKUP("WRONG",Answers!Y:AB,4,FALSE),AC60)+AD60) -> 56 | AF60: =IF($B60="","",0+UPPER(Mainframe!J59)) -> 18 | AG60: =IF(AF60="","",IF(NOT(ISNA(VLOOKUP(AF60,Answers!AC:AF,4,FALSE))),VLOOKUP(AF60,Answers!AC:AF,4,FALSE),"Help!")) -> 10 | AI60: =IF(AG60="","",AE60+IF(AG60="XX",VLOOKUP("WRONG",Answers!AC:AF,4,FALSE),AG60)+AH60) -> 66 | AJ60: =IF($B60="","",0+UPPER(Mainframe!K59)) -> 94 | AK60: =IF(AJ60="","",IF(NOT(ISNA(VLOOKUP(AJ60,Answers!AG:AJ,4,FALSE))),VLOOKUP(AJ60,Answers!AG:AJ,4,FALSE),"Help!")) -> 5 | AM60: =IF(AK60="","",AI60+IF(AK60="XX",VLOOKUP("WRONG",Answers!AG:AJ,4,FALSE),AK60)+AL60) -> 71 | AN60: =IF($B60="","",0+UPPER(Mainframe!L59)) -> 94 | AO60: =IF(AN60="","",IF(NOT(ISNA(VLOOKUP(AN60,Answers!AK:AN,4,FALSE))),VLOOKUP(AN60,Answers!AK:AN,4,FALSE),"Help!")) -> 4 | AQ60: =IF(AO60="","",AM60+IF(AO60="XX",VLOOKUP("WRONG",Answers!AK:AN,4,FALSE),AO60)+AP60) -> 75 | AR60: =IF($B60="","",0+UPPER(Mainframe!M59)) -> 9 | AS60: =IF(AR60="","",IF(NOT(ISNA(VLOOKUP(AR60,Answers!AO:AR,4,FALSE))),VLOOKUP(AR60,Answers!AO:AR,4,FALSE),"Help!")) -> 9 | AU60: =IF(AS60="","",AQ60+IF(AS60="XX",VLOOKUP("WRONG",Answers!AO:AR,4,FALSE),AS60)+AT60) -> 84 | AV60: =IF($B60="","",0+UPPER(Mainframe!N59)) -> 95 | AW60: =IF(AV60="","",IF(NOT(ISNA(VLOOKUP(AV60,Answers!AS:AV,4,FALSE))),VLOOKUP(AV60,Answers!AS:AV,4,FALSE),"Help!")) -> 7 | AY60: =IF(AW60="","",AU60+IF(AW60="XX",VLOOKUP("WRONG",Answers!AS:AV,4,FALSE),AW60)+AX60) -> 91 | AZ60: =IF($B60="","",0+UPPER(Mainframe!O59)) -> 333 | BA60: 155.4794521 | BB60: 1 | BC60: =IF($B60="","",LEFT(Mainframe!P59,SEARCH(".",Mainframe!P59)-1)) -> 4 | CH60: 58 | CI60: =IF(INDEX($B:$CE,ROW(),QNO*4)="XX","[b][u]"&INDEX($B:$CE,ROW(),QNO*4-1)&"[/u][/b]","[color=#BF0040]"&INDEX(OFFSET(Answers!C:C,0,(QNO-1)*4),MATCH(INDEX($A:$CB,ROW(),QNO*4),OFFSET(Answers!A:A,0,(QNO-1)*4),0))&"[/color]//[b]"&INDEX(OFFSET(Answers!B:B,0,(QNO-1)*4),MATCH(INDEX($A:$CB,ROW(),QNO*4),OFFSET(Answers!A:A,0,(QNO-1)*4),0))&"[/b] — [b]"&IF(INDEX($B:$CE,ROW(),QNO*4)=1,"Singleton!",CONCATENATE(INDEX($B:$CE,ROW(),QNO*4)," responses"))&"[/b]") -> [color=#BF0040]"What Makes You Beautiful", "Little Things", "Best Song Ever"[/color]//[b][u]ONE[/u] DIRECTION[/b] — [b]8 responses[/b] | CJ60: kettledrum | CK60: Yes | CL60: 58. kettledrum — [b]8[/b] pts | CM60: 9 | CN60: -49
A61: [*] | B61: =IF(Mainframe!B60="","",INDEX(Mainframe!$B:$B,C61+1,1)) -> Woppy T | C61: 59 | D61: =IF($B61="","",0+UPPER(Mainframe!C60)) -> 10000 | E61: =IF(D61="","",IF(NOT(ISNA(VLOOKUP(D61,Answers!A:D,4,FALSE))),VLOOKUP(D61,Answers!A:D,4,FALSE),"Help!")) -> 6 | G61: =IF(E61="","",IF(E61="XX",VLOOKUP("WRONG",Answers!A:D,4,FALSE),E61)+F61) -> 6 | H61: =IF($B61="","",0+UPPER(Mainframe!D60)) -> 22 | I61: =IF(H61="","",IF(NOT(ISNA(VLOOKUP(H61,Answers!E:H,4,FALSE))),VLOOKUP(H61,Answers!E:H,4,FALSE),"Help!")) -> 11 | K61: =IF(I61="","",G61+IF(I61="XX",VLOOKUP("WRONG",Answers!E:H,4,FALSE),I61)+J61) -> 17 | L61: =IF($B61="","",0+UPPER(Mainframe!E60)) -> 16 | M61: =IF(L61="","",IF(NOT(ISNA(VLOOKUP(L61,Answers!I:L,4,FALSE))),VLOOKUP(L61,Answers!I:L,4,FALSE),"Help!")) -> 12 | O61: =IF(M61="","",K61+IF(M61="XX",VLOOKUP("WRONG",Answers!I:L,4,FALSE),M61)+N61) -> 29 | P61: =IF($B61="","",0+UPPER(Mainframe!F60)) -> 1861 | Q61: =IF(P61="","",IF(NOT(ISNA(VLOOKUP(P61,Answers!M:P,4,FALSE))),VLOOKUP(P61,Answers!M:P,4,FALSE),"Help!")) -> 1000 | S61: =IF(Q61="","",O61+IF(Q61="XX",VLOOKUP("WRONG",Answers!M:P,4,FALSE),Q61)+R61) -> 1029 | T61: =IF($B61="","",0+UPPER(Mainframe!G60)) -> 2 | U61: =IF(T61="","",IF(NOT(ISNA(VLOOKUP(T61,Answers!Q:T,4,FALSE))),VLOOKUP(T61,Answers!Q:T,4,FALSE),"Help!")) -> 14 | W61: =IF(U61="","",S61+IF(U61="XX",VLOOKUP("WRONG",Answers!Q:T,4,FALSE),U61)+V61) -> 1043 | X61: =IF($B61="","",0+UPPER(Mainframe!H60)) -> 4 | Y61: =IF(X61="","",IF(NOT(ISNA(VLOOKUP(X61,Answers!U:X,4,FALSE))),VLOOKUP(X61,Answers!U:X,4,FALSE),"Help!")) -> 6 | AA61: =IF(Y61="","",W61+IF(Y61="XX",VLOOKUP("WRONG",Answers!U:X,4,FALSE),Y61)+Z61) -> 1049 | AB61: =IF($B61="","",0+UPPER(Mainframe!I60)) -> 76 | AC61: =IF(AB61="","",IF(NOT(ISNA(VLOOKUP(AB61,Answers!Y:AB,4,FALSE))),VLOOKUP(AB61,Answers!Y:AB,4,FALSE),"Help!")) -> 1000 | AE61: =IF(AC61="","",AA61+IF(AC61="XX",VLOOKUP("WRONG",Answers!Y:AB,4,FALSE),AC61)+AD61) -> 2049 | AF61: =IF($B61="","",0+UPPER(Mainframe!J60)) -> 202 | AG61: =IF(AF61="","",IF(NOT(ISNA(VLOOKUP(AF61,Answers!AC:AF,4,FALSE))),VLOOKUP(AF61,Answers!AC:AF,4,FALSE),"Help!")) -> 10 | AI61: =IF(AG61="","",AE61+IF(AG61="XX",VLOOKUP("WRONG",Answers!AC:AF,4,FALSE),AG61)+AH61) -> 2059 | AJ61: =IF($B61="","",0+UPPER(Mainframe!K60)) -> 84 | AK61: =IF(AJ61="","",IF(NOT(ISNA(VLOOKUP(AJ61,Answers!AG:AJ,4,FALSE))),VLOOKUP(AJ61,Answers!AG:AJ,4,FALSE),"Help!")) -> 1000 | AM61: =IF(AK61="","",AI61+IF(AK61="XX",VLOOKUP("WRONG",Answers!AG:AJ,4,FALSE),AK61)+AL61) -> 3059 | AN61: =IF($B61="","",0+UPPER(Mainframe!L60)) -> 60 | AO61: =IF(AN61="","",IF(NOT(ISNA(VLOOKUP(AN61,Answers!AK:AN,4,FALSE))),VLOOKUP(AN61,Answers!AK:AN,4,FALSE),"Help!")) -> 4 | AQ61: =IF(AO61="","",AM61+IF(AO61="XX",VLOOKUP("WRONG",Answers!AK:AN,4,FALSE),AO61)+AP61) -> 3063 | AR61: =IF($B61="","",0+UPPER(Mainframe!M60)) -> 5 | AS61: =IF(AR61="","",IF(NOT(ISNA(VLOOKUP(AR61,Answers!AO:AR,4,FALSE))),VLOOKUP(AR61,Answers!AO:AR,4,FALSE),"Help!")) -> 1000 | AU61: =IF(AS61="","",AQ61+IF(AS61="XX",VLOOKUP("WRONG",Answers!AO:AR,4,FALSE),AS61)+AT61) -> 4063 | AV61: =IF($B61="","",0+UPPER(Mainframe!N60)) -> 5000 | AW61: =IF(AV61="","",IF(NOT(ISNA(VLOOKUP(AV61,Answers!AS:AV,4,FALSE))),VLOOKUP(AV61,Answers!AS:AV,4,FALSE),"Help!")) -> 9 | AX61: =IF(AW61>500,-1000,0) -> 0 | AY61: =IF(AW61="","",AU61+IF(AW61="XX",VLOOKUP("WRONG",Answers!AS:AV,4,FALSE),AW61)+AX61) -> 4072 | AZ61: =IF($B61="","",0+UPPER(Mainframe!O60)) -> 505 | BA61: 16.52054795 | BB61: 1 | BC61: =IF($B61="","",LEFT(Mainframe!P60,SEARCH(".",Mainframe!P60)-1)) -> 12 | CH61: 59 | CI61: =IF(INDEX($B:$CE,ROW(),QNO*4)="XX","[b][u]"&INDEX($B:$CE,ROW(),QNO*4-1)&"[/u][/b]","[color=#BF0040]"&INDEX(OFFSET(Answers!C:C,0,(QNO-1)*4),MATCH(INDEX($A:$CB,ROW(),QNO*4),OFFSET(Answers!A:A,0,(QNO-1)*4),0))&"[/color]//[b]"&INDEX(OFFSET(Answers!B:B,0,(QNO-1)*4),MATCH(INDEX($A:$CB,ROW(),QNO*4),OFFSET(Answers!A:A,0,(QNO-1)*4),0))&"[/b] — [b]"&IF(INDEX($B:$CE,ROW(),QNO*4)=1,"Singleton!",CONCATENATE(INDEX($B:$CE,ROW(),QNO*4)," responses"))&"[/b]") -> [color=#BF0040]"What's the Matter Here?", "Trouble Me", "Because the Night" (on [i]MTV Unplugged[/i])[/color]//[b][u]10,000[/u] MANIACS[/b] — [b]6 responses[/b] | CJ61: Woppy T//goforthetie | CK61: Yes | CL61: 59. Woppy T — [b]6[/b] pts | CM61: 57 | CN61: -2
A62: [*] | B62: =IF(Mainframe!B61="","",INDEX(Mainframe!$B:$B,C62+1,1)) -> goforthetie | C62: 60 | D62: =IF($B62="","",0+UPPER(Mainframe!C61)) -> 10000 | E62: =IF(D62="","",IF(NOT(ISNA(VLOOKUP(D62,Answers!A:D,4,FALSE))),VLOOKUP(D62,Answers!A:D,4,FALSE),"Help!")) -> 6 | G62: =IF(E62="","",IF(E62="XX",VLOOKUP("WRONG",Answers!A:D,4,FALSE),E62)+F62) -> 6 | H62: =IF($B62="","",0+UPPER(Mainframe!D61)) -> 56 | I62: =IF(H62="","",IF(NOT(ISNA(VLOOKUP(H62,Answers!E:H,4,FALSE))),VLOOKUP(H62,Answers!E:H,4,FALSE),"Help!")) -> 4 | K62: =IF(I62="","",G62+IF(I62="XX",VLOOKUP("WRONG",Answers!E:H,4,FALSE),I62)+J62) -> 10 | L62: =IF($B62="","",0+UPPER(Mainframe!E61)) -> 3000 | M62: =IF(L62="","",IF(NOT(ISNA(VLOOKUP(L62,Answers!I:L,4,FALSE))),VLOOKUP(L62,Answers!I:L,4,FALSE),"Help!")) -> 2 | O62: =IF(M62="","",K62+IF(M62="XX",VLOOKUP("WRONG",Answers!I:L,4,FALSE),M62)+N62) -> 12 | P62: =IF($B62="","",0+UPPER(Mainframe!F61)) -> 1940 | Q62: =IF(P62="","",IF(NOT(ISNA(VLOOKUP(P62,Answers!M:P,4,FALSE))),VLOOKUP(P62,Answers!M:P,4,FALSE),"Help!")) -> 7 | R62: =IF(Q62>500,-1000,0) -> 0 | S62: =IF(Q62="","",O62+IF(Q62="XX",VLOOKUP("WRONG",Answers!M:P,4,FALSE),Q62)+R62) -> 19 | T62: =IF($B62="","",0+UPPER(Mainframe!G61)) -> 18 | U62: =IF(T62="","",IF(NOT(ISNA(VLOOKUP(T62,Answers!Q:T,4,FALSE))),VLOOKUP(T62,Answers!Q:T,4,FALSE),"Help!")) -> 6 | W62: =IF(U62="","",S62+IF(U62="XX",VLOOKUP("WRONG",Answers!Q:T,4,FALSE),U62)+V62) -> 25 | X62: =IF($B62="","",0+UPPER(Mainframe!H61)) -> 7 | Y62: =IF(X62="","",IF(NOT(ISNA(VLOOKUP(X62,Answers!U:X,4,FALSE))),VLOOKUP(X62,Answers!U:X,4,FALSE),"Help!")) -> 6 | AA62: =IF(Y62="","",W62+IF(Y62="XX",VLOOKUP("WRONG",Answers!U:X,4,FALSE),Y62)+Z62) -> 31 | AB62: =IF($B62="","",0+UPPER(Mainframe!I61)) -> 20 | AC62: =IF(AB62="","",IF(NOT(ISNA(VLOOKUP(AB62,Answers!Y:AB,4,FALSE))),VLOOKUP(AB62,Answers!Y:AB,4,FALSE),"Help!")) -> 13 | AE62: =IF(AC62="","",AA62+IF(AC62="XX",VLOOKUP("WRONG",Answers!Y:AB,4,FALSE),AC62)+AD62) -> 44 | AF62: =IF($B62="","",0+UPPER(Mainframe!J61)) -> 1850 | AG62: =IF(AF62="","",IF(NOT(ISNA(VLOOKUP(AF62,Answers!AC:AF,4,FALSE))),VLOOKUP(AF62,Answers!AC:AF,4,FALSE),"Help!")) -> 4 | AI62: =IF(AG62="","",AE62+IF(AG62="XX",VLOOKUP("WRONG",Answers!AC:AF,4,FALSE),AG62)+AH62) -> 48 | AJ62: =IF($B62="","",0+UPPER(Mainframe!K61)) -> 99 | AK62: =IF(AJ62="","",IF(NOT(ISNA(VLOOKUP(AJ62,Answers!AG:AJ,4,FALSE))),VLOOKUP(AJ62,Answers!AG:AJ,4,FALSE),"Help!")) -> 2 | AM62: =IF(AK62="","",AI62+IF(AK62="XX",VLOOKUP("WRONG",Answers!AG:AJ,4,FALSE),AK62)+AL62) -> 50 | AN62: =IF($B62="","",0+UPPER(Mainframe!L61)) -> 60 | AO62: =IF(AN62="","",IF(NOT(ISNA(VLOOKUP(AN62,Answers!AK:AN,4,FALSE))),VLOOKUP(AN62,Answers!AK:AN,4,FALSE),"Help!")) -> 4 | AQ62: =IF(AO62="","",AM62+IF(AO62="XX",VLOOKUP("WRONG",Answers!AK:AN,4,FALSE),AO62)+AP62) -> 54 | AR62: =IF($B62="","",0+UPPER(Mainframe!M61)) -> 6 | AS62: =IF(AR62="","",IF(NOT(ISNA(VLOOKUP(AR62,Answers!AO:AR,4,FALSE))),VLOOKUP(AR62,Answers!AO:AR,4,FALSE),"Help!")) -> 8 | AU62: =IF(AS62="","",AQ62+IF(AS62="XX",VLOOKUP("WRONG",Answers!AO:AR,4,FALSE),AS62)+AT62) -> 62 | AV62: =IF($B62="","",0+UPPER(Mainframe!N61)) -> 12 | AW62: =IF(AV62="","",IF(NOT(ISNA(VLOOKUP(AV62,Answers!AS:AV,4,FALSE))),VLOOKUP(AV62,Answers!AS:AV,4,FALSE),"Help!")) -> 4 | AY62: =IF(AW62="","",AU62+IF(AW62="XX",VLOOKUP("WRONG",Answers!AS:AV,4,FALSE),AW62)+AX62) -> 66 | AZ62: =IF($B62="","",0+UPPER(Mainframe!O61)) -> 500 | BA62: 11.52054795 | BB62: 1 | BC62: =IF($B62="","",LEFT(Mainframe!P61,SEARCH(".",Mainframe!P61)-1)) -> 4 | CH62: 59 | CI62: =IF(INDEX($B:$CE,ROW(),QNO*4)="XX","[b][u]"&INDEX($B:$CE,ROW(),QNO*4-1)&"[/u][/b]","[color=#BF0040]"&INDEX(OFFSET(Answers!C:C,0,(QNO-1)*4),MATCH(INDEX($A:$CB,ROW(),QNO*4),OFFSET(Answers!A:A,0,(QNO-1)*4),0))&"[/color]//[b]"&INDEX(OFFSET(Answers!B:B,0,(QNO-1)*4),MATCH(INDEX($A:$CB,ROW(),QNO*4),OFFSET(Answers!A:A,0,(QNO-1)*4),0))&"[/b] — [b]"&IF(INDEX($B:$CE,ROW(),QNO*4)=1,"Singleton!",CONCATENATE(INDEX($B:$CE,ROW(),QNO*4)," responses"))&"[/b]") -> [color=#BF0040]"What's the Matter Here?", "Trouble Me", "Because the Night" (on [i]MTV Unplugged[/i])[/color]//[b][u]10,000[/u] MANIACS[/b] — [b]6 responses[/b] | CJ62: goforthetie | CK62: No | CL62: 59. goforthetie — [b]6[/b] pts | CM62: 3 | CN62: -56
A63: [*] | B63: =IF(Mainframe!B62="","",INDEX(Mainframe!$B:$B,C63+1,1)) -> EricaofTwins | C63: 61 | D63: =IF($B63="","",0+UPPER(Mainframe!C62)) -> 7 | E63: XX | G63: =IF(E63="","",IF(E63="XX",VLOOKUP("WRONG",Answers!A:D,4,FALSE),E63)+F63) -> 1007 | H63: =IF($B63="","",0+UPPER(Mainframe!D62)) -> 64 | I63: XX | J63: =IF(I63>500,-1000,0) -> -1000 | K63: =IF(I63="","",G63+IF(I63="XX",VLOOKUP("WRONG",Answers!E:H,4,FALSE),I63)+J63) -> 1014 | L63: =IF($B63="","",0+UPPER(Mainframe!E62)) -> 5 | M63: XX | N63: =IF(M63>500,-1000,0) -> -1000 | O63: =IF(M63="","",K63+IF(M63="XX",VLOOKUP("WRONG",Answers!I:L,4,FALSE),M63)+N63) -> 1021 | P63: =IF($B63="","",0+UPPER(Mainframe!F62)) -> 1452 | Q63: XX | S63: =IF(Q63="","",O63+IF(Q63="XX",VLOOKUP("WRONG",Answers!M:P,4,FALSE),Q63)+R63) -> 2028 | T63: =IF($B63="","",0+UPPER(Mainframe!G62)) -> 11 | U63: =IF(T63="","",IF(NOT(ISNA(VLOOKUP(T63,Answers!Q:T,4,FALSE))),VLOOKUP(T63,Answers!Q:T,4,FALSE),"Help!")) -> 4 | W63: =IF(U63="","",S63+IF(U63="XX",VLOOKUP("WRONG",Answers!Q:T,4,FALSE),U63)+V63) -> 2032 | X63: =IF($B63="","",0+UPPER(Mainframe!H62)) -> 53 | Y63: XX | AA63: =IF(Y63="","",W63+IF(Y63="XX",VLOOKUP("WRONG",Answers!U:X,4,FALSE),Y63)+Z63) -> 3039 | AB63: =IF($B63="","",0+UPPER(Mainframe!I62)) -> 76 | AC63: =IF(AB63="","",IF(NOT(ISNA(VLOOKUP(AB63,Answers!Y:AB,4,FALSE))),VLOOKUP(AB63,Answers!Y:AB,4,FALSE),"Help!")) -> 1000 | AE63: =IF(AC63="","",AA63+IF(AC63="XX",VLOOKUP("WRONG",Answers!Y:AB,4,FALSE),AC63)+AD63) -> 4039 | AF63: =IF($B63="","",0+UPPER(Mainframe!J62)) -> 19 | AG63: XX | AI63: =IF(AG63="","",AE63+IF(AG63="XX",VLOOKUP("WRONG",Answers!AC:AF,4,FALSE),AG63)+AH63) -> 5046 | AJ63: =IF($B63="","",0+UPPER(Mainframe!K62)) -> 36 | AK63: XX | AM63: =IF(AK63="","",AI63+IF(AK63="XX",VLOOKUP("WRONG",Answers!AG:AJ,4,FALSE),AK63)+AL63) -> 6053 | AN63: =IF($B63="","",0+UPPER(Mainframe!L62)) -> 22 | AO63: =IF(AN63="","",IF(NOT(ISNA(VLOOKUP(AN63,Answers!AK:AN,4,FALSE))),VLOOKUP(AN63,Answers!AK:AN,4,FALSE),"Help!")) -> 6 | AQ63: =IF(AO63="","",AM63+IF(AO63="XX",VLOOKUP("WRONG",Answers!AK:AN,4,FALSE),AO63)+AP63) -> 6059 | AR63: =IF($B63="","",0+UPPER(Mainframe!M62)) -> 9 | AS63: =IF(AR63="","",IF(NOT(ISNA(VLOOKUP(AR63,Answers!AO:AR,4,FALSE))),VLOOKUP(AR63,Answers!AO:AR,4,FALSE),"Help!")) -> 9 | AU63: =IF(AS63="","",AQ63+IF(AS63="XX",VLOOKUP("WRONG",Answers!AO:AR,4,FALSE),AS63)+AT63) -> 6068 | AV63: =IF($B63="","",0+UPPER(Mainframe!N62)) -> 40 | AW63: =IF(AV63="","",IF(NOT(ISNA(VLOOKUP(AV63,Answers!AS:AV,4,FALSE))),VLOOKUP(AV63,Answers!AS:AV,4,FALSE),"Help!")) -> 4 | AY63: =IF(AW63="","",AU63+IF(AW63="XX",VLOOKUP("WRONG",Answers!AS:AV,4,FALSE),AW63)+AX63) -> 6072 | AZ63: =IF($B63="","",0+UPPER(Mainframe!O62)) -> 537 | BA63: 48.52054795 | BB63: 2 | BC63: =IF($B63="","",LEFT(Mainframe!P62,SEARCH(".",Mainframe!P62)-1)) -> 3 | CH63: 61 | CI63: =IF(INDEX($B:$CE,ROW(),QNO*4)="XX","[b][u]"&INDEX($B:$CE,ROW(),QNO*4-1)&"[/u][/b]","[color=#BF0040]"&INDEX(OFFSET(Answers!C:C,0,(QNO-1)*4),MATCH(INDEX($A:$CB,ROW(),QNO*4),OFFSET(Answers!A:A,0,(QNO-1)*4),0))&"[/color]//[b]"&INDEX(OFFSET(Answers!B:B,0,(QNO-1)*4),MATCH(INDEX($A:$CB,ROW(),QNO*4),OFFSET(Answers!A:A,0,(QNO-1)*4),0))&"[/b] — [b]"&IF(INDEX($B:$CE,ROW(),QNO*4)=1,"Singleton!",CONCATENATE(INDEX($B:$CE,ROW(),QNO*4)," responses"))&"[/b]") -> [b][u]7[/u][/b] | CJ63: EricaofTwins | CK63: Yes | CL63: 61. EricaofTwins — [b]1,007[/b] pts | CM63: 72 | CN63: 11
A64: [*] | B64: =IF(Mainframe!B63="","",INDEX(Mainframe!$B:$B,C64+1,1)) -> KatieofTwins | C64: 62 | D64: =IF($B64="","",0+UPPER(Mainframe!C63)) -> 27 | E64: XX | G64: =IF(E64="","",IF(E64="XX",VLOOKUP("WRONG",Answers!A:D,4,FALSE),E64)+F64) -> 1007 | H64: =IF($B64="","",0+UPPER(Mainframe!D63)) -> 64 | I64: XX | J64: =IF(I64>500,-1000,0) -> -1000 | K64: =IF(I64="","",G64+IF(I64="XX",VLOOKUP("WRONG",Answers!E:H,4,FALSE),I64)+J64) -> 1014 | L64: =IF($B64="","",0+UPPER(Mainframe!E63)) -> 451 | M64: XX | O64: =IF(M64="","",K64+IF(M64="XX",VLOOKUP("WRONG",Answers!I:L,4,FALSE),M64)+N64) -> 2021 | P64: =IF($B64="","",0+UPPER(Mainframe!F63)) -> 1451 | Q64: XX | S64: =IF(Q64="","",O64+IF(Q64="XX",VLOOKUP("WRONG",Answers!M:P,4,FALSE),Q64)+R64) -> 3028 | T64: =IF($B64="","",0+UPPER(Mainframe!G63)) -> 47 | U64: =IF(T64="","",IF(NOT(ISNA(VLOOKUP(T64,Answers!Q:T,4,FALSE))),VLOOKUP(T64,Answers!Q:T,4,FALSE),"Help!")) -> 3 | W64: =IF(U64="","",S64+IF(U64="XX",VLOOKUP("WRONG",Answers!Q:T,4,FALSE),U64)+V64) -> 3031 | X64: =IF($B64="","",0+UPPER(Mainframe!H63)) -> 20000 | Y64: XX | AA64: =IF(Y64="","",W64+IF(Y64="XX",VLOOKUP("WRONG",Answers!U:X,4,FALSE),Y64)+Z64) -> 4038 | AB64: =IF($B64="","",0+UPPER(Mainframe!I63)) -> 76 | AC64: =IF(AB64="","",IF(NOT(ISNA(VLOOKUP(AB64,Answers!Y:AB,4,FALSE))),VLOOKUP(AB64,Answers!Y:AB,4,FALSE),"Help!")) -> 1000 | AE64: =IF(AC64="","",AA64+IF(AC64="XX",VLOOKUP("WRONG",Answers!Y:AB,4,FALSE),AC64)+AD64) -> 5038 | AF64: =IF($B64="","",0+UPPER(Mainframe!J63)) -> 1783 | AG64: XX | AH64: =IF(AG64>500,-1000,0) -> -1000 | AI64: =IF(AG64="","",AE64+IF(AG64="XX",VLOOKUP("WRONG",Answers!AC:AF,4,FALSE),AG64)+AH64) -> 5045 | AJ64: =IF($B64="","",0+UPPER(Mainframe!K63)) -> 36 | AK64: XX | AM64: =IF(AK64="","",AI64+IF(AK64="XX",VLOOKUP("WRONG",Answers!AG:AJ,4,FALSE),AK64)+AL64) -> 6052 | AN64: =IF($B64="","",0+UPPER(Mainframe!L63)) -> 96 | AO64: XX | AQ64: =IF(AO64="","",AM64+IF(AO64="XX",VLOOKUP("WRONG",Answers!AK:AN,4,FALSE),AO64)+AP64) -> 7059 | AR64: =IF($B64="","",0+UPPER(Mainframe!M63)) -> 6 | AS64: =IF(AR64="","",IF(NOT(ISNA(VLOOKUP(AR64,Answers!AO:AR,4,FALSE))),VLOOKUP(AR64,Answers!AO:AR,4,FALSE),"Help!")) -> 8 | AU64: =IF(AS64="","",AQ64+IF(AS64="XX",VLOOKUP("WRONG",Answers!AO:AR,4,FALSE),AS64)+AT64) -> 7067 | AV64: =IF($B64="","",0+UPPER(Mainframe!N63)) -> 5000 | AW64: =IF(AV64="","",IF(NOT(ISNA(VLOOKUP(AV64,Answers!AS:AV,4,FALSE))),VLOOKUP(AV64,Answers!AS:AV,4,FALSE),"Help!")) -> 9 | AY64: =IF(AW64="","",AU64+IF(AW64="XX",VLOOKUP("WRONG",Answers!AS:AV,4,FALSE),AW64)+AX64) -> 7076 | AZ64: =IF($B64="","",0+UPPER(Mainframe!O63)) -> 777 | BA64: 288.5205479 | BB64: 2 | BC64: =IF($B64="","",LEFT(Mainframe!P63,SEARCH(".",Mainframe!P63)-1)) -> 8 | CH64: 61 | CI64: =IF(INDEX($B:$CE,ROW(),QNO*4)="XX","[b][u]"&INDEX($B:$CE,ROW(),QNO*4-1)&"[/u][/b]","[color=#BF0040]"&INDEX(OFFSET(Answers!C:C,0,(QNO-1)*4),MATCH(INDEX($A:$CB,ROW(),QNO*4),OFFSET(Answers!A:A,0,(QNO-1)*4),0))&"[/color]//[b]"&INDEX(OFFSET(Answers!B:B,0,(QNO-1)*4),MATCH(INDEX($A:$CB,ROW(),QNO*4),OFFSET(Answers!A:A,0,(QNO-1)*4),0))&"[/b] — [b]"&IF(INDEX($B:$CE,ROW(),QNO*4)=1,"Singleton!",CONCATENATE(INDEX($B:$CE,ROW(),QNO*4)," responses"))&"[/b]") -> [b][u]27[/u][/b] | CJ64: KatieofTwins | CK64: Yes | CL64: 61. KatieofTwins — [b]1,007[/b] pts | CM64: 73 | CN64: 12
A65: [*] | B65: =IF(Mainframe!B64="","",INDEX(Mainframe!$B:$B,C65+1,1)) -> Dick Butkus | C65: 63 | D65: =IF($B65="","",0+UPPER(Mainframe!C64)) -> 40 | E65: =IF(D65="","",IF(NOT(ISNA(VLOOKUP(D65,Answers!A:D,4,FALSE))),VLOOKUP(D65,Answers!A:D,4,FALSE),"Help!")) -> 1000 | G65: =IF(E65="","",IF(E65="XX",VLOOKUP("WRONG",Answers!A:D,4,FALSE),E65)+F65) -> 1000 | H65: =IF($B65="","",0+UPPER(Mainframe!D64)) -> 22 | I65: =IF(H65="","",IF(NOT(ISNA(VLOOKUP(H65,Answers!E:H,4,FALSE))),VLOOKUP(H65,Answers!E:H,4,FALSE),"Help!")) -> 11 | K65: =IF(I65="","",G65+IF(I65="XX",VLOOKUP("WRONG",Answers!E:H,4,FALSE),I65)+J65) -> 1011 | L65: =IF($B65="","",0+UPPER(Mainframe!E64)) -> 47 | M65: =IF(L65="","",IF(NOT(ISNA(VLOOKUP(L65,Answers!I:L,4,FALSE))),VLOOKUP(L65,Answers!I:L,4,FALSE),"Help!")) -> 2 | O65: =IF(M65="","",K65+IF(M65="XX",VLOOKUP("WRONG",Answers!I:L,4,FALSE),M65)+N65) -> 1013 | P65: =IF($B65="","",0+UPPER(Mainframe!F64)) -> 1453 | Q65: =IF(P65="","",IF(NOT(ISNA(VLOOKUP(P65,Answers!M:P,4,FALSE))),VLOOKUP(P65,Answers!M:P,4,FALSE),"Help!")) -> 2 | S65: =IF(Q65="","",O65+IF(Q65="XX",VLOOKUP("WRONG",Answers!M:P,4,FALSE),Q65)+R65) -> 1015 | T65: =IF($B65="","",0+UPPER(Mainframe!G64)) -> 2 | U65: =IF(T65="","",IF(NOT(ISNA(VLOOKUP(T65,Answers!Q:T,4,FALSE))),VLOOKUP(T65,Answers!Q:T,4,FALSE),"Help!")) -> 14 | W65: =IF(U65="","",S65+IF(U65="XX",VLOOKUP("WRONG",Answers!Q:T,4,FALSE),U65)+V65) -> 1029 | X65: =IF($B65="","",0+UPPER(Mainframe!H64)) -> 22 | Y65: =IF(X65="","",IF(NOT(ISNA(VLOOKUP(X65,Answers!U:X,4,FALSE))),VLOOKUP(X65,Answers!U:X,4,FALSE),"Help!")) -> 1000 | AA65: =IF(Y65="","",W65+IF(Y65="XX",VLOOKUP("WRONG",Answers!U:X,4,FALSE),Y65)+Z65) -> 2029 | AB65: =IF($B65="","",0+UPPER(Mainframe!I64)) -> 525600 | AC65: =IF(AB65="","",IF(NOT(ISNA(VLOOKUP(AB65,Answers!Y:AB,4,FALSE))),VLOOKUP(AB65,Answers!Y:AB,4,FALSE),"Help!")) -> 5 | AE65: =IF(AC65="","",AA65+IF(AC65="XX",VLOOKUP("WRONG",Answers!Y:AB,4,FALSE),AC65)+AD65) -> 2034 | AF65: =IF($B65="","",0+UPPER(Mainframe!J64)) -> 47 | AG65: =IF(AF65="","",IF(NOT(ISNA(VLOOKUP(AF65,Answers!AC:AF,4,FALSE))),VLOOKUP(AF65,Answers!AC:AF,4,FALSE),"Help!")) -> 2 | AH65: =IF(AG65>500,-1000,0) -> 0 | AI65: =IF(AG65="","",AE65+IF(AG65="XX",VLOOKUP("WRONG",Answers!AC:AF,4,FALSE),AG65)+AH65) -> 2036 | AJ65: =IF($B65="","",0+UPPER(Mainframe!K64)) -> 80 | AK65: =IF(AJ65="","",IF(NOT(ISNA(VLOOKUP(AJ65,Answers!AG:AJ,4,FALSE))),VLOOKUP(AJ65,Answers!AG:AJ,4,FALSE),"Help!")) -> 6 | AM65: =IF(AK65="","",AI65+IF(AK65="XX",VLOOKUP("WRONG",Answers!AG:AJ,4,FALSE),AK65)+AL65) -> 2042 | AN65: =IF($B65="","",0+UPPER(Mainframe!L64)) -> 5 | AO65: =IF(AN65="","",IF(NOT(ISNA(VLOOKUP(AN65,Answers!AK:AN,4,FALSE))),VLOOKUP(AN65,Answers!AK:AN,4,FALSE),"Help!")) -> 7 | AQ65: =IF(AO65="","",AM65+IF(AO65="XX",VLOOKUP("WRONG",Answers!AK:AN,4,FALSE),AO65)+AP65) -> 2049 | AR65: =IF($B65="","",0+UPPER(Mainframe!M64)) -> 9 | AS65: =IF(AR65="","",IF(NOT(ISNA(VLOOKUP(AR65,Answers!AO:AR,4,FALSE))),VLOOKUP(AR65,Answers!AO:AR,4,FALSE),"Help!")) -> 9 | AU65: =IF(AS65="","",AQ65+IF(AS65="XX",VLOOKUP("WRONG",Answers!AO:AR,4,FALSE),AS65)+AT65) -> 2058 | AV65: =IF($B65="","",0+UPPER(Mainframe!N64)) -> 4 | AW65: =IF(AV65="","",IF(NOT(ISNA(VLOOKUP(AV65,Answers!AS:AV,4,FALSE))),VLOOKUP(AV65,Answers!AS:AV,4,FALSE),"Help!")) -> 5 | AY65: =IF(AW65="","",AU65+IF(AW65="XX",VLOOKUP("WRONG",Answers!AS:AV,4,FALSE),AW65)+AX65) -> 2063 | AZ65: =IF($B65="","",0+UPPER(Mainframe!O64)) -> 666 | BA65: 177.5205479 | BB65: 1 | BC65: =IF($B65="","",LEFT(Mainframe!P64,SEARCH(".",Mainframe!P64)-1)) -> 8 | CH65: 63 | CI65: =IF(INDEX($B:$CE,ROW(),QNO*4)="XX","[b][u]"&INDEX($B:$CE,ROW(),QNO*4-1)&"[/u][/b]","[color=#BF0040]"&INDEX(OFFSET(Answers!C:C,0,(QNO-1)*4),MATCH(INDEX($A:$CB,ROW(),QNO*4),OFFSET(Answers!A:A,0,(QNO-1)*4),0))&"[/color]//[b]"&INDEX(OFFSET(Answers!B:B,0,(QNO-1)*4),MATCH(INDEX($A:$CB,ROW(),QNO*4),OFFSET(Answers!A:A,0,(QNO-1)*4),0))&"[/b] — [b]"&IF(INDEX($B:$CE,ROW(),QNO*4)=1,"Singleton!",CONCATENATE(INDEX($B:$CE,ROW(),QNO*4)," responses"))&"[/b]") -> [color=#BF0040]"King", "Red Red Wine", "(I Can't Help) Falling in Love With You"[/color]//[b]UB[u]40[/u][/b] — [b]1000 responses[/b] | CJ65: Dick Butkus | CK65: Yes | CL65: 63. Dick Butkus — [b]1,000[/b] pts | CM65: 20 | CN65: -43
A66: [*] | B66: =IF(Mainframe!B65="","",INDEX(Mainframe!$B:$B,C66+1,1)) -> Big Bear | C66: 64 | D66: =IF($B66="","",0+UPPER(Mainframe!C65)) -> 3 | E66: =IF(D66="","",IF(NOT(ISNA(VLOOKUP(D66,Answers!A:D,4,FALSE))),VLOOKUP(D66,Answers!A:D,4,FALSE),"Help!")) -> 11 | G66: =IF(E66="","",IF(E66="XX",VLOOKUP("WRONG",Answers!A:D,4,FALSE),E66)+F66) -> 11 | H66: =IF($B66="","",0+UPPER(Mainframe!D65)) -> 38 | I66: =IF(H66="","",IF(NOT(ISNA(VLOOKUP(H66,Answers!E:H,4,FALSE))),VLOOKUP(H66,Answers!E:H,4,FALSE),"Help!")) -> 7 | K66: =IF(I66="","",G66+IF(I66="XX",VLOOKUP("WRONG",Answers!E:H,4,FALSE),I66)+J66) -> 18 | L66: =IF($B66="","",0+UPPER(Mainframe!E65)) -> 12 | M66: =IF(L66="","",IF(NOT(ISNA(VLOOKUP(L66,Answers!I:L,4,FALSE))),VLOOKUP(L66,Answers!I:L,4,FALSE),"Help!")) -> 3 | O66: =IF(M66="","",K66+IF(M66="XX",VLOOKUP("WRONG",Answers!I:L,4,FALSE),M66)+N66) -> 21 | P66: =IF($B66="","",0+UPPER(Mainframe!F65)) -> 1076 | Q66: XX | S66: =IF(Q66="","",O66+IF(Q66="XX",VLOOKUP("WRONG",Answers!M:P,4,FALSE),Q66)+R66) -> 1028 | T66: =IF($B66="","",0+UPPER(Mainframe!G65)) -> 6 | U66: =IF(T66="","",IF(NOT(ISNA(VLOOKUP(T66,Answers!Q:T,4,FALSE))),VLOOKUP(T66,Answers!Q:T,4,FALSE),"Help!")) -> 9 | V66: =IF(U66>500,-1000,0) -> 0 | W66: =IF(U66="","",S66+IF(U66="XX",VLOOKUP("WRONG",Answers!Q:T,4,FALSE),U66)+V66) -> 1037 | X66: =IF($B66="","",0+UPPER(Mainframe!H65)) -> 1000 | Y66: =IF(X66="","",IF(NOT(ISNA(VLOOKUP(X66,Answers!U:X,4,FALSE))),VLOOKUP(X66,Answers!U:X,4,FALSE),"Help!")) -> 6 | AA66: =IF(Y66="","",W66+IF(Y66="XX",VLOOKUP("WRONG",Answers!U:X,4,FALSE),Y66)+Z66) -> 1043 | AB66: =IF($B66="","",0+UPPER(Mainframe!I65)) -> 76 | AC66: =IF(AB66="","",IF(NOT(ISNA(VLOOKUP(AB66,Answers!Y:AB,4,FALSE))),VLOOKUP(AB66,Answers!Y:AB,4,FALSE),"Help!")) -> 1000 | AE66: =IF(AC66="","",AA66+IF(AC66="XX",VLOOKUP("WRONG",Answers!Y:AB,4,FALSE),AC66)+AD66) -> 2043 | AF66: =IF($B66="","",0+UPPER(Mainframe!J65)) -> 202 | AG66: =IF(AF66="","",IF(NOT(ISNA(VLOOKUP(AF66,Answers!AC:AF,4,FALSE))),VLOOKUP(AF66,Answers!AC:AF,4,FALSE),"Help!")) -> 10 | AI66: =IF(AG66="","",AE66+IF(AG66="XX",VLOOKUP("WRONG",Answers!AC:AF,4,FALSE),AG66)+AH66) -> 2053 | AJ66: =IF($B66="","",0+UPPER(Mainframe!K65)) -> 60 | AK66: XX | AM66: =IF(AK66="","",AI66+IF(AK66="XX",VLOOKUP("WRONG",Answers!AG:AJ,4,FALSE),AK66)+AL66) -> 3060 | AN66: =IF($B66="","",0+UPPER(Mainframe!L65)) -> 5 | AO66: =IF(AN66="","",IF(NOT(ISNA(VLOOKUP(AN66,Answers!AK:AN,4,FALSE))),VLOOKUP(AN66,Answers!AK:AN,4,FALSE),"Help!")) -> 7 | AQ66: =IF(AO66="","",AM66+IF(AO66="XX",VLOOKUP("WRONG",Answers!AK:AN,4,FALSE),AO66)+AP66) -> 3067 | AR66: =IF($B66="","",0+UPPER(Mainframe!M65)) -> 8 | AS66: =IF(AR66="","",IF(NOT(ISNA(VLOOKUP(AR66,Answers!AO:AR,4,FALSE))),VLOOKUP(AR66,Answers!AO:AR,4,FALSE),"Help!")) -> 6 | AU66: =IF(AS66="","",AQ66+IF(AS66="XX",VLOOKUP("WRONG",Answers!AO:AR,4,FALSE),AS66)+AT66) -> 3073 | AV66: =IF($B66="","",0+UPPER(Mainframe!N65)) -> 5000 | AW66: =IF(AV66="","",IF(NOT(ISNA(VLOOKUP(AV66,Answers!AS:AV,4,FALSE))),VLOOKUP(AV66,Answers!AS:AV,4,FALSE),"Help!")) -> 9 | AY66: =IF(AW66="","",AU66+IF(AW66="XX",VLOOKUP("WRONG",Answers!AS:AV,4,FALSE),AW66)+AX66) -> 3082 | AZ66: =IF($B66="","",0+UPPER(Mainframe!O65)) -> 676 | BA66: 187.5205479 | BB66: 1 | BC66: =IF($B66="","",LEFT(Mainframe!P65,SEARCH(".",Mainframe!P65)-1)) -> 5 | CH66: 64 | CI66: =IF(INDEX($B:$CE,ROW(),QNO*4)="XX","[b][u]"&INDEX($B:$CE,ROW(),QNO*4-1)&"[/u][/b]","[color=#BF0040]"&INDEX(OFFSET(Answers!C:C,0,(QNO-1)*4),MATCH(INDEX($A:$CB,ROW(),QNO*4),OFFSET(Answers!A:A,0,(QNO-1)*4),0))&"[/color]//[b]"&INDEX(OFFSET(Answers!B:B,0,(QNO-1)*4),MATCH(INDEX($A:$CB,ROW(),QNO*4),OFFSET(Answers!A:A,0,(QNO-1)*4),0))&"[/b] — [b]"&IF(INDEX($B:$CE,ROW(),QNO*4)=1,"Singleton!",CONCATENATE(INDEX($B:$CE,ROW(),QNO*4)," responses"))&"[/b]") -> [color=#BF0040]"Mama Told Me (Not to Come)", "Joy to the World", "Black and White"[/color]//[b][u]THREE[/u] DOG NIGHT[/b] — [b]11 responses[/b] | CJ66: Big Bear | CK66: Yes | CL66: 64. Big Bear — [b]11[/b] pts | CM66: 50 | CN66: -14
A67: [*] | B67: =IF(Mainframe!B66="","",INDEX(Mainframe!$B:$B,C67+1,1)) -> naurae29 | C67: 65 | D67: =IF($B67="","",0+UPPER(Mainframe!C66)) -> 40 | E67: =IF(D67="","",IF(NOT(ISNA(VLOOKUP(D67,Answers!A:D,4,FALSE))),VLOOKUP(D67,Answers!A:D,4,FALSE),"Help!")) -> 1000 | G67: =IF(E67="","",IF(E67="XX",VLOOKUP("WRONG",Answers!A:D,4,FALSE),E67)+F67) -> 1000 | H67: =IF($B67="","",0+UPPER(Mainframe!D66)) -> 21 | I67: =IF(H67="","",IF(NOT(ISNA(VLOOKUP(H67,Answers!E:H,4,FALSE))),VLOOKUP(H67,Answers!E:H,4,FALSE),"Help!")) -> 1000 | J67: =IF(I67>500,-1000,0) -> -1000 | K67: =IF(I67="","",G67+IF(I67="XX",VLOOKUP("WRONG",Answers!E:H,4,FALSE),I67)+J67) -> 1000 | L67: =IF($B67="","",0+UPPER(Mainframe!E66)) -> 34 | M67: =IF(L67="","",IF(NOT(ISNA(VLOOKUP(L67,Answers!I:L,4,FALSE))),VLOOKUP(L67,Answers!I:L,4,FALSE),"Help!")) -> 1000 | O67: =IF(M67="","",K67+IF(M67="XX",VLOOKUP("WRONG",Answers!I:L,4,FALSE),M67)+N67) -> 2000 | P67: =IF($B67="","",0+UPPER(Mainframe!F66)) -> 2002 | Q67: XX | S67: =IF(Q67="","",O67+IF(Q67="XX",VLOOKUP("WRONG",Answers!M:P,4,FALSE),Q67)+R67) -> 3007 | T67: =IF($B67="","",0+UPPER(Mainframe!G66)) -> 5 | U67: =IF(T67="","",IF(NOT(ISNA(VLOOKUP(T67,Answers!Q:T,4,FALSE))),VLOOKUP(T67,Answers!Q:T,4,FALSE),"Help!")) -> 1000 | W67: =IF(U67="","",S67+IF(U67="XX",VLOOKUP("WRONG",Answers!Q:T,4,FALSE),U67)+V67) -> 4007 | X67: =IF($B67="","",0+UPPER(Mainframe!H66)) -> 80 | Y67: =IF(X67="","",IF(NOT(ISNA(VLOOKUP(X67,Answers!U:X,4,FALSE))),VLOOKUP(X67,Answers!U:X,4,FALSE),"Help!")) -> 5 | AA67: =IF(Y67="","",W67+IF(Y67="XX",VLOOKUP("WRONG",Answers!U:X,4,FALSE),Y67)+Z67) -> 4012 | AB67: =IF($B67="","",0+UPPER(Mainframe!I66)) -> 6 | AC67: =IF(AB67="","",IF(NOT(ISNA(VLOOKUP(AB67,Answers!Y:AB,4,FALSE))),VLOOKUP(AB67,Answers!Y:AB,4,FALSE),"Help!")) -> 4 | AE67: =IF(AC67="","",AA67+IF(AC67="XX",VLOOKUP("WRONG",Answers!Y:AB,4,FALSE),AC67)+AD67) -> 4016 | AF67: =IF($B67="","",0+UPPER(Mainframe!J66)) -> 202 | AG67: =IF(AF67="","",IF(NOT(ISNA(VLOOKUP(AF67,Answers!AC:AF,4,FALSE))),VLOOKUP(AF67,Answers!AC:AF,4,FALSE),"Help!")) -> 10 | AI67: =IF(AG67="","",AE67+IF(AG67="XX",VLOOKUP("WRONG",Answers!AC:AF,4,FALSE),AG67)+AH67) -> 4026 | AJ67: =IF($B67="","",0+UPPER(Mainframe!K66)) -> 1 | AK67: XX | AM67: =IF(AK67="","",AI67+IF(AK67="XX",VLOOKUP("WRONG",Answers!AG:AJ,4,FALSE),AK67)+AL67) -> 5033 | AN67: =IF($B67="","",0+UPPER(Mainframe!L66)) -> 76 | AO67: =IF(AN67="","",IF(NOT(ISNA(VLOOKUP(AN67,Answers!AK:AN,4,FALSE))),VLOOKUP(AN67,Answers!AK:AN,4,FALSE),"Help!")) -> 6 | AQ67: =IF(AO67="","",AM67+IF(AO67="XX",VLOOKUP("WRONG",Answers!AK:AN,4,FALSE),AO67)+AP67) -> 5039 | AR67: =IF($B67="","",0+UPPER(Mainframe!M66)) -> 1000 | AS67: =IF(AR67="","",IF(NOT(ISNA(VLOOKUP(AR67,Answers!AO:AR,4,FALSE))),VLOOKUP(AR67,Answers!AO:AR,4,FALSE),"Help!")) -> 6 | AU67: =IF(AS67="","",AQ67+IF(AS67="XX",VLOOKUP("WRONG",Answers!AO:AR,4,FALSE),AS67)+AT67) -> 5045 | AV67: =IF($B67="","",0+UPPER(Mainframe!N66)) -> 27 | AW67: =IF(AV67="","",IF(NOT(ISNA(VLOOKUP(AV67,Answers!AS:AV,4,FALSE))),VLOOKUP(AV67,Answers!AS:AV,4,FALSE),"Help!")) -> 9 | AY67: =IF(AW67="","",AU67+IF(AW67="XX",VLOOKUP("WRONG",Answers!AS:AV,4,FALSE),AW67)+AX67) -> 5054 | AZ67: =IF($B67="","",0+UPPER(Mainframe!O66)) -> 325 | BA67: =IF(AZ67="","",ABS(AZ67-AVERAGE(AZ$3:AZ$101))) -> 163.4794521 | BB67: =IF(BA67="","",COUNTA(F67,J67,N67,R67,V67,Z67,AD67,AH67,AL67,AP67,AT67,AX67)) -> 1 | BC67: =IF($B67="","",LEFT(Mainframe!P66,SEARCH(".",Mainframe!P66)-1)) -> 2 | CH67: =IF(B67=0,"",IF(INDEX($B:$CE,ROW(),1)=0,"",IF(INDEX($B:$CE,ROW(),4*QNO+2)=INDEX($B:$CE,ROW()-1,4*QNO+2),$CH66,ROW()-2))) -> 65 | CI67: =IF(INDEX($B:$CE,ROW(),QNO*4)="XX","[b][u]"&INDEX($B:$CE,ROW(),QNO*4-1)&"[/u][/b]","[color=#BF0040]"&INDEX(OFFSET(Answers!C:C,0,(QNO-1)*4),MATCH(INDEX($A:$CB,ROW(),QNO*4),OFFSET(Answers!A:A,0,(QNO-1)*4),0))&"[/color]//[b]"&INDEX(OFFSET(Answers!B:B,0,(QNO-1)*4),MATCH(INDEX($A:$CB,ROW(),QNO*4),OFFSET(Answers!A:A,0,(QNO-1)*4),0))&"[/b] — [b]"&IF(INDEX($B:$CE,ROW(),QNO*4)=1,"Singleton!",CONCATENATE(INDEX($B:$CE,ROW(),QNO*4)," responses"))&"[/b]") -> [color=#BF0040]"King", "Red Red Wine", "(I Can't Help) Falling in Love With You"[/color]//[b]UB[u]40[/u][/b] — [b]1000 responses[/b] | CJ67: =IF(INDEX($B:$CE,ROW(),1)=0,"",IF(INDEX($B:$CE,ROW(),QNO*4-1)=INDEX($B:$CE,ROW()+1,QNO*4-1),CONCATENATE(INDEX($B:$CE,ROW(),1),IF(BC67-0=QNO-0," [[b][color=#8000BF]FOX[/color][/b]]",""),"//",INDEX($CJ:$CJ,ROW()+1,1)),INDEX($B:$CE,ROW(),1)&IF(BC67-0=QNO-0," [[b][color=#8000BF]FOX[/color][/b]]",""))) -> naurae29//JonathanHenke//goatman [[b][color=#8000BF]FOX[/color][/b]] | CK67: =IF(INDEX($B:$CE,ROW(),1)=0,"",IF(ISNUMBER(SEARCH("//",INDEX($CJ:$CJ,ROW()-1,1))),"No","Yes")) -> Yes | CL67: =IF(B67=0,"",CONCATENATE(INDEX($CH:$CL,ROW(),1),". ",INDEX($B:$CE,ROW(),1)," — ")&IF(QNO=1,CONCATENATE("[b]",TEXT(INDEX($B:$CE,ROW(),QNO*4+2),"#,##0"),"[/b] pts"),CONCATENATE("[color=#BBBBBB]",TEXT(INDEX($B:$CE,ROW(),QNO*4-2),"#,##0")," + ",IF(INDEX($B:$CE,ROW(),QNO*4)="XX","[/color][color=#BF8000][b]"&TEXT(WRONGSCORE,"#,##0")&"[/b][/color][color=#BBBBBB]",IF(INDEX($B:$CE,ROW(),QNO*4)=1000,"[/color][color=#BF8000][b]1,000[/b][/color][color=#BBBBBB]",INDEX($B:$CE,ROW(),QNO*4))),IF(INDEX($C:$CE,ROW(),QNO*4)<0," [/color][b][color=#8000BF]- 1,000[/color][/b][color=#BBBBBB]","")," → [/color][b]",TEXT(INDEX($B:$CE,ROW(),QNO*4+2),"#,##0"),"[/b] pts "&"[[b]"&IF(CN67>0,"[color=#00BF00]↑"&CN67,IF(CN67<0,"[color=#FF0000]↓"&ABS(CN67),"[color=#0000FF]unch"))&"[/b][/color]]"))) -> 65. naurae29 — [b]1,000[/b] pts | CM67: 64 | CN67: =CM67-CH67 -> -1
A68: [*] | B68: =IF(Mainframe!B67="","",INDEX(Mainframe!$B:$B,C68+1,1)) -> JonathanHenke | C68: 66 | D68: =IF($B68="","",0+UPPER(Mainframe!C67)) -> 40 | E68: =IF(D68="","",IF(NOT(ISNA(VLOOKUP(D68,Answers!A:D,4,FALSE))),VLOOKUP(D68,Answers!A:D,4,FALSE),"Help!")) -> 1000 | G68: =IF(E68="","",IF(E68="XX",VLOOKUP("WRONG",Answers!A:D,4,FALSE),E68)+F68) -> 1000 | H68: =IF($B68="","",0+UPPER(Mainframe!D67)) -> 121 | I68: =IF(H68="","",IF(NOT(ISNA(VLOOKUP(H68,Answers!E:H,4,FALSE))),VLOOKUP(H68,Answers!E:H,4,FALSE),"Help!")) -> 8 | K68: =IF(I68="","",G68+IF(I68="XX",VLOOKUP("WRONG",Answers!E:H,4,FALSE),I68)+J68) -> 1008 | L68: =IF($B68="","",0+UPPER(Mainframe!E67)) -> 16 | M68: =IF(L68="","",IF(NOT(ISNA(VLOOKUP(L68,Answers!I:L,4,FALSE))),VLOOKUP(L68,Answers!I:L,4,FALSE),"Help!")) -> 12 | O68: =IF(M68="","",K68+IF(M68="XX",VLOOKUP("WRONG",Answers!I:L,4,FALSE),M68)+N68) -> 1020 | P68: =IF($B68="","",0+UPPER(Mainframe!F67)) -> 1415 | Q68: =IF(P68="","",IF(NOT(ISNA(VLOOKUP(P68,Answers!M:P,4,FALSE))),VLOOKUP(P68,Answers!M:P,4,FALSE),"Help!")) -> 7 | S68: =IF(Q68="","",O68+IF(Q68="XX",VLOOKUP("WRONG",Answers!M:P,4,FALSE),Q68)+R68) -> 1027 | T68: =IF($B68="","",0+UPPER(Mainframe!G67)) -> 8 | U68: =IF(T68="","",IF(NOT(ISNA(VLOOKUP(T68,Answers!Q:T,4,FALSE))),VLOOKUP(T68,Answers!Q:T,4,FALSE),"Help!")) -> 6 | V68: =IF(U68>500,-1000,0) -> 0 | W68: =IF(U68="","",S68+IF(U68="XX",VLOOKUP("WRONG",Answers!Q:T,4,FALSE),U68)+V68) -> 1033 | X68: =IF($B68="","",0+UPPER(Mainframe!H67)) -> 3 | Y68: XX | AA68: =IF(Y68="","",W68+IF(Y68="XX",VLOOKUP("WRONG",Answers!U:X,4,FALSE),Y68)+Z68) -> 2040 | AB68: =IF($B68="","",0+UPPER(Mainframe!I67)) -> 25 | AC68: =IF(AB68="","",IF(NOT(ISNA(VLOOKUP(AB68,Answers!Y:AB,4,FALSE))),VLOOKUP(AB68,Answers!Y:AB,4,FALSE),"Help!")) -> 7 | AE68: =IF(AC68="","",AA68+IF(AC68="XX",VLOOKUP("WRONG",Answers!Y:AB,4,FALSE),AC68)+AD68) -> 2047 | AF68: =IF($B68="","",0+UPPER(Mainframe!J67)) -> 535 | AG68: XX | AI68: =IF(AG68="","",AE68+IF(AG68="XX",VLOOKUP("WRONG",Answers!AC:AF,4,FALSE),AG68)+AH68) -> 3054 | AJ68: =IF($B68="","",0+UPPER(Mainframe!K67)) -> 35 | AK68: =IF(AJ68="","",IF(NOT(ISNA(VLOOKUP(AJ68,Answers!AG:AJ,4,FALSE))),VLOOKUP(AJ68,Answers!AG:AJ,4,FALSE),"Help!")) -> 8 | AM68: =IF(AK68="","",AI68+IF(AK68="XX",VLOOKUP("WRONG",Answers!AG:AJ,4,FALSE),AK68)+AL68) -> 3062 | AN68: =IF($B68="","",0+UPPER(Mainframe!L67)) -> 24 | AO68: XX | AQ68: =IF(AO68="","",AM68+IF(AO68="XX",VLOOKUP("WRONG",Answers!AK:AN,4,FALSE),AO68)+AP68) -> 4069 | AR68: =IF($B68="","",0+UPPER(Mainframe!M67)) -> 3 | AS68: =IF(AR68="","",IF(NOT(ISNA(VLOOKUP(AR68,Answers!AO:AR,4,FALSE))),VLOOKUP(AR68,Answers!AO:AR,4,FALSE),"Help!")) -> 6 | AU68: =IF(AS68="","",AQ68+IF(AS68="XX",VLOOKUP("WRONG",Answers!AO:AR,4,FALSE),AS68)+AT68) -> 4075 | AV68: =IF($B68="","",0+UPPER(Mainframe!N67)) -> 666 | AW68: =IF(AV68="","",IF(NOT(ISNA(VLOOKUP(AV68,Answers!AS:AV,4,FALSE))),VLOOKUP(AV68,Answers!AS:AV,4,FALSE),"Help!")) -> 5 | AY68: =IF(AW68="","",AU68+IF(AW68="XX",VLOOKUP("WRONG",Answers!AS:AV,4,FALSE),AW68)+AX68) -> 4080 | AZ68: =IF($B68="","",0+UPPER(Mainframe!O67)) -> 420 | BA68: 68.47945205 | BB68: 1 | BC68: =IF($B68="","",LEFT(Mainframe!P67,SEARCH(".",Mainframe!P67)-1)) -> 5 | CH68: 65 | CI68: =IF(INDEX($B:$CE,ROW(),QNO*4)="XX","[b][u]"&INDEX($B:$CE,ROW(),QNO*4-1)&"[/u][/b]","[color=#BF0040]"&INDEX(OFFSET(Answers!C:C,0,(QNO-1)*4),MATCH(INDEX($A:$CB,ROW(),QNO*4),OFFSET(Answers!A:A,0,(QNO-1)*4),0))&"[/color]//[b]"&INDEX(OFFSET(Answers!B:B,0,(QNO-1)*4),MATCH(INDEX($A:$CB,ROW(),QNO*4),OFFSET(Answers!A:A,0,(QNO-1)*4),0))&"[/b] — [b]"&IF(INDEX($B:$CE,ROW(),QNO*4)=1,"Singleton!",CONCATENATE(INDEX($B:$CE,ROW(),QNO*4)," responses"))&"[/b]") -> [color=#BF0040]"King", "Red Red Wine", "(I Can't Help) Falling in Love With You"[/color]//[b]UB[u]40[/u][/b] — [b]1000 responses[/b] | CJ68: JonathanHenke//goatman [[b][color=#8000BF]FOX[/color][/b]] | CK68: No | CL68: 65. JonathanHenke — [b]1,000[/b] pts | CM68: 60 | CN68: -5
A69: [*] | B69: =IF(Mainframe!B68="","",INDEX(Mainframe!$B:$B,C69+1,1)) -> goatman | C69: 67 | D69: =IF($B69="","",0+UPPER(Mainframe!C68)) -> 40 | E69: =IF(D69="","",IF(NOT(ISNA(VLOOKUP(D69,Answers!A:D,4,FALSE))),VLOOKUP(D69,Answers!A:D,4,FALSE),"Help!")) -> 1000 | F69: =IF(E69>500,-1000,0) -> -1000 | G69: =IF(E69="","",IF(E69="XX",VLOOKUP("WRONG",Answers!A:D,4,FALSE),E69)+F69) -> 0 | H69: =IF($B69="","",0+UPPER(Mainframe!D68)) -> 108 | I69: =IF(H69="","",IF(NOT(ISNA(VLOOKUP(H69,Answers!E:H,4,FALSE))),VLOOKUP(H69,Answers!E:H,4,FALSE),"Help!")) -> 5 | K69: =IF(I69="","",G69+IF(I69="XX",VLOOKUP("WRONG",Answers!E:H,4,FALSE),I69)+J69) -> 5 | L69: =IF($B69="","",0+UPPER(Mainframe!E68)) -> 2001 | M69: =IF(L69="","",IF(NOT(ISNA(VLOOKUP(L69,Answers!I:L,4,FALSE))),VLOOKUP(L69,Answers!I:L,4,FALSE),"Help!")) -> 6 | O69: =IF(M69="","",K69+IF(M69="XX",VLOOKUP("WRONG",Answers!I:L,4,FALSE),M69)+N69) -> 11 | P69: =IF($B69="","",0+UPPER(Mainframe!F68)) -> 1415 | Q69: =IF(P69="","",IF(NOT(ISNA(VLOOKUP(P69,Answers!M:P,4,FALSE))),VLOOKUP(P69,Answers!M:P,4,FALSE),"Help!")) -> 7 | S69: =IF(Q69="","",O69+IF(Q69="XX",VLOOKUP("WRONG",Answers!M:P,4,FALSE),Q69)+R69) -> 18 | T69: =IF($B69="","",0+UPPER(Mainframe!G68)) -> 26 | U69: =IF(T69="","",IF(NOT(ISNA(VLOOKUP(T69,Answers!Q:T,4,FALSE))),VLOOKUP(T69,Answers!Q:T,4,FALSE),"Help!")) -> 1 | W69: =IF(U69="","",S69+IF(U69="XX",VLOOKUP("WRONG",Answers!Q:T,4,FALSE),U69)+V69) -> 19 | X69: =IF($B69="","",0+UPPER(Mainframe!H68)) -> 451 | Y69: =IF(X69="","",IF(NOT(ISNA(VLOOKUP(X69,Answers!U:X,4,FALSE))),VLOOKUP(X69,Answers!U:X,4,FALSE),"Help!")) -> 8 | AA69: =IF(Y69="","",W69+IF(Y69="XX",VLOOKUP("WRONG",Answers!U:X,4,FALSE),Y69)+Z69) -> 27 | AB69: =IF($B69="","",0+UPPER(Mainframe!I68)) -> 42 | AC69: =IF(AB69="","",IF(NOT(ISNA(VLOOKUP(AB69,Answers!Y:AB,4,FALSE))),VLOOKUP(AB69,Answers!Y:AB,4,FALSE),"Help!")) -> 13 | AE69: =IF(AC69="","",AA69+IF(AC69="XX",VLOOKUP("WRONG",Answers!Y:AB,4,FALSE),AC69)+AD69) -> 40 | AF69: =IF($B69="","",0+UPPER(Mainframe!J68)) -> 202 | AG69: =IF(AF69="","",IF(NOT(ISNA(VLOOKUP(AF69,Answers!AC:AF,4,FALSE))),VLOOKUP(AF69,Answers!AC:AF,4,FALSE),"Help!")) -> 10 | AI69: =IF(AG69="","",AE69+IF(AG69="XX",VLOOKUP("WRONG",Answers!AC:AF,4,FALSE),AG69)+AH69) -> 50 | AJ69: =IF($B69="","",0+UPPER(Mainframe!K68)) -> 94 | AK69: =IF(AJ69="","",IF(NOT(ISNA(VLOOKUP(AJ69,Answers!AG:AJ,4,FALSE))),VLOOKUP(AJ69,Answers!AG:AJ,4,FALSE),"Help!")) -> 5 | AM69: =IF(AK69="","",AI69+IF(AK69="XX",VLOOKUP("WRONG",Answers!AG:AJ,4,FALSE),AK69)+AL69) -> 55 | AN69: =IF($B69="","",0+UPPER(Mainframe!L68)) -> 100 | AO69: =IF(AN69="","",IF(NOT(ISNA(VLOOKUP(AN69,Answers!AK:AN,4,FALSE))),VLOOKUP(AN69,Answers!AK:AN,4,FALSE),"Help!")) -> 4 | AQ69: =IF(AO69="","",AM69+IF(AO69="XX",VLOOKUP("WRONG",Answers!AK:AN,4,FALSE),AO69)+AP69) -> 59 | AR69: =IF($B69="","",0+UPPER(Mainframe!M68)) -> 8 | AS69: =IF(AR69="","",IF(NOT(ISNA(VLOOKUP(AR69,Answers!AO:AR,4,FALSE))),VLOOKUP(AR69,Answers!AO:AR,4,FALSE),"Help!")) -> 6 | AU69: =IF(AS69="","",AQ69+IF(AS69="XX",VLOOKUP("WRONG",Answers!AO:AR,4,FALSE),AS69)+AT69) -> 65 | AV69: =IF($B69="","",0+UPPER(Mainframe!N68)) -> 622 | AW69: =IF(AV69="","",IF(NOT(ISNA(VLOOKUP(AV69,Answers!AS:AV,4,FALSE))),VLOOKUP(AV69,Answers!AS:AV,4,FALSE),"Help!")) -> 4 | AY69: =IF(AW69="","",AU69+IF(AW69="XX",VLOOKUP("WRONG",Answers!AS:AV,4,FALSE),AW69)+AX69) -> 69 | AZ69: =IF($B69="","",0+UPPER(Mainframe!O68)) -> 542 | BA69: 53.52054795 | BB69: 1 | BC69: =IF($B69="","",LEFT(Mainframe!P68,SEARCH(".",Mainframe!P68)-1)) -> 1 | CH69: 67 | CI69: =IF(INDEX($B:$CE,ROW(),QNO*4)="XX","[b][u]"&INDEX($B:$CE,ROW(),QNO*4-1)&"[/u][/b]","[color=#BF0040]"&INDEX(OFFSET(Answers!C:C,0,(QNO-1)*4),MATCH(INDEX($A:$CB,ROW(),QNO*4),OFFSET(Answers!A:A,0,(QNO-1)*4),0))&"[/color]//[b]"&INDEX(OFFSET(Answers!B:B,0,(QNO-1)*4),MATCH(INDEX($A:$CB,ROW(),QNO*4),OFFSET(Answers!A:A,0,(QNO-1)*4),0))&"[/b] — [b]"&IF(INDEX($B:$CE,ROW(),QNO*4)=1,"Singleton!",CONCATENATE(INDEX($B:$CE,ROW(),QNO*4)," responses"))&"[/b]") -> [color=#BF0040]"King", "Red Red Wine", "(I Can't Help) Falling in Love With You"[/color]//[b]UB[u]40[/u][/b] — [b]1000 responses[/b] | CJ69: goatman [[b][color=#8000BF]FOX[/color][/b]] | CK69: No | CL69: 67. goatman — [b]0[/b] pts | CM69: 5 | CN69: -62
A70: [*] | B70: =IF(Mainframe!B69="","",INDEX(Mainframe!$B:$B,C70+1,1)) -> deano | C70: 68 | D70: =IF($B70="","",0+UPPER(Mainframe!C69)) -> 5 | E70: =IF(D70="","",IF(NOT(ISNA(VLOOKUP(D70,Answers!A:D,4,FALSE))),VLOOKUP(D70,Answers!A:D,4,FALSE),"Help!")) -> 5 | G70: =IF(E70="","",IF(E70="XX",VLOOKUP("WRONG",Answers!A:D,4,FALSE),E70)+F70) -> 5 | H70: =IF($B70="","",0+UPPER(Mainframe!D69)) -> 56 | I70: =IF(H70="","",IF(NOT(ISNA(VLOOKUP(H70,Answers!E:H,4,FALSE))),VLOOKUP(H70,Answers!E:H,4,FALSE),"Help!")) -> 4 | K70: =IF(I70="","",G70+IF(I70="XX",VLOOKUP("WRONG",Answers!E:H,4,FALSE),I70)+J70) -> 9 | L70: =IF($B70="","",0+UPPER(Mainframe!E69)) -> 47 | M70: =IF(L70="","",IF(NOT(ISNA(VLOOKUP(L70,Answers!I:L,4,FALSE))),VLOOKUP(L70,Answers!I:L,4,FALSE),"Help!")) -> 2 | O70: =IF(M70="","",K70+IF(M70="XX",VLOOKUP("WRONG",Answers!I:L,4,FALSE),M70)+N70) -> 11 | P70: =IF($B70="","",0+UPPER(Mainframe!F69)) -> 1415 | Q70: =IF(P70="","",IF(NOT(ISNA(VLOOKUP(P70,Answers!M:P,4,FALSE))),VLOOKUP(P70,Answers!M:P,4,FALSE),"Help!")) -> 7 | S70: =IF(Q70="","",O70+IF(Q70="XX",VLOOKUP("WRONG",Answers!M:P,4,FALSE),Q70)+R70) -> 18 | T70: =IF($B70="","",0+UPPER(Mainframe!G69)) -> 2 | U70: =IF(T70="","",IF(NOT(ISNA(VLOOKUP(T70,Answers!Q:T,4,FALSE))),VLOOKUP(T70,Answers!Q:T,4,FALSE),"Help!")) -> 14 | W70: =IF(U70="","",S70+IF(U70="XX",VLOOKUP("WRONG",Answers!Q:T,4,FALSE),U70)+V70) -> 32 | X70: =IF($B70="","",0+UPPER(Mainframe!H69)) -> 1984 | Y70: =IF(X70="","",IF(NOT(ISNA(VLOOKUP(X70,Answers!U:X,4,FALSE))),VLOOKUP(X70,Answers!U:X,4,FALSE),"Help!")) -> 3 | Z70: =IF(Y70>500,-1000,0) -> 0 | AA70: =IF(Y70="","",W70+IF(Y70="XX",VLOOKUP("WRONG",Answers!U:X,4,FALSE),Y70)+Z70) -> 35 | AB70: =IF($B70="","",0+UPPER(Mainframe!I69)) -> 42 | AC70: =IF(AB70="","",IF(NOT(ISNA(VLOOKUP(AB70,Answers!Y:AB,4,FALSE))),VLOOKUP(AB70,Answers!Y:AB,4,FALSE),"Help!")) -> 13 | AE70: =IF(AC70="","",AA70+IF(AC70="XX",VLOOKUP("WRONG",Answers!Y:AB,4,FALSE),AC70)+AD70) -> 48 | AF70: =IF($B70="","",0+UPPER(Mainframe!J69)) -> 49 | AG70: =IF(AF70="","",IF(NOT(ISNA(VLOOKUP(AF70,Answers!AC:AF,4,FALSE))),VLOOKUP(AF70,Answers!AC:AF,4,FALSE),"Help!")) -> 10 | AI70: =IF(AG70="","",AE70+IF(AG70="XX",VLOOKUP("WRONG",Answers!AC:AF,4,FALSE),AG70)+AH70) -> 58 | AJ70: =IF($B70="","",0+UPPER(Mainframe!K69)) -> 5 | AK70: =IF(AJ70="","",IF(NOT(ISNA(VLOOKUP(AJ70,Answers!AG:AJ,4,FALSE))),VLOOKUP(AJ70,Answers!AG:AJ,4,FALSE),"Help!")) -> 9 | AM70: =IF(AK70="","",AI70+IF(AK70="XX",VLOOKUP("WRONG",Answers!AG:AJ,4,FALSE),AK70)+AL70) -> 67 | AN70: =IF($B70="","",0+UPPER(Mainframe!L69)) -> 42 | AO70: =IF(AN70="","",IF(NOT(ISNA(VLOOKUP(AN70,Answers!AK:AN,4,FALSE))),VLOOKUP(AN70,Answers!AK:AN,4,FALSE),"Help!")) -> 8 | AQ70: =IF(AO70="","",AM70+IF(AO70="XX",VLOOKUP("WRONG",Answers!AK:AN,4,FALSE),AO70)+AP70) -> 75 | AR70: =IF($B70="","",0+UPPER(Mainframe!M69)) -> 1000 | AS70: =IF(AR70="","",IF(NOT(ISNA(VLOOKUP(AR70,Answers!AO:AR,4,FALSE))),VLOOKUP(AR70,Answers!AO:AR,4,FALSE),"Help!")) -> 6 | AU70: =IF(AS70="","",AQ70+IF(AS70="XX",VLOOKUP("WRONG",Answers!AO:AR,4,FALSE),AS70)+AT70) -> 81 | AV70: =IF($B70="","",0+UPPER(Mainframe!N69)) -> 5000 | AW70: =IF(AV70="","",IF(NOT(ISNA(VLOOKUP(AV70,Answers!AS:AV,4,FALSE))),VLOOKUP(AV70,Answers!AS:AV,4,FALSE),"Help!")) -> 9 | AY70: =IF(AW70="","",AU70+IF(AW70="XX",VLOOKUP("WRONG",Answers!AS:AV,4,FALSE),AW70)+AX70) -> 90 | AZ70: =IF($B70="","",0+UPPER(Mainframe!O69)) -> 442 | BA70: 46.47945205 | BB70: 1 | BC70: =IF($B70="","",LEFT(Mainframe!P69,SEARCH(".",Mainframe!P69)-1)) -> 6 | CH70: 68 | CI70: =IF(INDEX($B:$CE,ROW(),QNO*4)="XX","[b][u]"&INDEX($B:$CE,ROW(),QNO*4-1)&"[/u][/b]","[color=#BF0040]"&INDEX(OFFSET(Answers!C:C,0,(QNO-1)*4),MATCH(INDEX($A:$CB,ROW(),QNO*4),OFFSET(Answers!A:A,0,(QNO-1)*4),0))&"[/color]//[b]"&INDEX(OFFSET(Answers!B:B,0,(QNO-1)*4),MATCH(INDEX($A:$CB,ROW(),QNO*4),OFFSET(Answers!A:A,0,(QNO-1)*4),0))&"[/b] — [b]"&IF(INDEX($B:$CE,ROW(),QNO*4)=1,"Singleton!",CONCATENATE(INDEX($B:$CE,ROW(),QNO*4)," responses"))&"[/b]") -> [color=#BF0040]"She Will Be Loved", "Makes Me Wonder", "Moves like Jagger"[/color]//[b]MAROON [u]5[/u][/b] — [b]5 responses[/b] | CJ70: deano | CK70: Yes | CL70: 68. deano — [b]5[/b] pts | CM70: 8 | CN70: -60
